Workbook

Sheet Data (hidden)
A1: Sales Information | J1: Sales Information By Term | S1: Redemptions | Z1: Accounts | AE1: Outstanding | AK1: C of I | AO1: Wire Transfers | AX1: Paper Conversions
A3: tranMonth | B3: Series | C3: TotalTrans | D3: GrossDollars | E3: ReturnedDollars | F3: NetDollars | G3: fy | H3: Type | J3: tranMonth | K3: Series | L3: Tranactions | M3: Dollars | N3: FromCOfI | O3: Type | P3: Term | Q3: FY | S3: tranMonth | T3: series | U3: type | V3: Transactions | W3: Dollars | X3: FY | Z3: TranMonth | AA3: netAccts | AB3: totalFundedAccts | AC3: FY | AE3: TranMonth | AF3: Series | AG3: SumOfAmount | AH3: Type | AI3: FY | AK3: TranMonth | AL3: AmountOutstanding | AM3: FY | AO3: tranMonth | AP3: fromCbePcs | AQ3: fromCbeDollar | AR3: fromLtdPcs | AS3: fromLtdDollars | AT3: toTDPcs | AU3: toTDDollars | AV3: FY | AX3: Series | AY3: TranCode | AZ3: SumOfTotalPieces | BA3: SumOfTotalAmount | BB3: tranMonth | BC3: FY
A4: 201209 | B4: EE | C4: 13689 | D4: 1625490.57 | E4: 37436.5 | F4: 1588054.07 | G4: 2012 | H4: EE | J4: 201209 | K4: MK | L4: 221 | M4: 30744700 | N4: TRUE | Q4: 2012 | S4: 201209 | T4: E | V4: 13 | W4: 7594.79 | X4: 2012 | Z4: 201209 | AA4: 8013 | AC4: 2012 | AE4: 201208 | AF4: MK | AG4: 6208126900 | AH4: NOTE | AI4: 2012 | AK4: 201209 | AM4: 2012 | AO4: 201208 | AP4: 61 | AQ4: 7153700 | AR4: 2518 | AS4: 240826100 | AT4: 2579 | AU4: 247979800 | AV4: 2012 | AX4: I | AY4: 203 | AZ4: 15534 | BA4: 17323396.23 | BB4: 201208 | BC4: 2012
A5: 201209 | B5: I | C5: 18884 | D5: 8450106.9 | E5: 163034.1 | F5: 8287072.8 | G5: 2012 | H5: I | J5: 201209 | K5: MK | L5: 946 | M5: 183199700 | N5: FALSE | Q5: 2012 | S5: 201209 | T5: E | V5: 1 | W5: 130.02 | X5: 2012 | Z5: 201208 | AA5: 21291 | AB5: 478638 | AC5: 2012 | AE5: 201208 | AF5: MK | AG5: 388639800 | AH5: BOND | AI5: 2012 | AK5: 201208 | AL5: 772364189.7 | AM5: 2012 | AO5: 201207 | AP5: 90 | AQ5: 8579300 | AR5: 1629 | AS5: 115734100 | AT5: 1721 | AU5: 124373400 | AV5: 2012 | AX5: E | AY5: 203 | AZ5: 926 | BA5: 343110.65 | BB5: 201208 | BC5: 2012
A6: 201209 | B6: MK | C6: 1167 | D6: 213944400 | E6: 0 | F6: 213944400 | G6: 2012 | J6: 201209 | K6: I | L6: 15809 | M6: 7955145.98 | N6: FALSE | P6: 0 | Q6: 2012 | S6: 201209 | T6: E | V6: 21 | W6: 5379.14 | X6: 2012 | Z6: 201207 | AA6: 21310 | AB6: 470661 | AC6: 2012 | AE6: 201208 | AF6: MK | AG6: 9214882500 | AH6: BILL | AI6: 2012 | AK6: 201207 | AL6: 740299855.7 | AM6: 2012 | AO6: 201206 | AP6: 37 | AQ6: 17750500 | AR6: 1913 | AS6: 111503600 | AT6: 1950 | AU6: 129254100 | AV6: 2012 | AX6: EE | AY6: 203 | AZ6: 56182 | BA6: 20432654.98 | BB6: 201208 | BC6: 2012
A7: 201208 | B7: EE | C7: 38106 | D7: 5208799.89 | E7: 101447.5 | F7: 5107352.39 | G7: 2012 | H7: EE | J7: 201209 | K7: I | L7: 3075 | M7: 494960.92 | N7: TRUE | P7: 0 | Q7: 2012 | S7: 201209 | T7: E | V7: 6 | W7: 765.23 | X7: 2012 | Z7: 201206 | AA7: 22103 | AB7: 462741 | AC7: 2012 | AE7: 201208 | AF7: MK | AG7: 1094827100 | AH7: TIPS | AI7: 2012 | AK7: 201206 | AL7: 733458449.2 | AM7: 2012 | AO7: 201205 | AP7: 40 | AQ7: 3354000 | AR7: 2338 | AS7: 255478200 | AT7: 2378 | AU7: 258832200 | AV7: 2012 | AX7: I | AY7: 203 | AZ7: 11621 | BA7: 13883795.92 | BB7: 201207 | BC7: 2012
A8: 201208 | B8: I | C8: 55101 | D8: 30429898.82 | E8: 631001 | F8: 29798897.82 | G8: 2012 | H8: I | J8: 201209 | K8: EE | L8: 11841 | M8: 1410710.97 | N8: FALSE | P8: 0 | Q8: 2012 | S8: 201209 | T8: E | V8: 14 | W8: 1529.77 | X8: 2012 | Z8: 201205 | AA8: 29647 | AB8: 454013 | AC8: 2012 | AE8: 201208 | AF8: EE | AG8: 1158719256 | AI8: 2012 | AK8: 201205 | AL8: 733897840.5 | AM8: 2012 | AO8: 201204 | AP8: 41 | AQ8: 31464000 | AR8: 1454 | AS8: 84301900 | AT8: 1495 | AU8: 115765900 | AV8: 2012 | AX8: E | AY8: 203 | AZ8: 460 | BA8: 164945.79 | BB8: 201207 | BC8: 2012
A9: 201208 | B9: MK | C9: 549 | D9: 25001200 | E9: 0 | F9: 25001200 | G9: 2012 | H9: TIPS | J9: 201209 | K9: EE | L9: 1848 | M9: 214779.6 | N9: TRUE | P9: 0 | Q9: 2012 | S9: 201209 | T9: EE | V9: 1969 | W9: 324005.25 | X9: 2012 | Z9: 201204 | AA9: 36872 | AB9: 442864 | AC9: 2012 | AE9: 201208 | AF9: E | AG9: 130.02 | AI9: 2012 | AK9: 201204 | AL9: 721762135 | AM9: 2012 | AO9: 201203 | AP9: 28 | AQ9: 9112500 | AR9: 1473 | AS9: 94984000 | AT9: 1501 | AU9: 104096500 | AV9: 2012 | AX9: EE | AY9: 203 | AZ9: 48376 | BA9: 16411767.2 | BB9: 201207 | BC9: 2012
A10: 201208 | B10: MK | C10: 1828 | D10: 95256400 | E10: 908900 | F10: 94347500 | G10: 2012 | H10: NOTE | J10: 201208 | K10: I | L10: 44459 | M10: 29039633.08 | N10: FALSE | P10: 0 | Q10: 2012 | S10: 201209 | T10: EE | V10: 853 | W10: 137497.89 | X10: 2012 | Z10: 201203 | AA10: 38088 | AB10: 430978 | AC10: 2012 | AE10: 201208 | AF10: I | AG10: 5080970855 | AI10: 2012 | AK10: 201203 | AL10: 739351312.1 | AM10: 2012 | AO10: 201202 | AP10: 8 | AQ10: 5826400 | AR10: 2595 | AS10: 161109000 | AT10: 2603 | AU10: 166935400 | AV10: 2012 | AX10: EE | AY10: 203 | AZ10: 53813 | BA10: 18911308.5 | BB10: 201206 | BC10: 2012
A11: 201208 | B11: MK | C11: 256 | D11: 5638500 | E11: 400 | F11: 5638100 | G11: 2012 | H11: BOND | J11: 201208 | K11: EE | L11: 5953 | M11: 635311.36 | N11: TRUE | P11: 0 | Q11: 2012 | S11: 201209 | T11: EE | V11: 1198 | W11: 254877.41 | X11: 2012 | Z11: 201202 | AA11: 42695 | AB11: 414715 | AC11: 2012 | AE11: 201207 | AF11: MK | AG11: 9092164900 | AH11: BILL | AI11: 2012 | AK11: 201202 | AL11: 734853034.5 | AM11: 2012 | AO11: 201201 | AP11: 34 | AQ11: 18928000 | AR11: 2511 | AS11: 132505000 | AT11: 2545 | AU11: 151433000 | AV11: 2012 | AX11: I | AY11: 203 | AZ11: 10820 | BA11: 12910280.27 | BB11: 201206 | BC11: 2012
A12: 201208 | B12: MK | C12: 5650 | D12: 982897300 | E12: 5700900 | F12: 977196400 | G12: 2012 | H12: BILL | J12: 201208 | K12: EE | L12: 32153 | M12: 4573488.53 | N12: FALSE | P12: 0 | Q12: 2012 | S12: 201209 | T12: EE | V12: 1040 | W12: 237681.35 | X12: 2012 | Z12: 201201 | AA12: 53888 | AB12: 397416 | AC12: 2012 | AE12: 201207 | AF12: EE | AG12: 1136949766 | AI12: 2012 | AK12: 201201 | AL12: 724235959.3 | AM12: 2012 | AO12: 201112 | AP12: 24 | AQ12: 11157300 | AR12: 2691 | AS12: 142210800 | AT12: 2718 | AU12: 153383100 | AV12: 2012 | AX12: E | AY12: 203 | AZ12: 675 | BA12: 371788.26 | BB12: 201206 | BC12: 2012
A13: 201207 | B13: EE | C13: 37293 | D13: 5044095.59 | E13: 113116.5 | F13: 4930979.09 | G13: 2012 | H13: EE | J13: 201208 | K13: I | L13: 10642 | M13: 1390265.74 | N13: TRUE | P13: 0 | Q13: 2012 | S13: 201209 | T13: EE | V13: 5881 | W13: 1730633.73 | X13: 2012 | Z13: 201112 | AA13: 36705 | AB13: 378796 | AC13: 2012 | AE13: 201207 | AF13: E | AG13: 0 | AI13: 2012 | AK13: 201112 | AL13: 734823859.5 | AM13: 2012 | AO13: 201111 | AP13: 43 | AQ13: 21796600 | AR13: 4043 | AS13: 255530100 | AT13: 4087 | AU13: 277346700 | AV13: 2012 | AX13: E | AY13: 203 | AZ13: 902 | BA13: 516644.58 | BB13: 201205 | BC13: 2012
A14: 201207 | B14: I | C14: 52806 | D14: 28564095.41 | E14: 644825.66 | F14: 27919269.75 | G14: 2012 | H14: I | J14: 201208 | K14: MK | L14: 474 | M14: 93453600 | N14: TRUE | O14: BILL | P14: 4 | Q14: 2012 | S14: 201209 | T14: EE | V14: 1189 | W14: 347106.61 | X14: 2012 | Z14: 201111 | AA14: 16509 | AB14: 361442 | AC14: 2012 | AE14: 201207 | AF14: I | AG14: 5027719405 | AI14: 2012 | AK14: 201111 | AL14: 715829983 | AM14: 2012 | AO14: 201110 | AP14: 53 | AQ14: 27113400 | AR14: 6105 | AS14: 332966100 | AT14: 6158 | AU14: 360079500 | AV14: 2012 | AX14: EE | AY14: 203 | AZ14: 61429 | BA14: 18574759.86 | BB14: 201205 | BC14: 2012
A15: 201207 | B15: MK | C15: 4614 | D15: 795636900 | E15: 8228400 | F15: 787408500 | G15: 2012 | H15: BILL | J15: 201208 | K15: MK | L15: 961 | M15: 143809700 | N15: FALSE | O15: BILL | P15: 4 | Q15: 2012 | S15: 201209 | T15: I | V15: 3338 | W15: 943971.1 | X15: 2012 | Z15: 201110 | AA15: 13227 | AB15: 354506 | AC15: 2012 | AE15: 201207 | AF15: MK | AG15: 379141700 | AH15: BOND | AI15: 2012 | AK15: 201110 | AL15: 787246708.4 | AM15: 2012 | AO15: 201109 | AP15: 57 | AQ15: 5929700 | AR15: 21802 | AS15: 1145777700 | AT15: 21859 | AU15: 1151707400 | AV15: 2011 | AX15: I | AY15: 203 | AZ15: 15360 | BA15: 16410637.01 | BB15: 201205 | BC15: 2012
A16: 201207 | B16: MK | C16: 135 | D16: 2194400 | E16: 130100 | F16: 2064300 | G16: 2012 | H16: BOND | J16: 201208 | K16: MK | L16: 1395 | M16: 339491900 | N16: FALSE | O16: BILL | P16: 13 | Q16: 2012 | S16: 201209 | T16: I | V16: 857 | W16: 352022.48 | X16: 2012 | Z16: 201109 | AA16: 10049 | AB16: 349088 | AC16: 2011 | AE16: 201207 | AF16: MK | AG16: 6281117900 | AH16: NOTE | AI16: 2012 | AK16: 201109 | AL16: 766757570.2 | AM16: 2011 | AO16: 201108 | AP16: 66 | AQ16: 13934500 | AR16: 39691 | AS16: 2345467300 | AT16: 39757 | AU16: 2359401800 | AV16: 2011 | AX16: E | AY16: 203 | AZ16: 331 | BA16: 97147.97 | BB16: 201204 | BC16: 2012
A17: 201207 | B17: MK | C17: 610 | D17: 17451100 | E17: 0 | F17: 17451100 | G17: 2012 | H17: TIPS | J17: 201208 | K17: MK | L17: 273 | M17: 42354600 | N17: TRUE | O17: BILL | P17: 13 | Q17: 2012 | S17: 201209 | T17: I | V17: 661 | W17: 257425.56 | X17: 2012 | Z17: 201108 | AA17: 13087 | AB17: 343189 | AC17: 2011 | AE17: 201207 | AF17: MK | AG17: 1057627800 | AH17: TIPS | AI17: 2012 | AK17: 201108 | AL17: 752979687.1 | AM17: 2011 | AO17: 201107 | AP17: 36 | AQ17: 7181200 | AR17: 25545 | AS17: 1359515000 | AT17: 25581 | AU17: 1366696200 | AV17: 2011 | AX17: I | AY17: 203 | AZ17: 7988 | BA17: 8538103.81 | BB17: 201204 | BC17: 2012
A18: 201207 | B18: MK | C18: 2878 | D18: 148098300 | E18: 1196300 | F18: 146902000 | G18: 2012 | H18: NOTE | J18: 201208 | K18: MK | L18: 1720 | M18: 273984600 | N18: FALSE | O18: BILL | P18: 26 | Q18: 2012 | S18: 201209 | T18: I | V18: 845 | W18: 176087.12 | X18: 2012 | Z18: 201107 | AA18: 11186 | AB18: 334356 | AC18: 2011 | AE18: 201206 | AF18: EE | AG18: 1119523657 | AI18: 2012 | AK18: 201107 | AL18: 684675834.9 | AM18: 2011 | AO18: 201106 | AP18: 41 | AQ18: 24357000 | AR18: 36639 | AS18: 2374540400 | AT18: 36680 | AU18: 2398897400 | AV18: 2011 | AX18: EE | AY18: 203 | AZ18: 34658 | BA18: 10798024.27 | BB18: 201204 | BC18: 2012
A19: 201206 | B19: EE | C19: 37089 | D19: 5061375.69 | E19: 134880 | F19: 4926495.69 | G19: 2012 | H19: EE | J19: 201208 | K19: MK | L19: 322 | M19: 27815400 | N19: TRUE | O19: BILL | P19: 26 | Q19: 2012 | S19: 201209 | T19: I | V19: 1338 | W19: 456205.08 | X19: 2012 | Z19: 201106 | AA19: 8934 | AB19: 328613 | AC19: 2011 | AE19: 201206 | AF19: I | AG19: 4977666386 | AI19: 2012 | AK19: 201106 | AL19: 697869700.7 | AM19: 2011 | AO19: 201105 | AP19: 12 | AQ19: 10653000 | AR19: 33691 | AS19: 1882312500 | AT19: 33703 | AU19: 1892965500 | AV19: 2011 | AX19: E | AY19: 203 | AZ19: 319 | BA19: 101684.99 | BB19: 201203 | BC19: 2012
A20: 201206 | B20: I | C20: 51996 | D20: 28931489.35 | E20: 642775.13 | F20: 28288714.22 | G20: 2012 | H20: I | J20: 201208 | K20: MK | L20: 63 | M20: 2806900 | N20: TRUE | O20: BILL | P20: 52 | Q20: 2012 | S20: 201209 | T20: I | V20: 1077 | W20: 727787.2 | X20: 2012 | Z20: 201105 | AA20: 11595 | AB20: 321547 | AC20: 2011 | AE20: 201206 | AF20: E | AG20: 0 | AI20: 2012 | AK20: 201105 | AL20: 677165393.5 | AM20: 2011 | AO20: 201104 | AP20: 40 | AQ20: 7458000 | AR20: 13875 | AS20: 830560800 | AT20: 13915 | AU20: 838018800 | AV20: 2011 | AX20: EE | AY20: 203 | AZ20: 40702 | BA20: 13496525.81 | BB20: 201203 | BC20: 2012
A21: 201206 | B21: MK | C21: 4679 | D21: 784348200 | E21: 6732900 | F21: 777615300 | G21: 2012 | H21: BILL | J21: 201208 | K21: MK | L21: 442 | M21: 59180600 | N21: FALSE | O21: BILL | P21: 52 | Q21: 2012 | S21: 201209 | T21: MK | U21: BILL | V21: 4241 | W21: 530786800 | X21: 2012 | Z21: 201104 | AA21: 26240 | AB21: 315477 | AC21: 2011 | AE21: 201206 | AF21: MK | AG21: 8953565500 | AH21: BILL | AI21: 2012 | AK21: 201104 | AL21: 649284461.9 | AM21: 2011 | AO21: 201103 | AP21: 18 | AQ21: 2038500 | AR21: 438 | AS21: 31214900 | AT21: 456 | AU21: 33253400 | AV21: 2011 | AX21: I | AY21: 203 | AZ21: 10329 | BA21: 10594725.53 | BB21: 201203 | BC21: 2012
A22: 201206 | B22: MK | C22: 174 | D22: 1965300 | E22: 100200 | F22: 1865100 | G22: 2012 | H22: BOND | J22: 201208 | K22: MK | L22: 211 | M22: 5594300 | N22: FALSE | O22: BOND | P22: 30 | Q22: 2012 | S22: 201208 | T22: E | V22: 15 | W22: 7010.64 | X22: 2012 | Z22: 201103 | AA22: 5466 | AB22: 313649 | AC22: 2011 | AE22: 201206 | AF22: MK | AG22: 1092471500 | AH22: TIPS | AI22: 2012 | AK22: 201103 | AL22: 614465136 | AM22: 2011 | AO22: 201102 | AP22: 7 | AQ22: 1110000 | AR22: 301 | AS22: 15688000 | AT22: 308 | AU22: 16798000 | AV22: 2011 | AX22: EE | AY22: 203 | AZ22: 73241 | BA22: 23417580.58 | BB22: 201202 | BC22: 2012
A23: 201206 | B23: MK | C23: 149 | D23: 2921800 | E23: 0 | F23: 2921800 | G23: 2012 | H23: TIPS | J23: 201208 | K23: MK | L23: 45 | M23: 44200 | N23: TRUE | O23: BOND | P23: 30 | Q23: 2012 | S23: 201208 | T23: E | V23: 5 | W23: 1327.84 | X23: 2012 | Z23: 201102 | AA23: 5640 | AB23: 312580 | AC23: 2011 | AE23: 201206 | AF23: MK | AG23: 6300900400 | AH23: NOTE | AI23: 2012 | AK23: 201102 | AL23: 591439497.4 | AM23: 2011 | AO23: 201101 | AP23: 13 | AQ23: 336000 | AR23: 237 | AS23: 4928000 | AT23: 250 | AU23: 5264000 | AV23: 2011 | AX23: I | AY23: 203 | AZ23: 16112 | BA23: 19856728.16 | BB23: 201202 | BC23: 2012
A24: 201206 | B24: MK | C24: 410 | D24: 17160700 | E24: 230400 | F24: 16930300 | G24: 2012 | H24: NOTE | J24: 201208 | K24: MK | L24: 812 | M24: 61628900 | N24: FALSE | O24: NOTE | P24: 2 | Q24: 2012 | S24: 201208 | T24: E | V24: 1 | W24: 199.9 | X24: 2012 | Z24: 201101 | AA24: 7979 | AB24: 311172 | AC24: 2011 | AE24: 201206 | AF24: MK | AG24: 379135300 | AH24: BOND | AI24: 2012 | AK24: 201101 | AL24: 595159764.2 | AM24: 2011 | AO24: 201012 | AP24: 9 | AQ24: 4344000 | AR24: 160 | AS24: 16098400 | AT24: 169 | AU24: 20442400 | AV24: 2011 | AX24: E | AY24: 203 | AZ24: 661 | BA24: 232208.22 | BB24: 201202 | BC24: 2012
A25: 201205 | B25: EE | C25: 40103 | D25: 5570121.8 | E25: 176827.16 | F25: 5393294.64 | G25: 2012 | H25: EE | J25: 201208 | K25: MK | L25: 73 | M25: 7053000 | N25: TRUE | O25: NOTE | P25: 2 | Q25: 2012 | S25: 201208 | T25: E | V25: 6 | W25: 828.4 | X25: 2012 | Z25: 201012 | AA25: 10057 | AB25: 309048 | AC25: 2011 | AE25: 201205 | AF25: E | AG25: 972.4 | AI25: 2012 | AK25: 201012 | AL25: 599104240 | AM25: 2011 | AO25: 201011 | AP25: 5 | AQ25: 17150000 | AR25: 150 | AS25: 7699900 | AT25: 155 | AU25: 24849900 | AV25: 2011 | AX25: I | AY25: 203 | AZ25: 19560 | BA25: 22808651.11 | BB25: 201201 | BC25: 2012
A26: 201205 | B26: I | C26: 56101 | D26: 41553158.85 | E26: 894484.72 | F26: 40658674.13 | G26: 2012 | H26: I | J26: 201208 | K26: MK | L26: 24 | M26: 1109500 | N26: TRUE | O26: NOTE | P26: 3 | Q26: 2012 | S26: 201208 | T26: E | V26: 19 | W26: 2344.82 | X26: 2012 | Z26: 201011 | AA26: 9347 | AB26: 307421 | AC26: 2011 | AE26: 201205 | AF26: EE | AG26: 1099399884 | AI26: 2012 | AK26: 201011 | AL26: 626722479 | AM26: 2011 | AO26: 201010 | AP26: 20 | AQ26: 4549000 | AR26: 189 | AS26: 5039700 | AT26: 209 | AU26: 9588700 | AV26: 2011 | AX26: E | AY26: 203 | AZ26: 974 | BA26: 405135.31 | BB26: 201201 | BC26: 2012
A27: 201205 | B27: MK | C27: 404 | D27: 8044200 | E27: 0 | F27: 8044200 | G27: 2012 | H27: TIPS | J27: 201208 | K27: MK | L27: 228 | M27: 8695900 | N27: FALSE | O27: NOTE | P27: 3 | Q27: 2012 | S27: 201208 | T27: E | V27: 79 | W27: 13942.48 | X27: 2012 | Z27: 201010 | AA27: 10136 | AB27: 305170 | AC27: 2011 | AE27: 201205 | AF27: MK | AG27: 6279024300 | AH27: NOTE | AI27: 2012 | AK27: 201010 | AL27: 653352069.3 | AM27: 2011 | AO27: 201009 | AP27: 1 | AQ27: 1000000 | AR27: 125 | AS27: 5389000 | AT27: 126 | AU27: 6389000 | AV27: 2010 | AX27: EE | AY27: 203 | AZ27: 71418 | BA27: 22956785.16 | BB27: 201201 | BC27: 2012
A28: 201205 | B28: MK | C28: 1955 | D28: 92844500 | E28: 1893900 | F28: 90950600 | G28: 2012 | H28: NOTE | J28: 201208 | K28: MK | L28: 25 | M28: 186000 | N28: TRUE | O28: NOTE | P28: 5 | Q28: 2012 | S28: 201208 | T28: E | V28: 38 | W28: 7830.1 | X28: 2012 | Z28: 201009 | AA28: 14635 | AB28: 301739 | AC28: 2010 | AE28: 201205 | AF28: I | AG28: 4928105679 | AI28: 2012 | AK28: 201009 | AL28: 630475759.1 | AM28: 2010 | AO28: 201008 | AP28: 25 | AQ28: 38676000 | AR28: 242 | AS28: 14544000 | AT28: 267 | AU28: 53220000 | AV28: 2010 | AX28: EE | AY28: 203 | AZ28: 42263 | BA28: 14947098.86 | BB28: 201112 | BC28: 2012
A29: 201205 | B29: MK | C29: 314 | D29: 6605100 | E29: 400 | F29: 6604700 | G29: 2012 | H29: BOND | J29: 201208 | K29: MK | L29: 274 | M29: 6617400 | N29: FALSE | O29: NOTE | P29: 5 | Q29: 2012 | S29: 201208 | T29: E | V29: 150 | W29: 69314.22 | X29: 2012 | Z29: 201008 | AA29: 21878 | AB29: 298808 | AC29: 2010 | AE29: 201205 | AF29: MK | AG29: 376945900 | AH29: BOND | AI29: 2012 | AK29: 201008 | AL29: 652649744.7 | AM29: 2010 | AO29: 201007 | AP29: 11 | AQ29: 9740000 | AR29: 270 | AS29: 8014500 | AT29: 281 | AU29: 17754500 | AV29: 2010 | AX29: I | AY29: 203 | AZ29: 11791 | BA29: 12680270.32 | BB29: 201112 | BC29: 2012
A30: 201205 | B30: MK | C30: 6375 | D30: 1070902100 | E30: 14143800 | F30: 1056758300 | G30: 2012 | H30: BILL | J30: 201208 | K30: MK | L30: 11 | M30: 105200 | N30: TRUE | O30: NOTE | P30: 7 | Q30: 2012 | S30: 201208 | T30: E | V30: 5 | W30: 704.27 | X30: 2012 | Z30: 201007 | AA30: 10995 | AB30: 297172 | AC30: 2010 | AE30: 201205 | AF30: MK | AG30: 8766823200 | AH30: BILL | AI30: 2012 | AK30: 201007 | AL30: 645765392.6 | AM30: 2010 | AO30: 201006 | AP30: 36 | AQ30: 2120000 | AR30: 504 | AS30: 18290700 | AT30: 540 | AU30: 20410700 | AV30: 2010 | AX30: E | AY30: 203 | AZ30: 1021 | BA30: 346002.89 | BB30: 201112 | BC30: 2012
A31: 201204 | B31: EE | C31: 41688 | D31: 5509001.72 | E31: 176167.5 | F31: 5332834.22 | G31: 2012 | H31: EE | J31: 201208 | K31: MK | L31: 89 | M31: 1419400 | N31: FALSE | O31: NOTE | P31: 7 | Q31: 2012 | S31: 201208 | T31: E | V31: 2 | W31: 264.78 | X31: 2012 | Z31: 201006 | AA31: 6656 | AB31: 296521 | AC31: 2010 | AE31: 201205 | AF31: MK | AG31: 1093538900 | AH31: TIPS | AI31: 2012 | AK31: 201006 | AL31: 590784787.5 | AM31: 2010 | AO31: 201005 | AP31: 8 | AQ31: 2458000 | AR31: 216 | AS31: 17270400 | AT31: 224 | AU31: 19728400 | AV31: 2010 | AX31: E | AY31: 203 | AZ31: 507 | BA31: 277965.32 | BB31: 201111 | BC31: 2012
A32: 201204 | B32: I | C32: 60607 | D32: 55743461.61 | E32: 858149 | F32: 54885312.61 | G32: 2012 | H32: I | J32: 201208 | K32: MK | L32: 26 | M32: 124100 | N32: TRUE | O32: NOTE | P32: 10 | Q32: 2012 | S32: 201208 | T32: E | V32: 16 | W32: 3397.36 | X32: 2012 | Z32: 201005 | AA32: 4631 | AB32: 296289 | AC32: 2010 | AE32: 201204 | AF32: MK | AG32: 6297011500 | AH32: NOTE | AI32: 2012 | AK32: 201005 | AL32: 585427731.4 | AM32: 2010 | AO32: 201004 | AP32: 5 | AQ32: 1285000 | AR32: 401 | AS32: 33448900 | AT32: 406 | AU32: 34733900 | AV32: 2010 | AX32: EE | AY32: 203 | AZ32: 36519 | BA32: 11803992.5 | BB32: 201111 | BC32: 2012
A33: 201204 | B33: MK | C33: 3095 | D33: 149178900 | E33: 1101500 | F33: 148077400 | G33: 2012 | H33: NOTE | J33: 201208 | K33: MK | L33: 266 | M33: 8317000 | N33: FALSE | O33: NOTE | P33: 10 | Q33: 2012 | S33: 201208 | T33: E | V33: 49 | W33: 21974.75 | X33: 2012 | Z33: 201004 | AA33: 5921 | AB33: 295949 | AC33: 2010 | AE33: 201204 | AF33: E | AG33: 531.5 | AI33: 2012 | AK33: 201004 | AL33: 512065396.1 | AM33: 2010 | AO33: 201003 | AP33: 6 | AQ33: 374000 | AR33: 360 | AS33: 15204300 | AT33: 366 | AU33: 15578300 | AV33: 2010 | AX33: I | AY33: 203 | AZ33: 10239 | BA33: 9727423.83 | BB33: 201111 | BC33: 2012
A34: 201204 | B34: MK | C34: 207 | D34: 3651900 | E34: 1200 | F34: 3650700 | G34: 2012 | H34: BOND | J34: 201208 | K34: MK | L34: 489 | M34: 24558300 | N34: FALSE | O34: TIPS | P34: 5 | Q34: 2012 | S34: 201208 | T34: E | V34: 16 | W34: 35685.71 | X34: 2012 | Z34: 201003 | AA34: 6070 | AB34: 294629 | AC34: 2010 | AE34: 201204 | AF34: I | AG34: 4863588380 | AI34: 2012 | AK34: 201003 | AL34: 537457894.5 | AM34: 2010 | AO34: 201002 | AP34: 4 | AQ34: 1225000 | AR34: 277 | AS34: 16633100 | AT34: 281 | AU34: 17858100 | AV34: 2010 | AX34: EE | AY34: 203 | AZ34: 33728 | BA34: 11137549.91 | BB34: 201110 | BC34: 2012
A35: 201204 | B35: MK | C35: 1122 | D35: 31668400 | E35: 0 | F35: 31668400 | G35: 2012 | H35: TIPS | J35: 201208 | K35: MK | L35: 60 | M35: 442900 | N35: TRUE | O35: TIPS | P35: 5 | Q35: 2012 | S35: 201208 | T35: E | V35: 50 | W35: 15298.72 | X35: 2012 | Z35: 201002 | AA35: 5802 | AB35: 293717 | AC35: 2010 | AE35: 201204 | AF35: EE | AG35: 1079533942 | AI35: 2012 | AK35: 201002 | AL35: 550305232.8 | AM35: 2010 | AO35: 201001 | AP35: 32 | AQ35: 4718000 | AR35: 330 | AS35: 23440000 | AT35: 362 | AU35: 28158000 | AV35: 2010 | AX35: I | AY35: 203 | AZ35: 9044 | BA35: 9211345.19 | BB35: 201110 | BC35: 2012
A36: 201204 | B36: MK | C36: 4906 | D36: 754467300 | E36: 13584400 | F36: 740882900 | G36: 2012 | H36: BILL | J36: 201207 | K36: I | L36: 43619 | M36: 27221528.75 | N36: FALSE | P36: 0 | Q36: 2012 | S36: 201208 | T36: E | V36: 201 | W36: 27097.68 | X36: 2012 | Z36: 201001 | AA36: 6360 | AB36: 292954 | AC36: 2010 | AE36: 201204 | AF36: MK | AG36: 8463926100 | AH36: BILL | AI36: 2012 | AK36: 201001 | AL36: 606134806.5 | AM36: 2010 | AO36: 200912 | AP36: 7 | AQ36: 2980300 | AR36: 417 | AS36: 15309900 | AT36: 424 | AU36: 18290200 | AV36: 2010 | AX36: E | AY36: 203 | AZ36: 146 | BA36: 55240.45 | BB36: 201110 | BC36: 2012
A37: 201203 | B37: EE | C37: 41856 | D37: 5516821.63 | E37: 117505.32 | F37: 5399316.31 | G37: 2012 | H37: EE | J37: 201207 | K37: I | L37: 9187 | M37: 1342566.66 | N37: TRUE | P37: 0 | Q37: 2012 | S37: 201208 | T37: E | V37: 44 | W37: 6018.74 | X37: 2012 | Z37: 200912 | AA37: 7936 | AB37: 292243 | AC37: 2010 | AE37: 201204 | AF37: MK | AG37: 369505400 | AH37: BOND | AI37: 2012 | AK37: 200912 | AL37: 559648324.6 | AM37: 2010 | AO37: 200911 | AP37: 1 | AQ37: 150000 | AR37: 243 | AS37: 10322600 | AT37: 244 | AU37: 10472600 | AV37: 2010 | AX37: E | AY37: 203 | AZ37: 438 | BA37: 149660.7 | BB37: 201109 | BC37: 2011
A38: 201203 | B38: I | C38: 60452 | D38: 57591623.25 | E38: 1023625 | F38: 56567998.25 | G38: 2012 | H38: I | J38: 201207 | K38: EE | L38: 5144 | M38: 547643.24 | N38: TRUE | P38: 0 | Q38: 2012 | S38: 201208 | T38: E | V38: 115 | W38: 52207.63 | X38: 2012 | Z38: 200911 | AA38: 5057 | AB38: 291235 | AC38: 2010 | AE38: 201204 | AF38: MK | AG38: 1083393000 | AH38: TIPS | AI38: 2012 | AK38: 200911 | AL38: 528313003.5 | AM38: 2010 | AO38: 200910 | AP38: 15 | AQ38: 1312000 | AR38: 377 | AS38: 33817000 | AT38: 392 | AU38: 35129000 | AV38: 2010 | AX38: EE | AY38: 203 | AZ38: 37962 | BA38: 13516724.33 | BB38: 201109 | BC38: 2011
A39: 201203 | B39: MK | C39: 610 | D39: 11588500 | E39: 0 | F39: 11588500 | G39: 2012 | H39: TIPS | J39: 201207 | K39: EE | L39: 32149 | M39: 4496452.35 | N39: FALSE | P39: 0 | Q39: 2012 | S39: 201208 | T39: E | V39: 49 | W39: 42975.72 | X39: 2012 | Z39: 200910 | AA39: 3851 | AB39: 291176 | AC39: 2010 | AE39: 201203 | AF39: I | AG39: 4790552211 | AI39: 2012 | AK39: 200910 | AL39: 518421991.6 | AM39: 2010 | AO39: 200909 | AP39: 26 | AQ39: 5293000 | AR39: 370 | AS39: 24007100 | AT39: 396 | AU39: 29300100 | AV39: 2009 | AX39: I | AY39: 203 | AZ39: 11672 | BA39: 12923087.91 | BB39: 201109 | BC39: 2011
A40: 201203 | B40: MK | C40: 555 | D40: 27266100 | E40: 5980300 | F40: 21285800 | G40: 2012 | H40: NOTE | J40: 201207 | K40: MK | L40: 761 | M40: 139690500 | N40: FALSE | O40: BILL | P40: 4 | Q40: 2012 | S40: 201208 | T40: E | V40: 52 | W40: 6712.11 | X40: 2012 | Z40: 200909 | AA40: 3923 | AB40: 291331 | AC40: 2009 | AE40: 201203 | AF40: E | AG40: 519.77 | AI40: 2012 | AK40: 200909 | AL40: 483670739.1 | AM40: 2009 | AO40: 200908 | AP40: 15 | AQ40: 14420000 | AR40: 318 | AS40: 12323500 | AT40: 333 | AU40: 26743500 | AV40: 2009 | AX40: I | AY40: 203 | AZ40: 13010 | BA40: 11360393.16 | BB40: 201108 | BC40: 2011
A41: 201203 | B41: MK | C41: 256 | D41: 4314300 | E41: 149700 | F41: 4164600 | G41: 2012 | H41: BOND | J41: 201207 | K41: MK | L41: 374 | M41: 68017400 | N41: TRUE | O41: BILL | P41: 4 | Q41: 2012 | S41: 201208 | T41: E | V41: 13 | W41: 27846.84 | X41: 2012 | Z41: 200908 | AA41: 4426 | AB41: 292020 | AC41: 2009 | AE41: 201203 | AF41: EE | AG41: 1066289684 | AI41: 2012 | AK41: 200908 | AL41: 476413703.9 | AM41: 2009 | AO41: 200907 | AP41: 9 | AQ41: 2192000 | AR41: 505 | AS41: 27884600 | AT41: 514 | AU41: 30076600 | AV41: 2009 | AX41: E | AY41: 203 | AZ41: 472 | BA41: 138233.43 | BB41: 201108 | BC41: 2011
A42: 201203 | B42: MK | C42: 6027 | D42: 850966800 | E42: 5001300 | F42: 845965500 | G42: 2012 | H42: BILL | J42: 201207 | K42: MK | L42: 1139 | M42: 254310500 | N42: FALSE | O42: BILL | P42: 13 | Q42: 2012 | S42: 201208 | T42: EE | V42: 3707 | W42: 1017515.41 | X42: 2012 | Z42: 200907 | AA42: 4553 | AB42: 292531 | AC42: 2009 | AE42: 201203 | AF42: MK | AG42: 1073412800 | AH42: TIPS | AI42: 2012 | AK42: 200907 | AL42: 493816202.5 | AM42: 2009 | AO42: 200906 | AP42: 12 | AQ42: 897000 | AR42: 376 | AS42: 12236700 | AT42: 388 | AU42: 13133700 | AV42: 2009 | AX42: EE | AY42: 203 | AZ42: 45972 | BA42: 11883638.99 | BB42: 201108 | BC42: 2011
A43: 201202 | B43: EE | C43: 43236 | D43: 6165919.11 | E43: 225692.91 | F43: 5940226.2 | G43: 2012 | H43: EE | J43: 201207 | K43: MK | L43: 241 | M43: 31240200 | N43: TRUE | O43: BILL | P43: 13 | Q43: 2012 | S43: 201208 | T43: EE | V43: 2101 | W43: 293666.89 | X43: 2012 | Z43: 200906 | AA43: 4748 | AB43: 292657 | AC43: 2009 | AE43: 201203 | AF43: MK | AG43: 6330916600 | AH43: NOTE | AI43: 2012 | AK43: 200906 | AL43: 442338217.4 | AM43: 2009 | AO43: 200905 | AP43: 4 | AQ43: 6050000 | AR43: 329 | AS43: 16165900 | AT43: 333 | AU43: 22215900 | AV43: 2009 | AX43: E | AY43: 203 | AZ43: 421 | BA43: 199969.55 | BB43: 201107 | BC43: 2011
A44: 201202 | B44: I | C44: 57601 | D44: 56177775.57 | E44: 1105014.9 | F44: 55072760.67 | G44: 2012 | H44: I | J44: 201207 | K44: MK | L44: 1422 | M44: 221779300 | N44: FALSE | O44: BILL | P44: 26 | Q44: 2012 | S44: 201208 | T44: EE | V44: 944 | W44: 199052.35 | X44: 2012 | Z44: 200905 | AA44: 4639 | AB44: 292880 | AC44: 2009 | AE44: 201203 | AF44: MK | AG44: 366215700 | AH44: BOND | AI44: 2012 | AK44: 200905 | AL44: 467790597.2 | AM44: 2009 | AO44: 200904 | AP44: 11 | AQ44: 5207000 | AR44: 493 | AS44: 14140400 | AT44: 504 | AU44: 19347400 | AV44: 2009 | AX44: EE | AY44: 203 | AZ44: 34290 | BA44: 12800705.51 | BB44: 201107 | BC44: 2011
A45: 201202 | B45: MK | C45: 5350 | D45: 838048800 | E45: 18233700 | F45: 819815100 | G45: 2012 | H45: BILL | J45: 201207 | K45: MK | L45: 216 | M45: 29323800 | N45: TRUE | O45: BILL | P45: 26 | Q45: 2012 | S45: 201208 | T45: EE | V45: 1394 | W45: 233542.61 | X45: 2012 | Z45: 200904 | AA45: 9076 | AB45: 291571 | AC45: 2009 | AE45: 201203 | AF45: MK | AG45: 8382297500 | AH45: BILL | AI45: 2012 | AK45: 200904 | AL45: 462324328.8 | AM45: 2009 | AO45: 200903 | AP45: 45 | AQ45: 24792000 | AR45: 275 | AS45: 12020000 | AT45: 320 | AU45: 36812000 | AV45: 2009 | AX45: I | AY45: 203 | AZ45: 8705 | BA45: 7330494.38 | BB45: 201107 | BC45: 2011
A46: 201202 | B46: MK | C46: 2117 | D46: 118824400 | E46: 6672100 | F46: 112152300 | G46: 2012 | H46: NOTE | J46: 201207 | K46: MK | L46: 415 | M46: 48812600 | N46: FALSE | O46: BILL | P46: 52 | Q46: 2012 | S46: 201208 | T46: EE | V46: 1629 | W46: 298439.57 | X46: 2012 | Z46: 200903 | AA46: 10044 | AB46: 289342 | AC46: 2009 | AE46: 201202 | AF46: MK | AG46: 1054829000 | AH46: TIPS | AI46: 2012 | AK46: 200903 | AL46: 414308076.8 | AM46: 2009 | AO46: 200902 | AP46: 13 | AQ46: 12737000 | AR46: 240 | AS46: 9684000 | AT46: 253 | AU46: 22421000 | AV46: 2009 | AX46: I | AY46: 203 | AZ46: 11043 | BA46: 11630858.47 | BB46: 201106 | BC46: 2011
A47: 201202 | B47: MK | C47: 292 | D47: 2708700 | E47: 0 | F47: 2708700 | G47: 2012 | H47: TIPS | J47: 201207 | K47: MK | L47: 46 | M47: 2462600 | N47: TRUE | O47: BILL | P47: 52 | Q47: 2012 | S47: 201208 | T47: EE | V47: 2470 | W47: 501368.26 | X47: 2012 | Z47: 200902 | AA47: 8409 | AB47: 286788 | AC47: 2009 | AE47: 201202 | AF47: E | AG47: 36712.72 | AI47: 2012 | AK47: 200902 | AL47: 384917342.1 | AM47: 2009 | AO47: 200901 | AP47: 12 | AQ47: 15292000 | AR47: 348 | AS47: 6727500 | AT47: 360 | AU47: 22019500 | AV47: 2009 | AX47: E | AY47: 203 | AZ47: 675 | BA47: 277780.42 | BB47: 201106 | BC47: 2011
A48: 201202 | B48: MK | C48: 315 | D48: 9786500 | E48: 90000 | F48: 9696500 | G48: 2012 | H48: BOND | J48: 201207 | K48: MK | L48: 119 | M48: 2189500 | N48: FALSE | O48: BOND | P48: 30 | Q48: 2012 | S48: 201208 | T48: EE | V48: 1807 | W48: 537363.37 | X48: 2012 | Z48: 200901 | AA48: 9269 | AB48: 284902 | AC48: 2009 | AE48: 201202 | AF48: MK | AG48: 8316428900 | AH48: BILL | AI48: 2012 | AK48: 200901 | AL48: 405844566.3 | AM48: 2009 | AO48: 200812 | AP48: 22 | AQ48: 2792000 | AR48: 284 | AS48: 48721200 | AT48: 306 | AU48: 51513200 | AV48: 2009 | AX48: EE | AY48: 203 | AZ48: 37327 | BA48: 12829511.34 | BB48: 201106 | BC48: 2011
A49: 201201 | B49: EE | C49: 43171 | D49: 8076183.59 | E49: 230333.54 | F49: 7845850.05 | G49: 2012 | H49: EE | J49: 201207 | K49: MK | L49: 16 | M49: 4900 | N49: TRUE | O49: BOND | P49: 30 | Q49: 2012 | S49: 201208 | T49: EE | V49: 1290 | W49: 249324.96 | X49: 2012 | Z49: 200812 | AA49: 11502 | AB49: 283468 | AC49: 2009 | AE49: 201202 | AF49: MK | AG49: 6317089700 | AH49: NOTE | AI49: 2012 | AK49: 200812 | AL49: 372745365.7 | AM49: 2009 | AO49: 200811 | AP49: 41 | AQ49: 103910000 | AR49: 299 | AS49: 10228500 | AT49: 340 | AU49: 114138500 | AV49: 2009 | AX49: EE | AY49: 203 | AZ49: 33397 | BA49: 10396636.39 | BB49: 201105 | BC49: 2011
A50: 201201 | B50: I | C50: 67471 | D50: 108870327.8 | E50: 1818987.04 | F50: 107051340.8 | G50: 2012 | H50: I | J50: 201207 | K50: MK | L50: 1677 | M50: 113148500 | N50: FALSE | O50: NOTE | P50: 2 | Q50: 2012 | S50: 201208 | T50: EE | V50: 905 | W50: 155081.63 | X50: 2012 | Z50: 200811 | AA50: 8413 | AB50: 282357 | AC50: 2009 | AE50: 201202 | AF50: EE | AG50: 1050488238 | AI50: 2012 | AK50: 200811 | AL50: 284987102.5 | AM50: 2009 | AO50: 200810 | AP50: 87 | AQ50: 95449000 | AR50: 288 | AS50: 18683000 | AT50: 375 | AU50: 114132000 | AV50: 2009 | AX50: I | AY50: 203 | AZ50: 9937 | BA50: 8557041.88 | BB50: 201105 | BC50: 2011
A51: 201201 | B51: MK | C51: 154 | D51: 2283900 | E51: 245500 | F51: 2038400 | G51: 2012 | H51: BOND | J51: 201207 | K51: MK | L51: 158 | M51: 5810500 | N51: TRUE | O51: NOTE | P51: 2 | Q51: 2012 | S51: 201208 | T51: EE | V51: 1123 | W51: 211236.2 | X51: 2012 | Z51: 200810 | AA51: 9725 | AB51: 281299 | AC51: 2009 | AE51: 201202 | AF51: I | AG51: 4711654197 | AI51: 2012 | AK51: 200810 | AL51: 246034935.2 | AM51: 2009 | AO51: 200809 | AP51: 64 | AQ51: 90830300 | AR51: 209 | AS51: 8493100 | AT51: 273 | AU51: 99323400 | AV51: 2008 | AX51: E | AY51: 203 | AZ51: 746 | BA51: 518229.59 | BB51: 201105 | BC51: 2011
A52: 201201 | B52: MK | C52: 4858 | D52: 747236300 | E52: 25586600 | F52: 721649700 | G52: 2012 | H52: BILL | J52: 201207 | K52: MK | L52: 181 | M52: 7183800 | N52: FALSE | O52: NOTE | P52: 3 | Q52: 2012 | S52: 201208 | T52: EE | V52: 1232 | W52: 174037.88 | X52: 2012 | Z52: 200809 | AA52: 9291 | AB52: 279559 | AC52: 2008 | AE52: 201202 | AF52: MK | AG52: 360370400 | AH52: BOND | AI52: 2012 | AK52: 200809 | AL52: 136981002 | AM52: 2008 | AO52: 200808 | AP52: 13 | AQ52: 27334000 | AR52: 214 | AS52: 8534000 | AT52: 227 | AU52: 35868000 | AV52: 2008 | AX52: I | AY52: 203 | AZ52: 11212 | BA52: 6520829.46 | BB52: 201104 | BC52: 2011
A53: 201201 | B53: MK | C53: 3109 | D53: 161778400 | E53: 744200 | F53: 161034200 | G53: 2012 | H53: NOTE | J53: 201207 | K53: MK | L53: 17 | M53: 280100 | N53: TRUE | O53: NOTE | P53: 3 | Q53: 2012 | S53: 201208 | T53: EE | V53: 1101 | W53: 264340.72 | X53: 2012 | Z53: 200808 | AA53: 5777 | AB53: 278739 | AC53: 2008 | AE53: 201201 | AF53: EE | AG53: 1024424175 | AI53: 2012 | AK53: 200808 | AL53: 119470491 | AM53: 2008 | AO53: 200807 | AP53: 32 | AQ53: 21793000 | AR53: 248 | AS53: 7604500 | AT53: 280 | AU53: 29397500 | AV53: 2008 | AX53: E | AY53: 203 | AZ53: 241 | BA53: 283733.23 | BB53: 201104 | BC53: 2011
A54: 201201 | B54: MK | C54: 877 | D54: 17758600 | E54: 0 | F54: 17758600 | G54: 2012 | H54: TIPS | J54: 201207 | K54: MK | L54: 461 | M54: 12332500 | N54: FALSE | O54: NOTE | P54: 5 | Q54: 2012 | S54: 201208 | T54: EE | V54: 953 | W54: 332012.66 | X54: 2012 | Z54: 200807 | AA54: 8974 | AB54: 277479 | AC54: 2008 | AE54: 201201 | AF54: I | AG54: 4625514375 | AI54: 2012 | AK54: 200807 | AL54: 108236228.9 | AM54: 2008 | AO54: 200806 | AP54: 6 | AQ54: 5153000 | AR54: 504 | AS54: 19022100 | AT54: 510 | AU54: 24175100 | AV54: 2008 | AX54: EE | AY54: 203 | AZ54: 34708 | BA54: 10271484.64 | BB54: 201104 | BC54: 2011
A55: 201112 | B55: EE | C55: 42135 | D55: 5076031.04 | E55: 122586 | F55: 4953445.04 | G55: 2012 | H55: EE | J55: 201207 | K55: MK | L55: 39 | M55: 161400 | N55: TRUE | O55: NOTE | P55: 5 | Q55: 2012 | S55: 201208 | T55: EE | V55: 969 | W55: 127407.71 | X55: 2012 | Z55: 200806 | AA55: 6561 | AB55: 276758 | AC55: 2008 | AE55: 201201 | AF55: MK | AG55: 1047825000 | AH55: TIPS | AI55: 2012 | AK55: 200806 | AL55: 103884582.8 | AM55: 2008 | AO55: 200805 | AP55: 2 | AQ55: 30000 | AR55: 1352 | AS55: 56505100 | AT55: 1354 | AU55: 56535100 | AV55: 2008 | AX55: E | AY55: 203 | AZ55: 473 | BA55: 220755.08 | BB55: 201103 | BC55: 2011
A56: 201112 | B56: I | C56: 58202 | D56: 44434497.77 | E56: 987720.35 | F56: 43446777.42 | G56: 2012 | H56: I | J56: 201207 | K56: MK | L56: 199 | M56: 6479100 | N56: FALSE | O56: NOTE | P56: 7 | Q56: 2012 | S56: 201208 | T56: EE | V56: 1968 | W56: 284217.38 | X56: 2012 | Z56: 200805 | AA56: 5600 | AB56: 276594 | AC56: 2008 | AE56: 201201 | AF56: MK | AG56: 6326430800 | AH56: NOTE | AI56: 2012 | AK56: 200805 | AL56: 94576035.02 | AM56: 2008 | AO56: 200804 | AP56: 12 | AQ56: 33898000 | AR56: 5887 | AS56: 258937000 | AT56: 5899 | AU56: 292835000 | AV56: 2008 | AX56: EE | AY56: 203 | AZ56: 52153 | BA56: 12293706.31 | BB56: 201103 | BC56: 2011
A57: 201112 | B57: MK | C57: 545 | D57: 36013800 | E57: 1293200 | F57: 34720600 | G57: 2012 | H57: NOTE | J57: 201207 | K57: MK | L57: 34 | M57: 39900 | N57: TRUE | O57: NOTE | P57: 7 | Q57: 2012 | S57: 201208 | T57: EE | V57: 925 | W57: 221800.73 | X57: 2012 | Z57: 200804 | AA57: 14099 | AB57: 273839 | AC57: 2008 | AE57: 201201 | AF57: MK | AG57: 351480300 | AH57: BOND | AI57: 2012 | AK57: 200804 | AL57: 101898292.6 | AM57: 2008 | AO57: 200803 | AP57: 13 | AQ57: 18720000 | AR57: 339 | AS57: 17644000 | AT57: 352 | AU57: 36364000 | AV57: 2008 | AX57: I | AY57: 203 | AZ57: 17544 | BA57: 9225587.48 | BB57: 201103 | BC57: 2011
A58: 201112 | B58: MK | C58: 177 | D58: 2178000 | E58: 0 | F58: 2178000 | G58: 2012 | H58: BOND | J58: 201207 | K58: MK | L58: 11 | M58: 98500 | N58: TRUE | O58: NOTE | P58: 10 | Q58: 2012 | S58: 201208 | T58: EE | V58: 1108 | W58: 155741.99 | X58: 2012 | Z58: 200803 | AA58: 6894 | AB58: 272971 | AC58: 2008 | AE58: 201201 | AF58: E | AG58: 8114.38 | AI58: 2012 | AK58: 200803 | AL58: 84870316.3 | AM58: 2008 | AO58: 200802 | AP58: 8 | AQ58: 3819000 | AR58: 133 | AS58: 4735000 | AT58: 141 | AU58: 8554000 | AV58: 2008 | AX58: E | AY58: 203 | AZ58: 445 | BA58: 142296.83 | BB58: 201102 | BC58: 2011
A59: 201112 | B59: MK | C59: 6131 | D59: 902281200 | E59: 16327400 | F59: 885953800 | G59: 2012 | H59: BILL | J59: 201207 | K59: MK | L59: 101 | M59: 2564000 | N59: FALSE | O59: NOTE | P59: 10 | Q59: 2012 | S59: 201208 | T59: EE | V59: 830 | W59: 125076.72 | X59: 2012 | Z59: 200802 | AA59: 5123 | AB59: 272939 | AC59: 2008 | AE59: 201201 | AF59: MK | AG59: 8075513000 | AH59: BILL | AI59: 2012 | AK59: 200802 | AL59: 88806277.18 | AM59: 2008 | AO59: 200801 | AP59: 3 | AQ59: 1510000 | AR59: 224 | AS59: 10794000 | AT59: 227 | AU59: 12304000 | AV59: 2008 | AX59: EE | AY59: 203 | AZ59: 46706 | BA59: 11605332.25 | BB59: 201102 | BC59: 2011
A60: 201112 | B60: MK | C60: 678 | D60: 14609400 | E60: 0 | F60: 14609400 | G60: 2012 | H60: TIPS | J60: 201207 | K60: MK | L60: 56 | M60: 521200 | N60: TRUE | O60: TIPS | P60: 10 | Q60: 2012 | S60: 201208 | T60: EE | V60: 2014 | W60: 324754.9 | X60: 2012 | Z60: 200801 | AA60: 5560 | AB60: 274383 | AC60: 2008 | AE60: 201112 | AF60: EE | AG60: 997872091.1 | AI60: 2012 | AK60: 200801 | AL60: 90509800.8 | AM60: 2008 | AO60: 200712 | AP60: 3 | AQ60: 410000 | AR60: 198 | AS60: 9616000 | AT60: 201 | AU60: 10026000 | AV60: 2008 | AX60: I | AY60: 203 | AZ60: 14354 | BA60: 10957470.52 | BB60: 201102 | BC60: 2011
A61: 201111 | B61: EE | C61: 24360 | D61: 3074897.65 | E61: 50030 | F61: 3024867.65 | G61: 2012 | H61: EE | J61: 201207 | K61: MK | L61: 554 | M61: 16929900 | N61: FALSE | O61: TIPS | P61: 10 | Q61: 2012 | S61: 201208 | T61: EE | V61: 1041 | W61: 185088.24 | X61: 2012 | Z61: 200712 | AA61: 6944 | AB61: 275858 | AC61: 2008 | AE61: 201112 | AF61: MK | AG61: 1041836100 | AH61: TIPS | AI61: 2012 | AK61: 200712 | AL61: 68606714.89 | AM61: 2008 | AO61: 200711 | AP61: 11 | AQ61: 13894000 | AR61: 247 | AS61: 7362000 | AT61: 258 | AU61: 21256000 | AV61: 2008 | AX61: EE | AY61: 203 | AZ61: 61522 | BA61: 11754132.43 | BB61: 201101 | BC61: 2011
A62: 201111 | B62: I | C62: 44386 | D62: 30613121.03 | E62: 779920 | F62: 29833201.03 | G62: 2012 | H62: I | J62: 201206 | K62: EE | L62: 5326 | M62: 563520.52 | N62: TRUE | P62: 0 | Q62: 2012 | S62: 201208 | T62: EE | V62: 732 | W62: 109464.15 | X62: 2012 | Z62: 200711 | AA62: 4711 | AB62: 277419 | AC62: 2008 | AE62: 201112 | AF62: MK | AG62: 6267926200 | AH62: NOTE | AI62: 2012 | AK62: 200711 | AL62: 64313978.15 | AM62: 2008 | AO62: 200710 | AP62: 13 | AQ62: 2025000 | AR62: 200 | AS62: 5142000 | AT62: 213 | AU62: 7167000 | AV62: 2008 | AX62: I | AY62: 203 | AZ62: 24726 | BA62: 10227206.74 | BB62: 201101 | BC62: 2011
A63: 201111 | B63: MK | C63: 5209 | D63: 747494000 | E63: 2769800 | F63: 744724200 | G63: 2012 | H63: BILL | J63: 201206 | K63: EE | L63: 31763 | M63: 4497855.17 | N63: FALSE | P63: 0 | Q63: 2012 | S63: 201208 | T63: EE | V63: 797 | W63: 120115.96 | X63: 2012 | Z63: 200710 | AA63: 5189 | AB63: 279581 | AC63: 2008 | AE63: 201112 | AF63: MK | AG63: 346601600 | AH63: BOND | AI63: 2012 | AK63: 200710 | AL63: 59160832.5 | AM63: 2008 | AO63: 200709 | AP63: 10 | AQ63: 2700000 | AR63: 174 | AS63: 7819000 | AT63: 184 | AU63: 10519000 | AV63: 2007 | AX63: E | AY63: 203 | AZ63: 635 | BA63: 188284.22 | BB63: 201101 | BC63: 2011
A64: 201111 | B64: MK | C64: 397 | D64: 3694800 | E64: 0 | F64: 3694800 | G64: 2012 | H64: TIPS | J64: 201206 | K64: I | L64: 9630 | M64: 1314253.37 | N64: TRUE | P64: 0 | Q64: 2012 | S64: 201208 | T64: EE | V64: 1147 | W64: 407680.74 | X64: 2012 | Z64: 200709 | AA64: 3602 | AB64: 281629 | AC64: 2007 | AE64: 201112 | AF64: MK | AG64: 7992647400 | AH64: BILL | AI64: 2012 | AK64: 200709 | AL64: 65926601.31 | AM64: 2007 | AO64: 200708 | AP64: 17 | AQ64: 664000 | AR64: 310 | AS64: 15262000 | AT64: 327 | AU64: 15926000 | AV64: 2007 | AX64: E | AY64: 203 | AZ64: 461 | BA64: 340149.23 | BB64: 201012 | BC64: 2011
A65: 201111 | B65: MK | C65: 1974 | D65: 91783000 | E65: 860300 | F65: 90922700 | G65: 2012 | H65: NOTE | J65: 201206 | K65: I | L65: 42366 | M65: 27617235.98 | N65: FALSE | P65: 0 | Q65: 2012 | S65: 201208 | T65: I | V65: 530 | W65: 333115.39 | X65: 2012 | Z65: 200708 | AA65: 4765 | AB65: 283428 | AC65: 2007 | AE65: 201112 | AF65: E | AG65: 249.98 | AI65: 2012 | AK65: 200708 | AL65: 46549295.64 | AM65: 2007 | AO65: 200707 | AP65: 13 | AQ65: 1108000 | AR65: 397 | AS65: 12373000 | AT65: 410 | AU65: 13481000 | AV65: 2007 | AX65: EE | AY65: 203 | AZ65: 50325 | BA65: 10132737.95 | BB65: 201012 | BC65: 2011
A66: 201111 | B66: MK | C66: 217 | D66: 3420900 | E66: 994000 | F66: 2426900 | G66: 2012 | H66: BOND | J66: 201206 | K66: MK | L66: 356 | M66: 57771600 | N66: TRUE | O66: BILL | P66: 4 | Q66: 2012 | S66: 201208 | T66: I | V66: 759 | W66: 243653.96 | X66: 2012 | Z66: 200707 | AA66: 5211 | AB66: 283977 | AC66: 2007 | AE66: 201112 | AF66: I | AG66: 4484677490 | AI66: 2012 | AK66: 200707 | AL66: 48378036.98 | AM66: 2007 | AO66: 200706 | AP66: 2 | AQ66: 100000 | AR66: 380 | AS66: 10975000 | AT66: 382 | AU66: 11075000 | AV66: 2007 | AX66: I | AY66: 203 | AZ66: 16802 | BA66: 8576739.89 | BB66: 201012 | BC66: 2011
A67: 201110 | B67: EE | C67: 21737 | D67: 2847050.35 | E67: 27071 | F67: 2819979.35 | G67: 2012 | H67: EE | J67: 201206 | K67: MK | L67: 769 | M67: 137765300 | N67: FALSE | O67: BILL | P67: 4 | Q67: 2012 | S67: 201208 | T67: I | V67: 734 | W67: 200063.4 | X67: 2012 | Z67: 200706 | AA67: 4954 | AB67: 285205 | AC67: 2007 | AE67: 201111 | AF67: MK | AG67: 1025801600 | AH67: TIPS | AI67: 2012 | AK67: 200706 | AL67: 56045032.03 | AM67: 2007 | AO67: 200705 | AT67: 408 | AU67: 18395000 | AV67: 2007 | AX67: I | AY67: 203 | AZ67: 20328 | BA67: 9713909.34 | BB67: 201011 | BC67: 2011
A68: 201110 | B68: I | C68: 44840 | D68: 32643387.65 | E68: 406825 | F68: 32236562.65 | G68: 2012 | H68: I | J68: 201206 | K68: MK | L68: 1150 | M68: 240802200 | N68: FALSE | O68: BILL | P68: 13 | Q68: 2012 | S68: 201208 | T68: I | V68: 495 | W68: 236356 | X68: 2012 | Z68: 200705 | AA68: 5187 | AB68: 286503 | AC68: 2007 | AE68: 201111 | AF68: MK | AG68: 7873979700 | AH68: BILL | AI68: 2012 | AK68: 200705 | AL68: 51952210.06 | AM68: 2007 | AO68: 200704 | AT68: 566 | AU68: 15773000 | AV68: 2007 | AX68: E | AY68: 203 | AZ68: 684 | BA68: 218801.78 | BB68: 201011 | BC68: 2011
A69: 201110 | B69: MK | C69: 179 | D69: 2418200 | E69: 0 | F69: 2418200 | G69: 2012 | H69: TIPS | J69: 201206 | K69: MK | L69: 225 | M69: 37912300 | N69: TRUE | O69: BILL | P69: 13 | Q69: 2012 | S69: 201208 | T69: I | V69: 1702 | W69: 632634.46 | X69: 2012 | Z69: 200704 | AA69: 5678 | AB69: 288169 | AC69: 2007 | AE69: 201111 | AF69: E | AG69: 33959.86 | AI69: 2012 | AK69: 200704 | AL69: 46721618.34 | AM69: 2007 | AO69: 200703 | AT69: 400 | AU69: 9121000 | AV69: 2007 | AX69: EE | AY69: 203 | AZ69: 58862 | BA69: 13128389.94 | BB69: 201011 | BC69: 2011
A70: 201110 | B70: MK | C70: 1724 | D70: 89542600 | E70: 653000 | F70: 88889600 | G70: 2012 | H70: NOTE | J70: 201206 | K70: MK | L70: 251 | M70: 22988000 | N70: TRUE | O70: BILL | P70: 26 | Q70: 2012 | S70: 201208 | T70: I | V70: 692 | W70: 263220.58 | X70: 2012 | Z70: 200703 | AA70: 5927 | AB70: 288857 | AC70: 2007 | AE70: 201111 | AF70: I | AG70: 4416923432 | AI70: 2012 | AK70: 200703 | AL70: 45302470.33 | AM70: 2007 | AO70: 200702 | AT70: 400 | AU70: 11870000 | AV70: 2007 | AX70: EE | AY70: 203 | AZ70: 59195 | BA70: 15300291.5 | BB70: 201010 | BC70: 2011
A71: 201110 | B71: MK | C71: 160 | D71: 2112800 | E71: 85100 | F71: 2027700 | G71: 2012 | H71: BOND | J71: 201206 | K71: MK | L71: 1453 | M71: 249407500 | N71: FALSE | O71: BILL | P71: 26 | Q71: 2012 | S71: 201208 | T71: I | V71: 698 | W71: 186111.2 | X71: 2012 | Z71: 200702 | AA71: 5847 | AB71: 288373 | AC71: 2007 | AE71: 201111 | AF71: MK | AG71: 6187590500 | AH71: NOTE | AI71: 2012 | AK71: 200702 | AL71: 51222890.19 | AM71: 2007 | AO71: 200701 | AT71: 505 | AU71: 15868000 | AV71: 2007 | AX71: I | AY71: 203 | AZ71: 21506 | BA71: 8237051.84 | BB71: 201010 | BC71: 2011
A72: 201110 | B72: MK | C72: 5379 | D72: 817402300 | E72: 15721200 | F72: 801681100 | G72: 2012 | H72: BILL | J72: 201206 | K72: MK | L72: 49 | M72: 2271200 | N72: TRUE | O72: BILL | P72: 52 | Q72: 2012 | S72: 201208 | T72: I | V72: 488 | W72: 251947.24 | X72: 2012 | Z72: 200701 | AA72: 7400 | AB72: 288094 | AC72: 2007 | AE72: 201111 | AF72: MK | AG72: 344915400 | AH72: BOND | AI72: 2012 | AK72: 200701 | AL72: 44155158.99 | AM72: 2007 | AO72: 200612 | AT72: 215 | AU72: 6096000 | AV72: 2007 | AX72: E | AY72: 203 | AZ72: 778 | BA72: 206601.49 | BB72: 201010 | BC72: 2011
A73: 201109 | B73: EE | C73: 22526 | D73: 2877232.16 | E73: 32858.5 | F73: 2844373.66 | G73: 2011 | H73: EE | J73: 201206 | K73: MK | L73: 426 | M73: 35430100 | N73: FALSE | O73: BILL | P73: 52 | Q73: 2012 | S73: 201208 | T73: I | V73: 851 | W73: 419154.18 | X73: 2012 | Z73: 200612 | AA73: 7669 | AB73: 289886 | AC73: 2007 | AE73: 201111 | AF73: EE | AG73: 982669865.1 | AI73: 2012 | AK73: 200612 | AL73: 46872224.16 | AM73: 2007 | AO73: 200611 | AT73: 376 | AU73: 14162000 | AV73: 2007 | AX73: EE | AY73: 203 | AZ73: 77445 | BA73: 13189982.46 | BB73: 201009 | BC73: 2010
A74: 201109 | B74: I | C74: 41413 | D74: 21437793.43 | E74: 347200 | F74: 21090593.43 | G74: 2011 | H74: I | J74: 201206 | K74: MK | L74: 20 | M74: 10500 | N74: TRUE | O74: BOND | P74: 30 | Q74: 2012 | S74: 201208 | T74: I | V74: 527 | W74: 293581.32 | X74: 2012 | Z74: 200611 | AA74: 6234 | AB74: 289730 | AC74: 2007 | AE74: 201110 | AF74: EE | AG74: 971086570.2 | AI74: 2012 | AK74: 200611 | AL74: 54858597.68 | AM74: 2007 | AO74: 200610 | AT74: 488 | AU74: 16015000 | AV74: 2007 | AX74: E | AY74: 203 | AZ74: 867 | BA74: 308128.79 | BB74: 201009 | BC74: 2010
A75: 201109 | B75: MK | C75: 6712 | D75: 933631700 | E75: 5735500 | F75: 927896200 | G75: 2011 | H75: BILL | J75: 201206 | K75: MK | L75: 154 | M75: 1954800 | N75: FALSE | O75: BOND | P75: 30 | Q75: 2012 | S75: 201208 | T75: I | V75: 1366 | W75: 596226.52 | X75: 2012 | Z75: 200610 | AA75: 4972 | AB75: 290210 | AC75: 2007 | AE75: 201110 | AF75: E | AG75: 0 | AI75: 2012 | AK75: 200610 | AL75: 52412790.67 | AM75: 2007 | AO75: 200609 | AT75: 457 | AU75: 12251000 | AV75: 2006 | AX75: I | AY75: 203 | AZ75: 23185 | BA75: 7836640.76 | BB75: 201009 | BC75: 2010
A76: 201109 | B76: MK | C76: 2043 | D76: 108420500 | E76: 1472200 | F76: 106948300 | G76: 2011 | H76: NOTE | J76: 201206 | K76: MK | L76: 18 | M76: 743200 | N76: TRUE | O76: NOTE | P76: 3 | Q76: 2012 | S76: 201208 | T76: I | V76: 469 | W76: 258645.26 | X76: 2012 | Z76: 200609 | AA76: 4693 | AB76: 290957 | AC76: 2006 | AE76: 201110 | AF76: I | AG76: 4364717266 | AI76: 2012 | AK76: 200609 | AL76: 48207472.03 | AM76: 2006 | AO76: 200608 | AT76: 530 | AU76: 16108000 | AV76: 2006 | AX76: I | AY76: 203 | AZ76: 15285 | BA76: 5502760.19 | BB76: 201008 | BC76: 2010
A77: 201109 | B77: MK | C77: 477 | D77: 7986300 | E77: 0 | F77: 7986300 | G77: 2011 | H77: TIPS | J77: 201206 | K77: MK | L77: 219 | M77: 10591700 | N77: FALSE | O77: NOTE | P77: 3 | Q77: 2012 | S77: 201208 | T77: I | V77: 960 | W77: 685368.13 | X77: 2012 | Z77: 200608 | AA77: 6648 | AC77: 2006 | AE77: 201110 | AF77: MK | AG77: 1020290000 | AH77: TIPS | AI77: 2012 | AK77: 200608 | AL77: 45174594.83 | AM77: 2006 | AO77: 200607 | AT77: 700 | AU77: 22532000 | AV77: 2006 | AX77: E | AY77: 203 | AZ77: 688 | BA77: 159315.02 | BB77: 201008 | BC77: 2010
A78: 201109 | B78: MK | C78: 211 | D78: 4318300 | E78: 445500 | F78: 3872800 | G78: 2011 | H78: BOND | J78: 201206 | K78: MK | L78: 154 | M78: 5803800 | N78: FALSE | O78: NOTE | P78: 10 | Q78: 2012 | S78: 201208 | T78: I | V78: 1090 | W78: 302562.75 | X78: 2012 | Z78: 200607 | AA78: 8327 | AC78: 2006 | AE78: 201110 | AF78: MK | AG78: 6087034800 | AH78: NOTE | AI78: 2012 | AK78: 200607 | AL78: 36513248.81 | AM78: 2006 | AO78: 200606 | AT78: 1020 | AU78: 34486000 | AV78: 2006 | AX78: EE | AY78: 203 | AZ78: 51333 | BA78: 10237641.32 | BB78: 201008 | BC78: 2010
A79: 201108 | B79: EE | C79: 21672 | D79: 2705555.56 | E79: 36939.2 | F79: 2668616.36 | G79: 2011 | H79: EE | J79: 201206 | K79: MK | L79: 19 | M79: 22000 | N79: TRUE | O79: NOTE | P79: 10 | Q79: 2012 | S79: 201208 | T79: I | V79: 613 | W79: 333522.4 | X79: 2012 | Z79: 200606 | AA79: 7900 | AC79: 2006 | AE79: 201110 | AF79: MK | AG79: 339213000 | AH79: BOND | AI79: 2012 | AK79: 200606 | AL79: 37767327.45 | AM79: 2006 | AO79: 200605 | AT79: 998 | AU79: 40349000 | AV79: 2006 | AX79: EE | AY79: 203 | AZ79: 32844 | BA79: 9833462.65 | BB79: 201007 | BC79: 2010
A80: 201108 | B80: I | C80: 41990 | D80: 26486568.79 | E80: 445772 | F80: 26040796.79 | G80: 2011 | H80: I | J80: 201206 | K80: MK | L80: 19 | M80: 16600 | N80: TRUE | O80: TIPS | P80: 30 | Q80: 2012 | S80: 201208 | T80: I | V80: 719 | W80: 370709.41 | X80: 2012 | Z80: 200605 | AA80: 10193 | AC80: 2006 | AE80: 201110 | AF80: MK | AG80: 7667374800 | AH80: BILL | AI80: 2012 | AK80: 200605 | AL80: 25147334.62 | AM80: 2006 | AO80: 200604 | AT80: 979 | AU80: 35366000 | AV80: 2006 | AX80: I | AY80: 203 | AZ80: 9525 | BA80: 6067571.87 | BB80: 201007 | BC80: 2010
A81: 201108 | B81: MK | C81: 295 | D81: 5310100 | E81: 90100 | F81: 5220000 | G81: 2011 | H81: BOND | J81: 201206 | K81: MK | L81: 130 | M81: 2905200 | N81: FALSE | O81: TIPS | P81: 30 | Q81: 2012 | S81: 201208 | T81: I | V81: 1161 | W81: 596091.6 | X81: 2012 | Z81: 200604 | AA81: 12649 | AC81: 2006 | AE81: 201109 | AF81: MK | AG81: 7392234800 | AH81: BILL | AI81: 2011 | AK81: 200604 | AL81: 31051631.8 | AM81: 2006 | AO81: 200603 | AT81: 2008 | AU81: 62005000 | AV81: 2006 | AX81: E | AY81: 203 | AZ81: 451 | BA81: 162465.36 | BB81: 201007 | BC81: 2010
A82: 201108 | B82: MK | C82: 5216 | D82: 755638700 | E82: 4291400 | F82: 751347300 | G82: 2011 | H82: BILL | J82: 201205 | K82: I | L82: 46578 | M82: 40062355.57 | N82: FALSE | P82: 0 | Q82: 2012 | S82: 201208 | T82: I | V82: 1891 | W82: 787570.04 | X82: 2012 | Z82: 200603 | AA82: 16208 | AC82: 2006 | AE82: 201109 | AF82: EE | AG82: 959318651.6 | AI82: 2011 | AK82: 200603 | AL82: 16255155.22 | AM82: 2006 | AO82: 200602 | AT82: 3649 | AU82: 111871000 | AV82: 2006 | AX82: E | AY82: 203 | AZ82: 321 | BA82: 203718.48 | BB82: 201006 | BC82: 2010
A83: 201108 | B83: MK | C83: 3565 | D83: 165188700 | E83: 447500 | F83: 164741200 | G83: 2011 | H83: NOTE | J83: 201205 | K83: EE | L83: 34837 | M83: 4983387.64 | N83: FALSE | P83: 0 | Q83: 2012 | S83: 201208 | T83: I | V83: 745 | W83: 558907.63 | X83: 2012 | Z83: 200602 | AA83: 17761 | AC83: 2006 | AE83: 201109 | AF83: E | AG83: 0 | AI83: 2011 | AK83: 200602 | AL83: 11950707.41 | AM83: 2006 | AO83: 200601 | AT83: 7020 | AU83: 289744000 | AV83: 2006 | AX83: EE | AY83: 203 | AZ83: 28160 | BA83: 7726906.58 | BB83: 201006 | BC83: 2010
A84: 201108 | B84: MK | C84: 643 | D84: 9921100 | E84: 0 | F84: 9921100 | G84: 2011 | H84: TIPS | J84: 201205 | K84: EE | L84: 5266 | M84: 586734.16 | N84: TRUE | P84: 0 | Q84: 2012 | S84: 201208 | T84: I | V84: 1438 | W84: 617254.24 | X84: 2012 | Z84: 200601 | AA84: 23618 | AC84: 2006 | AE84: 201109 | AF84: MK | AG84: 1018651400 | AH84: TIPS | AI84: 2011 | AK84: 200601 | AL84: 10299197.61 | AM84: 2006 | AO84: 200512 | AT84: 3357 | AU84: 107118000 | AV84: 2006 | AX84: I | AY84: 203 | AZ84: 7844 | BA84: 6439535.85 | BB84: 201006 | BC84: 2010
A85: 201107 | B85: EE | C85: 20056 | D85: 2267328.55 | E85: 28800 | F85: 2238528.55 | G85: 2011 | H85: EE | J85: 201205 | K85: I | L85: 9523 | M85: 1490803.28 | N85: TRUE | P85: 0 | Q85: 2012 | S85: 201208 | T85: I | V85: 473 | W85: 446662.26 | X85: 2012 | Z85: 200512 | AA85: 27969 | AC85: 2006 | AE85: 201109 | AF85: MK | AG85: 5969088000 | AH85: NOTE | AI85: 2011 | AK85: 200512 | AL85: 5665155.53 | AM85: 2006 | AO85: 200511 | AT85: 4656 | AU85: 157184000 | AV85: 2006 | AX85: EE | AY85: 203 | AZ85: 21803 | BA85: 6826528.1 | BB85: 201005 | BC85: 2010
A86: 201107 | B86: I | C86: 37975 | D86: 22644362.8 | E86: 381375 | F86: 22262987.8 | G86: 2011 | H86: I | J86: 201205 | K86: MK | L86: 1124 | M86: 142099900 | N86: FALSE | O86: BILL | P86: 4 | Q86: 2012 | S86: 201208 | T86: I | V86: 699 | W86: 338723.85 | X86: 2012 | Z86: 200511 | AA86: 33282 | AC86: 2006 | AE86: 201109 | AF86: MK | AG86: 330123800 | AH86: BOND | AI86: 2011 | AK86: 200511 | AL86: 3019977.7 | AM86: 2006 | AO86: 200510 | AT86: 180 | AU86: 7580000 | AV86: 2006 | AX86: I | AY86: 203 | AZ86: 5746 | BA86: 6090461.2 | BB86: 201005 | BC86: 2010
A87: 201107 | B87: MK | C87: 511 | D87: 21073700 | E87: 520000 | F87: 20553700 | G87: 2011 | H87: NOTE | J87: 201205 | K87: MK | L87: 451 | M87: 110655500 | N87: TRUE | O87: BILL | P87: 4 | Q87: 2012 | S87: 201208 | T87: I | V87: 1000 | W87: 445633.72 | X87: 2012 | Z87: 200510 | AA87: 19428 | AC87: 2006 | AE87: 201109 | AF87: I | AG87: 4313308285 | AI87: 2011 | AK87: 200510 | AL87: 468689.18 | AM87: 2006 | AX87: E | AY87: 203 | AZ87: 395 | BA87: 213409.87 | BB87: 201005 | BC87: 2010
A88: 201107 | B88: MK | C88: 244 | D88: 3863200 | E88: 355000 | F88: 3508200 | G88: 2011 | H88: BOND | J88: 201205 | K88: MK | L88: 264 | M88: 45766800 | N88: TRUE | O88: BILL | P88: 13 | Q88: 2012 | S88: 201208 | T88: MK | U88: BILL | V88: 4119 | W88: 581487700 | X88: 2012 | Z88: 200509 | AA88: 7078 | AB88: 207880 | AC88: 2005 | AE88: 201108 | AF88: MK | AG88: 6770557200 | AH88: BILL | AI88: 2011 | AK88: 200509 | AL88: 416159.84 | AM88: 2005 | AX88: EE | AY88: 203 | AZ88: 29238 | BA88: 8672210.85 | BB88: 201004 | BC88: 2010
A89: 201107 | B89: MK | C89: 4811 | D89: 674634500 | E89: 6919200 | F89: 667715300 | G89: 2011 | H89: BILL | J89: 201205 | K89: MK | L89: 1538 | M89: 358231500 | N89: FALSE | O89: BILL | P89: 13 | Q89: 2012 | S89: 201208 | T89: MK | U89: BILL | V89: 4157 | W89: 491002800 | X89: 2012 | Z89: 200508 | AA89: 9409 | AC89: 2005 | AE89: 201108 | AF89: I | AG89: 4271745811 | AI89: 2011 | AK89: 200508 | AL89: 268440 | AM89: 2005 | AX89: I | AY89: 203 | AZ89: 6482 | BA89: 5458698.89 | BB89: 201004 | BC89: 2010
A90: 201107 | B90: MK | C90: 765 | D90: 12213000 | E90: 0 | F90: 12213000 | G90: 2011 | H90: TIPS | J90: 201205 | K90: MK | L90: 265 | M90: 28966600 | N90: TRUE | O90: BILL | P90: 26 | Q90: 2012 | S90: 201208 | T90: MK | U90: BILL | V90: 4587 | W90: 638235200 | X90: 2012 | Z90: 200507 | AA90: 8502 | AC90: 2005 | AE90: 201108 | AF90: EE | AG90: 945072686.3 | AI90: 2011 | AK90: 200507 | AL90: 238973.08 | AM90: 2005 | AX90: E | AY90: 203 | AZ90: 573 | BA90: 169602.48 | BB90: 201004 | BC90: 2010
A91: 201106 | B91: EE | C91: 20465 | D91: 2349150.81 | E91: 20340 | F91: 2328810.81 | G91: 2011 | H91: EE | J91: 201205 | K91: MK | L91: 1759 | M91: 286749700 | N91: FALSE | O91: BILL | P91: 26 | Q91: 2012 | S91: 201208 | T91: MK | U91: BILL | V91: 4702 | W91: 661505900 | X91: 2012 | Z91: 200506 | AA91: 10359 | AC91: 2005 | AE91: 201108 | AF91: MK | AG91: 322315400 | AH91: BOND | AI91: 2011 | AK91: 200506 | AL91: 183248.32 | AM91: 2005 | AX91: E | AY91: 203 | AZ91: 1445 | BA91: 413313.24 | BB91: 201003 | BC91: 2010
A92: 201106 | B92: I | C92: 37987 | D92: 21910866.9 | E92: 351670 | F92: 21559196.9 | G92: 2011 | H92: I | J92: 201205 | K92: MK | L92: 102 | M92: 7385800 | N92: TRUE | O92: BILL | P92: 52 | Q92: 2012 | S92: 201208 | T92: MK | U92: BILL | V92: 4214 | W92: 522815900 | X92: 2012 | Z92: 200505 | AA92: 13778 | AC92: 2005 | AE92: 201108 | AF92: MK | AG92: 972007700 | AH92: TIPS | AI92: 2011 | AK92: 200505 | AL92: 155474.18 | AM92: 2005 | AX92: I | AY92: 203 | AZ92: 8474 | BA92: 9672756.54 | BB92: 201003 | BC92: 2010
A93: 201106 | B93: MK | C93: 6362 | D93: 820127300 | E93: 16168500 | F93: 803958800 | G93: 2011 | H93: BILL | J93: 201205 | K93: MK | L93: 872 | M93: 91046300 | N93: FALSE | O93: BILL | P93: 52 | Q93: 2012 | S93: 201208 | T93: MK | U93: NOTE | V93: 4353 | W93: 153834700 | X93: 2012 | Z93: 200504 | AA93: 9826 | AC93: 2005 | AE93: 201108 | AF93: E | AG93: 509.39 | AI93: 2011 | AK93: 200504 | AL93: 135491.58 | AM93: 2005 | AX93: EE | AY93: 203 | AZ93: 35456 | BA93: 12202544.08 | BB93: 201003 | BC93: 2010
A94: 201106 | B94: MK | C94: 2147 | D94: 95444500 | E94: 398700 | F94: 95045800 | G94: 2011 | H94: NOTE | J94: 201205 | K94: MK | L94: 55 | M94: 298400 | N94: TRUE | O94: BOND | P94: 30 | Q94: 2012 | S94: 201208 | T94: MK | U94: NOTE | V94: 2196 | W94: 121824800 | X94: 2012 | Z94: 200503 | AA94: 11649 | AC94: 2005 | AE94: 201108 | AF94: MK | AG94: 5454731400 | AH94: NOTE | AI94: 2011 | AK94: 200503 | AL94: 99058.31 | AM94: 2005 | AX94: I | AY94: 203 | AZ94: 8093 | BA94: 9748220.13 | BB94: 201002 | BC94: 2010
A95: 201106 | B95: MK | C95: 184 | D95: 1642500 | E95: 0 | F95: 1642500 | G95: 2011 | H95: TIPS | J95: 201205 | K95: MK | L95: 259 | M95: 6306700 | N95: FALSE | O95: BOND | P95: 30 | Q95: 2012 | S95: 201207 | T95: E | V95: 30 | W95: 3263.14 | X95: 2012 | Z95: 200502 | AA95: 8007 | AC95: 2005 | AE95: 201107 | AF95: EE | AG95: 934104367.4 | AI95: 2011 | AK95: 200502 | AL95: 75125.7 | AM95: 2005 | AX95: E | AY95: 203 | AZ95: 480 | BA95: 134570.28 | BB95: 201002 | BC95: 2010
A96: 201106 | B96: MK | C96: 256 | D96: 12223100 | E96: 4525000 | F96: 7698100 | G96: 2011 | H96: BOND | J96: 201205 | K96: MK | L96: 834 | M96: 48976900 | N96: FALSE | O96: NOTE | P96: 2 | Q96: 2012 | S96: 201207 | T96: E | V96: 60 | W96: 41445.05 | X96: 2012 | Z96: 200501 | AA96: 11041 | AC96: 2005 | AE96: 201107 | AF96: MK | AG96: 5500184800 | AH96: BILL | AI96: 2011 | AK96: 200501 | AL96: 56792.13 | AM96: 2005 | AX96: EE | AY96: 203 | AZ96: 31552 | BA96: 9243262.58 | BB96: 201002 | BC96: 2010
A97: 201105 | B97: EE | C97: 21807 | D97: 2704109.71 | E97: 12450 | F97: 2691659.71 | G97: 2011 | H97: EE | J97: 201205 | K97: MK | L97: 77 | M97: 3156700 | N97: TRUE | O97: NOTE | P97: 2 | Q97: 2012 | S97: 201207 | T97: E | V97: 3 | W97: 535.8 | X97: 2012 | Z97: 200412 | AA97: 16933 | AC97: 2005 | AE97: 201107 | AF97: E | AG97: 328.77 | AI97: 2011 | AK97: 200412 | AL97: 36927.31 | AM97: 2005 | AX97: EE | AY97: 203 | AZ97: 36256 | BA97: 9738114.26 | BB97: 201001 | BC97: 2010
A98: 201105 | B98: I | C98: 42418 | D98: 31969870.9 | E98: 390533.15 | F98: 31579337.75 | G98: 2011 | H98: I | J98: 201205 | K98: MK | L98: 215 | M98: 8721100 | N98: FALSE | O98: NOTE | P98: 3 | Q98: 2012 | S98: 201207 | T98: E | V98: 1 | W98: 736.13 | X98: 2012 | Z98: 200411 | AA98: 15202 | AC98: 2005 | AE98: 201107 | AF98: MK | AG98: 906043900 | AH98: TIPS | AI98: 2011 | AK98: 200411 | AL98: 28130.45 | AM98: 2005 | AX98: I | AY98: 203 | AZ98: 10097 | BA98: 8202380.81 | BB98: 201001 | BC98: 2010
A99: 201105 | B99: MK | C99: 392 | D99: 10447200 | E99: 12300 | F99: 10434900 | G99: 2011 | H99: BOND | J99: 201205 | K99: MK | L99: 34 | M99: 2349600 | N99: TRUE | O99: NOTE | P99: 3 | Q99: 2012 | S99: 201207 | T99: E | V99: 7 | W99: 1073.43 | X99: 2012 | Z99: 200410 | AA99: 8214 | AC99: 2005 | AE99: 201107 | AF99: MK | AG99: 4508556100 | AH99: NOTE | AI99: 2011 | AK99: 200410 | AL99: 27276.42 | AM99: 2005 | AX99: E | AY99: 203 | AZ99: 1033 | BA99: 402095.42 | BB99: 201001 | BC99: 2010
A100: 201105 | B100: MK | C100: 4373 | D100: 525159900 | E100: 7015200 | F100: 518144700 | G100: 2011 | H100: BILL | J100: 201205 | K100: MK | L100: 20 | M100: 2205200 | N100: TRUE | O100: NOTE | P100: 5 | Q100: 2012 | S100: 201207 | T100: E | V100: 20 | W100: 6455.81 | X100: 2012 | Z100: 200409 | AA100: 8629 | AB100: 133012 | AC100: 2004 | AE100: 201107 | AF100: MK | AG100: 298797900 | AH100: BOND | AI100: 2011 | AK100: 200409 | AL100: 10029.1 | AM100: 2004 | AX100: E | AY100: 203 | AZ100: 806 | BA100: 360154.49 | BB100: 200912 | BC100: 2010
A101: 201105 | B101: MK | C101: 2884 | D101: 123083900 | E101: 1934900 | F101: 121149000 | G101: 2011 | H101: NOTE | J101: 201205 | K101: MK | L101: 272 | M101: 13057500 | N101: FALSE | O101: NOTE | P101: 5 | Q101: 2012 | S101: 201207 | T101: E | V101: 58 | W101: 28092.19 | X101: 2012 | Z101: 200408 | AA101: 9856 | AC101: 2004 | AE101: 201107 | AF101: I | AG101: 4232657612 | AI101: 2011 | AK101: 200408 | AL101: 2855.6 | AM101: 2004 | AX101: EE | AY101: 203 | AZ101: 26577 | BA101: 8605697.64 | BB101: 200912 | BC101: 2010
A102: 201105 | B102: MK | C102: 544 | D102: 9063500 | E102: 0 | F102: 9063500 | G102: 2011 | H102: TIPS | J102: 201205 | K102: MK | L102: 20 | M102: 243300 | N102: TRUE | O102: NOTE | P102: 7 | Q102: 2012 | S102: 201207 | T102: E | V102: 19 | W102: 2450.39 | X102: 2012 | Z102: 200407 | AA102: 9782 | AC102: 2004 | AE102: 201106 | AF102: MK | AG102: 846157800 | AH102: TIPS | AI102: 2011 | AX102: I | AY102: 203 | AZ102: 5894 | BA102: 6751823.35 | BB102: 200912 | BC102: 2010
A103: 201104 | B103: EE | C103: 21503 | D103: 2286478.81 | E103: 11013.62 | F103: 2275465.19 | G103: 2011 | H103: EE | J103: 201205 | K103: MK | L103: 111 | M103: 2358400 | N103: FALSE | O103: NOTE | P103: 7 | Q103: 2012 | S103: 201207 | T103: E | V103: 31 | W103: 6103.72 | X103: 2012 | Z103: 200406 | AA103: 10531 | AC103: 2004 | AE103: 201106 | AF103: EE | AG103: 922682865.7 | AI103: 2011 | AX103: E | AY103: 203 | AZ103: 485 | BA103: 123728.8 | BB103: 200911 | BC103: 2010
A104: 201104 | B104: I | C104: 32538 | D104: 6639951.7 | E104: 56935 | F104: 6583016.7 | G104: 2011 | H104: I | J104: 201205 | K104: MK | L104: 39 | M104: 2037000 | N104: TRUE | O104: NOTE | P104: 10 | Q104: 2012 | S104: 201207 | T104: E | V104: 22 | W104: 5290.36 | X104: 2012 | Z104: 200405 | AA104: 11230 | AC104: 2004 | AE104: 201106 | AF104: I | AG104: 4204607566 | AI104: 2011 | AX104: EE | AY104: 203 | AZ104: 22169 | BA104: 9427047.12 | BB104: 200911 | BC104: 2010
A105: 201104 | B105: MK | C105: 454 | D105: 19230200 | E105: 10100 | F105: 19220100 | G105: 2011 | H105: NOTE | J105: 201205 | K105: MK | L105: 333 | M105: 9738800 | N105: FALSE | O105: NOTE | P105: 10 | Q105: 2012 | S105: 201207 | T105: E | V105: 9 | W105: 2203.61 | X105: 2012 | Z105: 200404 | AA105: 10041 | AC105: 2004 | AE105: 201106 | AF105: MK | AG105: 4758493300 | AH105: BILL | AI105: 2011 | AX105: I | AY105: 203 | AZ105: 6156 | BA105: 6650252.98 | BB105: 200911 | BC105: 2010
A106: 201104 | B106: MK | C106: 312 | D106: 9260900 | E106: 100 | F106: 9260800 | G106: 2011 | H106: BOND | J106: 201205 | K106: MK | L106: 37 | M106: 774700 | N106: TRUE | O106: TIPS | P106: 10 | Q106: 2012 | S106: 201207 | T106: E | V106: 79 | W106: 31647.29 | X106: 2012 | Z106: 200403 | AA106: 11652 | AC106: 2004 | AE106: 201106 | AF106: MK | AG106: 282592200 | AH106: BOND | AI106: 2011 | AX106: E | AY106: 203 | AZ106: 560 | BA106: 182136.5 | BB106: 200910 | BC106: 2010
A107: 201104 | B107: MK | C107: 3724 | D107: 434133000 | E107: 4748100 | F107: 429384900 | G107: 2011 | H107: BILL | J107: 201205 | K107: MK | L107: 367 | M107: 7269500 | N107: FALSE | O107: TIPS | P107: 10 | Q107: 2012 | S107: 201207 | T107: E | V107: 6 | W107: 1110.72 | X107: 2012 | Z107: 200402 | AA107: 10813 | AC107: 2004 | AE107: 201106 | AF107: MK | AG107: 3882997700 | AH107: NOTE | AI107: 2011 | AX107: EE | AY107: 203 | AZ107: 24855 | BA107: 8988413.2 | BB107: 200910 | BC107: 2010
A108: 201104 | B108: MK | C108: 1205 | D108: 24519800 | E108: 0 | F108: 24519800 | G108: 2011 | H108: TIPS | J108: 201204 | K108: I | L108: 51379 | M108: 54291026.62 | N108: FALSE | P108: 0 | Q108: 2012 | S108: 201207 | T108: E | V108: 15 | W108: 1872.61 | X108: 2012 | Z108: 200401 | AA108: 15377 | AC108: 2004 | AE108: 201106 | AF108: E | AG108: 528.03 | AI108: 2011 | AX108: I | AY108: 203 | AZ108: 6791 | BA108: 8074527.13 | BB108: 200910 | BC108: 2010
A109: 201103 | B109: EE | C109: 21209 | D109: 2501330.46 | E109: 33750 | F109: 2467580.46 | G109: 2011 | H109: EE | J109: 201204 | K109: I | L109: 9228 | M109: 1452434.99 | N109: TRUE | P109: 0 | Q109: 2012 | S109: 201207 | T109: E | V109: 78 | W109: 12258.93 | X109: 2012 | Z109: 200312 | AA109: 14518 | AC109: 2004 | AE109: 201105 | AF109: EE | AG109: 910302240.7 | AI109: 2011 | AX109: EE | AY109: 203 | AZ109: 31787 | BA109: 8654130.03 | BB109: 200909 | BC109: 2009
A110: 201103 | B110: I | C110: 32476 | D110: 7560189.95 | E110: 72510 | F110: 7487679.95 | G110: 2011 | H110: I | J110: 201204 | K110: EE | L110: 36622 | M110: 4977961.61 | N110: FALSE | P110: 0 | Q110: 2012 | S110: 201207 | T110: E | V110: 21 | W110: 19876.13 | X110: 2012 | Z110: 200311 | AA110: 10172 | AC110: 2004 | AE110: 201105 | AF110: MK | AG110: 243776000 | AH110: BOND | AI110: 2011 | AX110: E | AY110: 203 | AZ110: 659 | BA110: 277457.57 | BB110: 200909 | BC110: 2009
A111: 201103 | B111: MK | C111: 1272 | D111: 46113500 | E111: 70800 | F111: 46042700 | G111: 2011 | H111: NOTE | J111: 201204 | K111: EE | L111: 5066 | M111: 531040.11 | N111: TRUE | P111: 0 | Q111: 2012 | S111: 201207 | T111: E | V111: 1 | W111: 531.32 | X111: 2012 | Z111: 200310 | AA111: 25251 | AC111: 2004 | AE111: 201105 | AF111: I | AG111: 4174235899 | AI111: 2011 | AX111: I | AY111: 203 | AZ111: 7415 | BA111: 7513105.59 | BB111: 200909 | BC111: 2009
A112: 201103 | B112: MK | C112: 446 | D112: 10095800 | E112: 0 | F112: 10095800 | G112: 2011 | H112: TIPS | J112: 201204 | K112: MK | L112: 843 | M112: 107557200 | N112: FALSE | O112: BILL | P112: 4 | Q112: 2012 | S112: 201207 | T112: EE | V112: 792 | W112: 335040.36 | X112: 2012 | Z112: 200309 | AA112: 15940 | AB112: 43287 | AC112: 2003 | AE112: 201105 | AF112: E | AG112: 1712.63 | AI112: 2011 | AX112: I | AY112: 203 | AZ112: 7750 | BA112: 7051677.61 | BB112: 200908 | BC112: 2009
A113: 201103 | B113: MK | C113: 4585 | D113: 562901900 | E113: 8100800 | F113: 554801100 | G113: 2011 | H113: BILL | J113: 201204 | K113: MK | L113: 357 | M113: 73492400 | N113: TRUE | O113: BILL | P113: 4 | Q113: 2012 | S113: 201207 | T113: EE | V113: 1272 | W113: 312176.69 | X113: 2012 | Z113: 200308 | AA113: 16353 | AC113: 2003 | AE113: 201105 | AF113: MK | AG113: 772328300 | AH113: TIPS | AI113: 2011 | AX113: E | AY113: 203 | AZ113: 798 | BA113: 339055.31 | BB113: 200908 | BC113: 2009
A114: 201103 | B114: MK | C114: 365 | D114: 7805700 | E114: 1200200 | F114: 6605500 | G114: 2011 | H114: BOND | J114: 201204 | K114: MK | L114: 252 | M114: 26437300 | N114: TRUE | O114: BILL | P114: 13 | Q114: 2012 | S114: 201207 | T114: EE | V114: 1283 | W114: 343296.04 | X114: 2012 | Z114: 200307 | AA114: 10601 | AC114: 2003 | AE114: 201105 | AF114: MK | AG114: 2681451500 | AH114: NOTE | AI114: 2011 | AX114: EE | AY114: 203 | AZ114: 29210 | BA114: 7587071.45 | BB114: 200908 | BC114: 2009
A115: 201102 | B115: EE | C115: 19680 | D115: 2398113.19 | E115: 36155 | F115: 2361958.19 | G115: 2011 | H115: EE | J115: 201204 | K115: MK | L115: 1215 | M115: 248130200 | N115: FALSE | O115: BILL | P115: 13 | Q115: 2012 | S115: 201207 | T115: EE | V115: 898 | W115: 203055.58 | X115: 2012 | Z115: 200306 | AA115: 6661 | AC115: 2003 | AE115: 201105 | AF115: MK | AG115: 3507678400 | AH115: BILL | AI115: 2011 | AX115: E | AY115: 203 | AZ115: 486 | BA115: 225365.1 | BB115: 200907 | BC115: 2009
A116: 201102 | B116: I | C116: 30731 | D116: 7833819.81 | E116: 49885 | F116: 7783934.81 | G116: 2011 | H116: I | J116: 201204 | K116: MK | L116: 1476 | M116: 228807200 | N116: FALSE | O116: BILL | P116: 26 | Q116: 2012 | S116: 201207 | T116: EE | V116: 874 | W116: 248777.35 | X116: 2012 | Z116: 200305 | AA116: 8207 | AC116: 2003 | AE116: 201104 | AF116: I | AG116: 4139757718 | AI116: 2011 | AX116: I | AY116: 203 | AZ116: 6615 | BA116: 5990438.59 | BB116: 200907 | BC116: 2009
A117: 201102 | B117: MK | C117: 539 | D117: 21430900 | E117: 25400 | F117: 21405500 | G117: 2011 | H117: BOND | J117: 201204 | K117: MK | L117: 269 | M117: 27566100 | N117: TRUE | O117: BILL | P117: 26 | Q117: 2012 | S117: 201207 | T117: EE | V117: 1151 | W117: 410959.57 | X117: 2012 | Z117: 200304 | AA117: 4879 | AC117: 2003 | AE117: 201104 | AF117: MK | AG117: 214416700 | AH117: BOND | AI117: 2011 | AX117: EE | AY117: 203 | AZ117: 28845 | BA117: 8558138.38 | BB117: 200907 | BC117: 2009
A118: 201102 | B118: MK | C118: 4037 | D118: 492010700 | E118: 996500 | F118: 491014200 | G118: 2011 | H118: BILL | J118: 201204 | K118: MK | L118: 450 | M118: 40148100 | N118: FALSE | O118: BILL | P118: 52 | Q118: 2012 | S118: 201207 | T118: EE | V118: 1643 | W118: 296594.44 | X118: 2012 | Z118: 200303 | AA118: 2413 | AC118: 2003 | AE118: 201104 | AF118: MK | AG118: 1706951500 | AH118: NOTE | AI118: 2011 | AX118: EE | AY118: 203 | AZ118: 30520 | BA118: 8341182.72 | BB118: 200906 | BC118: 2009
A119: 201102 | B119: MK | C119: 1364 | D119: 42042900 | E119: 406200 | F119: 41636700 | G119: 2011 | H119: NOTE | J119: 201204 | K119: MK | L119: 44 | M119: 2328800 | N119: TRUE | O119: BILL | P119: 52 | Q119: 2012 | S119: 201207 | T119: EE | V119: 1314 | W119: 287886.81 | X119: 2012 | Z119: 200302 | AA119: 2014 | AC119: 2003 | AE119: 201104 | AF119: E | AG119: 545.36 | AI119: 2011 | AX119: I | AY119: 203 | AZ119: 6234 | BA119: 5429326.26 | BB119: 200906 | BC119: 2009
A120: 201102 | B120: MK | C120: 445 | D120: 5667800 | E120: 0 | F120: 5667800 | G120: 2011 | H120: TIPS | J120: 201204 | K120: MK | L120: 36 | M120: 26800 | N120: TRUE | O120: BOND | P120: 30 | Q120: 2012 | S120: 201207 | T120: EE | V120: 1041 | W120: 245468.27 | X120: 2012 | Z120: 200301 | AA120: 3259 | AC120: 2003 | AE120: 201104 | AF120: EE | AG120: 900418763.1 | AI120: 2011 | AX120: E | AY120: 203 | AZ120: 669 | BA120: 312095.27 | BB120: 200906 | BC120: 2009
A121: 201101 | B121: EE | C121: 20222 | D121: 3364101.58 | E121: 43430.01 | F121: 3320671.57 | G121: 2011 | H121: EE | J121: 201204 | K121: MK | L121: 171 | M121: 3625100 | N121: FALSE | O121: BOND | P121: 30 | Q121: 2012 | S121: 201207 | T121: EE | V121: 1085 | W121: 266674.19 | X121: 2012 | Z121: 200212 | AA121: 2117 | AC121: 2003 | AE121: 201104 | AF121: MK | AG121: 697009800 | AH121: TIPS | AI121: 2011 | AX121: EE | AY121: 203 | AZ121: 26252 | BA121: 7705688.79 | BB121: 200905 | BC121: 2009
A122: 201101 | B122: I | C122: 33150 | D122: 15733744.84 | E122: 226020 | F122: 15507724.84 | G122: 2011 | H122: I | J122: 201204 | K122: MK | L122: 1650 | M122: 95753300 | N122: FALSE | O122: NOTE | P122: 2 | Q122: 2012 | S122: 201207 | T122: EE | V122: 764 | W122: 131278.61 | X122: 2012 | Z122: 200211 | AA122: 2454 | AC122: 2003 | AE122: 201104 | AF122: MK | AG122: 2620351200 | AH122: BILL | AI122: 2011 | AX122: E | AY122: 203 | AZ122: 492 | BA122: 148009 | BB122: 200905 | BC122: 2009
A123: 201101 | B123: MK | C123: 1096 | D123: 30640200 | E123: 52600 | F123: 30587600 | G123: 2011 | H123: NOTE | J123: 201204 | K123: MK | L123: 151 | M123: 2848600 | N123: TRUE | O123: NOTE | P123: 2 | Q123: 2012 | S123: 201207 | T123: EE | V123: 1224 | W123: 259128.27 | X123: 2012 | Z123: 200210 | AA123: 1082 | AC123: 2003 | AE123: 201103 | AF123: E | AG123: 237.22 | AI123: 2011 | AX123: I | AY123: 203 | AZ123: 5782 | BA123: 6482874.54 | BB123: 200905 | BC123: 2009
A124: 201101 | B124: MK | C124: 322 | D124: 5411800 | E124: 102000 | F124: 5309800 | G124: 2011 | H124: BOND | J124: 201204 | K124: MK | L124: 213 | M124: 20965700 | N124: FALSE | O124: NOTE | P124: 3 | Q124: 2012 | S124: 201207 | T124: EE | V124: 1709 | W124: 273891.16 | X124: 2012 | Z124: 200209 | AA124: 24 | AB124: 97 | AC124: 2002 | AE124: 201103 | AF124: MK | AG124: 2236516000 | AH124: BILL | AI124: 2011 | AX124: EE | AY124: 203 | AZ124: 32221 | BA124: 7706393.7 | BB124: 200904 | BC124: 2009
A125: 201101 | B125: MK | C125: 3954 | D125: 473486100 | E125: 500200 | F125: 472985900 | G125: 2011 | H125: BILL | J125: 201204 | K125: MK | L125: 17 | M125: 502000 | N125: TRUE | O125: NOTE | P125: 3 | Q125: 2012 | S125: 201207 | T125: EE | V125: 2059 | W125: 489486.69 | X125: 2012 | Z125: 200208 | AA125: 11 | AC125: 2002 | AE125: 201103 | AF125: MK | AG125: 677246400 | AH125: TIPS | AI125: 2011 | AX125: E | AY125: 203 | AZ125: 748 | BA125: 184894.91 | BB125: 200904 | BC125: 2009
A126: 201101 | B126: MK | C126: 914 | D126: 11090500 | E126: 0 | F126: 11090500 | G126: 2011 | H126: TIPS | J126: 201204 | K126: MK | L126: 52 | M126: 286900 | N126: TRUE | O126: NOTE | P126: 5 | Q126: 2012 | S126: 201207 | T126: EE | V126: 864 | W126: 164837.5 | X126: 2012 | Z126: 200207 | AA126: 12 | AC126: 2002 | AE126: 201103 | AF126: I | AG126: 4134541909 | AI126: 2011 | AX126: I | AY126: 203 | AZ126: 7077 | BA126: 6857795.8 | BB126: 200904 | BC126: 2009
A127: 201012 | B127: EE | C127: 23882 | D127: 2771470.23 | E127: 29481.79 | F127: 2741988.44 | G127: 2011 | H127: EE | J127: 201204 | K127: MK | L127: 543 | M127: 17088600 | N127: FALSE | O127: NOTE | P127: 5 | Q127: 2012 | S127: 201207 | T127: EE | V127: 1160 | W127: 213768.23 | X127: 2012 | Z127: 200206 | AA127: 42 | AC127: 2002 | AE127: 201103 | AF127: MK | AG127: 197712100 | AH127: BOND | AI127: 2011 | AX127: EE | AY127: 203 | AZ127: 34578 | BA127: 8560517.58 | BB127: 200903 | BC127: 2009
A128: 201012 | B128: I | C128: 36157 | D128: 8492377.37 | E128: 146082.5 | F128: 8346294.87 | G128: 2011 | H128: I | J128: 201204 | K128: MK | L128: 29 | M128: 75300 | N128: TRUE | O128: NOTE | P128: 7 | Q128: 2012 | S128: 201207 | T128: EE | V128: 692 | W128: 178908 | X128: 2012 | Z128: 200205 | AA128: 82 | AC128: 2002 | AE128: 201103 | AF128: EE | AG128: 890277026.5 | AI128: 2011 | AX128: I | AY128: 203 | AZ128: 8704 | BA128: 6983329.51 | BB128: 200903 | BC128: 2009
A129: 201012 | B129: MK | C129: 319 | D129: 5916900 | E129: 210000 | F129: 5706900 | G129: 2011 | H129: BOND | J129: 201204 | K129: MK | L129: 241 | M129: 7936700 | N129: FALSE | O129: NOTE | P129: 7 | Q129: 2012 | S129: 201207 | T129: EE | V129: 1071 | W129: 225530.92 | X129: 2012 | Z129: 200204 | AA129: 45 | AC129: 2002 | AE129: 201103 | AF129: MK | AG129: 1365193200 | AH129: NOTE | AI129: 2011 | AX129: E | AY129: 203 | AZ129: 1091 | BA129: 430764.26 | BB129: 200903 | BC129: 2009
A130: 201012 | B130: MK | C130: 912 | D130: 30953000 | E130: 550300 | F130: 30402700 | G130: 2011 | H130: NOTE | J130: 201204 | K130: MK | L130: 20 | M130: 25000 | N130: TRUE | O130: NOTE | P130: 10 | Q130: 2012 | S130: 201207 | T130: EE | V130: 4298 | W130: 1458431.53 | X130: 2012 | Z130: 200203 | AA130: 4 | AC130: 2002 | AE130: 201102 | AF130: MK | AG130: 677710200 | AH130: TIPS | AI130: 2011 | AX130: I | AY130: 203 | AZ130: 9371 | BA130: 7478295.65 | BB130: 200902 | BC130: 2009
A131: 201012 | B131: MK | C131: 4490 | D131: 600735900 | E131: 2365700 | F131: 598370200 | G131: 2011 | H131: BILL | J131: 201204 | K131: MK | L131: 179 | M131: 3696800 | N131: FALSE | O131: NOTE | P131: 10 | Q131: 2012 | S131: 201207 | T131: EE | V131: 2079 | W131: 417348.7 | X131: 2012 | Z131: 200202 | AA131: 3 | AC131: 2002 | AE131: 201102 | AF131: MK | AG131: 190412300 | AH131: BOND | AI131: 2011 | AX131: EE | AY131: 203 | AZ131: 36150 | BA131: 8669690.32 | BB131: 200902 | BC131: 2009
A132: 201011 | B132: EE | C132: 19551 | D132: 2167228.92 | E132: 25654.01 | F132: 2141574.91 | G132: 2011 | H132: EE | J132: 201204 | K132: MK | L132: 76 | M132: 699700 | N132: TRUE | O132: TIPS | P132: 5 | Q132: 2012 | S132: 201207 | T132: EE | V132: 2293 | W132: 385988.04 | X132: 2012 | Z132: 200201 | AA132: 4 | AC132: 2002 | AE132: 201102 | AF132: MK | AG132: 2239192600 | AH132: BILL | AI132: 2011 | AX132: E | AY132: 203 | AZ132: 916 | BA132: 291784.78 | BB132: 200902 | BC132: 2009
A133: 201011 | B133: I | C133: 31034 | D133: 6308560.74 | E133: 77888.86 | F133: 6230671.88 | G133: 2011 | H133: I | J133: 201204 | K133: MK | L133: 1046 | M133: 30968700 | N133: FALSE | O133: TIPS | P133: 5 | Q133: 2012 | S133: 201207 | T133: I | V133: 1016 | W133: 393998.9 | X133: 2012 | Z133: 200112 | AA133: 3 | AC133: 2002 | AE133: 201102 | AF133: EE | AG133: 877797899.8 | AI133: 2011 | AX133: EE | AY133: 203 | AZ133: 39522 | BA133: 8543167.37 | BB133: 200901 | BC133: 2009
A134: 201011 | B134: MK | C134: 487 | D134: 5053900 | E134: 0 | F134: 5053900 | G134: 2011 | H134: TIPS | J134: 201203 | K134: EE | L134: 36048 | M134: 4900207.99 | N134: FALSE | P134: 0 | Q134: 2012 | S134: 201207 | T134: I | V134: 732 | W134: 330718.96 | X134: 2012 | Z134: 200111 | AA134: 1 | AC134: 2002 | AE134: 201102 | AF134: I | AG134: 4126773566 | AI134: 2011 | AX134: I | AY134: 203 | AZ134: 9350 | BA134: 8897028 | BB134: 200901 | BC134: 2009
A135: 201011 | B135: MK | C135: 1357 | D135: 36630900 | E135: 261400 | F135: 36369500 | G135: 2011 | H135: NOTE | J135: 201203 | K135: I | L135: 10112 | M135: 1601180.72 | N135: TRUE | P135: 0 | Q135: 2012 | S135: 201207 | T135: I | V135: 1371 | W135: 459172.44 | X135: 2012 | Z135: 200110 | AA135: 1 | AC135: 2002 | AE135: 201102 | AF135: MK | AG135: 1329163600 | AH135: NOTE | AI135: 2011 | AX135: E | AY135: 203 | AZ135: 1284 | BA135: 807082.81 | BB135: 200901 | BC135: 2009
A136: 201011 | B136: MK | C136: 285 | D136: 6415500 | E136: 0 | F136: 6415500 | G136: 2011 | H136: BOND | J136: 201203 | K136: I | L136: 50340 | M136: 55990442.53 | N136: FALSE | P136: 0 | Q136: 2012 | S136: 201207 | T136: I | V136: 851 | W136: 278992.3 | X136: 2012 | Z136: 200109 | AA136: 48 | AC136: 2001 | AE136: 201101 | AF136: MK | AG136: 2232020500 | AH136: BILL | AI136: 2011 | AX136: E | AY136: 203 | AZ136: 1230 | BA136: 535837.41 | BB136: 200812 | BC136: 2009
A137: 201011 | B137: MK | C137: 4067 | D137: 485898000 | E137: 1017900 | F137: 484880100 | G137: 2011 | H137: BILL | J137: 201203 | K137: EE | L137: 5808 | M137: 616613.64 | N137: TRUE | P137: 0 | Q137: 2012 | S137: 201207 | T137: I | V137: 504 | W137: 200621.57 | X137: 2012 | Z137: 200001 | AA137: 467 | AC137: 2000 | AE137: 201101 | AF137: MK | AG137: 169909800 | AH137: BOND | AI137: 2011 | AX137: EE | AY137: 203 | AZ137: 29978 | BA137: 8572063.7 | BB137: 200812 | BC137: 2009
A138: 201010 | B138: EE | C138: 17187 | D138: 2178991.76 | E138: 27600 | F138: 2151391.76 | G138: 2011 | H138: EE | J138: 201203 | K138: MK | L138: 1102 | M138: 155395100 | N138: FALSE | O138: BILL | P138: 4 | Q138: 2012 | S138: 201207 | T138: I | V138: 769 | W138: 379296.47 | X138: 2012 | AE138: 201101 | AF138: MK | AG138: 1311440400 | AH138: NOTE | AI138: 2011 | AX138: I | AY138: 203 | AZ138: 6565 | BA138: 5694295.3 | BB138: 200812 | BC138: 2009
A139: 201010 | B139: I | C139: 29410 | D139: 7805596 | E139: 117116.5 | F139: 7688479.5 | G139: 2011 | H139: I | J139: 201203 | K139: MK | L139: 443 | M139: 77536200 | N139: TRUE | O139: BILL | P139: 4 | Q139: 2012 | S139: 201207 | T139: I | V139: 690 | W139: 540628.41 | X139: 2012 | AE139: 201101 | AF139: MK | AG139: 675324000 | AH139: TIPS | AI139: 2011 | AX139: EE | AY139: 203 | AZ139: 25156 | BA139: 7821724.95 | BB139: 200811 | BC139: 2009
A140: 201010 | B140: MK | C140: 3802 | D140: 495465800 | E140: 1557300 | F140: 493908500 | G140: 2011 | H140: BILL | J140: 201203 | K140: MK | L140: 1474 | M140: 237280200 | N140: FALSE | O140: BILL | P140: 13 | Q140: 2012 | S140: 201207 | T140: I | V140: 1111 | W140: 431666.76 | X140: 2012 | AE140: 201101 | AF140: I | AG140: 4115100468 | AI140: 2011 | AX140: I | AY140: 203 | AZ140: 7491 | BA140: 6950881.95 | BB140: 200811 | BC140: 2009
A141: 201010 | B141: MK | C141: 180 | D141: 1480900 | E141: 0 | F141: 1480900 | G141: 2011 | H141: BOND | J141: 201203 | K141: MK | L141: 302 | M141: 45043600 | N141: TRUE | O141: BILL | P141: 13 | Q141: 2012 | S141: 201207 | T141: I | V141: 1111 | W141: 567240.4 | X141: 2012 | AE141: 201101 | AF141: E | AG141: 33414.13 | AI141: 2011 | AX141: E | AY141: 203 | AZ141: 605 | BA141: 208102.58 | BB141: 200811 | BC141: 2009
A142: 201010 | B142: MK | C142: 571 | D142: 12189600 | E142: 0 | F142: 12189600 | G142: 2011 | H142: TIPS | J142: 201203 | K142: MK | L142: 1803 | M142: 239258100 | N142: FALSE | O142: BILL | P142: 26 | Q142: 2012 | S142: 201207 | T142: I | V142: 993 | W142: 344922.97 | X142: 2012 | AE142: 201101 | AF142: EE | AG142: 865781566.4 | AI142: 2011 | AX142: E | AY142: 203 | AZ142: 1219 | BA142: 442203.1 | BB142: 200810 | BC142: 2009
A143: 201010 | B143: MK | C143: 234 | D143: 2576800 | E143: 5038600 | F143: -2461800 | G143: 2011 | H143: NOTE | J143: 201203 | K143: MK | L143: 339 | M143: 29677100 | N143: TRUE | O143: BILL | P143: 26 | Q143: 2012 | S143: 201207 | T143: I | V143: 595 | W143: 429991.65 | X143: 2012 | AE143: 201012 | AF143: EE | AG143: 854897599.6 | AI143: 2011 | AX143: I | AY143: 203 | AZ143: 7868 | BA143: 5940993.35 | BB143: 200810 | BC143: 2009
A144: 201009 | B144: EE | C144: 14465 | D144: 1924447.66 | E144: 122845 | F144: 1801602.66 | G144: 2010 | H144: EE | J144: 201203 | K144: MK | L144: 52 | M144: 4852000 | N144: TRUE | O144: BILL | P144: 52 | Q144: 2012 | S144: 201207 | T144: I | V144: 632 | W144: 179307.55 | X144: 2012 | AE144: 201012 | AF144: E | AG144: 0 | AI144: 2011 | AX144: EE | AY144: 203 | AZ144: 35918 | BA144: 8835267.07 | BB144: 200810 | BC144: 2009
A145: 201009 | B145: I | C145: 25932 | D145: 5956960.2 | E145: 205347.5 | F145: 5751612.7 | G145: 2010 | H145: I | J145: 201203 | K145: MK | L145: 512 | M145: 61924500 | N145: FALSE | O145: BILL | P145: 52 | Q145: 2012 | S145: 201207 | T145: I | V145: 968 | W145: 299042.62 | X145: 2012 | AE145: 201012 | AF145: I | AG145: 4098080901 | AI145: 2011 | AX145: EE | AY145: 203 | AZ145: 37750 | BA145: 8794322.84 | BB145: 200809 | BC145: 2008
A146: 201009 | B146: MK | C146: 868 | D146: 35598900 | E146: 258000 | F146: 35340900 | G146: 2010 | H146: NOTE | J146: 201203 | K146: MK | L146: 34 | M146: 42800 | N146: TRUE | O146: BOND | P146: 30 | Q146: 2012 | S146: 201207 | T146: I | V146: 803 | W146: 442535.54 | X146: 2012 | AE146: 201012 | AF146: MK | AG146: 671439500 | AH146: TIPS | AI146: 2011 | AX146: I | AY146: 203 | AZ146: 9759 | BA146: 5670288.72 | BB146: 200809 | BC146: 2008
A147: 201009 | B147: MK | C147: 577 | D147: 7128800 | E147: 0 | F147: 7128800 | G147: 2010 | H147: TIPS | J147: 201203 | K147: MK | L147: 222 | M147: 4271500 | N147: FALSE | O147: BOND | P147: 30 | Q147: 2012 | S147: 201207 | T147: I | V147: 1658 | W147: 487086.99 | X147: 2012 | AE147: 201012 | AF147: MK | AG147: 1306369900 | AH147: NOTE | AI147: 2011 | AX147: E | AY147: 203 | AZ147: 853 | BA147: 340121.56 | BB147: 200809 | BC147: 2008
A148: 201009 | B148: MK | C148: 178 | D148: 2463300 | E148: 5000 | F148: 2458300 | G148: 2010 | H148: BOND | J148: 201203 | K148: MK | L148: 232 | M148: 13565500 | N148: FALSE | O148: NOTE | P148: 3 | Q148: 2012 | S148: 201207 | T148: I | V148: 483 | W148: 334934.95 | X148: 2012 | AE148: 201012 | AF148: MK | AG148: 164568200 | AH148: BOND | AI148: 2011 | AX148: E | AY148: 203 | AZ148: 891 | BA148: 315253.8 | BB148: 200808 | BC148: 2008
A149: 201009 | B149: MK | C149: 5162 | D149: 654312600 | E149: 10220700 | F149: 644091900 | G149: 2010 | H149: BILL | J149: 201203 | K149: MK | L149: 29 | M149: 929400 | N149: TRUE | O149: NOTE | P149: 3 | Q149: 2012 | S149: 201207 | T149: I | V149: 547 | W149: 136270.19 | X149: 2012 | AE149: 201012 | AF149: MK | AG149: 2220416600 | AH149: BILL | AI149: 2011 | AX149: EE | AY149: 203 | AZ149: 40136 | BA149: 9485680.94 | BB149: 200808 | BC149: 2008
A150: 201008 | B150: EE | C150: 13092 | D150: 1829172.3 | E150: 47185 | F150: 1781987.3 | G150: 2010 | H150: EE | J150: 201203 | K150: MK | L150: 27 | M150: 68500 | N150: TRUE | O150: NOTE | P150: 10 | Q150: 2012 | S150: 201207 | T150: I | V150: 488 | W150: 332603.84 | X150: 2012 | AE150: 201011 | AF150: MK | AG150: 672246100 | AH150: TIPS | AI150: 2011 | AX150: I | AY150: 203 | AZ150: 9133 | BA150: 7431259.98 | BB150: 200808 | BC150: 2008
A151: 201008 | B151: I | C151: 24732 | D151: 6243175.04 | E151: 140182.92 | F151: 6102992.12 | G151: 2010 | H151: I | J151: 201203 | K151: MK | L151: 267 | M151: 12702700 | N151: FALSE | O151: NOTE | P151: 10 | Q151: 2012 | S151: 201207 | T151: I | V151: 1213 | W151: 354585.78 | X151: 2012 | AE151: 201011 | AF151: MK | AG151: 1288282500 | AH151: NOTE | AI151: 2011 | AX151: I | AY151: 203 | AZ151: 8659 | BA151: 6175319.91 | BB151: 200807 | BC151: 2008
A152: 201008 | B152: MK | C152: 1750 | D152: 73728400 | E152: 1063200 | F152: 72665200 | G152: 2010 | H152: NOTE | J152: 201203 | K152: MK | L152: 540 | M152: 10355300 | N152: FALSE | O152: TIPS | P152: 10 | Q152: 2012 | S152: 201207 | T152: I | V152: 1357 | W152: 584933.57 | X152: 2012 | AE152: 201011 | AF152: MK | AG152: 158304900 | AH152: BOND | AI152: 2011 | AX152: E | AY152: 203 | AZ152: 1753 | BA152: 621216.12 | BB152: 200807 | BC152: 2008
A153: 201008 | B153: MK | C153: 485 | D153: 11045700 | E153: 5400 | F153: 11040300 | G153: 2010 | H153: BOND | J153: 201203 | K153: MK | L153: 70 | M153: 1233200 | N153: TRUE | O153: TIPS | P153: 10 | Q153: 2012 | S153: 201207 | T153: I | V153: 946 | W153: 425976.7 | X153: 2012 | AE153: 201011 | AF153: MK | AG153: 2231442800 | AH153: BILL | AI153: 2011 | AX153: EE | AY153: 203 | AZ153: 42576 | BA153: 10283329.86 | BB153: 200807 | BC153: 2008
A154: 201008 | B154: MK | C154: 4226 | D154: 624245200 | E154: 4167500 | F154: 620077700 | G154: 2010 | H154: BILL | J154: 201202 | K154: I | L154: 48935 | M154: 54698411.84 | N154: FALSE | P154: 0 | Q154: 2012 | S154: 201207 | T154: MK | U154: BILL | V154: 4134 | W154: 475746800 | X154: 2012 | AE154: 201011 | AF154: E | AG154: 777.86 | AI154: 2011 | AX154: I | AY154: 203 | AZ154: 10071 | BA154: 7446454.59 | BB154: 200806 | BC154: 2008
A155: 201007 | B155: EE | C155: 11909 | D155: 1654399.98 | E155: 20565 | F155: 1633834.98 | G155: 2010 | H155: EE | J155: 201202 | K155: I | L155: 8666 | M155: 1479363.73 | N155: TRUE | P155: 0 | Q155: 2012 | S155: 201207 | T155: MK | U155: BILL | V155: 4117 | W155: 552522800 | X155: 2012 | AE155: 201011 | AF155: EE | AG155: 845611048.1 | AI155: 2011 | AX155: EE | AY155: 203 | AZ155: 43906 | BA155: 10243623.2 | BB155: 200806 | BC155: 2008
A156: 201007 | B156: I | C156: 23347 | D156: 6147838.25 | E156: 69575 | F156: 6078263.25 | G156: 2010 | H156: I | J156: 201202 | K156: EE | L156: 38285 | M156: 5560974.75 | N156: FALSE | P156: 0 | Q156: 2012 | S156: 201207 | T156: MK | U156: BILL | V156: 4675 | W156: 680299600 | X156: 2012 | AE156: 201011 | AF156: I | AG156: 4085095431 | AI156: 2011 | AX156: E | AY156: 203 | AZ156: 1358 | BA156: 502220.2 | BB156: 200806 | BC156: 2008
A157: 201007 | B157: MK | C157: 6506 | D157: 801773700 | E157: 3249700 | F157: 798524000 | G157: 2010 | H157: BILL | J157: 201202 | K157: EE | L157: 4951 | M157: 604944.36 | N157: TRUE | P157: 0 | Q157: 2012 | S157: 201207 | T157: MK | U157: BILL | V157: 4421 | W157: 500708200 | X157: 2012 | AE157: 201010 | AF157: MK | AG157: 156153000 | AH157: BOND | AI157: 2011 | AX157: I | AY157: 203 | AZ157: 10538 | BA157: 10472754.21 | BB157: 200805 | BC157: 2008
A158: 201007 | B158: MK | C158: 194 | D158: 1795800 | E158: 0 | F158: 1795800 | G158: 2010 | H158: BOND | J158: 201202 | K158: MK | L158: 844 | M158: 121088400 | N158: FALSE | O158: BILL | P158: 4 | Q158: 2012 | S158: 201207 | T158: MK | U158: NOTE | V158: 4449 | W158: 178629200 | X158: 2012 | AE158: 201010 | AF158: E | AG158: 234.82 | AI158: 2011 | AX158: E | AY158: 203 | AZ158: 1054 | BA158: 352845.35 | BB158: 200805 | BC158: 2008
A159: 201007 | B159: MK | C159: 1001 | D159: 19893800 | E159: 0 | F159: 19893800 | G159: 2010 | H159: TIPS | J159: 201202 | K159: MK | L159: 407 | M159: 60159900 | N159: TRUE | O159: BILL | P159: 4 | Q159: 2012 | S159: 201207 | T159: MK | U159: NOTE | V159: 431 | W159: 14965600 | X159: 2012 | AE159: 201010 | AF159: I | AG159: 4070226680 | AI159: 2011 | AX159: EE | AY159: 203 | AZ159: 36853 | BA159: 10876014.87 | BB159: 200805 | BC159: 2008
A160: 201007 | B160: MK | C160: 344 | D160: 14642800 | E160: 193100 | F160: 14449700 | G160: 2010 | H160: NOTE | J160: 201202 | K160: MK | L160: 1291 | M160: 261761800 | N160: FALSE | O160: BILL | P160: 13 | Q160: 2012 | S160: 201207 | T160: MK | U160: NOTE | V160: 4475 | W160: 148259000 | X160: 2012 | AE160: 201010 | AF160: MK | AG160: 2227796500 | AH160: BILL | AI160: 2011 | AX160: E | AY160: 203 | AZ160: 1179 | BA160: 455813.62 | BB160: 200804 | BC160: 2008
A161: 201006 | B161: EE | C161: 12282 | D161: 1579416.95 | E161: 27935 | F161: 1551481.95 | G161: 2010 | H161: EE | J161: 201202 | K161: MK | L161: 225 | M161: 41514900 | N161: TRUE | O161: BILL | P161: 13 | Q161: 2012 | S161: 201207 | T161: MK | U161: TIPS | V161: 1224 | W161: 65792524.61 | X161: 2012 | AE161: 201010 | AF161: EE | AG161: 833086040.7 | AI161: 2011 | AX161: I | AY161: 203 | AZ161: 8719 | BA161: 8456836.05 | BB161: 200804 | BC161: 2008
A162: 201006 | B162: I | C162: 24446 | D162: 6988037.25 | E162: 81396.62 | F162: 6906640.63 | G162: 2010 | H162: I | J162: 201202 | K162: MK | L162: 258 | M162: 26493900 | N162: TRUE | O162: BILL | P162: 26 | Q162: 2012 | S162: 201206 | T162: E | V162: 1 | W162: 221.24 | X162: 2012 | AE162: 201010 | AF162: MK | AG162: 1286335900 | AH162: NOTE | AI162: 2011 | AX162: EE | AY162: 203 | AZ162: 33567 | BA162: 9976768.6 | BB162: 200804 | BC162: 2008
A163: 201006 | B163: MK | C163: 2178 | D163: 57507100 | E163: 373300 | F163: 57133800 | G163: 2010 | H163: NOTE | J163: 201202 | K163: MK | L163: 1686 | M163: 259060900 | N163: FALSE | O163: BILL | P163: 26 | Q163: 2012 | S163: 201206 | T163: E | V163: 21 | W163: 4346.25 | X163: 2012 | AE163: 201010 | AF163: MK | AG163: 670300000 | AH163: TIPS | AI163: 2011 | AX163: E | AY163: 203 | AZ163: 1227 | BA163: 489923.39 | BB163: 200803 | BC163: 2008
A164: 201006 | B164: MK | C164: 6312 | D164: 702668400 | E164: 6411000 | F164: 696257400 | G164: 2010 | H164: BILL | J164: 201202 | K164: MK | L164: 74 | M164: 1777600 | N164: TRUE | O164: BILL | P164: 52 | Q164: 2012 | S164: 201206 | T164: E | V164: 10 | W164: 2663.95 | X164: 2012 | AE164: 201009 | AF164: MK | AG164: 1292129200 | AH164: NOTE | AI164: 2010 | AX164: EE | AY164: 203 | AZ164: 34987 | BA164: 7788189.31 | BB164: 200803 | BC164: 2008
A165: 201006 | B165: MK | C165: 222 | D165: 1900600 | E165: 100000 | F165: 1800600 | G165: 2010 | H165: BOND | J165: 201202 | K165: MK | L165: 565 | M165: 66191400 | N165: FALSE | O165: BILL | P165: 52 | Q165: 2012 | S165: 201206 | T165: E | V165: 13 | W165: 5120.85 | X165: 2012 | AE165: 201009 | AF165: MK | AG165: 155010500 | AH165: BOND | AI165: 2010 | AX165: I | AY165: 203 | AZ165: 9582 | BA165: 6662701.11 | BB165: 200803 | BC165: 2008
A166: 201005 | B166: EE | C166: 10834 | D166: 1535914.8 | E166: 7045 | F166: 1528869.8 | G166: 2010 | H166: EE | J166: 201202 | K166: MK | L166: 269 | M166: 9468900 | N166: FALSE | O166: BOND | P166: 30 | Q166: 2012 | S166: 201206 | T166: E | V166: 6 | W166: 1452.47 | X166: 2012 | AE166: 201009 | AF166: MK | AG166: 2260979500 | AH166: BILL | AI166: 2010 | AX166: EE | AY166: 203 | AZ166: 46024 | BA166: 11435777.61 | BB166: 200802 | BC166: 2008
A167: 201005 | B167: I | C167: 22703 | D167: 8469787.68 | E167: 109258.32 | F167: 8360529.36 | G167: 2010 | H167: I | J167: 201202 | K167: MK | L167: 46 | M167: 317600 | N167: TRUE | O167: BOND | P167: 30 | Q167: 2012 | S167: 201206 | T167: E | V167: 3 | W167: 458.46 | X167: 2012 | AE167: 201009 | AF167: E | AG167: 4256.44 | AI167: 2010 | AX167: I | AY167: 203 | AZ167: 10064 | BA167: 8259407.72 | BB167: 200802 | BC167: 2008
A168: 201005 | B168: MK | C168: 645 | D168: 26232600 | E168: 313600 | F168: 25919000 | G168: 2010 | H168: NOTE | J168: 201202 | K168: MK | L168: 879 | M168: 54494000 | N168: FALSE | O168: NOTE | P168: 2 | Q168: 2012 | S168: 201206 | T168: E | V168: 4 | W168: 1525.55 | X168: 2012 | AE168: 201009 | AF168: I | AG168: 4052363258 | AI168: 2010 | AX168: E | AY168: 203 | AZ168: 1620 | BA168: 737118.9 | BB168: 200802 | BC168: 2008
A169: 201005 | B169: MK | C169: 309 | D169: 6042300 | E169: 200000 | F169: 5842300 | G169: 2010 | H169: BOND | J169: 201202 | K169: MK | L169: 67 | M169: 4034600 | N169: TRUE | O169: NOTE | P169: 2 | Q169: 2012 | S169: 201206 | T169: E | V169: 8 | W169: 972.4 | X169: 2012 | AE169: 201009 | AF169: EE | AG169: 817264248.9 | AI169: 2010 | AX169: E | AY169: 203 | AZ169: 1497 | BA169: 686270.36 | BB169: 200801 | BC169: 2008
A170: 201005 | B170: MK | C170: 6653 | D170: 744233900 | E170: 2031100 | F170: 742202800 | G170: 2010 | H170: BILL | J170: 201202 | K170: MK | L170: 240 | M170: 18437800 | N170: FALSE | O170: NOTE | P170: 3 | Q170: 2012 | S170: 201206 | T170: E | V170: 12 | W170: 2165.73 | X170: 2012 | AE170: 201009 | AF170: MK | AG170: 665340400 | AH170: TIPS | AI170: 2010 | AX170: EE | AY170: 203 | AZ170: 40017 | BA170: 10262026.24 | BB170: 200801 | BC170: 2008
A171: 201004 | B171: EE | C171: 12031 | D171: 1524878.29 | E171: 23960 | F171: 1500918.29 | G171: 2010 | H171: EE | J171: 201202 | K171: MK | L171: 36 | M171: 328500 | N171: TRUE | O171: NOTE | P171: 3 | Q171: 2012 | S171: 201206 | T171: E | V171: 185 | W171: 42046.13 | X171: 2012 | AE171: 201008 | AF171: MK | AG171: 2275793900 | AH171: BILL | AI171: 2010 | AX171: I | AY171: 203 | AZ171: 9269 | BA171: 8387626.08 | BB171: 200801 | BC171: 2008
A172: 201004 | B172: I | C172: 28199 | D172: 15659297.25 | E172: 118670.36 | F172: 15540626.89 | G172: 2010 | H172: I | J172: 201202 | K172: MK | L172: 26 | M172: 152700 | N172: TRUE | O172: NOTE | P172: 5 | Q172: 2012 | S172: 201206 | T172: E | V172: 33 | W172: 11123.49 | X172: 2012 | AE172: 201008 | AF172: EE | AG172: 804240139.3 | AI172: 2010 | AX172: I | AY172: 203 | AZ172: 7083 | BA172: 6363097.61 | BB172: 200712 | BC172: 2008
A173: 201004 | B173: MK | C173: 3164 | D173: 59701800 | E173: 0 | F173: 59701800 | G173: 2010 | H173: TIPS | J173: 201202 | K173: MK | L173: 280 | M173: 11882400 | N173: FALSE | O173: NOTE | P173: 5 | Q173: 2012 | S173: 201206 | T173: E | V173: 18 | W173: 2593.05 | X173: 2012 | AE173: 201008 | AF173: MK | AG173: 664170300 | AH173: TIPS | AI173: 2010 | AX173: E | AY173: 203 | AZ173: 918 | BA173: 662641.98 | BB173: 200712 | BC173: 2008
A174: 201004 | B174: MK | C174: 1550 | D174: 51756400 | E174: 257000 | F174: 51499400 | G174: 2010 | H174: NOTE | J174: 201202 | K174: MK | L174: 13 | M174: 4700 | N174: TRUE | O174: NOTE | P174: 7 | Q174: 2012 | S174: 201206 | T174: E | V174: 9 | W174: 1394.32 | X174: 2012 | AE174: 201008 | AF174: MK | AG174: 1304032800 | AH174: NOTE | AI174: 2010 | AX174: EE | AY174: 203 | AZ174: 29162 | BA174: 7928617.2 | BB174: 200712 | BC174: 2008
A175: 201004 | B175: MK | C175: 248 | D175: 5468300 | E175: 0 | F175: 5468300 | G175: 2010 | H175: BOND | J175: 201202 | K175: MK | L175: 138 | M175: 9035000 | N175: FALSE | O175: NOTE | P175: 7 | Q175: 2012 | S175: 201206 | T175: E | V175: 35 | W175: 5002.68 | X175: 2012 | AE175: 201008 | AF175: MK | AG175: 152935700 | AH175: BOND | AI175: 2010 | AX175: E | AY175: 203 | AZ175: 1612 | BA175: 652163.93 | BB175: 200711 | BC175: 2008
A176: 201004 | B176: MK | C176: 8295 | D176: 903943500 | E176: 3305600 | F176: 900637900 | G176: 2010 | H176: BILL | J176: 201202 | K176: MK | L176: 40 | M176: 612000 | N176: TRUE | O176: NOTE | P176: 10 | Q176: 2012 | S176: 201206 | T176: E | V176: 1 | W176: 213.94 | X176: 2012 | AE176: 201008 | AF176: I | AG176: 4035851201 | AI176: 2010 | AX176: I | AY176: 203 | AZ176: 7862 | BA176: 8533064.45 | BB176: 200711 | BC176: 2008
A177: 201003 | B177: EE | C177: 12923 | D177: 1676674.35 | E177: 6553.27 | F177: 1670121.08 | G177: 2010 | H177: EE | J177: 201202 | K177: MK | L177: 398 | M177: 19842700 | N177: FALSE | O177: NOTE | P177: 10 | Q177: 2012 | S177: 201206 | T177: E | V177: 85 | W177: 16399.61 | X177: 2012 | AE177: 201008 | AF177: E | AG177: 9560.88 | AI177: 2010 | AX177: EE | AY177: 203 | AZ177: 37606 | BA177: 8784616.12 | BB177: 200711 | BC177: 2008
A178: 201003 | B178: I | C178: 28985 | D178: 15796638.89 | E178: 119627.34 | F178: 15677011.55 | G178: 2010 | H178: I | J178: 201202 | K178: MK | L178: 238 | M178: 2585200 | N178: FALSE | O178: TIPS | P178: 30 | Q178: 2012 | S178: 201206 | T178: E | V178: 41 | W178: 11801.02 | X178: 2012 | AE178: 201007 | AF178: MK | AG178: 2206689900 | AH178: BILL | AI178: 2010 | AX178: I | AY178: 203 | AZ178: 7927 | BA178: 6886640.58 | BB178: 200710 | BC178: 2008
A179: 201003 | B179: MK | C179: 2296 | D179: 77366900 | E179: 1600 | F179: 77365300 | G179: 2010 | H179: NOTE | J179: 201202 | K179: MK | L179: 54 | M179: 123500 | N179: TRUE | O179: TIPS | P179: 30 | Q179: 2012 | S179: 201206 | T179: E | V179: 68 | W179: 11739.8 | X179: 2012 | AE179: 201007 | AF179: MK | AG179: 141410800 | AH179: BOND | AI179: 2010 | AX179: E | AY179: 203 | AZ179: 1289 | BA179: 423698.29 | BB179: 200710 | BC179: 2008
A180: 201003 | B180: MK | C180: 316 | D180: 7418200 | E180: 80800 | F180: 7337400 | G180: 2010 | H180: BOND | J180: 201201 | K180: EE | L180: 4941 | M180: 637027.89 | N180: TRUE | P180: 0 | Q180: 2012 | S180: 201206 | T180: E | V180: 28 | W180: 8491.96 | X180: 2012 | AE180: 201007 | AF180: MK | AG180: 1254925800 | AH180: NOTE | AI180: 2010 | AX180: EE | AY180: 203 | AZ180: 34661 | BA180: 8232852.76 | BB180: 200710 | BC180: 2008
A181: 201003 | B181: MK | C181: 6709 | D181: 764622800 | E181: 1633500 | F181: 762989300 | G181: 2010 | H181: BILL | J181: 201201 | K181: EE | L181: 38230 | M181: 7439155.7 | N181: FALSE | P181: 0 | Q181: 2012 | S181: 201206 | T181: E | V181: 101 | W181: 242889.78 | X181: 2012 | AE181: 201007 | AF181: MK | AG181: 667130300 | AH181: TIPS | AI181: 2010 | AX181: EE | AY181: 203 | AZ181: 33130 | BA181: 9879449.75 | BB181: 200709 | BC181: 2007
A182: 201002 | B182: EE | C182: 11478 | D182: 1548044.45 | E182: 6395 | F182: 1541649.45 | G182: 2010 | H182: EE | J182: 201201 | K182: I | L182: 8405 | M182: 1953877.72 | N182: TRUE | P182: 0 | Q182: 2012 | S182: 201206 | T182: E | V182: 1 | W182: 139.7 | X182: 2012 | AE182: 201007 | AF182: EE | AG182: 795348439 | AI182: 2010 | AX182: E | AY182: 203 | AZ182: 1123 | BA182: 474906.64 | BB182: 200709 | BC182: 2007
A183: 201002 | B183: I | C183: 25462 | D183: 15676630.52 | E183: 159232.88 | F183: 15517397.64 | G183: 2010 | H183: I | J183: 201201 | K183: I | L183: 59066 | M183: 106916450.1 | N183: FALSE | P183: 0 | Q183: 2012 | S183: 201206 | T183: EE | V183: 943 | W183: 145291.91 | X183: 2012 | AE183: 201007 | AF183: I | AG183: 4021015580 | AI183: 2010 | AX183: I | AY183: 203 | AZ183: 7568 | BA183: 7675050.21 | BB183: 200709 | BC183: 2007
A184: 201002 | B184: MK | C184: 1403 | D184: 41583300 | E184: 1005300 | F184: 40578000 | G184: 2010 | H184: NOTE | J184: 201201 | K184: MK | L184: 313 | M184: 70415600 | N184: TRUE | O184: BILL | P184: 4 | Q184: 2012 | S184: 201206 | T184: EE | V184: 2337 | W184: 435976.14 | X184: 2012 | AE184: 201007 | AF184: E | AG184: 0 | AI184: 2010 | AX184: EE | AY184: 203 | AZ184: 41923 | BA184: 11341594.6 | BB184: 200708 | BC184: 2007
A185: 201002 | B185: MK | C185: 804 | D185: 16932000 | E185: 100000 | F185: 16832000 | G185: 2010 | H185: BOND | J185: 201201 | K185: MK | L185: 732 | M185: 102282900 | N185: FALSE | O185: BILL | P185: 4 | Q185: 2012 | S185: 201206 | T185: EE | V185: 1165 | W185: 322038.96 | X185: 2012 | AE185: 201006 | AF185: MK | AG185: 2193928700 | AH185: BILL | AI185: 2010 | AX185: E | AY185: 203 | AZ185: 1590 | BA185: 651373.38 | BB185: 200708 | BC185: 2007
A186: 201002 | B186: MK | C186: 6829 | D186: 841521100 | E186: 12724000 | F186: 828797100 | G186: 2010 | H186: BILL | J186: 201201 | K186: MK | L186: 1314 | M186: 243008300 | N186: FALSE | O186: BILL | P186: 13 | Q186: 2012 | S186: 201206 | T186: EE | V186: 893 | W186: 224958.68 | X186: 2012 | AE186: 201006 | AF186: MK | AG186: 648179700 | AH186: TIPS | AI186: 2010 | AX186: I | AY186: 203 | AZ186: 8432 | BA186: 8097216.83 | BB186: 200708 | BC186: 2007
A187: 201001 | B187: EE | C187: 12451 | D187: 2488735.81 | E187: 37500 | F187: 2451235.81 | G187: 2010 | H187: EE | J187: 201201 | K187: MK | L187: 239 | M187: 39345400 | N187: TRUE | O187: BILL | P187: 13 | Q187: 2012 | S187: 201206 | T187: EE | V187: 917 | W187: 137611.36 | X187: 2012 | AE187: 201006 | AF187: EE | AG187: 786438553.6 | AI187: 2010 | AX187: I | AY187: 203 | AZ187: 8797 | BA187: 9389712.06 | BB187: 200707 | BC187: 2007
A188: 201001 | B188: I | C188: 29838 | D188: 32095740.6 | E188: 402965 | F188: 31692775.6 | G188: 2010 | H188: I | J188: 201201 | K188: MK | L188: 1455 | M188: 196458900 | N188: FALSE | O188: BILL | P188: 26 | Q188: 2012 | S188: 201206 | T188: EE | V188: 632 | W188: 171922.78 | X188: 2012 | AE188: 201006 | AF188: E | AG188: 89747.75 | AI188: 2010 | AX188: E | AY188: 203 | AZ188: 1984 | BA188: 682596.75 | BB188: 200707 | BC188: 2007
A189: 201001 | B189: MK | C189: 6583 | D189: 702564300 | E189: 6121900 | F189: 696442400 | G189: 2010 | H189: BILL | J189: 201201 | K189: MK | L189: 248 | M189: 29715700 | N189: TRUE | O189: BILL | P189: 26 | Q189: 2012 | S189: 201206 | T189: EE | V189: 1793 | W189: 310634.68 | X189: 2012 | AE189: 201006 | AF189: MK | AG189: 1263224900 | AH189: NOTE | AI189: 2010 | AX189: EE | AY189: 203 | AZ189: 46509 | BA189: 12747650.87 | BB189: 200707 | BC189: 2007
A190: 201001 | B190: MK | C190: 225 | D190: 4231300 | E190: 100 | F190: 4231200 | G190: 2010 | H190: BOND | J190: 201201 | K190: MK | L190: 59 | M190: 2180300 | N190: TRUE | O190: BILL | P190: 52 | Q190: 2012 | S190: 201206 | T190: EE | V190: 3483 | W190: 1000330.85 | X190: 2012 | AE190: 201006 | AF190: I | AG190: 4004744561 | AI190: 2010 | AX190: EE | AY190: 203 | AZ190: 40189 | BA190: 12283118.73 | BB190: 200706 | BC190: 2007
A191: 201001 | B191: MK | C191: 1251 | D191: 30653700 | E191: 0 | F191: 30653700 | G191: 2010 | H191: TIPS | J191: 201201 | K191: MK | L191: 498 | M191: 63829200 | N191: FALSE | O191: BILL | P191: 52 | Q191: 2012 | S191: 201206 | T191: EE | V191: 783 | W191: 225319.52 | X191: 2012 | AE191: 201006 | AF191: MK | AG191: 140306400 | AH191: BOND | AI191: 2010 | AX191: I | AY191: 203 | AZ191: 9705 | BA191: 10618499.43 | BB191: 200706 | BC191: 2007
A192: 201001 | B192: MK | C192: 384 | D192: 7920000 | E192: 90500 | F192: 7829500 | G192: 2010 | H192: NOTE | J192: 201201 | K192: MK | L192: 126 | M192: 2270400 | N192: FALSE | O192: BOND | P192: 30 | Q192: 2012 | S192: 201206 | T192: EE | V192: 1159 | W192: 199278.45 | X192: 2012 | AE192: 201005 | AF192: EE | AG192: 778662628.4 | AI192: 2010 | AX192: E | AY192: 203 | AZ192: 1421 | BA192: 995984.62 | BB192: 200706 | BC192: 2007
A193: 200912 | B193: EE | C193: 17357 | D193: 2132538.35 | E193: 18625 | F193: 2113913.35 | G193: 2010 | H193: EE | J193: 201201 | K193: MK | L193: 28 | M193: 13500 | N193: TRUE | O193: BOND | P193: 30 | Q193: 2012 | S193: 201206 | T193: EE | V193: 919 | W193: 183799.25 | X193: 2012 | AE193: 201005 | AF193: MK | AG193: 651898800 | AH193: TIPS | AI193: 2010 | AX193: I | AY193: 203 | AZ193: 9391 | BA193: 8647734.67 | BB193: 200705 | BC193: 2007
A194: 200912 | B194: I | C194: 31815 | D194: 19096664.13 | E194: 145416 | F194: 18951248.13 | G194: 2010 | H194: I | J194: 201201 | K194: MK | L194: 1663 | M194: 111718100 | N194: FALSE | O194: NOTE | P194: 2 | Q194: 2012 | S194: 201206 | T194: EE | V194: 868 | W194: 160989.7 | X194: 2012 | AE194: 201005 | AF194: MK | AG194: 1241353300 | AH194: NOTE | AI194: 2010 | AX194: EE | AY194: 203 | AZ194: 40280 | BA194: 10976811.12 | BB194: 200705 | BC194: 2007
A195: 200912 | B195: MK | C195: 1089 | D195: 29856700 | E195: 260100 | F195: 29596600 | G195: 2010 | H195: NOTE | J195: 201201 | K195: MK | L195: 148 | M195: 3970300 | N195: TRUE | O195: NOTE | P195: 2 | Q195: 2012 | S195: 201206 | T195: EE | V195: 1371 | W195: 218481.96 | X195: 2012 | AE195: 201005 | AF195: MK | AG195: 138766200 | AH195: BOND | AI195: 2010 | AX195: E | AY195: 203 | AZ195: 1435 | BA195: 503144.2 | BB195: 200705 | BC195: 2007
A196: 200912 | B196: MK | C196: 8148 | D196: 914376000 | E196: 8517100 | F196: 905858900 | G196: 2010 | H196: BILL | J196: 201201 | K196: MK | L196: 218 | M196: 8365900 | N196: FALSE | O196: NOTE | P196: 3 | Q196: 2012 | S196: 201206 | T196: EE | V196: 1669 | W196: 312873.02 | X196: 2012 | AE196: 201005 | AF196: MK | AG196: 2183295400 | AH196: BILL | AI196: 2010 | AX196: I | AY196: 203 | AZ196: 10759 | BA196: 11064165.47 | BB196: 200704 | BC196: 2007
A197: 200912 | B197: MK | C197: 200 | D197: 2365600 | E197: 0 | F197: 2365600 | G197: 2010 | H197: BOND | J197: 201201 | K197: MK | L197: 18 | M197: 138100 | N197: TRUE | O197: NOTE | P197: 3 | Q197: 2012 | S197: 201206 | T197: EE | V197: 1170 | W197: 243880.32 | X197: 2012 | AE197: 201005 | AF197: E | AG197: 68753.08 | AI197: 2010 | AX197: EE | AY197: 203 | AZ197: 48296 | BA197: 12087783.89 | BB197: 200704 | BC197: 2007
A198: 200911 | B198: EE | C198: 13392 | D198: 1535752.83 | E198: 11033 | F198: 1524719.83 | G198: 2010 | H198: EE | J198: 201201 | K198: MK | L198: 553 | M198: 24000300 | N198: FALSE | O198: NOTE | P198: 5 | Q198: 2012 | S198: 201206 | T198: EE | V198: 910 | W198: 500020.44 | X198: 2012 | AE198: 201005 | AF198: I | AG198: 3988008222 | AI198: 2010 | AX198: E | AY198: 203 | AZ198: 2320 | BA198: 1731060.87 | BB198: 200704 | BC198: 2007
A199: 200911 | B199: I | C199: 26065 | D199: 13199439.45 | E199: 127530.21 | F199: 13071909.24 | G199: 2010 | H199: I | J199: 201201 | K199: MK | L199: 41 | M199: 1064700 | N199: TRUE | O199: NOTE | P199: 5 | Q199: 2012 | S199: 201206 | T199: EE | V199: 804 | W199: 185181.78 | X199: 2012 | AE199: 201004 | AF199: MK | AG199: 1225702000 | AH199: NOTE | AI199: 2010 | AX199: I | AY199: 203 | AZ199: 11012 | BA199: 11880080.16 | BB199: 200703 | BC199: 2007
A200: 200911 | B200: MK | C200: 2108 | D200: 78960600 | E200: 234400 | F200: 78726200 | G200: 2010 | H200: NOTE | J200: 201201 | K200: MK | L200: 245 | M200: 7115200 | N200: FALSE | O200: NOTE | P200: 7 | Q200: 2012 | S200: 201206 | T200: EE | V200: 1539 | W200: 307557.3 | X200: 2012 | AE200: 201004 | AF200: MK | AG200: 135719600 | AH200: BOND | AI200: 2010 | AX200: EE | AY200: 203 | AZ200: 54806 | BA200: 12282765.3 | BB200: 200703 | BC200: 2007
A201: 200911 | B201: MK | C201: 275 | D201: 6705100 | E201: 0 | F201: 6705100 | G201: 2010 | H201: BOND | J201: 201201 | K201: MK | L201: 30 | M201: 58900 | N201: TRUE | O201: NOTE | P201: 7 | Q201: 2012 | S201: 201206 | T201: EE | V201: 1808 | W201: 421988.12 | X201: 2012 | AE201: 201004 | AF201: MK | AG201: 2283969600 | AH201: BILL | AI201: 2010 | AX201: E | AY201: 203 | AZ201: 2588 | BA201: 1042236.22 | BB201: 200703 | BC201: 2007
... 2049 more rows

Sheet Criteria (hidden)
A1: ReportFY | B1: 2012
A2: ReportMonth | B2: =($B$1-1)*100 +10 -> 201110 | C2: =DATE(LEFT(B2,4),RIGHT(B2,2),1) -> 2011-10-01
B3: =($B$1-1)*100 +11 -> 201111 | C3: =DATE(LEFT(B3,4),RIGHT(B3,2),1) -> 2011-11-01
B4: =($B$1-1)*100 +12 -> 201112 | C4: 2011-12-01
B5: =($B$1)*100 +1 -> 201201 | C5: 2012-01-01
B6: =($B$1)*100 +2 -> 201202 | C6: 2012-02-01
B7: =($B$1)*100 +3 -> 201203 | C7: 2012-03-01
B8: =($B$1)*100 +4 -> 201204 | C8: 2012-04-01
B9: =($B$1)*100 +5 -> 201205 | C9: 2012-05-01
B10: =($B$1)*100 +6 -> 201206 | C10: 2012-06-01 | E10: 1 | F10: Last Full TranMonth | G10: =MAX(Data!$AE:$AE) -> 201208 | I10: Display Data Options | J10: Display Restriction | L10: Available Years | M10: Formatted Years
B11: =($B$1)*100 +7 -> 201207 | C11: 2012-07-01 | F11: ReportMaxFY | G11: =MAX(Data!$AI:$AI) -> 2012 | I11: Monthly | J11: 3 | L11: =2003 -> 2003 | M11: =IF(L11<$G$11,L11,IF(L11=$G$11,IF(G$14=9,L11,"" &L11 & " (thru " & TEXT(DATE(L11,G$14,1),"mmm") & ")"),"")) -> 2003
B12: =($B$1)*100 +8 -> 201208 | C12: 2012-08-01 | I12: Yearly | L12: =L11+1 -> 2004 | M12: =IF(L12<$G$11,L12,IF(L12=$G$11,IF(G$14=9,L12,"" &L12 & " (thru " & TEXT(DATE(L12,G$14,1),"mmm") & ")"),"")) -> 2004
B13: =($B$1)*100 +9 -> 201209 | C13: 2012-09-01 | I13: Both | L13: =L12+1 -> 2005 | M13: 2005
C14: For Composite Tab & SB Sales_Conv Tab | I14: All | L14: 2006 | M14: 2006
I15: Display Data Selected | L15: 2007 | M15: 2007
A16: EMAIL INFO | D16: =IF($B2<=$G$10,$B2,"na") -> 201110 | I16: Monthly | L16: 2008 | M16: 2008
A17: to: | D17: =IF($B3<=$G$10,$B3,"na") -> 201111 | L17: 2009 | M17: 2009
A18: cc | D18: 201112 | L18: 2010 | M18: 2010
A19: subject | D19: 201201 | L19: 2011 | M19: 2011
A20: message | D20: 201202 | L20: 2012 | M20: 2012 (thru Dec)
A21: fileName | D21: 201203 | L21: 2013
D22: 201204 | L22: 2014
D23: 201205 | G23: Look ups for various worksheets | L23: 2015
D24: 201206 | G24: Type | H24: Term | I24: Value | L24: 2016
D25: 201207 | G25: BILL | H25: ="" & I25 & " week" -> 4 week | I25: 4 | L25: 2017
D26: 201208 | G26: BILL | H26: ="" & I26 & " week" -> 13 week | I26: 13 | L26: 2018
D27: na | G27: BILL | H27: ="" & I27 & " week" -> 26 week | I27: 26 | L27: 2019
G28: BILL | H28: ="" & I28 & " week" -> 52 week | I28: 52 | L28: 2020
G29: NOTE | H29: ="" & I29 & " year" -> 2 year | I29: 2 | L29: 2021
G30: NOTE | H30: ="" & I30 & " year" -> 3 year | I30: 3 | L30: 2022
G31: NOTE | H31: 5 year | I31: 5 | L31: 2023
G32: NOTE | H32: 7 year | I32: 7 | L32: 2024
G33: NOTE | H33: 10 year | I33: 10 | L33: 2025
G34: TIPS | H34: 5 year | I34: 5
G35: TIPS | H35: 10 year | I35: 10
G36: TIPS | H36: 20 year | I36: 20
G37: TIPS | H37: 30 year | I37: 30
G38: BOND | H38: 30 year | I38: 30
G40: Securities | H40: Abbreviation
G41: Marketable | H41: MK

Sheet Composite
A1: FALSE | B1: Securities in TreasuryDirect1 | L1: Sales | V1: 2003
L2: Incoming Transfers
L3: Redemptions
L4: Outstanding
V5: 2004
F6: Select Fiscal Year to Display | G6: 2012 | H6: Data to Display | I6: Monthly | V6: 2005
V7: 2006
C8: Sales of Treasury Bills, Notes, Bonds, TIPS, and Savings Bonds | E8: Incoming Transfers2 | G8: Redemptions | I8: Amount Outstanding | J8: Unrestricted Primary Accounts | L8: Funded Accounts | V8: 2007
V9: 2008
C10: Securities | D10: Dollars | E10: Securities | F10: Dollars | G10: Securities | H10: Dollars | I10: Dollars | J10: Month | K10: To Date | L10: To Date | V10: 2009
A11: October | B11: =A11 -> October | C11: =SUMIFS(Data!$C:$C,Data!$A:$A,Criteria!$D16) -> 74019 | D11: =SUMIFS(Data!$F:$F,Data!$A:$A,Criteria!$D16) -> 930073142 | E11: =SUMIFS(Data!AZ:AZ,Data!$BB:$BB,Criteria!$D16)+SUMIFS(Data!AT:AT,Data!$AO:$AO,Criteria!$D16) -> 49076 | F11: =SUMIFS(Data!BA:BA,Data!$BB:$BB,Criteria!$D16)+SUMIFS(Data!AU:AU,Data!$AO:$AO,Criteria!$D16) -> 380483635.6 | G11: =SUMIFS(Data!V:V,Data!$S:$S,Criteria!$D16) -> 57732 | H11: =SUMIFS(Data!W:W,Data!$S:$S,Criteria!$D16) -> 1943461198 | I11: =SUMIFS(Data!$AG:$AG,Data!$AE:$AE,Criteria!$D16) -> 2.044971644e+10 | J11: =SUMIFS(Data!$AA:$AA,Data!$Z:$Z,Criteria!$D16) -> 13227 | K11: =SUMIFS(Data!$AA:$AA,Data!$Z:$Z,"<=" & Criteria!$D16) -> 1026884 | L11: =SUMIFS(Data!AB:AB,Data!Z:Z,Criteria!D16) -> 354506 | V11: 2010
A12: November | B12: November | C12: =SUMIFS(Data!$C:$C,Data!$A:$A,Criteria!$D17) -> 76543 | D12: =SUMIFS(Data!$F:$F,Data!$A:$A,Criteria!$D17) -> 874626668.7 | E12: =SUMIFS(Data!AZ:AZ,Data!$BB:$BB,Criteria!$D17)+SUMIFS(Data!AT:AT,Data!$AO:$AO,Criteria!$D17) -> 51352 | F12: =SUMIFS(Data!BA:BA,Data!$BB:$BB,Criteria!$D17)+SUMIFS(Data!AU:AU,Data!$AO:$AO,Criteria!$D17) -> 299156081.6 | G12: =SUMIFS(Data!V:V,Data!$S:$S,Criteria!$D17) -> 58814 | H12: =SUMIFS(Data!W:W,Data!$S:$S,Criteria!$D17) -> 1885288215 | I12: =SUMIFS(Data!$AG:$AG,Data!$AE:$AE,Criteria!$D17) -> 2.083191446e+10 | J12: =SUMIFS(Data!$AA:$AA,Data!$Z:$Z,Criteria!$D17) -> 16509 | K12: =SUMIFS(Data!$AA:$AA,Data!$Z:$Z,"<=" & Criteria!$D17) -> 1043393 | L12: =SUMIFS(Data!AB:AB,Data!Z:Z,Criteria!D17) -> 361442 | V12: 2011
A13: December | B13: December | C13: =SUMIFS(Data!$C:$C,Data!$A:$A,Criteria!$D18) -> 107868 | D13: =SUMIFS(Data!$F:$F,Data!$A:$A,Criteria!$D18) -> 985862022.5 | E13: =SUMIFS(Data!AZ:AZ,Data!$BB:$BB,Criteria!$D18)+SUMIFS(Data!AT:AT,Data!$AO:$AO,Criteria!$D18) -> 57793 | F13: =SUMIFS(Data!BA:BA,Data!$BB:$BB,Criteria!$D18)+SUMIFS(Data!AU:AU,Data!$AO:$AO,Criteria!$D18) -> 181356472.1 | G13: =SUMIFS(Data!V:V,Data!$S:$S,Criteria!$D18) -> 64141 | H13: =SUMIFS(Data!W:W,Data!$S:$S,Criteria!$D18) -> 2336156537 | I13: =SUMIFS(Data!$AG:$AG,Data!$AE:$AE,Criteria!$D18) -> 2.113156113e+10 | J13: =SUMIFS(Data!$AA:$AA,Data!$Z:$Z,Criteria!$D18) -> 36705 | K13: =SUMIFS(Data!$AA:$AA,Data!$Z:$Z,"<=" & Criteria!$D18) -> 1080098 | L13: =SUMIFS(Data!AB:AB,Data!Z:Z,Criteria!D18) -> 378796 | V13: 2012
A14: January | B14: January | C14: =SUMIFS(Data!$C:$C,Data!$A:$A,Criteria!$D19) -> 119640 | D14: =SUMIFS(Data!$F:$F,Data!$A:$A,Criteria!$D19) -> 1017378091 | E14: =SUMIFS(Data!AZ:AZ,Data!$BB:$BB,Criteria!$D19)+SUMIFS(Data!AT:AT,Data!$AO:$AO,Criteria!$D19) -> 94497 | F14: =SUMIFS(Data!BA:BA,Data!$BB:$BB,Criteria!$D19)+SUMIFS(Data!AU:AU,Data!$AO:$AO,Criteria!$D19) -> 197603571.6 | G14: =SUMIFS(Data!V:V,Data!$S:$S,Criteria!$D19) -> 73678 | H14: =SUMIFS(Data!W:W,Data!$S:$S,Criteria!$D19) -> 2262237823 | I14: =SUMIFS(Data!$AG:$AG,Data!$AE:$AE,Criteria!$D19) -> 2.145119576e+10 | J14: =SUMIFS(Data!$AA:$AA,Data!$Z:$Z,Criteria!$D19) -> 53888 | K14: =SUMIFS(Data!$AA:$AA,Data!$Z:$Z,"<=" & Criteria!$D19) -> 1133986 | L14: =SUMIFS(Data!AB:AB,Data!Z:Z,Criteria!D19) -> 397416 | V14: 2013
A15: February | B15: February | C15: =SUMIFS(Data!$C:$C,Data!$A:$A,Criteria!$D20) -> 108911 | D15: =SUMIFS(Data!$F:$F,Data!$A:$A,Criteria!$D20) -> 1005385587 | E15: =SUMIFS(Data!AZ:AZ,Data!$BB:$BB,Criteria!$D20)+SUMIFS(Data!AT:AT,Data!$AO:$AO,Criteria!$D20) -> 92617 | F15: =SUMIFS(Data!BA:BA,Data!$BB:$BB,Criteria!$D20)+SUMIFS(Data!AU:AU,Data!$AO:$AO,Criteria!$D20) -> 210441917 | G15: =SUMIFS(Data!V:V,Data!$S:$S,Criteria!$D20) -> 61301 | H15: =SUMIFS(Data!W:W,Data!$S:$S,Criteria!$D20) -> 2206140289 | I15: =SUMIFS(Data!$AG:$AG,Data!$AE:$AE,Criteria!$D20) -> 2.181089715e+10 | J15: =SUMIFS(Data!$AA:$AA,Data!$Z:$Z,Criteria!$D20) -> 42695 | K15: =SUMIFS(Data!$AA:$AA,Data!$Z:$Z,"<=" & Criteria!$D20) -> 1176681 | L15: =SUMIFS(Data!AB:AB,Data!Z:Z,Criteria!D20) -> 414715 | V15: 2014
A16: March | B16: March | C16: =SUMIFS(Data!$C:$C,Data!$A:$A,Criteria!$D21) -> 109756 | D16: =SUMIFS(Data!$F:$F,Data!$A:$A,Criteria!$D21) -> 944971714.6 | E16: =SUMIFS(Data!AZ:AZ,Data!$BB:$BB,Criteria!$D21)+SUMIFS(Data!AT:AT,Data!$AO:$AO,Criteria!$D21) -> 52851 | F16: =SUMIFS(Data!BA:BA,Data!$BB:$BB,Criteria!$D21)+SUMIFS(Data!AU:AU,Data!$AO:$AO,Criteria!$D21) -> 128289436.3 | G16: =SUMIFS(Data!V:V,Data!$S:$S,Criteria!$D21) -> 56825 | H16: =SUMIFS(Data!W:W,Data!$S:$S,Criteria!$D21) -> 2389949037 | I16: =SUMIFS(Data!$AG:$AG,Data!$AE:$AE,Criteria!$D21) -> 2.200968502e+10 | J16: =SUMIFS(Data!$AA:$AA,Data!$Z:$Z,Criteria!$D21) -> 38088 | K16: =SUMIFS(Data!$AA:$AA,Data!$Z:$Z,"<=" & Criteria!$D21) -> 1214769 | L16: =SUMIFS(Data!AB:AB,Data!Z:Z,Criteria!D21) -> 430978 | V16: 2015
A17: April | B17: April | C17: =SUMIFS(Data!$C:$C,Data!$A:$A,Criteria!$D22) -> 111625 | D17: =SUMIFS(Data!$F:$F,Data!$A:$A,Criteria!$D22) -> 984497546.8 | E17: =SUMIFS(Data!AZ:AZ,Data!$BB:$BB,Criteria!$D22)+SUMIFS(Data!AT:AT,Data!$AO:$AO,Criteria!$D22) -> 44472 | F17: =SUMIFS(Data!BA:BA,Data!$BB:$BB,Criteria!$D22)+SUMIFS(Data!AU:AU,Data!$AO:$AO,Criteria!$D22) -> 135199176.1 | G17: =SUMIFS(Data!V:V,Data!$S:$S,Criteria!$D22) -> 66204 | H17: =SUMIFS(Data!W:W,Data!$S:$S,Criteria!$D22) -> 2450117506 | I17: =SUMIFS(Data!$AG:$AG,Data!$AE:$AE,Criteria!$D22) -> 2.215695885e+10 | J17: =SUMIFS(Data!$AA:$AA,Data!$Z:$Z,Criteria!$D22) -> 36872 | K17: =SUMIFS(Data!$AA:$AA,Data!$Z:$Z,"<=" & Criteria!$D22) -> 1251641 | L17: =SUMIFS(Data!AB:AB,Data!Z:Z,Criteria!D22) -> 442864 | V17: 2016
A18: May | B18: May | C18: =SUMIFS(Data!$C:$C,Data!$A:$A,Criteria!$D23) -> 105252 | D18: =SUMIFS(Data!$F:$F,Data!$A:$A,Criteria!$D23) -> 1208409769 | E18: =SUMIFS(Data!AZ:AZ,Data!$BB:$BB,Criteria!$D23)+SUMIFS(Data!AT:AT,Data!$AO:$AO,Criteria!$D23) -> 80069 | F18: =SUMIFS(Data!BA:BA,Data!$BB:$BB,Criteria!$D23)+SUMIFS(Data!AU:AU,Data!$AO:$AO,Criteria!$D23) -> 294334241.4 | G18: =SUMIFS(Data!V:V,Data!$S:$S,Criteria!$D23) -> 73547 | H18: =SUMIFS(Data!W:W,Data!$S:$S,Criteria!$D23) -> 2756071415 | I18: =SUMIFS(Data!$AG:$AG,Data!$AE:$AE,Criteria!$D23) -> 2.254383884e+10 | J18: =SUMIFS(Data!$AA:$AA,Data!$Z:$Z,Criteria!$D23) -> 29647 | K18: =SUMIFS(Data!$AA:$AA,Data!$Z:$Z,"<=" & Criteria!$D23) -> 1281288 | L18: =SUMIFS(Data!AB:AB,Data!Z:Z,Criteria!D23) -> 454013 | V18: 2017
A19: June | B19: June | C19: =SUMIFS(Data!$C:$C,Data!$A:$A,Criteria!$D24) -> 94497 | D19: =SUMIFS(Data!$F:$F,Data!$A:$A,Criteria!$D24) -> 832547709.9 | E19: =SUMIFS(Data!AZ:AZ,Data!$BB:$BB,Criteria!$D24)+SUMIFS(Data!AT:AT,Data!$AO:$AO,Criteria!$D24) -> 67258 | F19: =SUMIFS(Data!BA:BA,Data!$BB:$BB,Criteria!$D24)+SUMIFS(Data!AU:AU,Data!$AO:$AO,Criteria!$D24) -> 161447477 | G19: =SUMIFS(Data!V:V,Data!$S:$S,Criteria!$D24) -> 62728 | H19: =SUMIFS(Data!W:W,Data!$S:$S,Criteria!$D24) -> 2048993381 | I19: =SUMIFS(Data!$AG:$AG,Data!$AE:$AE,Criteria!$D24) -> 2.282326274e+10 | J19: =SUMIFS(Data!$AA:$AA,Data!$Z:$Z,Criteria!$D24) -> 22103 | K19: =SUMIFS(Data!$AA:$AA,Data!$Z:$Z,"<=" & Criteria!$D24) -> 1303391 | L19: =SUMIFS(Data!AB:AB,Data!Z:Z,Criteria!D24) -> 462741 | V19: 2018
A20: July | B20: July | C20: =SUMIFS(Data!$C:$C,Data!$A:$A,Criteria!$D25) -> 98336 | D20: =SUMIFS(Data!$F:$F,Data!$A:$A,Criteria!$D25) -> 986676148.8 | E20: =SUMIFS(Data!AZ:AZ,Data!$BB:$BB,Criteria!$D25)+SUMIFS(Data!AT:AT,Data!$AO:$AO,Criteria!$D25) -> 62178 | F20: =SUMIFS(Data!BA:BA,Data!$BB:$BB,Criteria!$D25)+SUMIFS(Data!AU:AU,Data!$AO:$AO,Criteria!$D25) -> 154833908.9 | G20: =SUMIFS(Data!V:V,Data!$S:$S,Criteria!$D25) -> 76790 | H20: =SUMIFS(Data!W:W,Data!$S:$S,Criteria!$D25) -> 2632171727 | I20: =SUMIFS(Data!$AG:$AG,Data!$AE:$AE,Criteria!$D25) -> 2.297472147e+10 | J20: =SUMIFS(Data!$AA:$AA,Data!$Z:$Z,Criteria!$D25) -> 21310 | K20: =SUMIFS(Data!$AA:$AA,Data!$Z:$Z,"<=" & Criteria!$D25) -> 1324701 | L20: =SUMIFS(Data!AB:AB,Data!Z:Z,Criteria!D25) -> 470661 | V20: 2019
A21: August | B21: August | C21: =SUMIFS(Data!$C:$C,Data!$A:$A,Criteria!$D26) -> 101490 | D21: =SUMIFS(Data!$F:$F,Data!$A:$A,Criteria!$D26) -> 1137089450 | E21: =SUMIFS(Data!AZ:AZ,Data!$BB:$BB,Criteria!$D26)+SUMIFS(Data!AT:AT,Data!$AO:$AO,Criteria!$D26) -> 75221 | F21: =SUMIFS(Data!BA:BA,Data!$BB:$BB,Criteria!$D26)+SUMIFS(Data!AU:AU,Data!$AO:$AO,Criteria!$D26) -> 286078961.9 | G21: =SUMIFS(Data!V:V,Data!$S:$S,Criteria!$D26) -> 81540 | H21: =SUMIFS(Data!W:W,Data!$S:$S,Criteria!$D26) -> 3186976029 | I21: =SUMIFS(Data!$AG:$AG,Data!$AE:$AE,Criteria!$D26) -> 2.314616654e+10 | J21: =SUMIFS(Data!$AA:$AA,Data!$Z:$Z,Criteria!$D26) -> 21291 | K21: =SUMIFS(Data!$AA:$AA,Data!$Z:$Z,"<=" & Criteria!$D26) -> 1345992 | L21: =SUMIFS(Data!AB:AB,Data!Z:Z,Criteria!D26) -> 478638 | V21: 2020
A22: September | B22: September | C22: =SUMIFS(Data!$C:$C,Data!$A:$A,Criteria!$D27) -> 0 | D22: =SUMIFS(Data!$F:$F,Data!$A:$A,Criteria!$D27) -> 0 | E22: =SUMIFS(Data!AZ:AZ,Data!$BB:$BB,Criteria!$D27)+SUMIFS(Data!AT:AT,Data!$AO:$AO,Criteria!$D27) -> 0 | F22: =SUMIFS(Data!BA:BA,Data!$BB:$BB,Criteria!$D27)+SUMIFS(Data!AU:AU,Data!$AO:$AO,Criteria!$D27) -> 0 | G22: =SUMIFS(Data!V:V,Data!$S:$S,Criteria!$D27) -> 0 | H22: =SUMIFS(Data!W:W,Data!$S:$S,Criteria!$D27) -> 0 | I22: =SUMIFS(Data!$AG:$AG,Data!$AE:$AE,Criteria!$D27) -> 0 | J22: =SUMIFS(Data!$AA:$AA,Data!$Z:$Z,Criteria!$D27) -> 0 | K22: =SUMIFS(Data!$AA:$AA,Data!$Z:$Z,"<=" & Criteria!$D27) -> 0 | L22: =SUMIFS(Data!AB:AB,Data!Z:Z,Criteria!D27) -> 0 | V22: 2021
C23: =SUM(C11:C22) -> 1107937 | D23: 1.090751785e+10 | E23: 727384 | F23: 2429224879 | G23: 733300 | H23: 2.609756316e+10 | J23: =SUM(J11:J22) -> 332335 | V23: 2022
B24: 1 TreasuryDirect is a self-service, Internet-accessed system that allows investors to purchase, redeem, and manage their all-electronic Treasury securities portfolios. For more information, visit www.TreasuryDirect.gov.
B25: 2 Owners of paper savings bonds may convert them to electronic securities at TreasuryDirect.gov. Securities held in Legacy Treasury Direct or through commercial parties can be transferred to
B26: TreasuryDirect at TreasuryDirect.gov.
C28: Sales of Treasury Bills, Notes, Bonds, TIPS, and Savings Bonds | E28: Incoming Transfers2 | G28: Redemptions | I28: Amount Outstanding | J28: Unrestricted Primary Accounts | L28: Funded Accounts
C30: Securities | D30: Dollars | E30: Securities | F30: Dollars | G30: Securities | H30: Dollars | I30: Dollars | J30: Year | K30: To Date | L30: To Date
A31: =ReportFY -> 2012 | B31: =IF(A31>0,OFFSET(Criteria!$M$11,Composite!A31-Criteria!$M$11,0),"") -> 2012 (thru Dec) | C31: =SUMIFS(Data!$C:$C,Data!$G:$G,$A31,Data!$A:$A,"<=" & Criteria!$G$10) -> 1107937 | D31: =SUMIFS(Data!$F:$F,Data!$G:$G,$A31,Data!$A:$A,"<=" & Criteria!$G$10) -> 1.090751785e+10 | E31: =SUMIFS(Data!AZ:AZ,Data!$BC:$BC,$A31,Data!$BB:$BB,"<="&Criteria!$G$10)+SUMIFS(Data!AT:AT,Data!$AV:$AV,$A31,Data!$AO:$AO,"<="&Criteria!$G$10) -> 727384 | F31: =SUMIFS(Data!BA:BA,Data!$BC:$BC,$A31,Data!$BB:$BB,"<="&Criteria!$G$10)+SUMIFS(Data!AU:AU,Data!$AV:$AV,$A31,Data!$AO:$AO,"<="&Criteria!$G$10) -> 2429224879 | G31: =SUMIFS(Data!V:V,Data!$X:$X,$A31,Data!$S:$S,"<=" &Criteria!$G$10) -> 733300 | H31: =SUMIFS(Data!W:W,Data!$X:$X,$A31,Data!$S:$S,"<=" &Criteria!$G$10) -> 2.609756316e+10 | I31: =SUMIFS(Data!AG:AG,Data!AE:AE,VALUE(IF($A31=ReportMaxFY,Criteria!$G$10,$A31 & "09"))) -> 2.314616654e+10 | J31: =SUMIFS(Data!$AA:$AA,Data!$AC:$AC,$A31, Data!$Z:$Z,"<=" & Criteria!$G$10) -> 332335 | K31: =SUMIFS(Data!$AA:$AA,Data!$AC:$AC,"<=" & $A31, Data!$Z:$Z,"<=" & Criteria!$G$10) -> 1345992 | L31: =SUMIFS(Data!AB:AB,Data!Z:Z,VALUE(IF($A31=ReportMaxFY,Criteria!$G$10,$A31 & "09"))) -> 478638
A32: =IF(AND(A31<ReportMaxFY,A31<>0), A31+1,0) -> 0 | B32: =IF(A32>0,OFFSET(Criteria!$M$11,Composite!A32-Criteria!$M$11,0),"") ->  | C32: =SUMIFS(Data!$C:$C,Data!$G:$G,$A32,Data!$A:$A,"<=" & Criteria!$G$10) -> 0 | D32: =SUMIFS(Data!$F:$F,Data!$G:$G,$A32,Data!$A:$A,"<=" & Criteria!$G$10) -> 0 | E32: =SUMIFS(Data!AZ:AZ,Data!$BC:$BC,$A32,Data!$BB:$BB,"<="&Criteria!$G$10)+SUMIFS(Data!AT:AT,Data!$AV:$AV,$A32,Data!$AO:$AO,"<="&Criteria!$G$10) -> 0 | F32: =SUMIFS(Data!BA:BA,Data!$BC:$BC,$A32,Data!$BB:$BB,"<="&Criteria!$G$10)+SUMIFS(Data!AU:AU,Data!$AV:$AV,$A32,Data!$AO:$AO,"<="&Criteria!$G$10) -> 0 | G32: =SUMIFS(Data!V:V,Data!$X:$X,$A32,Data!$S:$S,"<=" &Criteria!$G$10) -> 0 | H32: =SUMIFS(Data!W:W,Data!$X:$X,$A32,Data!$S:$S,"<=" &Criteria!$G$10) -> 0 | I32: =SUMIFS(Data!AG:AG,Data!AE:AE,VALUE(IF($A32=ReportMaxFY,Criteria!$G$10,$A32 & "09"))) -> 0 | J32: =SUMIFS(Data!$AA:$AA,Data!$AC:$AC,$A32, Data!$Z:$Z,"<=" & Criteria!$G$10) -> 0 | K32: =SUMIFS(Data!$AA:$AA,Data!$AC:$AC,"<=" & $A32, Data!$Z:$Z,"<=" & Criteria!$G$10) -> 0 | L32: =SUMIFS(Data!AB:AB,Data!Z:Z,VALUE(IF($A32=ReportMaxFY,Criteria!$G$10,$A32 & "09"))) -> 0
A33: 0 | B33: =IF(A33>0,OFFSET(Criteria!$M$11,Composite!A33-Criteria!$M$11,0),"") ->  | C33: =SUMIFS(Data!$C:$C,Data!$G:$G,$A33,Data!$A:$A,"<=" & Criteria!$G$10) -> 0 | D33: =SUMIFS(Data!$F:$F,Data!$G:$G,$A33,Data!$A:$A,"<=" & Criteria!$G$10) -> 0 | E33: =SUMIFS(Data!AZ:AZ,Data!$BC:$BC,$A33,Data!$BB:$BB,"<="&Criteria!$G$10)+SUMIFS(Data!AT:AT,Data!$AV:$AV,$A33,Data!$AO:$AO,"<="&Criteria!$G$10) -> 0 | F33: =SUMIFS(Data!BA:BA,Data!$BC:$BC,$A33,Data!$BB:$BB,"<="&Criteria!$G$10)+SUMIFS(Data!AU:AU,Data!$AV:$AV,$A33,Data!$AO:$AO,"<="&Criteria!$G$10) -> 0 | G33: =SUMIFS(Data!V:V,Data!$X:$X,$A33,Data!$S:$S,"<=" &Criteria!$G$10) -> 0 | H33: =SUMIFS(Data!W:W,Data!$X:$X,$A33,Data!$S:$S,"<=" &Criteria!$G$10) -> 0 | I33: =SUMIFS(Data!AG:AG,Data!AE:AE,VALUE(IF($A33=ReportMaxFY,Criteria!$G$10,$A33 & "09"))) -> 0 | J33: =SUMIFS(Data!$AA:$AA,Data!$AC:$AC,$A33, Data!$Z:$Z,"<=" & Criteria!$G$10) -> 0 | K33: =SUMIFS(Data!$AA:$AA,Data!$AC:$AC,"<=" & $A33, Data!$Z:$Z,"<=" & Criteria!$G$10) -> 0 | L33: =SUMIFS(Data!AB:AB,Data!Z:Z,VALUE(IF($A33=ReportMaxFY,Criteria!$G$10,$A33 & "09"))) -> 0
A34: 0 | B34: =IF(A34>0,OFFSET(Criteria!$M$11,Composite!A34-Criteria!$M$11,0),"") ->  | C34: =SUMIFS(Data!$C:$C,Data!$G:$G,$A34,Data!$A:$A,"<=" & Criteria!$G$10) -> 0 | D34: =SUMIFS(Data!$F:$F,Data!$G:$G,$A34,Data!$A:$A,"<=" & Criteria!$G$10) -> 0 | E34: =SUMIFS(Data!AZ:AZ,Data!$BC:$BC,$A34,Data!$BB:$BB,"<="&Criteria!$G$10)+SUMIFS(Data!AT:AT,Data!$AV:$AV,$A34,Data!$AO:$AO,"<="&Criteria!$G$10) -> 0 | F34: =SUMIFS(Data!BA:BA,Data!$BC:$BC,$A34,Data!$BB:$BB,"<="&Criteria!$G$10)+SUMIFS(Data!AU:AU,Data!$AV:$AV,$A34,Data!$AO:$AO,"<="&Criteria!$G$10) -> 0 | G34: =SUMIFS(Data!V:V,Data!$X:$X,$A34,Data!$S:$S,"<=" &Criteria!$G$10) -> 0 | H34: =SUMIFS(Data!W:W,Data!$X:$X,$A34,Data!$S:$S,"<=" &Criteria!$G$10) -> 0 | I34: =SUMIFS(Data!AG:AG,Data!AE:AE,VALUE(IF($A34=ReportMaxFY,Criteria!$G$10,$A34 & "09"))) -> 0 | J34: =SUMIFS(Data!$AA:$AA,Data!$AC:$AC,$A34, Data!$Z:$Z,"<=" & Criteria!$G$10) -> 0 | K34: =SUMIFS(Data!$AA:$AA,Data!$AC:$AC,"<=" & $A34, Data!$Z:$Z,"<=" & Criteria!$G$10) -> 0 | L34: =SUMIFS(Data!AB:AB,Data!Z:Z,VALUE(IF($A34=ReportMaxFY,Criteria!$G$10,$A34 & "09"))) -> 0
A35: 0 | B35: =IF(A35>0,OFFSET(Criteria!$M$11,Composite!A35-Criteria!$M$11,0),"") ->  | C35: =SUMIFS(Data!$C:$C,Data!$G:$G,$A35,Data!$A:$A,"<=" & Criteria!$G$10) -> 0 | D35: =SUMIFS(Data!$F:$F,Data!$G:$G,$A35,Data!$A:$A,"<=" & Criteria!$G$10) -> 0 | E35: =SUMIFS(Data!AZ:AZ,Data!$BC:$BC,$A35,Data!$BB:$BB,"<="&Criteria!$G$10)+SUMIFS(Data!AT:AT,Data!$AV:$AV,$A35,Data!$AO:$AO,"<="&Criteria!$G$10) -> 0 | F35: =SUMIFS(Data!BA:BA,Data!$BC:$BC,$A35,Data!$BB:$BB,"<="&Criteria!$G$10)+SUMIFS(Data!AU:AU,Data!$AV:$AV,$A35,Data!$AO:$AO,"<="&Criteria!$G$10) -> 0 | G35: =SUMIFS(Data!V:V,Data!$X:$X,$A35,Data!$S:$S,"<=" &Criteria!$G$10) -> 0 | H35: =SUMIFS(Data!W:W,Data!$X:$X,$A35,Data!$S:$S,"<=" &Criteria!$G$10) -> 0 | I35: =SUMIFS(Data!AG:AG,Data!AE:AE,VALUE(IF($A35=ReportMaxFY,Criteria!$G$10,$A35 & "09"))) -> 0 | J35: =SUMIFS(Data!$AA:$AA,Data!$AC:$AC,$A35, Data!$Z:$Z,"<=" & Criteria!$G$10) -> 0 | K35: =SUMIFS(Data!$AA:$AA,Data!$AC:$AC,"<=" & $A35, Data!$Z:$Z,"<=" & Criteria!$G$10) -> 0 | L35: =SUMIFS(Data!AB:AB,Data!Z:Z,VALUE(IF($A35=ReportMaxFY,Criteria!$G$10,$A35 & "09"))) -> 0
A36: 0 | B36: =IF(A36>0,OFFSET(Criteria!$M$11,Composite!A36-Criteria!$M$11,0),"") ->  | C36: =SUMIFS(Data!$C:$C,Data!$G:$G,$A36,Data!$A:$A,"<=" & Criteria!$G$10) -> 0 | D36: =SUMIFS(Data!$F:$F,Data!$G:$G,$A36,Data!$A:$A,"<=" & Criteria!$G$10) -> 0 | E36: =SUMIFS(Data!AZ:AZ,Data!$BC:$BC,$A36,Data!$BB:$BB,"<="&Criteria!$G$10)+SUMIFS(Data!AT:AT,Data!$AV:$AV,$A36,Data!$AO:$AO,"<="&Criteria!$G$10) -> 0 | F36: =SUMIFS(Data!BA:BA,Data!$BC:$BC,$A36,Data!$BB:$BB,"<="&Criteria!$G$10)+SUMIFS(Data!AU:AU,Data!$AV:$AV,$A36,Data!$AO:$AO,"<="&Criteria!$G$10) -> 0 | G36: =SUMIFS(Data!V:V,Data!$X:$X,$A36,Data!$S:$S,"<=" &Criteria!$G$10) -> 0 | H36: =SUMIFS(Data!W:W,Data!$X:$X,$A36,Data!$S:$S,"<=" &Criteria!$G$10) -> 0 | I36: =SUMIFS(Data!AG:AG,Data!AE:AE,VALUE(IF($A36=ReportMaxFY,Criteria!$G$10,$A36 & "09"))) -> 0 | J36: =SUMIFS(Data!$AA:$AA,Data!$AC:$AC,$A36, Data!$Z:$Z,"<=" & Criteria!$G$10) -> 0 | K36: =SUMIFS(Data!$AA:$AA,Data!$AC:$AC,"<=" & $A36, Data!$Z:$Z,"<=" & Criteria!$G$10) -> 0 | L36: =SUMIFS(Data!AB:AB,Data!Z:Z,VALUE(IF($A36=ReportMaxFY,Criteria!$G$10,$A36 & "09"))) -> 0
A37: 0 | B37: =IF(A37>0,OFFSET(Criteria!$M$11,Composite!A37-Criteria!$M$11,0),"") ->  | C37: =SUMIFS(Data!$C:$C,Data!$G:$G,$A37,Data!$A:$A,"<=" & Criteria!$G$10) -> 0 | D37: =SUMIFS(Data!$F:$F,Data!$G:$G,$A37,Data!$A:$A,"<=" & Criteria!$G$10) -> 0 | E37: =SUMIFS(Data!AZ:AZ,Data!$BC:$BC,$A37,Data!$BB:$BB,"<="&Criteria!$G$10)+SUMIFS(Data!AT:AT,Data!$AV:$AV,$A37,Data!$AO:$AO,"<="&Criteria!$G$10) -> 0 | F37: =SUMIFS(Data!BA:BA,Data!$BC:$BC,$A37,Data!$BB:$BB,"<="&Criteria!$G$10)+SUMIFS(Data!AU:AU,Data!$AV:$AV,$A37,Data!$AO:$AO,"<="&Criteria!$G$10) -> 0 | G37: =SUMIFS(Data!V:V,Data!$X:$X,$A37,Data!$S:$S,"<=" &Criteria!$G$10) -> 0 | H37: =SUMIFS(Data!W:W,Data!$X:$X,$A37,Data!$S:$S,"<=" &Criteria!$G$10) -> 0 | I37: =SUMIFS(Data!AG:AG,Data!AE:AE,VALUE(IF($A37=ReportMaxFY,Criteria!$G$10,$A37 & "09"))) -> 0 | J37: =SUMIFS(Data!$AA:$AA,Data!$AC:$AC,$A37, Data!$Z:$Z,"<=" & Criteria!$G$10) -> 0 | K37: =SUMIFS(Data!$AA:$AA,Data!$AC:$AC,"<=" & $A37, Data!$Z:$Z,"<=" & Criteria!$G$10) -> 0 | L37: =SUMIFS(Data!AB:AB,Data!Z:Z,VALUE(IF($A37=ReportMaxFY,Criteria!$G$10,$A37 & "09"))) -> 0
A38: 0 | B38: =IF(A38>0,OFFSET(Criteria!$M$11,Composite!A38-Criteria!$M$11,0),"") ->  | C38: =SUMIFS(Data!$C:$C,Data!$G:$G,$A38,Data!$A:$A,"<=" & Criteria!$G$10) -> 0 | D38: =SUMIFS(Data!$F:$F,Data!$G:$G,$A38,Data!$A:$A,"<=" & Criteria!$G$10) -> 0 | E38: =SUMIFS(Data!AZ:AZ,Data!$BC:$BC,$A38,Data!$BB:$BB,"<="&Criteria!$G$10)+SUMIFS(Data!AT:AT,Data!$AV:$AV,$A38,Data!$AO:$AO,"<="&Criteria!$G$10) -> 0 | F38: =SUMIFS(Data!BA:BA,Data!$BC:$BC,$A38,Data!$BB:$BB,"<="&Criteria!$G$10)+SUMIFS(Data!AU:AU,Data!$AV:$AV,$A38,Data!$AO:$AO,"<="&Criteria!$G$10) -> 0 | G38: =SUMIFS(Data!V:V,Data!$X:$X,$A38,Data!$S:$S,"<=" &Criteria!$G$10) -> 0 | H38: =SUMIFS(Data!W:W,Data!$X:$X,$A38,Data!$S:$S,"<=" &Criteria!$G$10) -> 0 | I38: =SUMIFS(Data!AG:AG,Data!AE:AE,VALUE(IF($A38=ReportMaxFY,Criteria!$G$10,$A38 & "09"))) -> 0 | J38: =SUMIFS(Data!$AA:$AA,Data!$AC:$AC,$A38, Data!$Z:$Z,"<=" & Criteria!$G$10) -> 0 | K38: =SUMIFS(Data!$AA:$AA,Data!$AC:$AC,"<=" & $A38, Data!$Z:$Z,"<=" & Criteria!$G$10) -> 0 | L38: =SUMIFS(Data!AB:AB,Data!Z:Z,VALUE(IF($A38=ReportMaxFY,Criteria!$G$10,$A38 & "09"))) -> 0
A39: 0 | B39: =IF(A39>0,OFFSET(Criteria!$M$11,Composite!A39-Criteria!$M$11,0),"") ->  | C39: =SUMIFS(Data!$C:$C,Data!$G:$G,$A39,Data!$A:$A,"<=" & Criteria!$G$10) -> 0 | D39: =SUMIFS(Data!$F:$F,Data!$G:$G,$A39,Data!$A:$A,"<=" & Criteria!$G$10) -> 0 | E39: =SUMIFS(Data!AZ:AZ,Data!$BC:$BC,$A39,Data!$BB:$BB,"<="&Criteria!$G$10)+SUMIFS(Data!AT:AT,Data!$AV:$AV,$A39,Data!$AO:$AO,"<="&Criteria!$G$10) -> 0 | F39: =SUMIFS(Data!BA:BA,Data!$BC:$BC,$A39,Data!$BB:$BB,"<="&Criteria!$G$10)+SUMIFS(Data!AU:AU,Data!$AV:$AV,$A39,Data!$AO:$AO,"<="&Criteria!$G$10) -> 0 | G39: =SUMIFS(Data!V:V,Data!$X:$X,$A39,Data!$S:$S,"<=" &Criteria!$G$10) -> 0 | H39: =SUMIFS(Data!W:W,Data!$X:$X,$A39,Data!$S:$S,"<=" &Criteria!$G$10) -> 0 | I39: =SUMIFS(Data!AG:AG,Data!AE:AE,VALUE(IF($A39=ReportMaxFY,Criteria!$G$10,$A39 & "09"))) -> 0 | J39: =SUMIFS(Data!$AA:$AA,Data!$AC:$AC,$A39, Data!$Z:$Z,"<=" & Criteria!$G$10) -> 0 | K39: =SUMIFS(Data!$AA:$AA,Data!$AC:$AC,"<=" & $A39, Data!$Z:$Z,"<=" & Criteria!$G$10) -> 0 | L39: =SUMIFS(Data!AB:AB,Data!Z:Z,VALUE(IF($A39=ReportMaxFY,Criteria!$G$10,$A39 & "09"))) -> 0
A40: 0 | B40: =IF(A40>0,OFFSET(Criteria!$M$11,Composite!A40-Criteria!$M$11,0),"") ->  | C40: =SUMIFS(Data!$C:$C,Data!$G:$G,$A40,Data!$A:$A,"<=" & Criteria!$G$10) -> 0 | D40: =SUMIFS(Data!$F:$F,Data!$G:$G,$A40,Data!$A:$A,"<=" & Criteria!$G$10) -> 0 | E40: =SUMIFS(Data!AZ:AZ,Data!$BC:$BC,$A40,Data!$BB:$BB,"<="&Criteria!$G$10)+SUMIFS(Data!AT:AT,Data!$AV:$AV,$A40,Data!$AO:$AO,"<="&Criteria!$G$10) -> 0 | F40: =SUMIFS(Data!BA:BA,Data!$BC:$BC,$A40,Data!$BB:$BB,"<="&Criteria!$G$10)+SUMIFS(Data!AU:AU,Data!$AV:$AV,$A40,Data!$AO:$AO,"<="&Criteria!$G$10) -> 0 | G40: =SUMIFS(Data!V:V,Data!$X:$X,$A40,Data!$S:$S,"<=" &Criteria!$G$10) -> 0 | H40: =SUMIFS(Data!W:W,Data!$X:$X,$A40,Data!$S:$S,"<=" &Criteria!$G$10) -> 0 | I40: =SUMIFS(Data!AG:AG,Data!AE:AE,VALUE(IF($A40=ReportMaxFY,Criteria!$G$10,$A40 & "09"))) -> 0 | J40: =SUMIFS(Data!$AA:$AA,Data!$AC:$AC,$A40, Data!$Z:$Z,"<=" & Criteria!$G$10) -> 0 | K40: =SUMIFS(Data!$AA:$AA,Data!$AC:$AC,"<=" & $A40, Data!$Z:$Z,"<=" & Criteria!$G$10) -> 0 | L40: =SUMIFS(Data!AB:AB,Data!Z:Z,VALUE(IF($A40=ReportMaxFY,Criteria!$G$10,$A40 & "09"))) -> 0
A41: 0 | B41: =IF(A41>0,OFFSET(Criteria!$M$11,Composite!A41-Criteria!$M$11,0),"") ->  | C41: =SUMIFS(Data!$C:$C,Data!$G:$G,$A41,Data!$A:$A,"<=" & Criteria!$G$10) -> 0 | D41: =SUMIFS(Data!$F:$F,Data!$G:$G,$A41,Data!$A:$A,"<=" & Criteria!$G$10) -> 0 | E41: =SUMIFS(Data!AZ:AZ,Data!$BC:$BC,$A41,Data!$BB:$BB,"<="&Criteria!$G$10)+SUMIFS(Data!AT:AT,Data!$AV:$AV,$A41,Data!$AO:$AO,"<="&Criteria!$G$10) -> 0 | F41: =SUMIFS(Data!BA:BA,Data!$BC:$BC,$A41,Data!$BB:$BB,"<="&Criteria!$G$10)+SUMIFS(Data!AU:AU,Data!$AV:$AV,$A41,Data!$AO:$AO,"<="&Criteria!$G$10) -> 0 | G41: =SUMIFS(Data!V:V,Data!$X:$X,$A41,Data!$S:$S,"<=" &Criteria!$G$10) -> 0 | H41: =SUMIFS(Data!W:W,Data!$X:$X,$A41,Data!$S:$S,"<=" &Criteria!$G$10) -> 0 | I41: =SUMIFS(Data!AG:AG,Data!AE:AE,VALUE(IF($A41=ReportMaxFY,Criteria!$G$10,$A41 & "09"))) -> 0 | J41: =SUMIFS(Data!$AA:$AA,Data!$AC:$AC,$A41, Data!$Z:$Z,"<=" & Criteria!$G$10) -> 0 | K41: =SUMIFS(Data!$AA:$AA,Data!$AC:$AC,"<=" & $A41, Data!$Z:$Z,"<=" & Criteria!$G$10) -> 0 | L41: =SUMIFS(Data!AB:AB,Data!Z:Z,VALUE(IF($A41=ReportMaxFY,Criteria!$G$10,$A41 & "09"))) -> 0
A42: 0 | B42: =IF(A42>0,OFFSET(Criteria!$M$11,Composite!A42-Criteria!$M$11,0),"") ->  | C42: =SUMIFS(Data!$C:$C,Data!$G:$G,$A42,Data!$A:$A,"<=" & Criteria!$G$10) -> 0 | D42: =SUMIFS(Data!$F:$F,Data!$G:$G,$A42,Data!$A:$A,"<=" & Criteria!$G$10) -> 0 | E42: =SUMIFS(Data!AZ:AZ,Data!$BC:$BC,$A42,Data!$BB:$BB,"<="&Criteria!$G$10)+SUMIFS(Data!AT:AT,Data!$AV:$AV,$A42,Data!$AO:$AO,"<="&Criteria!$G$10) -> 0 | F42: =SUMIFS(Data!BA:BA,Data!$BC:$BC,$A42,Data!$BB:$BB,"<="&Criteria!$G$10)+SUMIFS(Data!AU:AU,Data!$AV:$AV,$A42,Data!$AO:$AO,"<="&Criteria!$G$10) -> 0 | G42: =SUMIFS(Data!V:V,Data!$X:$X,$A42,Data!$S:$S,"<=" &Criteria!$G$10) -> 0 | H42: =SUMIFS(Data!W:W,Data!$X:$X,$A42,Data!$S:$S,"<=" &Criteria!$G$10) -> 0 | I42: =SUMIFS(Data!AG:AG,Data!AE:AE,VALUE(IF($A42=ReportMaxFY,Criteria!$G$10,$A42 & "09"))) -> 0 | J42: =SUMIFS(Data!$AA:$AA,Data!$AC:$AC,$A42, Data!$Z:$Z,"<=" & Criteria!$G$10) -> 0 | K42: =SUMIFS(Data!$AA:$AA,Data!$AC:$AC,"<=" & $A42, Data!$Z:$Z,"<=" & Criteria!$G$10) -> 0 | L42: =SUMIFS(Data!AB:AB,Data!Z:Z,VALUE(IF($A42=ReportMaxFY,Criteria!$G$10,$A42 & "09"))) -> 0
A43: 0 | B43: =IF(A43>0,OFFSET(Criteria!$M$11,Composite!A43-Criteria!$M$11,0),"") ->  | C43: =SUMIFS(Data!$C:$C,Data!$G:$G,$A43,Data!$A:$A,"<=" & Criteria!$G$10) -> 0 | D43: =SUMIFS(Data!$F:$F,Data!$G:$G,$A43,Data!$A:$A,"<=" & Criteria!$G$10) -> 0 | E43: =SUMIFS(Data!AZ:AZ,Data!$BC:$BC,$A43,Data!$BB:$BB,"<="&Criteria!$G$10)+SUMIFS(Data!AT:AT,Data!$AV:$AV,$A43,Data!$AO:$AO,"<="&Criteria!$G$10) -> 0 | F43: =SUMIFS(Data!BA:BA,Data!$BC:$BC,$A43,Data!$BB:$BB,"<="&Criteria!$G$10)+SUMIFS(Data!AU:AU,Data!$AV:$AV,$A43,Data!$AO:$AO,"<="&Criteria!$G$10) -> 0 | G43: =SUMIFS(Data!V:V,Data!$X:$X,$A43,Data!$S:$S,"<=" &Criteria!$G$10) -> 0 | H43: =SUMIFS(Data!W:W,Data!$X:$X,$A43,Data!$S:$S,"<=" &Criteria!$G$10) -> 0 | I43: =SUMIFS(Data!AG:AG,Data!AE:AE,VALUE(IF($A43=ReportMaxFY,Criteria!$G$10,$A43 & "09"))) -> 0 | J43: =SUMIFS(Data!$AA:$AA,Data!$AC:$AC,$A43, Data!$Z:$Z,"<=" & Criteria!$G$10) -> 0 | K43: =SUMIFS(Data!$AA:$AA,Data!$AC:$AC,"<=" & $A43, Data!$Z:$Z,"<=" & Criteria!$G$10) -> 0 | L43: =SUMIFS(Data!AB:AB,Data!Z:Z,VALUE(IF($A43=ReportMaxFY,Criteria!$G$10,$A43 & "09"))) -> 0
A44: 0 | B44: =IF(A44>0,OFFSET(Criteria!$M$11,Composite!A44-Criteria!$M$11,0),"") ->  | C44: =SUMIFS(Data!$C:$C,Data!$G:$G,$A44,Data!$A:$A,"<=" & Criteria!$G$10) -> 0 | D44: =SUMIFS(Data!$F:$F,Data!$G:$G,$A44,Data!$A:$A,"<=" & Criteria!$G$10) -> 0 | E44: =SUMIFS(Data!AZ:AZ,Data!$BC:$BC,$A44,Data!$BB:$BB,"<="&Criteria!$G$10)+SUMIFS(Data!AT:AT,Data!$AV:$AV,$A44,Data!$AO:$AO,"<="&Criteria!$G$10) -> 0 | F44: =SUMIFS(Data!BA:BA,Data!$BC:$BC,$A44,Data!$BB:$BB,"<="&Criteria!$G$10)+SUMIFS(Data!AU:AU,Data!$AV:$AV,$A44,Data!$AO:$AO,"<="&Criteria!$G$10) -> 0 | G44: =SUMIFS(Data!V:V,Data!$X:$X,$A44,Data!$S:$S,"<=" &Criteria!$G$10) -> 0 | H44: =SUMIFS(Data!W:W,Data!$X:$X,$A44,Data!$S:$S,"<=" &Criteria!$G$10) -> 0 | I44: =SUMIFS(Data!AG:AG,Data!AE:AE,VALUE(IF($A44=ReportMaxFY,Criteria!$G$10,$A44 & "09"))) -> 0 | J44: =SUMIFS(Data!$AA:$AA,Data!$AC:$AC,$A44, Data!$Z:$Z,"<=" & Criteria!$G$10) -> 0 | K44: =SUMIFS(Data!$AA:$AA,Data!$AC:$AC,"<=" & $A44, Data!$Z:$Z,"<=" & Criteria!$G$10) -> 0 | L44: =SUMIFS(Data!AB:AB,Data!Z:Z,VALUE(IF($A44=ReportMaxFY,Criteria!$G$10,$A44 & "09"))) -> 0
A45: 0 | B45: =IF(A45>0,OFFSET(Criteria!$M$11,Composite!A45-Criteria!$M$11,0),"") ->  | C45: =SUMIFS(Data!$C:$C,Data!$G:$G,$A45,Data!$A:$A,"<=" & Criteria!$G$10) -> 0 | D45: =SUMIFS(Data!$F:$F,Data!$G:$G,$A45,Data!$A:$A,"<=" & Criteria!$G$10) -> 0 | E45: =SUMIFS(Data!AZ:AZ,Data!$BC:$BC,$A45,Data!$BB:$BB,"<="&Criteria!$G$10)+SUMIFS(Data!AT:AT,Data!$AV:$AV,$A45,Data!$AO:$AO,"<="&Criteria!$G$10) -> 0 | F45: =SUMIFS(Data!BA:BA,Data!$BC:$BC,$A45,Data!$BB:$BB,"<="&Criteria!$G$10)+SUMIFS(Data!AU:AU,Data!$AV:$AV,$A45,Data!$AO:$AO,"<="&Criteria!$G$10) -> 0 | G45: =SUMIFS(Data!V:V,Data!$X:$X,$A45,Data!$S:$S,"<=" &Criteria!$G$10) -> 0 | H45: =SUMIFS(Data!W:W,Data!$X:$X,$A45,Data!$S:$S,"<=" &Criteria!$G$10) -> 0 | I45: =SUMIFS(Data!AG:AG,Data!AE:AE,VALUE(IF($A45=ReportMaxFY,Criteria!$G$10,$A45 & "09"))) -> 0 | J45: =SUMIFS(Data!$AA:$AA,Data!$AC:$AC,$A45, Data!$Z:$Z,"<=" & Criteria!$G$10) -> 0 | K45: =SUMIFS(Data!$AA:$AA,Data!$AC:$AC,"<=" & $A45, Data!$Z:$Z,"<=" & Criteria!$G$10) -> 0 | L45: =SUMIFS(Data!AB:AB,Data!Z:Z,VALUE(IF($A45=ReportMaxFY,Criteria!$G$10,$A45 & "09"))) -> 0
A46: 0 | B46: =IF(A46>0,OFFSET(Criteria!$M$11,Composite!A46-Criteria!$M$11,0),"") ->  | C46: =SUMIFS(Data!$C:$C,Data!$G:$G,$A46,Data!$A:$A,"<=" & Criteria!$G$10) -> 0 | D46: =SUMIFS(Data!$F:$F,Data!$G:$G,$A46,Data!$A:$A,"<=" & Criteria!$G$10) -> 0 | E46: =SUMIFS(Data!AZ:AZ,Data!$BC:$BC,$A46,Data!$BB:$BB,"<="&Criteria!$G$10)+SUMIFS(Data!AT:AT,Data!$AV:$AV,$A46,Data!$AO:$AO,"<="&Criteria!$G$10) -> 0 | F46: =SUMIFS(Data!BA:BA,Data!$BC:$BC,$A46,Data!$BB:$BB,"<="&Criteria!$G$10)+SUMIFS(Data!AU:AU,Data!$AV:$AV,$A46,Data!$AO:$AO,"<="&Criteria!$G$10) -> 0 | G46: =SUMIFS(Data!V:V,Data!$X:$X,$A46,Data!$S:$S,"<=" &Criteria!$G$10) -> 0 | H46: =SUMIFS(Data!W:W,Data!$X:$X,$A46,Data!$S:$S,"<=" &Criteria!$G$10) -> 0 | I46: =SUMIFS(Data!AG:AG,Data!AE:AE,VALUE(IF($A46=ReportMaxFY,Criteria!$G$10,$A46 & "09"))) -> 0 | J46: =SUMIFS(Data!$AA:$AA,Data!$AC:$AC,$A46, Data!$Z:$Z,"<=" & Criteria!$G$10) -> 0 | K46: =SUMIFS(Data!$AA:$AA,Data!$AC:$AC,"<=" & $A46, Data!$Z:$Z,"<=" & Criteria!$G$10) -> 0 | L46: =SUMIFS(Data!AB:AB,Data!Z:Z,VALUE(IF($A46=ReportMaxFY,Criteria!$G$10,$A46 & "09"))) -> 0
A47: 0 | B47: =IF(A47>0,OFFSET(Criteria!$M$11,Composite!A47-Criteria!$M$11,0),"") ->  | C47: =SUMIFS(Data!$C:$C,Data!$G:$G,$A47,Data!$A:$A,"<=" & Criteria!$G$10) -> 0 | D47: =SUMIFS(Data!$F:$F,Data!$G:$G,$A47,Data!$A:$A,"<=" & Criteria!$G$10) -> 0 | E47: =SUMIFS(Data!AZ:AZ,Data!$BC:$BC,$A47,Data!$BB:$BB,"<="&Criteria!$G$10)+SUMIFS(Data!AT:AT,Data!$AV:$AV,$A47,Data!$AO:$AO,"<="&Criteria!$G$10) -> 0 | F47: =SUMIFS(Data!BA:BA,Data!$BC:$BC,$A47,Data!$BB:$BB,"<="&Criteria!$G$10)+SUMIFS(Data!AU:AU,Data!$AV:$AV,$A47,Data!$AO:$AO,"<="&Criteria!$G$10) -> 0 | G47: =SUMIFS(Data!V:V,Data!$X:$X,$A47,Data!$S:$S,"<=" &Criteria!$G$10) -> 0 | H47: =SUMIFS(Data!W:W,Data!$X:$X,$A47,Data!$S:$S,"<=" &Criteria!$G$10) -> 0 | I47: =SUMIFS(Data!AG:AG,Data!AE:AE,VALUE(IF($A47=ReportMaxFY,Criteria!$G$10,$A47 & "09"))) -> 0 | J47: =SUMIFS(Data!$AA:$AA,Data!$AC:$AC,$A47, Data!$Z:$Z,"<=" & Criteria!$G$10) -> 0 | K47: =SUMIFS(Data!$AA:$AA,Data!$AC:$AC,"<=" & $A47, Data!$Z:$Z,"<=" & Criteria!$G$10) -> 0 | L47: =SUMIFS(Data!AB:AB,Data!Z:Z,VALUE(IF($A47=ReportMaxFY,Criteria!$G$10,$A47 & "09"))) -> 0
A48: 0 | B48: =IF(A48>0,OFFSET(Criteria!$M$11,Composite!A48-Criteria!$M$11,0),"") ->  | C48: =SUMIFS(Data!$C:$C,Data!$G:$G,$A48,Data!$A:$A,"<=" & Criteria!$G$10) -> 0 | D48: =SUMIFS(Data!$F:$F,Data!$G:$G,$A48,Data!$A:$A,"<=" & Criteria!$G$10) -> 0 | E48: =SUMIFS(Data!AZ:AZ,Data!$BC:$BC,$A48,Data!$BB:$BB,"<="&Criteria!$G$10)+SUMIFS(Data!AT:AT,Data!$AV:$AV,$A48,Data!$AO:$AO,"<="&Criteria!$G$10) -> 0 | F48: =SUMIFS(Data!BA:BA,Data!$BC:$BC,$A48,Data!$BB:$BB,"<="&Criteria!$G$10)+SUMIFS(Data!AU:AU,Data!$AV:$AV,$A48,Data!$AO:$AO,"<="&Criteria!$G$10) -> 0 | G48: =SUMIFS(Data!V:V,Data!$X:$X,$A48,Data!$S:$S,"<=" &Criteria!$G$10) -> 0 | H48: =SUMIFS(Data!W:W,Data!$X:$X,$A48,Data!$S:$S,"<=" &Criteria!$G$10) -> 0 | I48: =SUMIFS(Data!AG:AG,Data!AE:AE,VALUE(IF($A48=ReportMaxFY,Criteria!$G$10,$A48 & "09"))) -> 0 | J48: =SUMIFS(Data!$AA:$AA,Data!$AC:$AC,$A48, Data!$Z:$Z,"<=" & Criteria!$G$10) -> 0 | K48: =SUMIFS(Data!$AA:$AA,Data!$AC:$AC,"<=" & $A48, Data!$Z:$Z,"<=" & Criteria!$G$10) -> 0 | L48: =SUMIFS(Data!AB:AB,Data!Z:Z,VALUE(IF($A48=ReportMaxFY,Criteria!$G$10,$A48 & "09"))) -> 0
A49: 0 | B49: =IF(A49>0,OFFSET(Criteria!$M$11,Composite!A49-Criteria!$M$11,0),"") ->  | C49: =SUMIFS(Data!$C:$C,Data!$G:$G,$A49,Data!$A:$A,"<=" & Criteria!$G$10) -> 0 | D49: =SUMIFS(Data!$F:$F,Data!$G:$G,$A49,Data!$A:$A,"<=" & Criteria!$G$10) -> 0 | E49: =SUMIFS(Data!AZ:AZ,Data!$BC:$BC,$A49,Data!$BB:$BB,"<="&Criteria!$G$10)+SUMIFS(Data!AT:AT,Data!$AV:$AV,$A49,Data!$AO:$AO,"<="&Criteria!$G$10) -> 0 | F49: =SUMIFS(Data!BA:BA,Data!$BC:$BC,$A49,Data!$BB:$BB,"<="&Criteria!$G$10)+SUMIFS(Data!AU:AU,Data!$AV:$AV,$A49,Data!$AO:$AO,"<="&Criteria!$G$10) -> 0 | G49: =SUMIFS(Data!V:V,Data!$X:$X,$A49,Data!$S:$S,"<=" &Criteria!$G$10) -> 0 | H49: =SUMIFS(Data!W:W,Data!$X:$X,$A49,Data!$S:$S,"<=" &Criteria!$G$10) -> 0 | I49: =SUMIFS(Data!AG:AG,Data!AE:AE,VALUE(IF($A49=ReportMaxFY,Criteria!$G$10,$A49 & "09"))) -> 0 | J49: =SUMIFS(Data!$AA:$AA,Data!$AC:$AC,$A49, Data!$Z:$Z,"<=" & Criteria!$G$10) -> 0 | K49: =SUMIFS(Data!$AA:$AA,Data!$AC:$AC,"<=" & $A49, Data!$Z:$Z,"<=" & Criteria!$G$10) -> 0 | L49: =SUMIFS(Data!AB:AB,Data!Z:Z,VALUE(IF($A49=ReportMaxFY,Criteria!$G$10,$A49 & "09"))) -> 0
C50: =SUM(C31:C49) -> 1107937 | D50: 1.090751785e+10 | E50: 727384 | F50: 2429224879 | G50: 733300 | H50: 2.609756316e+10 | J50: =SUM(J31:J49) -> 332335
B51: 1 TreasuryDirect is a self-service, Internet-accessed system that allows investors to purchase, redeem, and manage their all-electronic Treasury securities portfolios. For more information, visit www.TreasuryDirect.gov.
B52: 2 Owners of paper savings bonds may convert them to electronic securities at TreasuryDirect.gov. Securities held in Legacy Treasury Direct or through commercial parties can be transferred to
B53: TreasuryDirect at TreasuryDirect.gov.
B55: Marketable Securities in TreasuryDirect
C57: Sales of Treasury Bills, Notes, Bonds, and TIPS | E57: Incoming Transfers3 | G57: Redemptions | I57: Amount Outstanding
C59: Securities | D59: Dollars | E59: Securities | F59: Dollars | G59: Securities | H59: Dollars | I59: Dollars
A60: October | B60: =A60 -> October | C60: =SUMIFS(Data!$C:$C,Data!$A:$A,Criteria!$D16,Data!$B:$B,Criteria!$H$41) -> 7442 | D60: =SUMIFS(Data!$F:$F,Data!$A:$A,Criteria!$D16,Data!$B:$B,Criteria!$H$41) -> 895016600 | E60: =SUMIFS(Data!$AT:$AT,Data!$AO:$AO,Criteria!$D16) -> 6158 | F60: =SUMIFS(Data!$AU:$AU,Data!$AO:$AO,Criteria!$D16) -> 360079500 | G60: =SUMIFS(Data!V:V,Data!$S:$S,Criteria!$D16,Data!$T:$T,Criteria!$H$41) -> 20497 | H60: =SUMIFS(Data!W:W,Data!$S:$S,Criteria!$D16,Data!$T:$T,Criteria!$H$41) -> 1932358000 | I60: =SUMIFS(Data!$AG:$AG,Data!$AE:$AE,Criteria!$D16,Data!$AF:$AF,Criteria!$H$41) -> 15113912600
A61: November | B61: November | C61: =SUMIFS(Data!$C:$C,Data!$A:$A,Criteria!$D17,Data!$B:$B,Criteria!$H$41) -> 7797 | D61: =SUMIFS(Data!$F:$F,Data!$A:$A,Criteria!$D17,Data!$B:$B,Criteria!$H$41) -> 841768600 | E61: =SUMIFS(Data!$AT:$AT,Data!$AO:$AO,Criteria!$D17) -> 4087 | F61: =SUMIFS(Data!$AU:$AU,Data!$AO:$AO,Criteria!$D17) -> 277346700 | G61: =SUMIFS(Data!V:V,Data!$S:$S,Criteria!$D17,Data!$T:$T,Criteria!$H$41) -> 20511 | H61: =SUMIFS(Data!W:W,Data!$S:$S,Criteria!$D17,Data!$T:$T,Criteria!$H$41) -> 1872809500 | I61: =SUMIFS(Data!$AG:$AG,Data!$AE:$AE,Criteria!$D17,Data!$AF:$AF,Criteria!$H$41) -> 15432287200
A62: December | B62: December | C62: =SUMIFS(Data!$C:$C,Data!$A:$A,Criteria!$D18,Data!$B:$B,Criteria!$H$41) -> 7531 | D62: =SUMIFS(Data!$F:$F,Data!$A:$A,Criteria!$D18,Data!$B:$B,Criteria!$H$41) -> 937461800 | E62: =SUMIFS(Data!$AT:$AT,Data!$AO:$AO,Criteria!$D18) -> 2718 | F62: =SUMIFS(Data!$AU:$AU,Data!$AO:$AO,Criteria!$D18) -> 153383100 | G62: =SUMIFS(Data!V:V,Data!$S:$S,Criteria!$D18,Data!$T:$T,Criteria!$H$41) -> 21205 | H62: =SUMIFS(Data!W:W,Data!$S:$S,Criteria!$D18,Data!$T:$T,Criteria!$H$41) -> 2321257000 | I62: =SUMIFS(Data!$AG:$AG,Data!$AE:$AE,Criteria!$D18,Data!$AF:$AF,Criteria!$H$41) -> 15649011300
A63: January | B63: January | C63: =SUMIFS(Data!$C:$C,Data!$A:$A,Criteria!$D19,Data!$B:$B,Criteria!$H$41) -> 8998 | D63: =SUMIFS(Data!$F:$F,Data!$A:$A,Criteria!$D19,Data!$B:$B,Criteria!$H$41) -> 902480900 | E63: =SUMIFS(Data!$AT:$AT,Data!$AO:$AO,Criteria!$D19) -> 2545 | F63: =SUMIFS(Data!$AU:$AU,Data!$AO:$AO,Criteria!$D19) -> 151433000 | G63: =SUMIFS(Data!V:V,Data!$S:$S,Criteria!$D19,Data!$T:$T,Criteria!$H$41) -> 25086 | H63: =SUMIFS(Data!W:W,Data!$S:$S,Criteria!$D19,Data!$T:$T,Criteria!$H$41) -> 2246187402 | I63: =SUMIFS(Data!$AG:$AG,Data!$AE:$AE,Criteria!$D19,Data!$AF:$AF,Criteria!$H$41) -> 15801249100
A64: February | B64: February | C64: =SUMIFS(Data!$C:$C,Data!$A:$A,Criteria!$D20,Data!$B:$B,Criteria!$H$41) -> 8074 | D64: =SUMIFS(Data!$F:$F,Data!$A:$A,Criteria!$D20,Data!$B:$B,Criteria!$H$41) -> 944372600 | E64: =SUMIFS(Data!$AT:$AT,Data!$AO:$AO,Criteria!$D20) -> 2603 | F64: =SUMIFS(Data!$AU:$AU,Data!$AO:$AO,Criteria!$D20) -> 166935400 | G64: =SUMIFS(Data!V:V,Data!$S:$S,Criteria!$D20,Data!$T:$T,Criteria!$H$41) -> 22084 | H64: =SUMIFS(Data!W:W,Data!$S:$S,Criteria!$D20,Data!$T:$T,Criteria!$H$41) -> 2192358400 | I64: =SUMIFS(Data!$AG:$AG,Data!$AE:$AE,Criteria!$D20,Data!$AF:$AF,Criteria!$H$41) -> 16048718000
A65: March | B65: March | C65: =SUMIFS(Data!$C:$C,Data!$A:$A,Criteria!$D21,Data!$B:$B,Criteria!$H$41) -> 7448 | D65: =SUMIFS(Data!$F:$F,Data!$A:$A,Criteria!$D21,Data!$B:$B,Criteria!$H$41) -> 883004400 | E65: =SUMIFS(Data!$AT:$AT,Data!$AO:$AO,Criteria!$D21) -> 1501 | F65: =SUMIFS(Data!$AU:$AU,Data!$AO:$AO,Criteria!$D21) -> 104096500 | G65: =SUMIFS(Data!V:V,Data!$S:$S,Criteria!$D21,Data!$T:$T,Criteria!$H$41) -> 21349 | H65: =SUMIFS(Data!W:W,Data!$S:$S,Criteria!$D21,Data!$T:$T,Criteria!$H$41) -> 2377705600 | I65: =SUMIFS(Data!$AG:$AG,Data!$AE:$AE,Criteria!$D21,Data!$AF:$AF,Criteria!$H$41) -> 16152842600
A66: April | B66: April | C66: =SUMIFS(Data!$C:$C,Data!$A:$A,Criteria!$D22,Data!$B:$B,Criteria!$H$41) -> 9330 | D66: =SUMIFS(Data!$F:$F,Data!$A:$A,Criteria!$D22,Data!$B:$B,Criteria!$H$41) -> 924279400 | E66: =SUMIFS(Data!$AT:$AT,Data!$AO:$AO,Criteria!$D22) -> 1495 | F66: =SUMIFS(Data!$AU:$AU,Data!$AO:$AO,Criteria!$D22) -> 115765900 | G66: =SUMIFS(Data!V:V,Data!$S:$S,Criteria!$D22,Data!$T:$T,Criteria!$H$41) -> 26649 | H66: =SUMIFS(Data!W:W,Data!$S:$S,Criteria!$D22,Data!$T:$T,Criteria!$H$41) -> 2436101651 | I66: =SUMIFS(Data!$AG:$AG,Data!$AE:$AE,Criteria!$D22,Data!$AF:$AF,Criteria!$H$41) -> 16213836000
A67: May | B67: May | C67: =SUMIFS(Data!$C:$C,Data!$A:$A,Criteria!$D23,Data!$B:$B,Criteria!$H$41) -> 9048 | D67: =SUMIFS(Data!$F:$F,Data!$A:$A,Criteria!$D23,Data!$B:$B,Criteria!$H$41) -> 1162357800 | E67: =SUMIFS(Data!$AT:$AT,Data!$AO:$AO,Criteria!$D23) -> 2378 | F67: =SUMIFS(Data!$AU:$AU,Data!$AO:$AO,Criteria!$D23) -> 258832200 | G67: =SUMIFS(Data!V:V,Data!$S:$S,Criteria!$D23,Data!$T:$T,Criteria!$H$41) -> 27126 | H67: =SUMIFS(Data!W:W,Data!$S:$S,Criteria!$D23,Data!$T:$T,Criteria!$H$41) -> 2739703800 | I67: =SUMIFS(Data!$AG:$AG,Data!$AE:$AE,Criteria!$D23,Data!$AF:$AF,Criteria!$H$41) -> 16516332300
A68: June | B68: June | C68: =SUMIFS(Data!$C:$C,Data!$A:$A,Criteria!$D24,Data!$B:$B,Criteria!$H$41) -> 5412 | D68: =SUMIFS(Data!$F:$F,Data!$A:$A,Criteria!$D24,Data!$B:$B,Criteria!$H$41) -> 799332500 | E68: =SUMIFS(Data!$AT:$AT,Data!$AO:$AO,Criteria!$D24) -> 1950 | F68: =SUMIFS(Data!$AU:$AU,Data!$AO:$AO,Criteria!$D24) -> 129254100 | G68: =SUMIFS(Data!V:V,Data!$S:$S,Criteria!$D24,Data!$T:$T,Criteria!$H$41) -> 17350 | H68: =SUMIFS(Data!W:W,Data!$S:$S,Criteria!$D24,Data!$T:$T,Criteria!$H$41) -> 2034422000 | I68: =SUMIFS(Data!$AG:$AG,Data!$AE:$AE,Criteria!$D24,Data!$AF:$AF,Criteria!$H$41) -> 16726072700
A69: July | B69: July | C69: =SUMIFS(Data!$C:$C,Data!$A:$A,Criteria!$D25,Data!$B:$B,Criteria!$H$41) -> 8237 | D69: =SUMIFS(Data!$F:$F,Data!$A:$A,Criteria!$D25,Data!$B:$B,Criteria!$H$41) -> 953825900 | E69: =SUMIFS(Data!$AT:$AT,Data!$AO:$AO,Criteria!$D25) -> 1721 | F69: =SUMIFS(Data!$AU:$AU,Data!$AO:$AO,Criteria!$D25) -> 124373400 | G69: =SUMIFS(Data!V:V,Data!$S:$S,Criteria!$D25,Data!$T:$T,Criteria!$H$41) -> 27926 | H69: =SUMIFS(Data!W:W,Data!$S:$S,Criteria!$D25,Data!$T:$T,Criteria!$H$41) -> 2616923725 | I69: =SUMIFS(Data!$AG:$AG,Data!$AE:$AE,Criteria!$D25,Data!$AF:$AF,Criteria!$H$41) -> 16810052300
A70: August | B70: August | C70: =SUMIFS(Data!$C:$C,Data!$A:$A,Criteria!$D26,Data!$B:$B,Criteria!$H$41) -> 8283 | D70: =SUMIFS(Data!$F:$F,Data!$A:$A,Criteria!$D26,Data!$B:$B,Criteria!$H$41) -> 1102183200 | E70: =SUMIFS(Data!$AT:$AT,Data!$AO:$AO,Criteria!$D26) -> 2579 | F70: =SUMIFS(Data!$AU:$AU,Data!$AO:$AO,Criteria!$D26) -> 247979800 | G70: =SUMIFS(Data!V:V,Data!$S:$S,Criteria!$D26,Data!$T:$T,Criteria!$H$41) -> 28328 | H70: =SUMIFS(Data!W:W,Data!$S:$S,Criteria!$D26,Data!$T:$T,Criteria!$H$41) -> 3170707000 | I70: =SUMIFS(Data!$AG:$AG,Data!$AE:$AE,Criteria!$D26,Data!$AF:$AF,Criteria!$H$41) -> 16906476300
A71: September | B71: September | C71: =SUMIFS(Data!$C:$C,Data!$A:$A,Criteria!$D27,Data!$B:$B,Criteria!$H$41) -> 0 | D71: =SUMIFS(Data!$F:$F,Data!$A:$A,Criteria!$D27,Data!$B:$B,Criteria!$H$41) -> 0 | E71: =SUMIFS(Data!$AT:$AT,Data!$AO:$AO,Criteria!$D27) -> 0 | F71: =SUMIFS(Data!$AU:$AU,Data!$AO:$AO,Criteria!$D27) -> 0 | G71: =SUMIFS(Data!V:V,Data!$S:$S,Criteria!$D27,Data!$T:$T,Criteria!$H$41) -> 0 | H71: =SUMIFS(Data!W:W,Data!$S:$S,Criteria!$D27,Data!$T:$T,Criteria!$H$41) -> 0 | I71: =SUMIFS(Data!$AG:$AG,Data!$AE:$AE,Criteria!$D27,Data!$AF:$AF,Criteria!$H$41) -> 0
C72: =SUM(C60:C71) -> 87600 | D72: 10346083700 | E72: 29735 | F72: 2089479600 | G72: 258111 | H72: 2.594053408e+10
B73: 3Securities held in Legacy Treasury Direct or through commercial parties can be transferred to TreasuryDirect at TreasuryDirect.gov.
C75: Sales of Treasury Bills, Notes, Bonds, and TIPS | E75: Incoming Transfers3 | G75: Redemptions | I75: Amount Outstanding
C77: Securities | D77: Dollars | E77: Securities | F77: Dollars | G77: Securities | H77: Dollars | I77: Dollars
A78: =ReportFY -> 2012 | B78: =IF(A78>0,OFFSET(Criteria!$M$11,Composite!A78-Criteria!$M$11,0),"") -> 2012 (thru Dec) | C78: =SUMIFS(Data!$C:$C,Data!$G:$G,$A78,Data!$B:$B,Criteria!$H$41,Data!$A:$A,"<=" & Criteria!$G$10) -> 87600 | D78: =SUMIFS(Data!$F:$F,Data!$G:$G,$A78,Data!$B:$B,Criteria!$H$41,Data!$A:$A,"<=" & Criteria!$G$10) -> 10346083700 | E78: =SUMIFS(Data!$AT:$AT,Data!$AO:$AO,"<=" & Criteria!$G$10,Data!$AV:$AV,$A78) -> 29735 | F78: =SUMIFS(Data!$AU:$AU,Data!$AO:$AO,"<=" & Criteria!$G$10,Data!$AV:$AV,$A78) -> 2089479600 | G78: =SUMIFS(Data!V:V,Data!$T:$T,Criteria!$H$41,Data!$S:$S,"<=" & Criteria!$G$10,Data!$X:$X,$A78) -> 258111 | H78: =SUMIFS(Data!W:W,Data!$T:$T,Criteria!$H$41,Data!$S:$S,"<=" & Criteria!$G$10,Data!$X:$X,$A78) -> 2.594053408e+10 | I78: =SUMIFS(Data!$AG:$AG,Data!$AF:$AF,Criteria!$H$41,Data!$AE:$AE,VALUE(IF($A78=ReportMaxFY,Criteria!$G$10,$A78 & "09"))) -> 16906476300
A79: =IF(AND(A78<ReportMaxFY,A78<>0), A78+1,0) -> 0 | B79: =IF(A79>0,OFFSET(Criteria!$M$11,Composite!A79-Criteria!$M$11,0),"") ->  | C79: =SUMIFS(Data!$C:$C,Data!$G:$G,$A79,Data!$B:$B,Criteria!$H$41,Data!$A:$A,"<=" & Criteria!$G$10) -> 0 | D79: =SUMIFS(Data!$F:$F,Data!$G:$G,$A79,Data!$B:$B,Criteria!$H$41,Data!$A:$A,"<=" & Criteria!$G$10) -> 0 | E79: =SUMIFS(Data!$AT:$AT,Data!$AO:$AO,"<=" & Criteria!$G$10,Data!$AV:$AV,$A79) -> 0 | F79: =SUMIFS(Data!$AU:$AU,Data!$AO:$AO,"<=" & Criteria!$G$10,Data!$AV:$AV,$A79) -> 0 | G79: =SUMIFS(Data!V:V,Data!$T:$T,Criteria!$H$41,Data!$S:$S,"<=" & Criteria!$G$10,Data!$X:$X,$A79) -> 0 | H79: =SUMIFS(Data!W:W,Data!$T:$T,Criteria!$H$41,Data!$S:$S,"<=" & Criteria!$G$10,Data!$X:$X,$A79) -> 0 | I79: =SUMIFS(Data!$AG:$AG,Data!$AF:$AF,Criteria!$H$41,Data!$AE:$AE,VALUE(IF($A79=ReportMaxFY,Criteria!$G$10,$A79 & "09"))) -> 0
A80: 0 | B80: =IF(A80>0,OFFSET(Criteria!$M$11,Composite!A80-Criteria!$M$11,0),"") ->  | C80: =SUMIFS(Data!$C:$C,Data!$G:$G,$A80,Data!$B:$B,Criteria!$H$41,Data!$A:$A,"<=" & Criteria!$G$10) -> 0 | D80: =SUMIFS(Data!$F:$F,Data!$G:$G,$A80,Data!$B:$B,Criteria!$H$41,Data!$A:$A,"<=" & Criteria!$G$10) -> 0 | E80: =SUMIFS(Data!$AT:$AT,Data!$AO:$AO,"<=" & Criteria!$G$10,Data!$AV:$AV,$A80) -> 0 | F80: =SUMIFS(Data!$AU:$AU,Data!$AO:$AO,"<=" & Criteria!$G$10,Data!$AV:$AV,$A80) -> 0 | G80: =SUMIFS(Data!V:V,Data!$T:$T,Criteria!$H$41,Data!$S:$S,"<=" & Criteria!$G$10,Data!$X:$X,$A80) -> 0 | H80: =SUMIFS(Data!W:W,Data!$T:$T,Criteria!$H$41,Data!$S:$S,"<=" & Criteria!$G$10,Data!$X:$X,$A80) -> 0 | I80: =SUMIFS(Data!$AG:$AG,Data!$AF:$AF,Criteria!$H$41,Data!$AE:$AE,VALUE(IF($A80=ReportMaxFY,Criteria!$G$10,$A80 & "09"))) -> 0
A81: 0 | B81: =IF(A81>0,OFFSET(Criteria!$M$11,Composite!A81-Criteria!$M$11,0),"") ->  | C81: =SUMIFS(Data!$C:$C,Data!$G:$G,$A81,Data!$B:$B,Criteria!$H$41,Data!$A:$A,"<=" & Criteria!$G$10) -> 0 | D81: =SUMIFS(Data!$F:$F,Data!$G:$G,$A81,Data!$B:$B,Criteria!$H$41,Data!$A:$A,"<=" & Criteria!$G$10) -> 0 | E81: =SUMIFS(Data!$AT:$AT,Data!$AO:$AO,"<=" & Criteria!$G$10,Data!$AV:$AV,$A81) -> 0 | F81: =SUMIFS(Data!$AU:$AU,Data!$AO:$AO,"<=" & Criteria!$G$10,Data!$AV:$AV,$A81) -> 0 | G81: =SUMIFS(Data!V:V,Data!$T:$T,Criteria!$H$41,Data!$S:$S,"<=" & Criteria!$G$10,Data!$X:$X,$A81) -> 0 | H81: =SUMIFS(Data!W:W,Data!$T:$T,Criteria!$H$41,Data!$S:$S,"<=" & Criteria!$G$10,Data!$X:$X,$A81) -> 0 | I81: =SUMIFS(Data!$AG:$AG,Data!$AF:$AF,Criteria!$H$41,Data!$AE:$AE,VALUE(IF($A81=ReportMaxFY,Criteria!$G$10,$A81 & "09"))) -> 0
A82: 0 | B82: =IF(A82>0,OFFSET(Criteria!$M$11,Composite!A82-Criteria!$M$11,0),"") ->  | C82: =SUMIFS(Data!$C:$C,Data!$G:$G,$A82,Data!$B:$B,Criteria!$H$41,Data!$A:$A,"<=" & Criteria!$G$10) -> 0 | D82: =SUMIFS(Data!$F:$F,Data!$G:$G,$A82,Data!$B:$B,Criteria!$H$41,Data!$A:$A,"<=" & Criteria!$G$10) -> 0 | E82: =SUMIFS(Data!$AT:$AT,Data!$AO:$AO,"<=" & Criteria!$G$10,Data!$AV:$AV,$A82) -> 0 | F82: =SUMIFS(Data!$AU:$AU,Data!$AO:$AO,"<=" & Criteria!$G$10,Data!$AV:$AV,$A82) -> 0 | G82: =SUMIFS(Data!V:V,Data!$T:$T,Criteria!$H$41,Data!$S:$S,"<=" & Criteria!$G$10,Data!$X:$X,$A82) -> 0 | H82: =SUMIFS(Data!W:W,Data!$T:$T,Criteria!$H$41,Data!$S:$S,"<=" & Criteria!$G$10,Data!$X:$X,$A82) -> 0 | I82: =SUMIFS(Data!$AG:$AG,Data!$AF:$AF,Criteria!$H$41,Data!$AE:$AE,VALUE(IF($A82=ReportMaxFY,Criteria!$G$10,$A82 & "09"))) -> 0
A83: 0 | B83: =IF(A83>0,OFFSET(Criteria!$M$11,Composite!A83-Criteria!$M$11,0),"") ->  | C83: =SUMIFS(Data!$C:$C,Data!$G:$G,$A83,Data!$B:$B,Criteria!$H$41,Data!$A:$A,"<=" & Criteria!$G$10) -> 0 | D83: =SUMIFS(Data!$F:$F,Data!$G:$G,$A83,Data!$B:$B,Criteria!$H$41,Data!$A:$A,"<=" & Criteria!$G$10) -> 0 | E83: =SUMIFS(Data!$AT:$AT,Data!$AO:$AO,"<=" & Criteria!$G$10,Data!$AV:$AV,$A83) -> 0 | F83: =SUMIFS(Data!$AU:$AU,Data!$AO:$AO,"<=" & Criteria!$G$10,Data!$AV:$AV,$A83) -> 0 | G83: =SUMIFS(Data!V:V,Data!$T:$T,Criteria!$H$41,Data!$S:$S,"<=" & Criteria!$G$10,Data!$X:$X,$A83) -> 0 | H83: =SUMIFS(Data!W:W,Data!$T:$T,Criteria!$H$41,Data!$S:$S,"<=" & Criteria!$G$10,Data!$X:$X,$A83) -> 0 | I83: =SUMIFS(Data!$AG:$AG,Data!$AF:$AF,Criteria!$H$41,Data!$AE:$AE,VALUE(IF($A83=ReportMaxFY,Criteria!$G$10,$A83 & "09"))) -> 0
A84: 0 | B84: =IF(A84>0,OFFSET(Criteria!$M$11,Composite!A84-Criteria!$M$11,0),"") ->  | C84: =SUMIFS(Data!$C:$C,Data!$G:$G,$A84,Data!$B:$B,Criteria!$H$41,Data!$A:$A,"<=" & Criteria!$G$10) -> 0 | D84: =SUMIFS(Data!$F:$F,Data!$G:$G,$A84,Data!$B:$B,Criteria!$H$41,Data!$A:$A,"<=" & Criteria!$G$10) -> 0 | E84: =SUMIFS(Data!$AT:$AT,Data!$AO:$AO,"<=" & Criteria!$G$10,Data!$AV:$AV,$A84) -> 0 | F84: =SUMIFS(Data!$AU:$AU,Data!$AO:$AO,"<=" & Criteria!$G$10,Data!$AV:$AV,$A84) -> 0 | G84: =SUMIFS(Data!V:V,Data!$T:$T,Criteria!$H$41,Data!$S:$S,"<=" & Criteria!$G$10,Data!$X:$X,$A84) -> 0 | H84: =SUMIFS(Data!W:W,Data!$T:$T,Criteria!$H$41,Data!$S:$S,"<=" & Criteria!$G$10,Data!$X:$X,$A84) -> 0 | I84: =SUMIFS(Data!$AG:$AG,Data!$AF:$AF,Criteria!$H$41,Data!$AE:$AE,VALUE(IF($A84=ReportMaxFY,Criteria!$G$10,$A84 & "09"))) -> 0
A85: 0 | B85: =IF(A85>0,OFFSET(Criteria!$M$11,Composite!A85-Criteria!$M$11,0),"") ->  | C85: =SUMIFS(Data!$C:$C,Data!$G:$G,$A85,Data!$B:$B,Criteria!$H$41,Data!$A:$A,"<=" & Criteria!$G$10) -> 0 | D85: =SUMIFS(Data!$F:$F,Data!$G:$G,$A85,Data!$B:$B,Criteria!$H$41,Data!$A:$A,"<=" & Criteria!$G$10) -> 0 | E85: =SUMIFS(Data!$AT:$AT,Data!$AO:$AO,"<=" & Criteria!$G$10,Data!$AV:$AV,$A85) -> 0 | F85: =SUMIFS(Data!$AU:$AU,Data!$AO:$AO,"<=" & Criteria!$G$10,Data!$AV:$AV,$A85) -> 0 | G85: =SUMIFS(Data!V:V,Data!$T:$T,Criteria!$H$41,Data!$S:$S,"<=" & Criteria!$G$10,Data!$X:$X,$A85) -> 0 | H85: =SUMIFS(Data!W:W,Data!$T:$T,Criteria!$H$41,Data!$S:$S,"<=" & Criteria!$G$10,Data!$X:$X,$A85) -> 0 | I85: =SUMIFS(Data!$AG:$AG,Data!$AF:$AF,Criteria!$H$41,Data!$AE:$AE,VALUE(IF($A85=ReportMaxFY,Criteria!$G$10,$A85 & "09"))) -> 0
A86: 0 | B86: =IF(A86>0,OFFSET(Criteria!$M$11,Composite!A86-Criteria!$M$11,0),"") ->  | C86: =SUMIFS(Data!$C:$C,Data!$G:$G,$A86,Data!$B:$B,Criteria!$H$41,Data!$A:$A,"<=" & Criteria!$G$10) -> 0 | D86: =SUMIFS(Data!$F:$F,Data!$G:$G,$A86,Data!$B:$B,Criteria!$H$41,Data!$A:$A,"<=" & Criteria!$G$10) -> 0 | E86: =SUMIFS(Data!$AT:$AT,Data!$AO:$AO,"<=" & Criteria!$G$10,Data!$AV:$AV,$A86) -> 0 | F86: =SUMIFS(Data!$AU:$AU,Data!$AO:$AO,"<=" & Criteria!$G$10,Data!$AV:$AV,$A86) -> 0 | G86: =SUMIFS(Data!V:V,Data!$T:$T,Criteria!$H$41,Data!$S:$S,"<=" & Criteria!$G$10,Data!$X:$X,$A86) -> 0 | H86: =SUMIFS(Data!W:W,Data!$T:$T,Criteria!$H$41,Data!$S:$S,"<=" & Criteria!$G$10,Data!$X:$X,$A86) -> 0 | I86: =SUMIFS(Data!$AG:$AG,Data!$AF:$AF,Criteria!$H$41,Data!$AE:$AE,VALUE(IF($A86=ReportMaxFY,Criteria!$G$10,$A86 & "09"))) -> 0
A87: 0 | B87: =IF(A87>0,OFFSET(Criteria!$M$11,Composite!A87-Criteria!$M$11,0),"") ->  | C87: =SUMIFS(Data!$C:$C,Data!$G:$G,$A87,Data!$B:$B,Criteria!$H$41,Data!$A:$A,"<=" & Criteria!$G$10) -> 0 | D87: =SUMIFS(Data!$F:$F,Data!$G:$G,$A87,Data!$B:$B,Criteria!$H$41,Data!$A:$A,"<=" & Criteria!$G$10) -> 0 | E87: =SUMIFS(Data!$AT:$AT,Data!$AO:$AO,"<=" & Criteria!$G$10,Data!$AV:$AV,$A87) -> 0 | F87: =SUMIFS(Data!$AU:$AU,Data!$AO:$AO,"<=" & Criteria!$G$10,Data!$AV:$AV,$A87) -> 0 | G87: =SUMIFS(Data!V:V,Data!$T:$T,Criteria!$H$41,Data!$S:$S,"<=" & Criteria!$G$10,Data!$X:$X,$A87) -> 0 | H87: =SUMIFS(Data!W:W,Data!$T:$T,Criteria!$H$41,Data!$S:$S,"<=" & Criteria!$G$10,Data!$X:$X,$A87) -> 0 | I87: =SUMIFS(Data!$AG:$AG,Data!$AF:$AF,Criteria!$H$41,Data!$AE:$AE,VALUE(IF($A87=ReportMaxFY,Criteria!$G$10,$A87 & "09"))) -> 0
A88: 0 | B88: =IF(A88>0,OFFSET(Criteria!$M$11,Composite!A88-Criteria!$M$11,0),"") ->  | C88: =SUMIFS(Data!$C:$C,Data!$G:$G,$A88,Data!$B:$B,Criteria!$H$41,Data!$A:$A,"<=" & Criteria!$G$10) -> 0 | D88: =SUMIFS(Data!$F:$F,Data!$G:$G,$A88,Data!$B:$B,Criteria!$H$41,Data!$A:$A,"<=" & Criteria!$G$10) -> 0 | E88: =SUMIFS(Data!$AT:$AT,Data!$AO:$AO,"<=" & Criteria!$G$10,Data!$AV:$AV,$A88) -> 0 | F88: =SUMIFS(Data!$AU:$AU,Data!$AO:$AO,"<=" & Criteria!$G$10,Data!$AV:$AV,$A88) -> 0 | G88: =SUMIFS(Data!V:V,Data!$T:$T,Criteria!$H$41,Data!$S:$S,"<=" & Criteria!$G$10,Data!$X:$X,$A88) -> 0 | H88: =SUMIFS(Data!W:W,Data!$T:$T,Criteria!$H$41,Data!$S:$S,"<=" & Criteria!$G$10,Data!$X:$X,$A88) -> 0 | I88: =SUMIFS(Data!$AG:$AG,Data!$AF:$AF,Criteria!$H$41,Data!$AE:$AE,VALUE(IF($A88=ReportMaxFY,Criteria!$G$10,$A88 & "09"))) -> 0
A89: 0 | B89: =IF(A89>0,OFFSET(Criteria!$M$11,Composite!A89-Criteria!$M$11,0),"") ->  | C89: =SUMIFS(Data!$C:$C,Data!$G:$G,$A89,Data!$B:$B,Criteria!$H$41,Data!$A:$A,"<=" & Criteria!$G$10) -> 0 | D89: =SUMIFS(Data!$F:$F,Data!$G:$G,$A89,Data!$B:$B,Criteria!$H$41,Data!$A:$A,"<=" & Criteria!$G$10) -> 0 | E89: =SUMIFS(Data!$AT:$AT,Data!$AO:$AO,"<=" & Criteria!$G$10,Data!$AV:$AV,$A89) -> 0 | F89: =SUMIFS(Data!$AU:$AU,Data!$AO:$AO,"<=" & Criteria!$G$10,Data!$AV:$AV,$A89) -> 0 | G89: =SUMIFS(Data!V:V,Data!$T:$T,Criteria!$H$41,Data!$S:$S,"<=" & Criteria!$G$10,Data!$X:$X,$A89) -> 0 | H89: =SUMIFS(Data!W:W,Data!$T:$T,Criteria!$H$41,Data!$S:$S,"<=" & Criteria!$G$10,Data!$X:$X,$A89) -> 0 | I89: =SUMIFS(Data!$AG:$AG,Data!$AF:$AF,Criteria!$H$41,Data!$AE:$AE,VALUE(IF($A89=ReportMaxFY,Criteria!$G$10,$A89 & "09"))) -> 0
A90: 0 | B90: =IF(A90>0,OFFSET(Criteria!$M$11,Composite!A90-Criteria!$M$11,0),"") ->  | C90: =SUMIFS(Data!$C:$C,Data!$G:$G,$A90,Data!$B:$B,Criteria!$H$41,Data!$A:$A,"<=" & Criteria!$G$10) -> 0 | D90: =SUMIFS(Data!$F:$F,Data!$G:$G,$A90,Data!$B:$B,Criteria!$H$41,Data!$A:$A,"<=" & Criteria!$G$10) -> 0 | E90: =SUMIFS(Data!$AT:$AT,Data!$AO:$AO,"<=" & Criteria!$G$10,Data!$AV:$AV,$A90) -> 0 | F90: =SUMIFS(Data!$AU:$AU,Data!$AO:$AO,"<=" & Criteria!$G$10,Data!$AV:$AV,$A90) -> 0 | G90: =SUMIFS(Data!V:V,Data!$T:$T,Criteria!$H$41,Data!$S:$S,"<=" & Criteria!$G$10,Data!$X:$X,$A90) -> 0 | H90: =SUMIFS(Data!W:W,Data!$T:$T,Criteria!$H$41,Data!$S:$S,"<=" & Criteria!$G$10,Data!$X:$X,$A90) -> 0 | I90: =SUMIFS(Data!$AG:$AG,Data!$AF:$AF,Criteria!$H$41,Data!$AE:$AE,VALUE(IF($A90=ReportMaxFY,Criteria!$G$10,$A90 & "09"))) -> 0
A91: 0 | B91: =IF(A91>0,OFFSET(Criteria!$M$11,Composite!A91-Criteria!$M$11,0),"") ->  | C91: =SUMIFS(Data!$C:$C,Data!$G:$G,$A91,Data!$B:$B,Criteria!$H$41,Data!$A:$A,"<=" & Criteria!$G$10) -> 0 | D91: =SUMIFS(Data!$F:$F,Data!$G:$G,$A91,Data!$B:$B,Criteria!$H$41,Data!$A:$A,"<=" & Criteria!$G$10) -> 0 | E91: =SUMIFS(Data!$AT:$AT,Data!$AO:$AO,"<=" & Criteria!$G$10,Data!$AV:$AV,$A91) -> 0 | F91: =SUMIFS(Data!$AU:$AU,Data!$AO:$AO,"<=" & Criteria!$G$10,Data!$AV:$AV,$A91) -> 0 | G91: =SUMIFS(Data!V:V,Data!$T:$T,Criteria!$H$41,Data!$S:$S,"<=" & Criteria!$G$10,Data!$X:$X,$A91) -> 0 | H91: =SUMIFS(Data!W:W,Data!$T:$T,Criteria!$H$41,Data!$S:$S,"<=" & Criteria!$G$10,Data!$X:$X,$A91) -> 0 | I91: =SUMIFS(Data!$AG:$AG,Data!$AF:$AF,Criteria!$H$41,Data!$AE:$AE,VALUE(IF($A91=ReportMaxFY,Criteria!$G$10,$A91 & "09"))) -> 0
A92: 0 | B92: =IF(A92>0,OFFSET(Criteria!$M$11,Composite!A92-Criteria!$M$11,0),"") ->  | C92: =SUMIFS(Data!$C:$C,Data!$G:$G,$A92,Data!$B:$B,Criteria!$H$41,Data!$A:$A,"<=" & Criteria!$G$10) -> 0 | D92: =SUMIFS(Data!$F:$F,Data!$G:$G,$A92,Data!$B:$B,Criteria!$H$41,Data!$A:$A,"<=" & Criteria!$G$10) -> 0 | E92: =SUMIFS(Data!$AT:$AT,Data!$AO:$AO,"<=" & Criteria!$G$10,Data!$AV:$AV,$A92) -> 0 | F92: =SUMIFS(Data!$AU:$AU,Data!$AO:$AO,"<=" & Criteria!$G$10,Data!$AV:$AV,$A92) -> 0 | G92: =SUMIFS(Data!V:V,Data!$T:$T,Criteria!$H$41,Data!$S:$S,"<=" & Criteria!$G$10,Data!$X:$X,$A92) -> 0 | H92: =SUMIFS(Data!W:W,Data!$T:$T,Criteria!$H$41,Data!$S:$S,"<=" & Criteria!$G$10,Data!$X:$X,$A92) -> 0 | I92: =SUMIFS(Data!$AG:$AG,Data!$AF:$AF,Criteria!$H$41,Data!$AE:$AE,VALUE(IF($A92=ReportMaxFY,Criteria!$G$10,$A92 & "09"))) -> 0
A93: 0 | B93: =IF(A93>0,OFFSET(Criteria!$M$11,Composite!A93-Criteria!$M$11,0),"") ->  | C93: =SUMIFS(Data!$C:$C,Data!$G:$G,$A93,Data!$B:$B,Criteria!$H$41,Data!$A:$A,"<=" & Criteria!$G$10) -> 0 | D93: =SUMIFS(Data!$F:$F,Data!$G:$G,$A93,Data!$B:$B,Criteria!$H$41,Data!$A:$A,"<=" & Criteria!$G$10) -> 0 | E93: =SUMIFS(Data!$AT:$AT,Data!$AO:$AO,"<=" & Criteria!$G$10,Data!$AV:$AV,$A93) -> 0 | F93: =SUMIFS(Data!$AU:$AU,Data!$AO:$AO,"<=" & Criteria!$G$10,Data!$AV:$AV,$A93) -> 0 | G93: =SUMIFS(Data!V:V,Data!$T:$T,Criteria!$H$41,Data!$S:$S,"<=" & Criteria!$G$10,Data!$X:$X,$A93) -> 0 | H93: =SUMIFS(Data!W:W,Data!$T:$T,Criteria!$H$41,Data!$S:$S,"<=" & Criteria!$G$10,Data!$X:$X,$A93) -> 0 | I93: =SUMIFS(Data!$AG:$AG,Data!$AF:$AF,Criteria!$H$41,Data!$AE:$AE,VALUE(IF($A93=ReportMaxFY,Criteria!$G$10,$A93 & "09"))) -> 0
A94: 0 | B94: =IF(A94>0,OFFSET(Criteria!$M$11,Composite!A94-Criteria!$M$11,0),"") ->  | C94: =SUMIFS(Data!$C:$C,Data!$G:$G,$A94,Data!$B:$B,Criteria!$H$41,Data!$A:$A,"<=" & Criteria!$G$10) -> 0 | D94: =SUMIFS(Data!$F:$F,Data!$G:$G,$A94,Data!$B:$B,Criteria!$H$41,Data!$A:$A,"<=" & Criteria!$G$10) -> 0 | E94: =SUMIFS(Data!$AT:$AT,Data!$AO:$AO,"<=" & Criteria!$G$10,Data!$AV:$AV,$A94) -> 0 | F94: =SUMIFS(Data!$AU:$AU,Data!$AO:$AO,"<=" & Criteria!$G$10,Data!$AV:$AV,$A94) -> 0 | G94: =SUMIFS(Data!V:V,Data!$T:$T,Criteria!$H$41,Data!$S:$S,"<=" & Criteria!$G$10,Data!$X:$X,$A94) -> 0 | H94: =SUMIFS(Data!W:W,Data!$T:$T,Criteria!$H$41,Data!$S:$S,"<=" & Criteria!$G$10,Data!$X:$X,$A94) -> 0 | I94: =SUMIFS(Data!$AG:$AG,Data!$AF:$AF,Criteria!$H$41,Data!$AE:$AE,VALUE(IF($A94=ReportMaxFY,Criteria!$G$10,$A94 & "09"))) -> 0
A95: 0 | B95: =IF(A95>0,OFFSET(Criteria!$M$11,Composite!A95-Criteria!$M$11,0),"") ->  | C95: =SUMIFS(Data!$C:$C,Data!$G:$G,$A95,Data!$B:$B,Criteria!$H$41,Data!$A:$A,"<=" & Criteria!$G$10) -> 0 | D95: =SUMIFS(Data!$F:$F,Data!$G:$G,$A95,Data!$B:$B,Criteria!$H$41,Data!$A:$A,"<=" & Criteria!$G$10) -> 0 | E95: =SUMIFS(Data!$AT:$AT,Data!$AO:$AO,"<=" & Criteria!$G$10,Data!$AV:$AV,$A95) -> 0 | F95: =SUMIFS(Data!$AU:$AU,Data!$AO:$AO,"<=" & Criteria!$G$10,Data!$AV:$AV,$A95) -> 0 | G95: =SUMIFS(Data!V:V,Data!$T:$T,Criteria!$H$41,Data!$S:$S,"<=" & Criteria!$G$10,Data!$X:$X,$A95) -> 0 | H95: =SUMIFS(Data!W:W,Data!$T:$T,Criteria!$H$41,Data!$S:$S,"<=" & Criteria!$G$10,Data!$X:$X,$A95) -> 0 | I95: =SUMIFS(Data!$AG:$AG,Data!$AF:$AF,Criteria!$H$41,Data!$AE:$AE,VALUE(IF($A95=ReportMaxFY,Criteria!$G$10,$A95 & "09"))) -> 0
A96: 0 | B96: =IF(A96>0,OFFSET(Criteria!$M$11,Composite!A96-Criteria!$M$11,0),"") ->  | C96: =SUMIFS(Data!$C:$C,Data!$G:$G,$A96,Data!$B:$B,Criteria!$H$41,Data!$A:$A,"<=" & Criteria!$G$10) -> 0 | D96: =SUMIFS(Data!$F:$F,Data!$G:$G,$A96,Data!$B:$B,Criteria!$H$41,Data!$A:$A,"<=" & Criteria!$G$10) -> 0 | E96: =SUMIFS(Data!$AT:$AT,Data!$AO:$AO,"<=" & Criteria!$G$10,Data!$AV:$AV,$A96) -> 0 | F96: =SUMIFS(Data!$AU:$AU,Data!$AO:$AO,"<=" & Criteria!$G$10,Data!$AV:$AV,$A96) -> 0 | G96: =SUMIFS(Data!V:V,Data!$T:$T,Criteria!$H$41,Data!$S:$S,"<=" & Criteria!$G$10,Data!$X:$X,$A96) -> 0 | H96: =SUMIFS(Data!W:W,Data!$T:$T,Criteria!$H$41,Data!$S:$S,"<=" & Criteria!$G$10,Data!$X:$X,$A96) -> 0 | I96: =SUMIFS(Data!$AG:$AG,Data!$AF:$AF,Criteria!$H$41,Data!$AE:$AE,VALUE(IF($A96=ReportMaxFY,Criteria!$G$10,$A96 & "09"))) -> 0
C97: =SUM(C78:C96) -> 87600 | D97: 10346083700 | E97: 29735 | F97: 2089479600 | G97: 258111 | H97: 2.594053408e+10
B98: 3Securities held in Legacy Treasury Direct or through commercial parties can be transferred to TreasuryDirect at TreasuryDirect.gov.
B100: Savings Bonds in TreasuryDirect
C102: Sales of Savings Bonds | E102: Incoming Transfers4 | G102: Redemptions | I102: Amount Outstanding
C104: Securities | D104: Dollars | E104: Securities | F104: Dollars | G104: Securities | H104: Dollars | I104: Dollars
A105: October | B105: =A105 -> October | C105: =SUMIFS(Data!$C:$C,Data!$A:$A,Criteria!$D16,Data!$B:$B,"<>" &Criteria!$H$41) -> 66577 | D105: =SUMIFS(Data!$F:$F,Data!$A:$A,Criteria!$D16,Data!$B:$B,"<>" & Criteria!$H$41) -> 35056542 | E105: =SUMIFS(Data!AZ:AZ,Data!$BB:$BB,Criteria!$D16) -> 42918 | F105: =SUMIFS(Data!BA:BA,Data!$BB:$BB,Criteria!$D16) -> 20404135.55 | G105: =SUMIFS(Data!V:V,Data!$S:$S,Criteria!$D16,Data!$T:$T,"<>" & Criteria!$H$41) -> 37235 | H105: =SUMIFS(Data!W:W,Data!$S:$S,Criteria!$D16,Data!$T:$T,"<>" & Criteria!$H$41) -> 11103197.66 | I105: =SUMIFS(Data!$AG:$AG,Data!$AE:$AE,Criteria!$D16,Data!$AF:$AF,"<>" & Criteria!$H$41) -> 5335803837
A106: November | B106: November | C106: =SUMIFS(Data!$C:$C,Data!$A:$A,Criteria!$D17,Data!$B:$B,"<>" &Criteria!$H$41) -> 68746 | D106: =SUMIFS(Data!$F:$F,Data!$A:$A,Criteria!$D17,Data!$B:$B,"<>" & Criteria!$H$41) -> 32858068.68 | E106: =SUMIFS(Data!AZ:AZ,Data!$BB:$BB,Criteria!$D17) -> 47265 | F106: =SUMIFS(Data!BA:BA,Data!$BB:$BB,Criteria!$D17) -> 21809381.65 | G106: =SUMIFS(Data!V:V,Data!$S:$S,Criteria!$D17,Data!$T:$T,"<>" & Criteria!$H$41) -> 38303 | H106: =SUMIFS(Data!W:W,Data!$S:$S,Criteria!$D17,Data!$T:$T,"<>" & Criteria!$H$41) -> 12478715.3 | I106: =SUMIFS(Data!$AG:$AG,Data!$AE:$AE,Criteria!$D17,Data!$AF:$AF,"<>" & Criteria!$H$41) -> 5399627257
A107: December | B107: December | C107: =SUMIFS(Data!$C:$C,Data!$A:$A,Criteria!$D18,Data!$B:$B,"<>" &Criteria!$H$41) -> 100337 | D107: =SUMIFS(Data!$F:$F,Data!$A:$A,Criteria!$D18,Data!$B:$B,"<>" & Criteria!$H$41) -> 48400222.46 | E107: =SUMIFS(Data!AZ:AZ,Data!$BB:$BB,Criteria!$D18) -> 55075 | F107: =SUMIFS(Data!BA:BA,Data!$BB:$BB,Criteria!$D18) -> 27973372.07 | G107: =SUMIFS(Data!V:V,Data!$S:$S,Criteria!$D18,Data!$T:$T,"<>" & Criteria!$H$41) -> 42936 | H107: =SUMIFS(Data!W:W,Data!$S:$S,Criteria!$D18,Data!$T:$T,"<>" & Criteria!$H$41) -> 14899537.31 | I107: =SUMIFS(Data!$AG:$AG,Data!$AE:$AE,Criteria!$D18,Data!$AF:$AF,"<>" & Criteria!$H$41) -> 5482549831
A108: January | B108: January | C108: =SUMIFS(Data!$C:$C,Data!$A:$A,Criteria!$D19,Data!$B:$B,"<>" &Criteria!$H$41) -> 110642 | D108: =SUMIFS(Data!$F:$F,Data!$A:$A,Criteria!$D19,Data!$B:$B,"<>" & Criteria!$H$41) -> 114897190.8 | E108: =SUMIFS(Data!AZ:AZ,Data!$BB:$BB,Criteria!$D19) -> 91952 | F108: =SUMIFS(Data!BA:BA,Data!$BB:$BB,Criteria!$D19) -> 46170571.58 | G108: =SUMIFS(Data!V:V,Data!$S:$S,Criteria!$D19,Data!$T:$T,"<>" & Criteria!$H$41) -> 48592 | H108: =SUMIFS(Data!W:W,Data!$S:$S,Criteria!$D19,Data!$T:$T,"<>" & Criteria!$H$41) -> 16050420.89 | I108: =SUMIFS(Data!$AG:$AG,Data!$AE:$AE,Criteria!$D19,Data!$AF:$AF,"<>" & Criteria!$H$41) -> 5649946664
A109: February | B109: February | C109: =SUMIFS(Data!$C:$C,Data!$A:$A,Criteria!$D20,Data!$B:$B,"<>" &Criteria!$H$41) -> 100837 | D109: =SUMIFS(Data!$F:$F,Data!$A:$A,Criteria!$D20,Data!$B:$B,"<>" & Criteria!$H$41) -> 61012986.87 | E109: =SUMIFS(Data!AZ:AZ,Data!$BB:$BB,Criteria!$D20) -> 90014 | F109: =SUMIFS(Data!BA:BA,Data!$BB:$BB,Criteria!$D20) -> 43506516.96 | G109: =SUMIFS(Data!V:V,Data!$S:$S,Criteria!$D20,Data!$T:$T,"<>" & Criteria!$H$41) -> 39217 | H109: =SUMIFS(Data!W:W,Data!$S:$S,Criteria!$D20,Data!$T:$T,"<>" & Criteria!$H$41) -> 13781889.44 | I109: =SUMIFS(Data!$AG:$AG,Data!$AE:$AE,Criteria!$D20,Data!$AF:$AF,"<>" & Criteria!$H$41) -> 5762179147
A110: March | B110: March | C110: =SUMIFS(Data!$C:$C,Data!$A:$A,Criteria!$D21,Data!$B:$B,"<>" &Criteria!$H$41) -> 102308 | D110: =SUMIFS(Data!$F:$F,Data!$A:$A,Criteria!$D21,Data!$B:$B,"<>" & Criteria!$H$41) -> 61967314.56 | E110: =SUMIFS(Data!AZ:AZ,Data!$BB:$BB,Criteria!$D21) -> 51350 | F110: =SUMIFS(Data!BA:BA,Data!$BB:$BB,Criteria!$D21) -> 24192936.33 | G110: =SUMIFS(Data!V:V,Data!$S:$S,Criteria!$D21,Data!$T:$T,"<>" & Criteria!$H$41) -> 35476 | H110: =SUMIFS(Data!W:W,Data!$S:$S,Criteria!$D21,Data!$T:$T,"<>" & Criteria!$H$41) -> 12243437.44 | I110: =SUMIFS(Data!$AG:$AG,Data!$AE:$AE,Criteria!$D21,Data!$AF:$AF,"<>" & Criteria!$H$41) -> 5856842415
A111: April | B111: April | C111: =SUMIFS(Data!$C:$C,Data!$A:$A,Criteria!$D22,Data!$B:$B,"<>" &Criteria!$H$41) -> 102295 | D111: =SUMIFS(Data!$F:$F,Data!$A:$A,Criteria!$D22,Data!$B:$B,"<>" & Criteria!$H$41) -> 60218146.83 | E111: =SUMIFS(Data!AZ:AZ,Data!$BB:$BB,Criteria!$D22) -> 42977 | F111: =SUMIFS(Data!BA:BA,Data!$BB:$BB,Criteria!$D22) -> 19433276.05 | G111: =SUMIFS(Data!V:V,Data!$S:$S,Criteria!$D22,Data!$T:$T,"<>" & Criteria!$H$41) -> 39555 | H111: =SUMIFS(Data!W:W,Data!$S:$S,Criteria!$D22,Data!$T:$T,"<>" & Criteria!$H$41) -> 14015855.09 | I111: =SUMIFS(Data!$AG:$AG,Data!$AE:$AE,Criteria!$D22,Data!$AF:$AF,"<>" & Criteria!$H$41) -> 5943122853
A112: May | B112: May | C112: =SUMIFS(Data!$C:$C,Data!$A:$A,Criteria!$D23,Data!$B:$B,"<>" &Criteria!$H$41) -> 96204 | D112: =SUMIFS(Data!$F:$F,Data!$A:$A,Criteria!$D23,Data!$B:$B,"<>" & Criteria!$H$41) -> 46051968.77 | E112: =SUMIFS(Data!AZ:AZ,Data!$BB:$BB,Criteria!$D23) -> 77691 | F112: =SUMIFS(Data!BA:BA,Data!$BB:$BB,Criteria!$D23) -> 35502041.45 | G112: =SUMIFS(Data!V:V,Data!$S:$S,Criteria!$D23,Data!$T:$T,"<>" & Criteria!$H$41) -> 46421 | H112: =SUMIFS(Data!W:W,Data!$S:$S,Criteria!$D23,Data!$T:$T,"<>" & Criteria!$H$41) -> 16367614.7 | I112: =SUMIFS(Data!$AG:$AG,Data!$AE:$AE,Criteria!$D23,Data!$AF:$AF,"<>" & Criteria!$H$41) -> 6027506536
A113: June | B113: June | C113: =SUMIFS(Data!$C:$C,Data!$A:$A,Criteria!$D24,Data!$B:$B,"<>" &Criteria!$H$41) -> 89085 | D113: =SUMIFS(Data!$F:$F,Data!$A:$A,Criteria!$D24,Data!$B:$B,"<>" & Criteria!$H$41) -> 33215209.91 | E113: =SUMIFS(Data!AZ:AZ,Data!$BB:$BB,Criteria!$D24) -> 65308 | F113: =SUMIFS(Data!BA:BA,Data!$BB:$BB,Criteria!$D24) -> 32193377.03 | G113: =SUMIFS(Data!V:V,Data!$S:$S,Criteria!$D24,Data!$T:$T,"<>" & Criteria!$H$41) -> 45378 | H113: =SUMIFS(Data!W:W,Data!$S:$S,Criteria!$D24,Data!$T:$T,"<>" & Criteria!$H$41) -> 14571380.55 | I113: =SUMIFS(Data!$AG:$AG,Data!$AE:$AE,Criteria!$D24,Data!$AF:$AF,"<>" & Criteria!$H$41) -> 6097190043
A114: July | B114: July | C114: =SUMIFS(Data!$C:$C,Data!$A:$A,Criteria!$D25,Data!$B:$B,"<>" &Criteria!$H$41) -> 90099 | D114: =SUMIFS(Data!$F:$F,Data!$A:$A,Criteria!$D25,Data!$B:$B,"<>" & Criteria!$H$41) -> 32850248.84 | E114: =SUMIFS(Data!AZ:AZ,Data!$BB:$BB,Criteria!$D25) -> 60457 | F114: =SUMIFS(Data!BA:BA,Data!$BB:$BB,Criteria!$D25) -> 30460508.91 | G114: =SUMIFS(Data!V:V,Data!$S:$S,Criteria!$D25,Data!$T:$T,"<>" & Criteria!$H$41) -> 48864 | H114: =SUMIFS(Data!W:W,Data!$S:$S,Criteria!$D25,Data!$T:$T,"<>" & Criteria!$H$41) -> 15248002.14 | I114: =SUMIFS(Data!$AG:$AG,Data!$AE:$AE,Criteria!$D25,Data!$AF:$AF,"<>" & Criteria!$H$41) -> 6164669171
A115: August | B115: August | C115: =SUMIFS(Data!$C:$C,Data!$A:$A,Criteria!$D26,Data!$B:$B,"<>" &Criteria!$H$41) -> 93207 | D115: =SUMIFS(Data!$F:$F,Data!$A:$A,Criteria!$D26,Data!$B:$B,"<>" & Criteria!$H$41) -> 34906250.21 | E115: =SUMIFS(Data!AZ:AZ,Data!$BB:$BB,Criteria!$D26) -> 72642 | F115: =SUMIFS(Data!BA:BA,Data!$BB:$BB,Criteria!$D26) -> 38099161.86 | G115: =SUMIFS(Data!V:V,Data!$S:$S,Criteria!$D26,Data!$T:$T,"<>" & Criteria!$H$41) -> 53212 | H115: =SUMIFS(Data!W:W,Data!$S:$S,Criteria!$D26,Data!$T:$T,"<>" & Criteria!$H$41) -> 16269029.28 | I115: =SUMIFS(Data!$AG:$AG,Data!$AE:$AE,Criteria!$D26,Data!$AF:$AF,"<>" & Criteria!$H$41) -> 6239690241
A116: September | B116: September | C116: =SUMIFS(Data!$C:$C,Data!$A:$A,Criteria!$D27,Data!$B:$B,"<>" &Criteria!$H$41) -> 0 | D116: =SUMIFS(Data!$F:$F,Data!$A:$A,Criteria!$D27,Data!$B:$B,"<>" & Criteria!$H$41) -> 0 | E116: =SUMIFS(Data!AZ:AZ,Data!$BB:$BB,Criteria!$D27) -> 0 | F116: =SUMIFS(Data!BA:BA,Data!$BB:$BB,Criteria!$D27) -> 0 | G116: =SUMIFS(Data!V:V,Data!$S:$S,Criteria!$D27,Data!$T:$T,"<>" & Criteria!$H$41) -> 0 | H116: =SUMIFS(Data!W:W,Data!$S:$S,Criteria!$D27,Data!$T:$T,"<>" & Criteria!$H$41) -> 0 | I116: =SUMIFS(Data!$AG:$AG,Data!$AE:$AE,Criteria!$D27,Data!$AF:$AF,"<>" & Criteria!$H$41) -> 0
C117: =SUM(C105:C116) -> 1020337 | D117: 561434150 | E117: 697649 | F117: 339745279.4 | G117: 475189 | H117: 157029079.8
B118: 4Owners of paper savings bonds may convert them to electronic securities at TreasuryDirect.gov.
C120: Sales of Savings Bonds | E120: Incoming Transfers4 | G120: Redemptions | I120: Amount Outstanding
C122: Securities | D122: Dollars | E122: Securities | F122: Dollars | G122: Securities | H122: Dollars | I122: Dollars
A123: =ReportFY -> 2012 | B123: =IF(A123>0,OFFSET(Criteria!$M$11,Composite!A123-Criteria!$M$11,0),"") -> 2012 (thru Dec) | C123: =SUMIFS(Data!$C:$C,Data!$G:$G,$A123,Data!$B:$B,"<>" & Criteria!$H$41,Data!$A:$A,"<=" & Criteria!$G$10) -> 1020337 | D123: =SUMIFS(Data!$F:$F,Data!$G:$G,$A123,Data!$B:$B,"<>" & Criteria!$H$41,Data!$A:$A,"<=" & Criteria!$G$10) -> 561434150 | E123: =SUMIFS(Data!AZ:AZ,Data!$BB:$BB,"<=" & Criteria!$G$10,Data!$BC:$BC,$A123) -> 697649 | F123: =SUMIFS(Data!BA:BA,Data!$BB:$BB,"<=" & Criteria!$G$10,Data!$BC:$BC,$A123) -> 339745279.4 | G123: =SUMIFS(Data!V:V,Data!$T:$T,"<>" & Criteria!$H$41,Data!$S:$S,"<=" & Criteria!$G$10,Data!$X:$X,$A123) -> 475189 | H123: =SUMIFS(Data!W:W,Data!$T:$T,"<>" & Criteria!$H$41,Data!$S:$S,"<=" & Criteria!$G$10,Data!$X:$X,$A123) -> 157029079.8 | I123: =SUMIFS(Data!$AG:$AG,Data!$AF:$AF,"<>" & Criteria!$H$41,Data!$AE:$AE,VALUE(IF($A123=ReportMaxFY,Criteria!$G$10,$A123 & "09"))) -> 6239690241
A124: =IF(AND(A123<ReportMaxFY,A123<>0), A123+1,0) -> 0 | B124: =IF(A124>0,OFFSET(Criteria!$M$11,Composite!A124-Criteria!$M$11,0),"") ->  | C124: =SUMIFS(Data!$C:$C,Data!$G:$G,$A124,Data!$B:$B,"<>" & Criteria!$H$41,Data!$A:$A,"<=" & Criteria!$G$10) -> 0 | D124: =SUMIFS(Data!$F:$F,Data!$G:$G,$A124,Data!$B:$B,"<>" & Criteria!$H$41,Data!$A:$A,"<=" & Criteria!$G$10) -> 0 | E124: =SUMIFS(Data!AZ:AZ,Data!$BB:$BB,"<=" & Criteria!$G$10,Data!$BC:$BC,$A124) -> 0 | F124: =SUMIFS(Data!BA:BA,Data!$BB:$BB,"<=" & Criteria!$G$10,Data!$BC:$BC,$A124) -> 0 | G124: =SUMIFS(Data!V:V,Data!$T:$T,"<>" & Criteria!$H$41,Data!$S:$S,"<=" & Criteria!$G$10,Data!$X:$X,$A124) -> 0 | H124: =SUMIFS(Data!W:W,Data!$T:$T,"<>" & Criteria!$H$41,Data!$S:$S,"<=" & Criteria!$G$10,Data!$X:$X,$A124) -> 0 | I124: =SUMIFS(Data!$AG:$AG,Data!$AF:$AF,"<>" & Criteria!$H$41,Data!$AE:$AE,VALUE(IF($A124=ReportMaxFY,Criteria!$G$10,$A124 & "09"))) -> 0
A125: 0 | B125: =IF(A125>0,OFFSET(Criteria!$M$11,Composite!A125-Criteria!$M$11,0),"") ->  | C125: =SUMIFS(Data!$C:$C,Data!$G:$G,$A125,Data!$B:$B,"<>" & Criteria!$H$41,Data!$A:$A,"<=" & Criteria!$G$10) -> 0 | D125: =SUMIFS(Data!$F:$F,Data!$G:$G,$A125,Data!$B:$B,"<>" & Criteria!$H$41,Data!$A:$A,"<=" & Criteria!$G$10) -> 0 | E125: =SUMIFS(Data!AZ:AZ,Data!$BB:$BB,"<=" & Criteria!$G$10,Data!$BC:$BC,$A125) -> 0 | F125: =SUMIFS(Data!BA:BA,Data!$BB:$BB,"<=" & Criteria!$G$10,Data!$BC:$BC,$A125) -> 0 | G125: =SUMIFS(Data!V:V,Data!$T:$T,"<>" & Criteria!$H$41,Data!$S:$S,"<=" & Criteria!$G$10,Data!$X:$X,$A125) -> 0 | H125: =SUMIFS(Data!W:W,Data!$T:$T,"<>" & Criteria!$H$41,Data!$S:$S,"<=" & Criteria!$G$10,Data!$X:$X,$A125) -> 0 | I125: =SUMIFS(Data!$AG:$AG,Data!$AF:$AF,"<>" & Criteria!$H$41,Data!$AE:$AE,VALUE(IF($A125=ReportMaxFY,Criteria!$G$10,$A125 & "09"))) -> 0
A126: 0 | B126: =IF(A126>0,OFFSET(Criteria!$M$11,Composite!A126-Criteria!$M$11,0),"") ->  | C126: =SUMIFS(Data!$C:$C,Data!$G:$G,$A126,Data!$B:$B,"<>" & Criteria!$H$41,Data!$A:$A,"<=" & Criteria!$G$10) -> 0 | D126: =SUMIFS(Data!$F:$F,Data!$G:$G,$A126,Data!$B:$B,"<>" & Criteria!$H$41,Data!$A:$A,"<=" & Criteria!$G$10) -> 0 | E126: =SUMIFS(Data!AZ:AZ,Data!$BB:$BB,"<=" & Criteria!$G$10,Data!$BC:$BC,$A126) -> 0 | F126: =SUMIFS(Data!BA:BA,Data!$BB:$BB,"<=" & Criteria!$G$10,Data!$BC:$BC,$A126) -> 0 | G126: =SUMIFS(Data!V:V,Data!$T:$T,"<>" & Criteria!$H$41,Data!$S:$S,"<=" & Criteria!$G$10,Data!$X:$X,$A126) -> 0 | H126: =SUMIFS(Data!W:W,Data!$T:$T,"<>" & Criteria!$H$41,Data!$S:$S,"<=" & Criteria!$G$10,Data!$X:$X,$A126) -> 0 | I126: =SUMIFS(Data!$AG:$AG,Data!$AF:$AF,"<>" & Criteria!$H$41,Data!$AE:$AE,VALUE(IF($A126=ReportMaxFY,Criteria!$G$10,$A126 & "09"))) -> 0
A127: 0 | B127: =IF(A127>0,OFFSET(Criteria!$M$11,Composite!A127-Criteria!$M$11,0),"") ->  | C127: =SUMIFS(Data!$C:$C,Data!$G:$G,$A127,Data!$B:$B,"<>" & Criteria!$H$41,Data!$A:$A,"<=" & Criteria!$G$10) -> 0 | D127: =SUMIFS(Data!$F:$F,Data!$G:$G,$A127,Data!$B:$B,"<>" & Criteria!$H$41,Data!$A:$A,"<=" & Criteria!$G$10) -> 0 | E127: =SUMIFS(Data!AZ:AZ,Data!$BB:$BB,"<=" & Criteria!$G$10,Data!$BC:$BC,$A127) -> 0 | F127: =SUMIFS(Data!BA:BA,Data!$BB:$BB,"<=" & Criteria!$G$10,Data!$BC:$BC,$A127) -> 0 | G127: =SUMIFS(Data!V:V,Data!$T:$T,"<>" & Criteria!$H$41,Data!$S:$S,"<=" & Criteria!$G$10,Data!$X:$X,$A127) -> 0 | H127: =SUMIFS(Data!W:W,Data!$T:$T,"<>" & Criteria!$H$41,Data!$S:$S,"<=" & Criteria!$G$10,Data!$X:$X,$A127) -> 0 | I127: =SUMIFS(Data!$AG:$AG,Data!$AF:$AF,"<>" & Criteria!$H$41,Data!$AE:$AE,VALUE(IF($A127=ReportMaxFY,Criteria!$G$10,$A127 & "09"))) -> 0
A128: 0 | B128: =IF(A128>0,OFFSET(Criteria!$M$11,Composite!A128-Criteria!$M$11,0),"") ->  | C128: =SUMIFS(Data!$C:$C,Data!$G:$G,$A128,Data!$B:$B,"<>" & Criteria!$H$41,Data!$A:$A,"<=" & Criteria!$G$10) -> 0 | D128: =SUMIFS(Data!$F:$F,Data!$G:$G,$A128,Data!$B:$B,"<>" & Criteria!$H$41,Data!$A:$A,"<=" & Criteria!$G$10) -> 0 | E128: =SUMIFS(Data!AZ:AZ,Data!$BB:$BB,"<=" & Criteria!$G$10,Data!$BC:$BC,$A128) -> 0 | F128: =SUMIFS(Data!BA:BA,Data!$BB:$BB,"<=" & Criteria!$G$10,Data!$BC:$BC,$A128) -> 0 | G128: =SUMIFS(Data!V:V,Data!$T:$T,"<>" & Criteria!$H$41,Data!$S:$S,"<=" & Criteria!$G$10,Data!$X:$X,$A128) -> 0 | H128: =SUMIFS(Data!W:W,Data!$T:$T,"<>" & Criteria!$H$41,Data!$S:$S,"<=" & Criteria!$G$10,Data!$X:$X,$A128) -> 0 | I128: =SUMIFS(Data!$AG:$AG,Data!$AF:$AF,"<>" & Criteria!$H$41,Data!$AE:$AE,VALUE(IF($A128=ReportMaxFY,Criteria!$G$10,$A128 & "09"))) -> 0
A129: 0 | B129: =IF(A129>0,OFFSET(Criteria!$M$11,Composite!A129-Criteria!$M$11,0),"") ->  | C129: =SUMIFS(Data!$C:$C,Data!$G:$G,$A129,Data!$B:$B,"<>" & Criteria!$H$41,Data!$A:$A,"<=" & Criteria!$G$10) -> 0 | D129: =SUMIFS(Data!$F:$F,Data!$G:$G,$A129,Data!$B:$B,"<>" & Criteria!$H$41,Data!$A:$A,"<=" & Criteria!$G$10) -> 0 | E129: =SUMIFS(Data!AZ:AZ,Data!$BB:$BB,"<=" & Criteria!$G$10,Data!$BC:$BC,$A129) -> 0 | F129: =SUMIFS(Data!BA:BA,Data!$BB:$BB,"<=" & Criteria!$G$10,Data!$BC:$BC,$A129) -> 0 | G129: =SUMIFS(Data!V:V,Data!$T:$T,"<>" & Criteria!$H$41,Data!$S:$S,"<=" & Criteria!$G$10,Data!$X:$X,$A129) -> 0 | H129: =SUMIFS(Data!W:W,Data!$T:$T,"<>" & Criteria!$H$41,Data!$S:$S,"<=" & Criteria!$G$10,Data!$X:$X,$A129) -> 0 | I129: =SUMIFS(Data!$AG:$AG,Data!$AF:$AF,"<>" & Criteria!$H$41,Data!$AE:$AE,VALUE(IF($A129=ReportMaxFY,Criteria!$G$10,$A129 & "09"))) -> 0
A130: 0 | B130: =IF(A130>0,OFFSET(Criteria!$M$11,Composite!A130-Criteria!$M$11,0),"") ->  | C130: =SUMIFS(Data!$C:$C,Data!$G:$G,$A130,Data!$B:$B,"<>" & Criteria!$H$41,Data!$A:$A,"<=" & Criteria!$G$10) -> 0 | D130: =SUMIFS(Data!$F:$F,Data!$G:$G,$A130,Data!$B:$B,"<>" & Criteria!$H$41,Data!$A:$A,"<=" & Criteria!$G$10) -> 0 | E130: =SUMIFS(Data!AZ:AZ,Data!$BB:$BB,"<=" & Criteria!$G$10,Data!$BC:$BC,$A130) -> 0 | F130: =SUMIFS(Data!BA:BA,Data!$BB:$BB,"<=" & Criteria!$G$10,Data!$BC:$BC,$A130) -> 0 | G130: =SUMIFS(Data!V:V,Data!$T:$T,"<>" & Criteria!$H$41,Data!$S:$S,"<=" & Criteria!$G$10,Data!$X:$X,$A130) -> 0 | H130: =SUMIFS(Data!W:W,Data!$T:$T,"<>" & Criteria!$H$41,Data!$S:$S,"<=" & Criteria!$G$10,Data!$X:$X,$A130) -> 0 | I130: =SUMIFS(Data!$AG:$AG,Data!$AF:$AF,"<>" & Criteria!$H$41,Data!$AE:$AE,VALUE(IF($A130=ReportMaxFY,Criteria!$G$10,$A130 & "09"))) -> 0
A131: 0 | B131: =IF(A131>0,OFFSET(Criteria!$M$11,Composite!A131-Criteria!$M$11,0),"") ->  | C131: =SUMIFS(Data!$C:$C,Data!$G:$G,$A131,Data!$B:$B,"<>" & Criteria!$H$41,Data!$A:$A,"<=" & Criteria!$G$10) -> 0 | D131: =SUMIFS(Data!$F:$F,Data!$G:$G,$A131,Data!$B:$B,"<>" & Criteria!$H$41,Data!$A:$A,"<=" & Criteria!$G$10) -> 0 | E131: =SUMIFS(Data!AZ:AZ,Data!$BB:$BB,"<=" & Criteria!$G$10,Data!$BC:$BC,$A131) -> 0 | F131: =SUMIFS(Data!BA:BA,Data!$BB:$BB,"<=" & Criteria!$G$10,Data!$BC:$BC,$A131) -> 0 | G131: =SUMIFS(Data!V:V,Data!$T:$T,"<>" & Criteria!$H$41,Data!$S:$S,"<=" & Criteria!$G$10,Data!$X:$X,$A131) -> 0 | H131: =SUMIFS(Data!W:W,Data!$T:$T,"<>" & Criteria!$H$41,Data!$S:$S,"<=" & Criteria!$G$10,Data!$X:$X,$A131) -> 0 | I131: =SUMIFS(Data!$AG:$AG,Data!$AF:$AF,"<>" & Criteria!$H$41,Data!$AE:$AE,VALUE(IF($A131=ReportMaxFY,Criteria!$G$10,$A131 & "09"))) -> 0
A132: 0 | B132: =IF(A132>0,OFFSET(Criteria!$M$11,Composite!A132-Criteria!$M$11,0),"") ->  | C132: =SUMIFS(Data!$C:$C,Data!$G:$G,$A132,Data!$B:$B,"<>" & Criteria!$H$41,Data!$A:$A,"<=" & Criteria!$G$10) -> 0 | D132: =SUMIFS(Data!$F:$F,Data!$G:$G,$A132,Data!$B:$B,"<>" & Criteria!$H$41,Data!$A:$A,"<=" & Criteria!$G$10) -> 0 | E132: =SUMIFS(Data!AZ:AZ,Data!$BB:$BB,"<=" & Criteria!$G$10,Data!$BC:$BC,$A132) -> 0 | F132: =SUMIFS(Data!BA:BA,Data!$BB:$BB,"<=" & Criteria!$G$10,Data!$BC:$BC,$A132) -> 0 | G132: =SUMIFS(Data!V:V,Data!$T:$T,"<>" & Criteria!$H$41,Data!$S:$S,"<=" & Criteria!$G$10,Data!$X:$X,$A132) -> 0 | H132: =SUMIFS(Data!W:W,Data!$T:$T,"<>" & Criteria!$H$41,Data!$S:$S,"<=" & Criteria!$G$10,Data!$X:$X,$A132) -> 0 | I132: =SUMIFS(Data!$AG:$AG,Data!$AF:$AF,"<>" & Criteria!$H$41,Data!$AE:$AE,VALUE(IF($A132=ReportMaxFY,Criteria!$G$10,$A132 & "09"))) -> 0
A133: 0 | B133: =IF(A133>0,OFFSET(Criteria!$M$11,Composite!A133-Criteria!$M$11,0),"") ->  | C133: =SUMIFS(Data!$C:$C,Data!$G:$G,$A133,Data!$B:$B,"<>" & Criteria!$H$41,Data!$A:$A,"<=" & Criteria!$G$10) -> 0 | D133: =SUMIFS(Data!$F:$F,Data!$G:$G,$A133,Data!$B:$B,"<>" & Criteria!$H$41,Data!$A:$A,"<=" & Criteria!$G$10) -> 0 | E133: =SUMIFS(Data!AZ:AZ,Data!$BB:$BB,"<=" & Criteria!$G$10,Data!$BC:$BC,$A133) -> 0 | F133: =SUMIFS(Data!BA:BA,Data!$BB:$BB,"<=" & Criteria!$G$10,Data!$BC:$BC,$A133) -> 0 | G133: =SUMIFS(Data!V:V,Data!$T:$T,"<>" & Criteria!$H$41,Data!$S:$S,"<=" & Criteria!$G$10,Data!$X:$X,$A133) -> 0 | H133: =SUMIFS(Data!W:W,Data!$T:$T,"<>" & Criteria!$H$41,Data!$S:$S,"<=" & Criteria!$G$10,Data!$X:$X,$A133) -> 0 | I133: =SUMIFS(Data!$AG:$AG,Data!$AF:$AF,"<>" & Criteria!$H$41,Data!$AE:$AE,VALUE(IF($A133=ReportMaxFY,Criteria!$G$10,$A133 & "09"))) -> 0
A134: 0 | B134: =IF(A134>0,OFFSET(Criteria!$M$11,Composite!A134-Criteria!$M$11,0),"") ->  | C134: =SUMIFS(Data!$C:$C,Data!$G:$G,$A134,Data!$B:$B,"<>" & Criteria!$H$41,Data!$A:$A,"<=" & Criteria!$G$10) -> 0 | D134: =SUMIFS(Data!$F:$F,Data!$G:$G,$A134,Data!$B:$B,"<>" & Criteria!$H$41,Data!$A:$A,"<=" & Criteria!$G$10) -> 0 | E134: =SUMIFS(Data!AZ:AZ,Data!$BB:$BB,"<=" & Criteria!$G$10,Data!$BC:$BC,$A134) -> 0 | F134: =SUMIFS(Data!BA:BA,Data!$BB:$BB,"<=" & Criteria!$G$10,Data!$BC:$BC,$A134) -> 0 | G134: =SUMIFS(Data!V:V,Data!$T:$T,"<>" & Criteria!$H$41,Data!$S:$S,"<=" & Criteria!$G$10,Data!$X:$X,$A134) -> 0 | H134: =SUMIFS(Data!W:W,Data!$T:$T,"<>" & Criteria!$H$41,Data!$S:$S,"<=" & Criteria!$G$10,Data!$X:$X,$A134) -> 0 | I134: =SUMIFS(Data!$AG:$AG,Data!$AF:$AF,"<>" & Criteria!$H$41,Data!$AE:$AE,VALUE(IF($A134=ReportMaxFY,Criteria!$G$10,$A134 & "09"))) -> 0
A135: 0 | B135: =IF(A135>0,OFFSET(Criteria!$M$11,Composite!A135-Criteria!$M$11,0),"") ->  | C135: =SUMIFS(Data!$C:$C,Data!$G:$G,$A135,Data!$B:$B,"<>" & Criteria!$H$41,Data!$A:$A,"<=" & Criteria!$G$10) -> 0 | D135: =SUMIFS(Data!$F:$F,Data!$G:$G,$A135,Data!$B:$B,"<>" & Criteria!$H$41,Data!$A:$A,"<=" & Criteria!$G$10) -> 0 | E135: =SUMIFS(Data!AZ:AZ,Data!$BB:$BB,"<=" & Criteria!$G$10,Data!$BC:$BC,$A135) -> 0 | F135: =SUMIFS(Data!BA:BA,Data!$BB:$BB,"<=" & Criteria!$G$10,Data!$BC:$BC,$A135) -> 0 | G135: =SUMIFS(Data!V:V,Data!$T:$T,"<>" & Criteria!$H$41,Data!$S:$S,"<=" & Criteria!$G$10,Data!$X:$X,$A135) -> 0 | H135: =SUMIFS(Data!W:W,Data!$T:$T,"<>" & Criteria!$H$41,Data!$S:$S,"<=" & Criteria!$G$10,Data!$X:$X,$A135) -> 0 | I135: =SUMIFS(Data!$AG:$AG,Data!$AF:$AF,"<>" & Criteria!$H$41,Data!$AE:$AE,VALUE(IF($A135=ReportMaxFY,Criteria!$G$10,$A135 & "09"))) -> 0
A136: 0 | B136: =IF(A136>0,OFFSET(Criteria!$M$11,Composite!A136-Criteria!$M$11,0),"") ->  | C136: =SUMIFS(Data!$C:$C,Data!$G:$G,$A136,Data!$B:$B,"<>" & Criteria!$H$41,Data!$A:$A,"<=" & Criteria!$G$10) -> 0 | D136: =SUMIFS(Data!$F:$F,Data!$G:$G,$A136,Data!$B:$B,"<>" & Criteria!$H$41,Data!$A:$A,"<=" & Criteria!$G$10) -> 0 | E136: =SUMIFS(Data!AZ:AZ,Data!$BB:$BB,"<=" & Criteria!$G$10,Data!$BC:$BC,$A136) -> 0 | F136: =SUMIFS(Data!BA:BA,Data!$BB:$BB,"<=" & Criteria!$G$10,Data!$BC:$BC,$A136) -> 0 | G136: =SUMIFS(Data!V:V,Data!$T:$T,"<>" & Criteria!$H$41,Data!$S:$S,"<=" & Criteria!$G$10,Data!$X:$X,$A136) -> 0 | H136: =SUMIFS(Data!W:W,Data!$T:$T,"<>" & Criteria!$H$41,Data!$S:$S,"<=" & Criteria!$G$10,Data!$X:$X,$A136) -> 0 | I136: =SUMIFS(Data!$AG:$AG,Data!$AF:$AF,"<>" & Criteria!$H$41,Data!$AE:$AE,VALUE(IF($A136=ReportMaxFY,Criteria!$G$10,$A136 & "09"))) -> 0
A137: 0 | B137: =IF(A137>0,OFFSET(Criteria!$M$11,Composite!A137-Criteria!$M$11,0),"") ->  | C137: =SUMIFS(Data!$C:$C,Data!$G:$G,$A137,Data!$B:$B,"<>" & Criteria!$H$41,Data!$A:$A,"<=" & Criteria!$G$10) -> 0 | D137: =SUMIFS(Data!$F:$F,Data!$G:$G,$A137,Data!$B:$B,"<>" & Criteria!$H$41,Data!$A:$A,"<=" & Criteria!$G$10) -> 0 | E137: =SUMIFS(Data!AZ:AZ,Data!$BB:$BB,"<=" & Criteria!$G$10,Data!$BC:$BC,$A137) -> 0 | F137: =SUMIFS(Data!BA:BA,Data!$BB:$BB,"<=" & Criteria!$G$10,Data!$BC:$BC,$A137) -> 0 | G137: =SUMIFS(Data!V:V,Data!$T:$T,"<>" & Criteria!$H$41,Data!$S:$S,"<=" & Criteria!$G$10,Data!$X:$X,$A137) -> 0 | H137: =SUMIFS(Data!W:W,Data!$T:$T,"<>" & Criteria!$H$41,Data!$S:$S,"<=" & Criteria!$G$10,Data!$X:$X,$A137) -> 0 | I137: =SUMIFS(Data!$AG:$AG,Data!$AF:$AF,"<>" & Criteria!$H$41,Data!$AE:$AE,VALUE(IF($A137=ReportMaxFY,Criteria!$G$10,$A137 & "09"))) -> 0
A138: 0 | B138: =IF(A138>0,OFFSET(Criteria!$M$11,Composite!A138-Criteria!$M$11,0),"") ->  | C138: =SUMIFS(Data!$C:$C,Data!$G:$G,$A138,Data!$B:$B,"<>" & Criteria!$H$41,Data!$A:$A,"<=" & Criteria!$G$10) -> 0 | D138: =SUMIFS(Data!$F:$F,Data!$G:$G,$A138,Data!$B:$B,"<>" & Criteria!$H$41,Data!$A:$A,"<=" & Criteria!$G$10) -> 0 | E138: =SUMIFS(Data!AZ:AZ,Data!$BB:$BB,"<=" & Criteria!$G$10,Data!$BC:$BC,$A138) -> 0 | F138: =SUMIFS(Data!BA:BA,Data!$BB:$BB,"<=" & Criteria!$G$10,Data!$BC:$BC,$A138) -> 0 | G138: =SUMIFS(Data!V:V,Data!$T:$T,"<>" & Criteria!$H$41,Data!$S:$S,"<=" & Criteria!$G$10,Data!$X:$X,$A138) -> 0 | H138: =SUMIFS(Data!W:W,Data!$T:$T,"<>" & Criteria!$H$41,Data!$S:$S,"<=" & Criteria!$G$10,Data!$X:$X,$A138) -> 0 | I138: =SUMIFS(Data!$AG:$AG,Data!$AF:$AF,"<>" & Criteria!$H$41,Data!$AE:$AE,VALUE(IF($A138=ReportMaxFY,Criteria!$G$10,$A138 & "09"))) -> 0
A139: 0 | B139: =IF(A139>0,OFFSET(Criteria!$M$11,Composite!A139-Criteria!$M$11,0),"") ->  | C139: =SUMIFS(Data!$C:$C,Data!$G:$G,$A139,Data!$B:$B,"<>" & Criteria!$H$41,Data!$A:$A,"<=" & Criteria!$G$10) -> 0 | D139: =SUMIFS(Data!$F:$F,Data!$G:$G,$A139,Data!$B:$B,"<>" & Criteria!$H$41,Data!$A:$A,"<=" & Criteria!$G$10) -> 0 | E139: =SUMIFS(Data!AZ:AZ,Data!$BB:$BB,"<=" & Criteria!$G$10,Data!$BC:$BC,$A139) -> 0 | F139: =SUMIFS(Data!BA:BA,Data!$BB:$BB,"<=" & Criteria!$G$10,Data!$BC:$BC,$A139) -> 0 | G139: =SUMIFS(Data!V:V,Data!$T:$T,"<>" & Criteria!$H$41,Data!$S:$S,"<=" & Criteria!$G$10,Data!$X:$X,$A139) -> 0 | H139: =SUMIFS(Data!W:W,Data!$T:$T,"<>" & Criteria!$H$41,Data!$S:$S,"<=" & Criteria!$G$10,Data!$X:$X,$A139) -> 0 | I139: =SUMIFS(Data!$AG:$AG,Data!$AF:$AF,"<>" & Criteria!$H$41,Data!$AE:$AE,VALUE(IF($A139=ReportMaxFY,Criteria!$G$10,$A139 & "09"))) -> 0
A140: 0 | B140: =IF(A140>0,OFFSET(Criteria!$M$11,Composite!A140-Criteria!$M$11,0),"") ->  | C140: =SUMIFS(Data!$C:$C,Data!$G:$G,$A140,Data!$B:$B,"<>" & Criteria!$H$41,Data!$A:$A,"<=" & Criteria!$G$10) -> 0 | D140: =SUMIFS(Data!$F:$F,Data!$G:$G,$A140,Data!$B:$B,"<>" & Criteria!$H$41,Data!$A:$A,"<=" & Criteria!$G$10) -> 0 | E140: =SUMIFS(Data!AZ:AZ,Data!$BB:$BB,"<=" & Criteria!$G$10,Data!$BC:$BC,$A140) -> 0 | F140: =SUMIFS(Data!BA:BA,Data!$BB:$BB,"<=" & Criteria!$G$10,Data!$BC:$BC,$A140) -> 0 | G140: =SUMIFS(Data!V:V,Data!$T:$T,"<>" & Criteria!$H$41,Data!$S:$S,"<=" & Criteria!$G$10,Data!$X:$X,$A140) -> 0 | H140: =SUMIFS(Data!W:W,Data!$T:$T,"<>" & Criteria!$H$41,Data!$S:$S,"<=" & Criteria!$G$10,Data!$X:$X,$A140) -> 0 | I140: =SUMIFS(Data!$AG:$AG,Data!$AF:$AF,"<>" & Criteria!$H$41,Data!$AE:$AE,VALUE(IF($A140=ReportMaxFY,Criteria!$G$10,$A140 & "09"))) -> 0
A141: 0 | B141: =IF(A141>0,OFFSET(Criteria!$M$11,Composite!A141-Criteria!$M$11,0),"") ->  | C141: =SUMIFS(Data!$C:$C,Data!$G:$G,$A141,Data!$B:$B,"<>" & Criteria!$H$41,Data!$A:$A,"<=" & Criteria!$G$10) -> 0 | D141: =SUMIFS(Data!$F:$F,Data!$G:$G,$A141,Data!$B:$B,"<>" & Criteria!$H$41,Data!$A:$A,"<=" & Criteria!$G$10) -> 0 | E141: =SUMIFS(Data!AZ:AZ,Data!$BB:$BB,"<=" & Criteria!$G$10,Data!$BC:$BC,$A141) -> 0 | F141: =SUMIFS(Data!BA:BA,Data!$BB:$BB,"<=" & Criteria!$G$10,Data!$BC:$BC,$A141) -> 0 | G141: =SUMIFS(Data!V:V,Data!$T:$T,"<>" & Criteria!$H$41,Data!$S:$S,"<=" & Criteria!$G$10,Data!$X:$X,$A141) -> 0 | H141: =SUMIFS(Data!W:W,Data!$T:$T,"<>" & Criteria!$H$41,Data!$S:$S,"<=" & Criteria!$G$10,Data!$X:$X,$A141) -> 0 | I141: =SUMIFS(Data!$AG:$AG,Data!$AF:$AF,"<>" & Criteria!$H$41,Data!$AE:$AE,VALUE(IF($A141=ReportMaxFY,Criteria!$G$10,$A141 & "09"))) -> 0
C142: =SUM(C123:C141) -> 1020337 | D142: 561434150 | E142: 697649 | F142: 339745279.4 | G142: 475189 | H142: 157029079.8
B143: 4Owners of paper savings bonds may convert them to electronic securities at TreasuryDirect.gov.

Sheet Sales
A1: TRUE | B1: TreasuryDirect Sales | O1: Composite | S1: =Composite!V1 -> 2003
O2: Incoming Transfers | S2: =S1+1 -> 2004
F3: Select Fiscal Year to Display | G3: 2012 | H3: Data to Display | I3: Monthly | O3: Redemptions | S3: =S2+1 -> 2005
O4: Amount Outstanding
S5: =S3+1 -> 2006
C6: Bills | S6: =S5+1 -> 2007
S7: =S6+1 -> 2008
C8: 4 week | E8: 13 week | G8: 26 week | I8: 52 week | K8: Returns | L8: Net Total | S8: 2009
C9: Securities | D9: Dollars | E9: Securities | F9: Dollars | G9: Securities | H9: Dollars | I9: Securities | J9: Dollars | K9: Dollars | L9: Securities | M9: Dollars | S9: 2010
B10: October | C10: =SUMIFS(Data!$L:$L,Data!$J:$J,Criteria!$D16,Data!$O:$O,Criteria!$G$25,Data!$P:$P,Criteria!$I$25) -> 1005 | D10: =SUMIFS(Data!$M:$M,Data!$J:$J,Criteria!$D16,Data!$O:$O,Criteria!$G$25,Data!$P:$P,Criteria!$I$25) -> 173876700 | E10: =SUMIFS(Data!$L:$L,Data!$J:$J,Criteria!$D16,Data!$O:$O,Criteria!$G$25,Data!$P:$P,Criteria!$I$26) -> 1840 | F10: =SUMIFS(Data!$M:$M,Data!$J:$J,Criteria!$D16,Data!$O:$O,Criteria!$G$25,Data!$P:$P,Criteria!$I$26) -> 289111300 | G10: =SUMIFS(Data!$L:$L,Data!$J:$J,Criteria!$D16,Data!$O:$O,Criteria!$G$25,Data!$P:$P,Criteria!$I$27) -> 2010 | H10: =SUMIFS(Data!$M:$M,Data!$J:$J,Criteria!$D16,Data!$O:$O,Criteria!$G$25,Data!$P:$P,Criteria!$I$27) -> 288024100 | I10: =SUMIFS(Data!$L:$L,Data!$J:$J,Criteria!$D16,Data!$O:$O,Criteria!$G$25,Data!$P:$P,Criteria!$I$28) -> 524 | J10: =SUMIFS(Data!$M:$M,Data!$J:$J,Criteria!$D16,Data!$O:$O,Criteria!$G$25,Data!$P:$P,Criteria!$I$28) -> 66390200 | K10: =SUMIFS(Data!$E:$E,Data!$A:$A,Criteria!$D16,Data!$H:$H,Criteria!$G$25) -> 15721200 | L10: =C10+E10+G10+I10 -> 5379 | M10: =D10+F10+H10+J10-K10 -> 801681100 | S10: 2011
B11: November | C11: =SUMIFS(Data!$L:$L,Data!$J:$J,Criteria!$D17,Data!$O:$O,Criteria!$G$25,Data!$P:$P,Criteria!$I$25) -> 808 | D11: =SUMIFS(Data!$M:$M,Data!$J:$J,Criteria!$D17,Data!$O:$O,Criteria!$G$25,Data!$P:$P,Criteria!$I$25) -> 125860700 | E11: =SUMIFS(Data!$L:$L,Data!$J:$J,Criteria!$D17,Data!$O:$O,Criteria!$G$25,Data!$P:$P,Criteria!$I$26) -> 1163 | F11: =SUMIFS(Data!$M:$M,Data!$J:$J,Criteria!$D17,Data!$O:$O,Criteria!$G$25,Data!$P:$P,Criteria!$I$26) -> 199365600 | G11: =SUMIFS(Data!$L:$L,Data!$J:$J,Criteria!$D17,Data!$O:$O,Criteria!$G$25,Data!$P:$P,Criteria!$I$27) -> 1352 | H11: =SUMIFS(Data!$M:$M,Data!$J:$J,Criteria!$D17,Data!$O:$O,Criteria!$G$25,Data!$P:$P,Criteria!$I$27) -> 186049300 | I11: =SUMIFS(Data!$L:$L,Data!$J:$J,Criteria!$D17,Data!$O:$O,Criteria!$G$25,Data!$P:$P,Criteria!$I$28) -> 507 | J11: =SUMIFS(Data!$M:$M,Data!$J:$J,Criteria!$D17,Data!$O:$O,Criteria!$G$25,Data!$P:$P,Criteria!$I$28) -> 53283200 | K11: =SUMIFS(Data!$E:$E,Data!$A:$A,Criteria!$D17,Data!$H:$H,Criteria!$G$25) -> 2769800 | L11: =C11+E11+G11+I11 -> 3830 | M11: =D11+F11+H11+J11-K11 -> 561789000 | S11: 2012
B12: December | C12: =SUMIFS(Data!$L:$L,Data!$J:$J,Criteria!$D18,Data!$O:$O,Criteria!$G$25,Data!$P:$P,Criteria!$I$25) -> 1415 | D12: =SUMIFS(Data!$M:$M,Data!$J:$J,Criteria!$D18,Data!$O:$O,Criteria!$G$25,Data!$P:$P,Criteria!$I$25) -> 224514700 | E12: =SUMIFS(Data!$L:$L,Data!$J:$J,Criteria!$D18,Data!$O:$O,Criteria!$G$25,Data!$P:$P,Criteria!$I$26) -> 1943 | F12: =SUMIFS(Data!$M:$M,Data!$J:$J,Criteria!$D18,Data!$O:$O,Criteria!$G$25,Data!$P:$P,Criteria!$I$26) -> 320694700 | G12: =SUMIFS(Data!$L:$L,Data!$J:$J,Criteria!$D18,Data!$O:$O,Criteria!$G$25,Data!$P:$P,Criteria!$I$27) -> 2227 | H12: =SUMIFS(Data!$M:$M,Data!$J:$J,Criteria!$D18,Data!$O:$O,Criteria!$G$25,Data!$P:$P,Criteria!$I$27) -> 289440600 | I12: =SUMIFS(Data!$L:$L,Data!$J:$J,Criteria!$D18,Data!$O:$O,Criteria!$G$25,Data!$P:$P,Criteria!$I$28) -> 546 | J12: =SUMIFS(Data!$M:$M,Data!$J:$J,Criteria!$D18,Data!$O:$O,Criteria!$G$25,Data!$P:$P,Criteria!$I$28) -> 67631200 | K12: =SUMIFS(Data!$E:$E,Data!$A:$A,Criteria!$D18,Data!$H:$H,Criteria!$G$25) -> 16327400 | L12: 6131 | M12: 885953800 | S12: 2013
B13: January | C13: =SUMIFS(Data!$L:$L,Data!$J:$J,Criteria!$D19,Data!$O:$O,Criteria!$G$25,Data!$P:$P,Criteria!$I$25) -> 1045 | D13: =SUMIFS(Data!$M:$M,Data!$J:$J,Criteria!$D19,Data!$O:$O,Criteria!$G$25,Data!$P:$P,Criteria!$I$25) -> 172698500 | E13: =SUMIFS(Data!$L:$L,Data!$J:$J,Criteria!$D19,Data!$O:$O,Criteria!$G$25,Data!$P:$P,Criteria!$I$26) -> 1553 | F13: =SUMIFS(Data!$M:$M,Data!$J:$J,Criteria!$D19,Data!$O:$O,Criteria!$G$25,Data!$P:$P,Criteria!$I$26) -> 282353700 | G13: =SUMIFS(Data!$L:$L,Data!$J:$J,Criteria!$D19,Data!$O:$O,Criteria!$G$25,Data!$P:$P,Criteria!$I$27) -> 1703 | H13: =SUMIFS(Data!$M:$M,Data!$J:$J,Criteria!$D19,Data!$O:$O,Criteria!$G$25,Data!$P:$P,Criteria!$I$27) -> 226174600 | I13: =SUMIFS(Data!$L:$L,Data!$J:$J,Criteria!$D19,Data!$O:$O,Criteria!$G$25,Data!$P:$P,Criteria!$I$28) -> 557 | J13: =SUMIFS(Data!$M:$M,Data!$J:$J,Criteria!$D19,Data!$O:$O,Criteria!$G$25,Data!$P:$P,Criteria!$I$28) -> 66009500 | K13: =SUMIFS(Data!$E:$E,Data!$A:$A,Criteria!$D19,Data!$H:$H,Criteria!$G$25) -> 25586600 | L13: 4858 | M13: 721649700 | S13: 2014
B14: February | C14: =SUMIFS(Data!$L:$L,Data!$J:$J,Criteria!$D20,Data!$O:$O,Criteria!$G$25,Data!$P:$P,Criteria!$I$25) -> 1251 | D14: =SUMIFS(Data!$M:$M,Data!$J:$J,Criteria!$D20,Data!$O:$O,Criteria!$G$25,Data!$P:$P,Criteria!$I$25) -> 181248300 | E14: =SUMIFS(Data!$L:$L,Data!$J:$J,Criteria!$D20,Data!$O:$O,Criteria!$G$25,Data!$P:$P,Criteria!$I$26) -> 1516 | F14: =SUMIFS(Data!$M:$M,Data!$J:$J,Criteria!$D20,Data!$O:$O,Criteria!$G$25,Data!$P:$P,Criteria!$I$26) -> 303276700 | G14: =SUMIFS(Data!$L:$L,Data!$J:$J,Criteria!$D20,Data!$O:$O,Criteria!$G$25,Data!$P:$P,Criteria!$I$27) -> 1944 | H14: =SUMIFS(Data!$M:$M,Data!$J:$J,Criteria!$D20,Data!$O:$O,Criteria!$G$25,Data!$P:$P,Criteria!$I$27) -> 285554800 | I14: =SUMIFS(Data!$L:$L,Data!$J:$J,Criteria!$D20,Data!$O:$O,Criteria!$G$25,Data!$P:$P,Criteria!$I$28) -> 639 | J14: =SUMIFS(Data!$M:$M,Data!$J:$J,Criteria!$D20,Data!$O:$O,Criteria!$G$25,Data!$P:$P,Criteria!$I$28) -> 67969000 | K14: =SUMIFS(Data!$E:$E,Data!$A:$A,Criteria!$D20,Data!$H:$H,Criteria!$G$25) -> 18233700 | L14: 5350 | M14: 819815100 | S14: 2015
B15: March | C15: =SUMIFS(Data!$L:$L,Data!$J:$J,Criteria!$D21,Data!$O:$O,Criteria!$G$25,Data!$P:$P,Criteria!$I$25) -> 1545 | D15: =SUMIFS(Data!$M:$M,Data!$J:$J,Criteria!$D21,Data!$O:$O,Criteria!$G$25,Data!$P:$P,Criteria!$I$25) -> 232931300 | E15: =SUMIFS(Data!$L:$L,Data!$J:$J,Criteria!$D21,Data!$O:$O,Criteria!$G$25,Data!$P:$P,Criteria!$I$26) -> 1776 | F15: =SUMIFS(Data!$M:$M,Data!$J:$J,Criteria!$D21,Data!$O:$O,Criteria!$G$25,Data!$P:$P,Criteria!$I$26) -> 282323800 | G15: =SUMIFS(Data!$L:$L,Data!$J:$J,Criteria!$D21,Data!$O:$O,Criteria!$G$25,Data!$P:$P,Criteria!$I$27) -> 2142 | H15: =SUMIFS(Data!$M:$M,Data!$J:$J,Criteria!$D21,Data!$O:$O,Criteria!$G$25,Data!$P:$P,Criteria!$I$27) -> 268935200 | I15: =SUMIFS(Data!$L:$L,Data!$J:$J,Criteria!$D21,Data!$O:$O,Criteria!$G$25,Data!$P:$P,Criteria!$I$28) -> 564 | J15: =SUMIFS(Data!$M:$M,Data!$J:$J,Criteria!$D21,Data!$O:$O,Criteria!$G$25,Data!$P:$P,Criteria!$I$28) -> 66776500 | K15: =SUMIFS(Data!$E:$E,Data!$A:$A,Criteria!$D21,Data!$H:$H,Criteria!$G$25) -> 5001300 | L15: 6027 | M15: 845965500 | S15: 2016
B16: April | C16: =SUMIFS(Data!$L:$L,Data!$J:$J,Criteria!$D22,Data!$O:$O,Criteria!$G$25,Data!$P:$P,Criteria!$I$25) -> 1200 | D16: =SUMIFS(Data!$M:$M,Data!$J:$J,Criteria!$D22,Data!$O:$O,Criteria!$G$25,Data!$P:$P,Criteria!$I$25) -> 181049600 | E16: =SUMIFS(Data!$L:$L,Data!$J:$J,Criteria!$D22,Data!$O:$O,Criteria!$G$25,Data!$P:$P,Criteria!$I$26) -> 1467 | F16: =SUMIFS(Data!$M:$M,Data!$J:$J,Criteria!$D22,Data!$O:$O,Criteria!$G$25,Data!$P:$P,Criteria!$I$26) -> 274567500 | G16: =SUMIFS(Data!$L:$L,Data!$J:$J,Criteria!$D22,Data!$O:$O,Criteria!$G$25,Data!$P:$P,Criteria!$I$27) -> 1745 | H16: =SUMIFS(Data!$M:$M,Data!$J:$J,Criteria!$D22,Data!$O:$O,Criteria!$G$25,Data!$P:$P,Criteria!$I$27) -> 256373300 | I16: =SUMIFS(Data!$L:$L,Data!$J:$J,Criteria!$D22,Data!$O:$O,Criteria!$G$25,Data!$P:$P,Criteria!$I$28) -> 494 | J16: =SUMIFS(Data!$M:$M,Data!$J:$J,Criteria!$D22,Data!$O:$O,Criteria!$G$25,Data!$P:$P,Criteria!$I$28) -> 42476900 | K16: =SUMIFS(Data!$E:$E,Data!$A:$A,Criteria!$D22,Data!$H:$H,Criteria!$G$25) -> 13584400 | L16: 4906 | M16: 740882900 | S16: 2017
B17: May | C17: =SUMIFS(Data!$L:$L,Data!$J:$J,Criteria!$D23,Data!$O:$O,Criteria!$G$25,Data!$P:$P,Criteria!$I$25) -> 1575 | D17: =SUMIFS(Data!$M:$M,Data!$J:$J,Criteria!$D23,Data!$O:$O,Criteria!$G$25,Data!$P:$P,Criteria!$I$25) -> 252755400 | E17: =SUMIFS(Data!$L:$L,Data!$J:$J,Criteria!$D23,Data!$O:$O,Criteria!$G$25,Data!$P:$P,Criteria!$I$26) -> 1802 | F17: =SUMIFS(Data!$M:$M,Data!$J:$J,Criteria!$D23,Data!$O:$O,Criteria!$G$25,Data!$P:$P,Criteria!$I$26) -> 403998300 | G17: =SUMIFS(Data!$L:$L,Data!$J:$J,Criteria!$D23,Data!$O:$O,Criteria!$G$25,Data!$P:$P,Criteria!$I$27) -> 2024 | H17: =SUMIFS(Data!$M:$M,Data!$J:$J,Criteria!$D23,Data!$O:$O,Criteria!$G$25,Data!$P:$P,Criteria!$I$27) -> 315716300 | I17: =SUMIFS(Data!$L:$L,Data!$J:$J,Criteria!$D23,Data!$O:$O,Criteria!$G$25,Data!$P:$P,Criteria!$I$28) -> 974 | J17: =SUMIFS(Data!$M:$M,Data!$J:$J,Criteria!$D23,Data!$O:$O,Criteria!$G$25,Data!$P:$P,Criteria!$I$28) -> 98432100 | K17: =SUMIFS(Data!$E:$E,Data!$A:$A,Criteria!$D23,Data!$H:$H,Criteria!$G$25) -> 14143800 | L17: 6375 | M17: 1056758300 | S17: 2018
B18: June | C18: =SUMIFS(Data!$L:$L,Data!$J:$J,Criteria!$D24,Data!$O:$O,Criteria!$G$25,Data!$P:$P,Criteria!$I$25) -> 1125 | D18: =SUMIFS(Data!$M:$M,Data!$J:$J,Criteria!$D24,Data!$O:$O,Criteria!$G$25,Data!$P:$P,Criteria!$I$25) -> 195536900 | E18: =SUMIFS(Data!$L:$L,Data!$J:$J,Criteria!$D24,Data!$O:$O,Criteria!$G$25,Data!$P:$P,Criteria!$I$26) -> 1375 | F18: =SUMIFS(Data!$M:$M,Data!$J:$J,Criteria!$D24,Data!$O:$O,Criteria!$G$25,Data!$P:$P,Criteria!$I$26) -> 278714500 | G18: =SUMIFS(Data!$L:$L,Data!$J:$J,Criteria!$D24,Data!$O:$O,Criteria!$G$25,Data!$P:$P,Criteria!$I$27) -> 1704 | H18: =SUMIFS(Data!$M:$M,Data!$J:$J,Criteria!$D24,Data!$O:$O,Criteria!$G$25,Data!$P:$P,Criteria!$I$27) -> 272395500 | I18: =SUMIFS(Data!$L:$L,Data!$J:$J,Criteria!$D24,Data!$O:$O,Criteria!$G$25,Data!$P:$P,Criteria!$I$28) -> 475 | J18: =SUMIFS(Data!$M:$M,Data!$J:$J,Criteria!$D24,Data!$O:$O,Criteria!$G$25,Data!$P:$P,Criteria!$I$28) -> 37701300 | K18: =SUMIFS(Data!$E:$E,Data!$A:$A,Criteria!$D24,Data!$H:$H,Criteria!$G$25) -> 6732900 | L18: 4679 | M18: 777615300 | S18: 2019
B19: July | C19: =SUMIFS(Data!$L:$L,Data!$J:$J,Criteria!$D25,Data!$O:$O,Criteria!$G$25,Data!$P:$P,Criteria!$I$25) -> 1135 | D19: =SUMIFS(Data!$M:$M,Data!$J:$J,Criteria!$D25,Data!$O:$O,Criteria!$G$25,Data!$P:$P,Criteria!$I$25) -> 207707900 | E19: =SUMIFS(Data!$L:$L,Data!$J:$J,Criteria!$D25,Data!$O:$O,Criteria!$G$25,Data!$P:$P,Criteria!$I$26) -> 1380 | F19: =SUMIFS(Data!$M:$M,Data!$J:$J,Criteria!$D25,Data!$O:$O,Criteria!$G$25,Data!$P:$P,Criteria!$I$26) -> 285550700 | G19: =SUMIFS(Data!$L:$L,Data!$J:$J,Criteria!$D25,Data!$O:$O,Criteria!$G$25,Data!$P:$P,Criteria!$I$27) -> 1638 | H19: =SUMIFS(Data!$M:$M,Data!$J:$J,Criteria!$D25,Data!$O:$O,Criteria!$G$25,Data!$P:$P,Criteria!$I$27) -> 251103100 | I19: =SUMIFS(Data!$L:$L,Data!$J:$J,Criteria!$D25,Data!$O:$O,Criteria!$G$25,Data!$P:$P,Criteria!$I$28) -> 461 | J19: =SUMIFS(Data!$M:$M,Data!$J:$J,Criteria!$D25,Data!$O:$O,Criteria!$G$25,Data!$P:$P,Criteria!$I$28) -> 51275200 | K19: =SUMIFS(Data!$E:$E,Data!$A:$A,Criteria!$D25,Data!$H:$H,Criteria!$G$25) -> 8228400 | L19: 4614 | M19: 787408500 | S19: 2020
B20: August | C20: =SUMIFS(Data!$L:$L,Data!$J:$J,Criteria!$D26,Data!$O:$O,Criteria!$G$25,Data!$P:$P,Criteria!$I$25) -> 1435 | D20: =SUMIFS(Data!$M:$M,Data!$J:$J,Criteria!$D26,Data!$O:$O,Criteria!$G$25,Data!$P:$P,Criteria!$I$25) -> 237263300 | E20: =SUMIFS(Data!$L:$L,Data!$J:$J,Criteria!$D26,Data!$O:$O,Criteria!$G$25,Data!$P:$P,Criteria!$I$26) -> 1668 | F20: =SUMIFS(Data!$M:$M,Data!$J:$J,Criteria!$D26,Data!$O:$O,Criteria!$G$25,Data!$P:$P,Criteria!$I$26) -> 381846500 | G20: =SUMIFS(Data!$L:$L,Data!$J:$J,Criteria!$D26,Data!$O:$O,Criteria!$G$25,Data!$P:$P,Criteria!$I$27) -> 2042 | H20: =SUMIFS(Data!$M:$M,Data!$J:$J,Criteria!$D26,Data!$O:$O,Criteria!$G$25,Data!$P:$P,Criteria!$I$27) -> 301800000 | I20: =SUMIFS(Data!$L:$L,Data!$J:$J,Criteria!$D26,Data!$O:$O,Criteria!$G$25,Data!$P:$P,Criteria!$I$28) -> 505 | J20: =SUMIFS(Data!$M:$M,Data!$J:$J,Criteria!$D26,Data!$O:$O,Criteria!$G$25,Data!$P:$P,Criteria!$I$28) -> 61987500 | K20: =SUMIFS(Data!$E:$E,Data!$A:$A,Criteria!$D26,Data!$H:$H,Criteria!$G$25) -> 5700900 | L20: 5650 | M20: 977196400 | S20: 2021
B21: September | C21: =SUMIFS(Data!$L:$L,Data!$J:$J,Criteria!$D27,Data!$O:$O,Criteria!$G$25,Data!$P:$P,Criteria!$I$25) -> 0 | D21: =SUMIFS(Data!$M:$M,Data!$J:$J,Criteria!$D27,Data!$O:$O,Criteria!$G$25,Data!$P:$P,Criteria!$I$25) -> 0 | E21: =SUMIFS(Data!$L:$L,Data!$J:$J,Criteria!$D27,Data!$O:$O,Criteria!$G$25,Data!$P:$P,Criteria!$I$26) -> 0 | F21: =SUMIFS(Data!$M:$M,Data!$J:$J,Criteria!$D27,Data!$O:$O,Criteria!$G$25,Data!$P:$P,Criteria!$I$26) -> 0 | G21: =SUMIFS(Data!$L:$L,Data!$J:$J,Criteria!$D27,Data!$O:$O,Criteria!$G$25,Data!$P:$P,Criteria!$I$27) -> 0 | H21: =SUMIFS(Data!$M:$M,Data!$J:$J,Criteria!$D27,Data!$O:$O,Criteria!$G$25,Data!$P:$P,Criteria!$I$27) -> 0 | I21: =SUMIFS(Data!$L:$L,Data!$J:$J,Criteria!$D27,Data!$O:$O,Criteria!$G$25,Data!$P:$P,Criteria!$I$28) -> 0 | J21: =SUMIFS(Data!$M:$M,Data!$J:$J,Criteria!$D27,Data!$O:$O,Criteria!$G$25,Data!$P:$P,Criteria!$I$28) -> 0 | K21: =SUMIFS(Data!$E:$E,Data!$A:$A,Criteria!$D27,Data!$H:$H,Criteria!$G$25) -> 0 | L21: 0 | M21: 0 | S21: 2022
C22: =SUM(C10:C21) -> 13539 | D22: =SUM(D10:D21) -> 2185443300 | E22: 17483 | F22: 3301803300 | G22: 20531 | H22: 2941566800 | I22: =SUM(I10:I21) -> 6246 | J22: =SUM(J10:J21) -> 679932600 | K22: 132030400 | L22: 57799 | M22: 8976715600 | S22: 2023
S23: =S22+1 -> 2024
C24: Notes | S24: =S23+1 -> 2025
S25: =S24+1 -> 2026
C26: 2 year | E26: 3 year | G26: 5 year | I26: 7 year | K26: 10 year | M26: Returns | N26: Net Total | S26: =S25+1 -> 2027
C27: Securities | D27: Dollars | E27: Securities | F27: Dollars | G27: Securities | H27: Dollars | I27: Securities | J27: Dollars | K27: Securities | L27: Dollars | M27: Dollars | N27: Securities | O27: Dollars
B28: October | C28: =SUMIFS(Data!$L:$L,Data!$J:$J,Criteria!$D16,Data!$O:$O,Criteria!$G$29,Data!$P:$P,Criteria!$I$29) -> 886 | D28: =SUMIFS(Data!$M:$M,Data!$J:$J,Criteria!$D16,Data!$O:$O,Criteria!$G$29,Data!$P:$P,Criteria!$I$29) -> 51025200 | E28: =SUMIFS(Data!$L:$L,Data!$J:$J,Criteria!$D16,Data!$O:$O,Criteria!$G$29,Data!$P:$P,Criteria!$I$30) -> 201 | F28: =SUMIFS(Data!$M:$M,Data!$J:$J,Criteria!$D16,Data!$O:$O,Criteria!$G$29,Data!$P:$P,Criteria!$I$30) -> 19582100 | G28: =SUMIFS(Data!$L:$L,Data!$J:$J,Criteria!$D16,Data!$O:$O,Criteria!$G$29,Data!$P:$P,Criteria!$I$31) -> 347 | H28: =SUMIFS(Data!$M:$M,Data!$J:$J,Criteria!$D16,Data!$O:$O,Criteria!$G$29,Data!$P:$P,Criteria!$I$31) -> 11403400 | I28: =SUMIFS(Data!$L:$L,Data!$J:$J,Criteria!$D16,Data!$O:$O,Criteria!$G$29,Data!$P:$P,Criteria!$I$32) -> 128 | J28: =SUMIFS(Data!$M:$M,Data!$J:$J,Criteria!$D16,Data!$O:$O,Criteria!$G$29,Data!$P:$P,Criteria!$I$32) -> 4647700 | K28: =SUMIFS(Data!$L:$L,Data!$J:$J,Criteria!$D16,Data!$O:$O,Criteria!$G$29,Data!$P:$P,Criteria!$I$33) -> 162 | L28: =SUMIFS(Data!$M:$M,Data!$J:$J,Criteria!$D16,Data!$O:$O,Criteria!$G$29,Data!$P:$P,Criteria!$I$33) -> 2884200 | M28: =SUMIFS(Data!$E:$E,Data!$A:$A,Criteria!$D16,Data!$H:$H,Criteria!$G$29) -> 653000 | N28: =C28+E28+G28+I28+K28 -> 1724 | O28: =D28+F28+H28+J28+L28-M28 -> 88889600
B29: November | C29: =SUMIFS(Data!$L:$L,Data!$J:$J,Criteria!$D17,Data!$O:$O,Criteria!$G$29,Data!$P:$P,Criteria!$I$29) -> 846 | D29: =SUMIFS(Data!$M:$M,Data!$J:$J,Criteria!$D17,Data!$O:$O,Criteria!$G$29,Data!$P:$P,Criteria!$I$29) -> 53037100 | E29: =SUMIFS(Data!$L:$L,Data!$J:$J,Criteria!$D17,Data!$O:$O,Criteria!$G$29,Data!$P:$P,Criteria!$I$30) -> 243 | F29: =SUMIFS(Data!$M:$M,Data!$J:$J,Criteria!$D17,Data!$O:$O,Criteria!$G$29,Data!$P:$P,Criteria!$I$30) -> 16538300 | G29: =SUMIFS(Data!$L:$L,Data!$J:$J,Criteria!$D17,Data!$O:$O,Criteria!$G$29,Data!$P:$P,Criteria!$I$31) -> 342 | H29: =SUMIFS(Data!$M:$M,Data!$J:$J,Criteria!$D17,Data!$O:$O,Criteria!$G$29,Data!$P:$P,Criteria!$I$31) -> 8927000 | I29: =SUMIFS(Data!$L:$L,Data!$J:$J,Criteria!$D17,Data!$O:$O,Criteria!$G$29,Data!$P:$P,Criteria!$I$32) -> 155 | J29: =SUMIFS(Data!$M:$M,Data!$J:$J,Criteria!$D17,Data!$O:$O,Criteria!$G$29,Data!$P:$P,Criteria!$I$32) -> 3301500 | K29: =SUMIFS(Data!$L:$L,Data!$J:$J,Criteria!$D17,Data!$O:$O,Criteria!$G$29,Data!$P:$P,Criteria!$I$33) -> 388 | L29: =SUMIFS(Data!$M:$M,Data!$J:$J,Criteria!$D17,Data!$O:$O,Criteria!$G$29,Data!$P:$P,Criteria!$I$33) -> 9979100 | M29: =SUMIFS(Data!$E:$E,Data!$A:$A,Criteria!$D17,Data!$H:$H,Criteria!$G$29) -> 860300 | N29: =C29+E29+G29+I29+K29 -> 1974 | O29: =D29+F29+H29+J29+L29-M29 -> 90922700
B30: December | C30: =SUMIFS(Data!$L:$L,Data!$J:$J,Criteria!$D18,Data!$O:$O,Criteria!$G$29,Data!$P:$P,Criteria!$I$29) -> 0 | D30: =SUMIFS(Data!$M:$M,Data!$J:$J,Criteria!$D18,Data!$O:$O,Criteria!$G$29,Data!$P:$P,Criteria!$I$29) -> 0 | E30: =SUMIFS(Data!$L:$L,Data!$J:$J,Criteria!$D18,Data!$O:$O,Criteria!$G$29,Data!$P:$P,Criteria!$I$30) -> 299 | F30: =SUMIFS(Data!$M:$M,Data!$J:$J,Criteria!$D18,Data!$O:$O,Criteria!$G$29,Data!$P:$P,Criteria!$I$30) -> 22961800 | G30: =SUMIFS(Data!$L:$L,Data!$J:$J,Criteria!$D18,Data!$O:$O,Criteria!$G$29,Data!$P:$P,Criteria!$I$31) -> 0 | H30: =SUMIFS(Data!$M:$M,Data!$J:$J,Criteria!$D18,Data!$O:$O,Criteria!$G$29,Data!$P:$P,Criteria!$I$31) -> 0 | I30: =SUMIFS(Data!$L:$L,Data!$J:$J,Criteria!$D18,Data!$O:$O,Criteria!$G$29,Data!$P:$P,Criteria!$I$32) -> 0 | J30: =SUMIFS(Data!$M:$M,Data!$J:$J,Criteria!$D18,Data!$O:$O,Criteria!$G$29,Data!$P:$P,Criteria!$I$32) -> 0 | K30: =SUMIFS(Data!$L:$L,Data!$J:$J,Criteria!$D18,Data!$O:$O,Criteria!$G$29,Data!$P:$P,Criteria!$I$33) -> 246 | L30: =SUMIFS(Data!$M:$M,Data!$J:$J,Criteria!$D18,Data!$O:$O,Criteria!$G$29,Data!$P:$P,Criteria!$I$33) -> 13052000 | M30: =SUMIFS(Data!$E:$E,Data!$A:$A,Criteria!$D18,Data!$H:$H,Criteria!$G$29) -> 1293200 | N30: 545 | O30: 34720600
B31: January | C31: =SUMIFS(Data!$L:$L,Data!$J:$J,Criteria!$D19,Data!$O:$O,Criteria!$G$29,Data!$P:$P,Criteria!$I$29) -> 1811 | D31: =SUMIFS(Data!$M:$M,Data!$J:$J,Criteria!$D19,Data!$O:$O,Criteria!$G$29,Data!$P:$P,Criteria!$I$29) -> 115688400 | E31: =SUMIFS(Data!$L:$L,Data!$J:$J,Criteria!$D19,Data!$O:$O,Criteria!$G$29,Data!$P:$P,Criteria!$I$30) -> 236 | F31: =SUMIFS(Data!$M:$M,Data!$J:$J,Criteria!$D19,Data!$O:$O,Criteria!$G$29,Data!$P:$P,Criteria!$I$30) -> 8504000 | G31: =SUMIFS(Data!$L:$L,Data!$J:$J,Criteria!$D19,Data!$O:$O,Criteria!$G$29,Data!$P:$P,Criteria!$I$31) -> 594 | H31: =SUMIFS(Data!$M:$M,Data!$J:$J,Criteria!$D19,Data!$O:$O,Criteria!$G$29,Data!$P:$P,Criteria!$I$31) -> 25065000 | I31: =SUMIFS(Data!$L:$L,Data!$J:$J,Criteria!$D19,Data!$O:$O,Criteria!$G$29,Data!$P:$P,Criteria!$I$32) -> 275 | J31: =SUMIFS(Data!$M:$M,Data!$J:$J,Criteria!$D19,Data!$O:$O,Criteria!$G$29,Data!$P:$P,Criteria!$I$32) -> 7174100 | K31: =SUMIFS(Data!$L:$L,Data!$J:$J,Criteria!$D19,Data!$O:$O,Criteria!$G$29,Data!$P:$P,Criteria!$I$33) -> 193 | L31: =SUMIFS(Data!$M:$M,Data!$J:$J,Criteria!$D19,Data!$O:$O,Criteria!$G$29,Data!$P:$P,Criteria!$I$33) -> 5346900 | M31: =SUMIFS(Data!$E:$E,Data!$A:$A,Criteria!$D19,Data!$H:$H,Criteria!$G$29) -> 744200 | N31: 3109 | O31: 161034200
B32: February | C32: =SUMIFS(Data!$L:$L,Data!$J:$J,Criteria!$D20,Data!$O:$O,Criteria!$G$29,Data!$P:$P,Criteria!$I$29) -> 946 | D32: =SUMIFS(Data!$M:$M,Data!$J:$J,Criteria!$D20,Data!$O:$O,Criteria!$G$29,Data!$P:$P,Criteria!$I$29) -> 58528600 | E32: =SUMIFS(Data!$L:$L,Data!$J:$J,Criteria!$D20,Data!$O:$O,Criteria!$G$29,Data!$P:$P,Criteria!$I$30) -> 276 | F32: =SUMIFS(Data!$M:$M,Data!$J:$J,Criteria!$D20,Data!$O:$O,Criteria!$G$29,Data!$P:$P,Criteria!$I$30) -> 18766300 | G32: =SUMIFS(Data!$L:$L,Data!$J:$J,Criteria!$D20,Data!$O:$O,Criteria!$G$29,Data!$P:$P,Criteria!$I$31) -> 306 | H32: =SUMIFS(Data!$M:$M,Data!$J:$J,Criteria!$D20,Data!$O:$O,Criteria!$G$29,Data!$P:$P,Criteria!$I$31) -> 12035100 | I32: =SUMIFS(Data!$L:$L,Data!$J:$J,Criteria!$D20,Data!$O:$O,Criteria!$G$29,Data!$P:$P,Criteria!$I$32) -> 151 | J32: =SUMIFS(Data!$M:$M,Data!$J:$J,Criteria!$D20,Data!$O:$O,Criteria!$G$29,Data!$P:$P,Criteria!$I$32) -> 9039700 | K32: =SUMIFS(Data!$L:$L,Data!$J:$J,Criteria!$D20,Data!$O:$O,Criteria!$G$29,Data!$P:$P,Criteria!$I$33) -> 438 | L32: =SUMIFS(Data!$M:$M,Data!$J:$J,Criteria!$D20,Data!$O:$O,Criteria!$G$29,Data!$P:$P,Criteria!$I$33) -> 20454700 | M32: =SUMIFS(Data!$E:$E,Data!$A:$A,Criteria!$D20,Data!$H:$H,Criteria!$G$29) -> 6672100 | N32: 2117 | O32: 112152300
B33: March | C33: =SUMIFS(Data!$L:$L,Data!$J:$J,Criteria!$D21,Data!$O:$O,Criteria!$G$29,Data!$P:$P,Criteria!$I$29) -> 0 | D33: =SUMIFS(Data!$M:$M,Data!$J:$J,Criteria!$D21,Data!$O:$O,Criteria!$G$29,Data!$P:$P,Criteria!$I$29) -> 0 | E33: =SUMIFS(Data!$L:$L,Data!$J:$J,Criteria!$D21,Data!$O:$O,Criteria!$G$29,Data!$P:$P,Criteria!$I$30) -> 261 | F33: =SUMIFS(Data!$M:$M,Data!$J:$J,Criteria!$D21,Data!$O:$O,Criteria!$G$29,Data!$P:$P,Criteria!$I$30) -> 14494900 | G33: =SUMIFS(Data!$L:$L,Data!$J:$J,Criteria!$D21,Data!$O:$O,Criteria!$G$29,Data!$P:$P,Criteria!$I$31) -> 0 | H33: =SUMIFS(Data!$M:$M,Data!$J:$J,Criteria!$D21,Data!$O:$O,Criteria!$G$29,Data!$P:$P,Criteria!$I$31) -> 0 | I33: =SUMIFS(Data!$L:$L,Data!$J:$J,Criteria!$D21,Data!$O:$O,Criteria!$G$29,Data!$P:$P,Criteria!$I$32) -> 0 | J33: =SUMIFS(Data!$M:$M,Data!$J:$J,Criteria!$D21,Data!$O:$O,Criteria!$G$29,Data!$P:$P,Criteria!$I$32) -> 0 | K33: =SUMIFS(Data!$L:$L,Data!$J:$J,Criteria!$D21,Data!$O:$O,Criteria!$G$29,Data!$P:$P,Criteria!$I$33) -> 294 | L33: =SUMIFS(Data!$M:$M,Data!$J:$J,Criteria!$D21,Data!$O:$O,Criteria!$G$29,Data!$P:$P,Criteria!$I$33) -> 12771200 | M33: =SUMIFS(Data!$E:$E,Data!$A:$A,Criteria!$D21,Data!$H:$H,Criteria!$G$29) -> 5980300 | N33: 555 | O33: 21285800
B34: April | C34: =SUMIFS(Data!$L:$L,Data!$J:$J,Criteria!$D22,Data!$O:$O,Criteria!$G$29,Data!$P:$P,Criteria!$I$29) -> 1801 | D34: =SUMIFS(Data!$M:$M,Data!$J:$J,Criteria!$D22,Data!$O:$O,Criteria!$G$29,Data!$P:$P,Criteria!$I$29) -> 98601900 | E34: =SUMIFS(Data!$L:$L,Data!$J:$J,Criteria!$D22,Data!$O:$O,Criteria!$G$29,Data!$P:$P,Criteria!$I$30) -> 230 | F34: =SUMIFS(Data!$M:$M,Data!$J:$J,Criteria!$D22,Data!$O:$O,Criteria!$G$29,Data!$P:$P,Criteria!$I$30) -> 21467700 | G34: =SUMIFS(Data!$L:$L,Data!$J:$J,Criteria!$D22,Data!$O:$O,Criteria!$G$29,Data!$P:$P,Criteria!$I$31) -> 595 | H34: =SUMIFS(Data!$M:$M,Data!$J:$J,Criteria!$D22,Data!$O:$O,Criteria!$G$29,Data!$P:$P,Criteria!$I$31) -> 17375500 | I34: =SUMIFS(Data!$L:$L,Data!$J:$J,Criteria!$D22,Data!$O:$O,Criteria!$G$29,Data!$P:$P,Criteria!$I$32) -> 270 | J34: =SUMIFS(Data!$M:$M,Data!$J:$J,Criteria!$D22,Data!$O:$O,Criteria!$G$29,Data!$P:$P,Criteria!$I$32) -> 8012000 | K34: =SUMIFS(Data!$L:$L,Data!$J:$J,Criteria!$D22,Data!$O:$O,Criteria!$G$29,Data!$P:$P,Criteria!$I$33) -> 199 | L34: =SUMIFS(Data!$M:$M,Data!$J:$J,Criteria!$D22,Data!$O:$O,Criteria!$G$29,Data!$P:$P,Criteria!$I$33) -> 3721800 | M34: =SUMIFS(Data!$E:$E,Data!$A:$A,Criteria!$D22,Data!$H:$H,Criteria!$G$29) -> 1101500 | N34: 3095 | O34: 148077400
B35: May | C35: =SUMIFS(Data!$L:$L,Data!$J:$J,Criteria!$D23,Data!$O:$O,Criteria!$G$29,Data!$P:$P,Criteria!$I$29) -> 911 | D35: =SUMIFS(Data!$M:$M,Data!$J:$J,Criteria!$D23,Data!$O:$O,Criteria!$G$29,Data!$P:$P,Criteria!$I$29) -> 52133600 | E35: =SUMIFS(Data!$L:$L,Data!$J:$J,Criteria!$D23,Data!$O:$O,Criteria!$G$29,Data!$P:$P,Criteria!$I$30) -> 249 | F35: =SUMIFS(Data!$M:$M,Data!$J:$J,Criteria!$D23,Data!$O:$O,Criteria!$G$29,Data!$P:$P,Criteria!$I$30) -> 11070700 | G35: =SUMIFS(Data!$L:$L,Data!$J:$J,Criteria!$D23,Data!$O:$O,Criteria!$G$29,Data!$P:$P,Criteria!$I$31) -> 292 | H35: =SUMIFS(Data!$M:$M,Data!$J:$J,Criteria!$D23,Data!$O:$O,Criteria!$G$29,Data!$P:$P,Criteria!$I$31) -> 15262700 | I35: =SUMIFS(Data!$L:$L,Data!$J:$J,Criteria!$D23,Data!$O:$O,Criteria!$G$29,Data!$P:$P,Criteria!$I$32) -> 131 | J35: =SUMIFS(Data!$M:$M,Data!$J:$J,Criteria!$D23,Data!$O:$O,Criteria!$G$29,Data!$P:$P,Criteria!$I$32) -> 2601700 | K35: =SUMIFS(Data!$L:$L,Data!$J:$J,Criteria!$D23,Data!$O:$O,Criteria!$G$29,Data!$P:$P,Criteria!$I$33) -> 372 | L35: =SUMIFS(Data!$M:$M,Data!$J:$J,Criteria!$D23,Data!$O:$O,Criteria!$G$29,Data!$P:$P,Criteria!$I$33) -> 11775800 | M35: =SUMIFS(Data!$E:$E,Data!$A:$A,Criteria!$D23,Data!$H:$H,Criteria!$G$29) -> 1893900 | N35: 1955 | O35: 90950600
B36: June | C36: =SUMIFS(Data!$L:$L,Data!$J:$J,Criteria!$D24,Data!$O:$O,Criteria!$G$29,Data!$P:$P,Criteria!$I$29) -> 0 | D36: =SUMIFS(Data!$M:$M,Data!$J:$J,Criteria!$D24,Data!$O:$O,Criteria!$G$29,Data!$P:$P,Criteria!$I$29) -> 0 | E36: =SUMIFS(Data!$L:$L,Data!$J:$J,Criteria!$D24,Data!$O:$O,Criteria!$G$29,Data!$P:$P,Criteria!$I$30) -> 237 | F36: =SUMIFS(Data!$M:$M,Data!$J:$J,Criteria!$D24,Data!$O:$O,Criteria!$G$29,Data!$P:$P,Criteria!$I$30) -> 11334900 | G36: =SUMIFS(Data!$L:$L,Data!$J:$J,Criteria!$D24,Data!$O:$O,Criteria!$G$29,Data!$P:$P,Criteria!$I$31) -> 0 | H36: =SUMIFS(Data!$M:$M,Data!$J:$J,Criteria!$D24,Data!$O:$O,Criteria!$G$29,Data!$P:$P,Criteria!$I$31) -> 0 | I36: =SUMIFS(Data!$L:$L,Data!$J:$J,Criteria!$D24,Data!$O:$O,Criteria!$G$29,Data!$P:$P,Criteria!$I$32) -> 0 | J36: =SUMIFS(Data!$M:$M,Data!$J:$J,Criteria!$D24,Data!$O:$O,Criteria!$G$29,Data!$P:$P,Criteria!$I$32) -> 0 | K36: =SUMIFS(Data!$L:$L,Data!$J:$J,Criteria!$D24,Data!$O:$O,Criteria!$G$29,Data!$P:$P,Criteria!$I$33) -> 173 | L36: =SUMIFS(Data!$M:$M,Data!$J:$J,Criteria!$D24,Data!$O:$O,Criteria!$G$29,Data!$P:$P,Criteria!$I$33) -> 5825800 | M36: =SUMIFS(Data!$E:$E,Data!$A:$A,Criteria!$D24,Data!$H:$H,Criteria!$G$29) -> 230400 | N36: 410 | O36: 16930300
B37: July | C37: =SUMIFS(Data!$L:$L,Data!$J:$J,Criteria!$D25,Data!$O:$O,Criteria!$G$29,Data!$P:$P,Criteria!$I$29) -> 1835 | D37: =SUMIFS(Data!$M:$M,Data!$J:$J,Criteria!$D25,Data!$O:$O,Criteria!$G$29,Data!$P:$P,Criteria!$I$29) -> 118959000 | E37: =SUMIFS(Data!$L:$L,Data!$J:$J,Criteria!$D25,Data!$O:$O,Criteria!$G$29,Data!$P:$P,Criteria!$I$30) -> 198 | F37: =SUMIFS(Data!$M:$M,Data!$J:$J,Criteria!$D25,Data!$O:$O,Criteria!$G$29,Data!$P:$P,Criteria!$I$30) -> 7463900 | G37: =SUMIFS(Data!$L:$L,Data!$J:$J,Criteria!$D25,Data!$O:$O,Criteria!$G$29,Data!$P:$P,Criteria!$I$31) -> 500 | H37: =SUMIFS(Data!$M:$M,Data!$J:$J,Criteria!$D25,Data!$O:$O,Criteria!$G$29,Data!$P:$P,Criteria!$I$31) -> 12493900 | I37: =SUMIFS(Data!$L:$L,Data!$J:$J,Criteria!$D25,Data!$O:$O,Criteria!$G$29,Data!$P:$P,Criteria!$I$32) -> 233 | J37: =SUMIFS(Data!$M:$M,Data!$J:$J,Criteria!$D25,Data!$O:$O,Criteria!$G$29,Data!$P:$P,Criteria!$I$32) -> 6519000 | K37: =SUMIFS(Data!$L:$L,Data!$J:$J,Criteria!$D25,Data!$O:$O,Criteria!$G$29,Data!$P:$P,Criteria!$I$33) -> 112 | L37: =SUMIFS(Data!$M:$M,Data!$J:$J,Criteria!$D25,Data!$O:$O,Criteria!$G$29,Data!$P:$P,Criteria!$I$33) -> 2662500 | M37: =SUMIFS(Data!$E:$E,Data!$A:$A,Criteria!$D25,Data!$H:$H,Criteria!$G$29) -> 1196300 | N37: 2878 | O37: 146902000
B38: August | C38: =SUMIFS(Data!$L:$L,Data!$J:$J,Criteria!$D26,Data!$O:$O,Criteria!$G$29,Data!$P:$P,Criteria!$I$29) -> 885 | D38: =SUMIFS(Data!$M:$M,Data!$J:$J,Criteria!$D26,Data!$O:$O,Criteria!$G$29,Data!$P:$P,Criteria!$I$29) -> 68681900 | E38: =SUMIFS(Data!$L:$L,Data!$J:$J,Criteria!$D26,Data!$O:$O,Criteria!$G$29,Data!$P:$P,Criteria!$I$30) -> 252 | F38: =SUMIFS(Data!$M:$M,Data!$J:$J,Criteria!$D26,Data!$O:$O,Criteria!$G$29,Data!$P:$P,Criteria!$I$30) -> 9805400 | G38: =SUMIFS(Data!$L:$L,Data!$J:$J,Criteria!$D26,Data!$O:$O,Criteria!$G$29,Data!$P:$P,Criteria!$I$31) -> 299 | H38: =SUMIFS(Data!$M:$M,Data!$J:$J,Criteria!$D26,Data!$O:$O,Criteria!$G$29,Data!$P:$P,Criteria!$I$31) -> 6803400 | I38: =SUMIFS(Data!$L:$L,Data!$J:$J,Criteria!$D26,Data!$O:$O,Criteria!$G$29,Data!$P:$P,Criteria!$I$32) -> 100 | J38: =SUMIFS(Data!$M:$M,Data!$J:$J,Criteria!$D26,Data!$O:$O,Criteria!$G$29,Data!$P:$P,Criteria!$I$32) -> 1524600 | K38: =SUMIFS(Data!$L:$L,Data!$J:$J,Criteria!$D26,Data!$O:$O,Criteria!$G$29,Data!$P:$P,Criteria!$I$33) -> 292 | L38: =SUMIFS(Data!$M:$M,Data!$J:$J,Criteria!$D26,Data!$O:$O,Criteria!$G$29,Data!$P:$P,Criteria!$I$33) -> 8441100 | M38: =SUMIFS(Data!$E:$E,Data!$A:$A,Criteria!$D26,Data!$H:$H,Criteria!$G$29) -> 908900 | N38: 1828 | O38: 94347500
B39: September | C39: =SUMIFS(Data!$L:$L,Data!$J:$J,Criteria!$D27,Data!$O:$O,Criteria!$G$29,Data!$P:$P,Criteria!$I$29) -> 0 | D39: =SUMIFS(Data!$M:$M,Data!$J:$J,Criteria!$D27,Data!$O:$O,Criteria!$G$29,Data!$P:$P,Criteria!$I$29) -> 0 | E39: =SUMIFS(Data!$L:$L,Data!$J:$J,Criteria!$D27,Data!$O:$O,Criteria!$G$29,Data!$P:$P,Criteria!$I$30) -> 0 | F39: =SUMIFS(Data!$M:$M,Data!$J:$J,Criteria!$D27,Data!$O:$O,Criteria!$G$29,Data!$P:$P,Criteria!$I$30) -> 0 | G39: =SUMIFS(Data!$L:$L,Data!$J:$J,Criteria!$D27,Data!$O:$O,Criteria!$G$29,Data!$P:$P,Criteria!$I$31) -> 0 | H39: =SUMIFS(Data!$M:$M,Data!$J:$J,Criteria!$D27,Data!$O:$O,Criteria!$G$29,Data!$P:$P,Criteria!$I$31) -> 0 | I39: =SUMIFS(Data!$L:$L,Data!$J:$J,Criteria!$D27,Data!$O:$O,Criteria!$G$29,Data!$P:$P,Criteria!$I$32) -> 0 | J39: =SUMIFS(Data!$M:$M,Data!$J:$J,Criteria!$D27,Data!$O:$O,Criteria!$G$29,Data!$P:$P,Criteria!$I$32) -> 0 | K39: =SUMIFS(Data!$L:$L,Data!$J:$J,Criteria!$D27,Data!$O:$O,Criteria!$G$29,Data!$P:$P,Criteria!$I$33) -> 0 | L39: =SUMIFS(Data!$M:$M,Data!$J:$J,Criteria!$D27,Data!$O:$O,Criteria!$G$29,Data!$P:$P,Criteria!$I$33) -> 0 | M39: =SUMIFS(Data!$E:$E,Data!$A:$A,Criteria!$D27,Data!$H:$H,Criteria!$G$29) -> 0 | N39: 0 | O39: 0
C40: =SUM(C28:C39) -> 9921 | D40: =SUM(D28:D39) -> 616655700 | E40: 2682 | F40: 161990000 | G40: 3275 | H40: 109366000 | I40: =SUM(I28:I39) -> 1443 | J40: =SUM(J28:J39) -> 42820300 | K40: 2869 | L40: 96915100 | M40: 21534100 | N40: 20190 | O40: 1006213000
C42: TIPS
C44: 5 year | E44: 10 year | G44: 20 year | I44: 30 year | K44: Total
C45: Securities | D45: Dollars | E45: Securities | F45: Dollars | G45: Securities | H45: Dollars | I45: Securities | J45: Dollars | K45: Securities | L45: Dollars
B46: October | C46: =SUMIFS(Data!$L:$L,Data!$J:$J,Criteria!$D16,Data!$O:$O,Criteria!$G$34,Data!$P:$P,Criteria!$I$34) -> 0 | D46: =SUMIFS(Data!$M:$M,Data!$J:$J,Criteria!$D16,Data!$O:$O,Criteria!$G$34,Data!$P:$P,Criteria!$I$34) -> 0 | E46: =SUMIFS(Data!$L:$L,Data!$J:$J,Criteria!$D16,Data!$O:$O,Criteria!$G$34,Data!$P:$P,Criteria!$I$35) -> 0 | F46: =SUMIFS(Data!$M:$M,Data!$J:$J,Criteria!$D16,Data!$O:$O,Criteria!$G$34,Data!$P:$P,Criteria!$I$35) -> 0 | G46: =SUMIFS(Data!$L:$L,Data!$J:$J,Criteria!$D16,Data!$O:$O,Criteria!$G$34,Data!$P:$P,Criteria!$I$36) -> 0 | H46: =SUMIFS(Data!$M:$M,Data!$J:$J,Criteria!$D16,Data!$O:$O,Criteria!$G$34,Data!$P:$P,Criteria!$I$36) -> 0 | I46: =SUMIFS(Data!$L:$L,Data!$J:$J,Criteria!$D16,Data!$O:$O,Criteria!$G$34,Data!$P:$P,Criteria!$I$37) -> 179 | J46: =SUMIFS(Data!$M:$M,Data!$J:$J,Criteria!$D16,Data!$O:$O,Criteria!$G$34,Data!$P:$P,Criteria!$I$37) -> 2418200 | K46: =C46+E46+G46+I46 -> 179 | L46: =D46+F46+H46+J46 -> 2418200
B47: November | C47: =SUMIFS(Data!$L:$L,Data!$J:$J,Criteria!$D17,Data!$O:$O,Criteria!$G$34,Data!$P:$P,Criteria!$I$34) -> 0 | D47: =SUMIFS(Data!$M:$M,Data!$J:$J,Criteria!$D17,Data!$O:$O,Criteria!$G$34,Data!$P:$P,Criteria!$I$34) -> 0 | E47: =SUMIFS(Data!$L:$L,Data!$J:$J,Criteria!$D17,Data!$O:$O,Criteria!$G$34,Data!$P:$P,Criteria!$I$35) -> 397 | F47: =SUMIFS(Data!$M:$M,Data!$J:$J,Criteria!$D17,Data!$O:$O,Criteria!$G$34,Data!$P:$P,Criteria!$I$35) -> 3694800 | G47: =SUMIFS(Data!$L:$L,Data!$J:$J,Criteria!$D17,Data!$O:$O,Criteria!$G$34,Data!$P:$P,Criteria!$I$36) -> 0 | H47: =SUMIFS(Data!$M:$M,Data!$J:$J,Criteria!$D17,Data!$O:$O,Criteria!$G$34,Data!$P:$P,Criteria!$I$36) -> 0 | I47: =SUMIFS(Data!$L:$L,Data!$J:$J,Criteria!$D17,Data!$O:$O,Criteria!$G$34,Data!$P:$P,Criteria!$I$37) -> 0 | J47: =SUMIFS(Data!$M:$M,Data!$J:$J,Criteria!$D17,Data!$O:$O,Criteria!$G$34,Data!$P:$P,Criteria!$I$37) -> 0 | K47: =C47+E47+G47+I47 -> 397 | L47: =D47+F47+H47+J47 -> 3694800
B48: December | C48: =SUMIFS(Data!$L:$L,Data!$J:$J,Criteria!$D18,Data!$O:$O,Criteria!$G$34,Data!$P:$P,Criteria!$I$34) -> 678 | D48: =SUMIFS(Data!$M:$M,Data!$J:$J,Criteria!$D18,Data!$O:$O,Criteria!$G$34,Data!$P:$P,Criteria!$I$34) -> 14609400 | E48: =SUMIFS(Data!$L:$L,Data!$J:$J,Criteria!$D18,Data!$O:$O,Criteria!$G$34,Data!$P:$P,Criteria!$I$35) -> 0 | F48: =SUMIFS(Data!$M:$M,Data!$J:$J,Criteria!$D18,Data!$O:$O,Criteria!$G$34,Data!$P:$P,Criteria!$I$35) -> 0 | G48: =SUMIFS(Data!$L:$L,Data!$J:$J,Criteria!$D18,Data!$O:$O,Criteria!$G$34,Data!$P:$P,Criteria!$I$36) -> 0 | H48: =SUMIFS(Data!$M:$M,Data!$J:$J,Criteria!$D18,Data!$O:$O,Criteria!$G$34,Data!$P:$P,Criteria!$I$36) -> 0 | I48: =SUMIFS(Data!$L:$L,Data!$J:$J,Criteria!$D18,Data!$O:$O,Criteria!$G$34,Data!$P:$P,Criteria!$I$37) -> 0 | J48: =SUMIFS(Data!$M:$M,Data!$J:$J,Criteria!$D18,Data!$O:$O,Criteria!$G$34,Data!$P:$P,Criteria!$I$37) -> 0 | K48: 678 | L48: 14609400
B49: January | C49: =SUMIFS(Data!$L:$L,Data!$J:$J,Criteria!$D19,Data!$O:$O,Criteria!$G$34,Data!$P:$P,Criteria!$I$34) -> 0 | D49: =SUMIFS(Data!$M:$M,Data!$J:$J,Criteria!$D19,Data!$O:$O,Criteria!$G$34,Data!$P:$P,Criteria!$I$34) -> 0 | E49: =SUMIFS(Data!$L:$L,Data!$J:$J,Criteria!$D19,Data!$O:$O,Criteria!$G$34,Data!$P:$P,Criteria!$I$35) -> 877 | F49: =SUMIFS(Data!$M:$M,Data!$J:$J,Criteria!$D19,Data!$O:$O,Criteria!$G$34,Data!$P:$P,Criteria!$I$35) -> 17758600 | G49: =SUMIFS(Data!$L:$L,Data!$J:$J,Criteria!$D19,Data!$O:$O,Criteria!$G$34,Data!$P:$P,Criteria!$I$36) -> 0 | H49: =SUMIFS(Data!$M:$M,Data!$J:$J,Criteria!$D19,Data!$O:$O,Criteria!$G$34,Data!$P:$P,Criteria!$I$36) -> 0 | I49: =SUMIFS(Data!$L:$L,Data!$J:$J,Criteria!$D19,Data!$O:$O,Criteria!$G$34,Data!$P:$P,Criteria!$I$37) -> 0 | J49: =SUMIFS(Data!$M:$M,Data!$J:$J,Criteria!$D19,Data!$O:$O,Criteria!$G$34,Data!$P:$P,Criteria!$I$37) -> 0 | K49: 877 | L49: 17758600
B50: February | C50: =SUMIFS(Data!$L:$L,Data!$J:$J,Criteria!$D20,Data!$O:$O,Criteria!$G$34,Data!$P:$P,Criteria!$I$34) -> 0 | D50: =SUMIFS(Data!$M:$M,Data!$J:$J,Criteria!$D20,Data!$O:$O,Criteria!$G$34,Data!$P:$P,Criteria!$I$34) -> 0 | E50: =SUMIFS(Data!$L:$L,Data!$J:$J,Criteria!$D20,Data!$O:$O,Criteria!$G$34,Data!$P:$P,Criteria!$I$35) -> 0 | F50: =SUMIFS(Data!$M:$M,Data!$J:$J,Criteria!$D20,Data!$O:$O,Criteria!$G$34,Data!$P:$P,Criteria!$I$35) -> 0 | G50: =SUMIFS(Data!$L:$L,Data!$J:$J,Criteria!$D20,Data!$O:$O,Criteria!$G$34,Data!$P:$P,Criteria!$I$36) -> 0 | H50: =SUMIFS(Data!$M:$M,Data!$J:$J,Criteria!$D20,Data!$O:$O,Criteria!$G$34,Data!$P:$P,Criteria!$I$36) -> 0 | I50: =SUMIFS(Data!$L:$L,Data!$J:$J,Criteria!$D20,Data!$O:$O,Criteria!$G$34,Data!$P:$P,Criteria!$I$37) -> 292 | J50: =SUMIFS(Data!$M:$M,Data!$J:$J,Criteria!$D20,Data!$O:$O,Criteria!$G$34,Data!$P:$P,Criteria!$I$37) -> 2708700 | K50: 292 | L50: 2708700
B51: March | C51: =SUMIFS(Data!$L:$L,Data!$J:$J,Criteria!$D21,Data!$O:$O,Criteria!$G$34,Data!$P:$P,Criteria!$I$34) -> 0 | D51: =SUMIFS(Data!$M:$M,Data!$J:$J,Criteria!$D21,Data!$O:$O,Criteria!$G$34,Data!$P:$P,Criteria!$I$34) -> 0 | E51: =SUMIFS(Data!$L:$L,Data!$J:$J,Criteria!$D21,Data!$O:$O,Criteria!$G$34,Data!$P:$P,Criteria!$I$35) -> 610 | F51: =SUMIFS(Data!$M:$M,Data!$J:$J,Criteria!$D21,Data!$O:$O,Criteria!$G$34,Data!$P:$P,Criteria!$I$35) -> 11588500 | G51: =SUMIFS(Data!$L:$L,Data!$J:$J,Criteria!$D21,Data!$O:$O,Criteria!$G$34,Data!$P:$P,Criteria!$I$36) -> 0 | H51: =SUMIFS(Data!$M:$M,Data!$J:$J,Criteria!$D21,Data!$O:$O,Criteria!$G$34,Data!$P:$P,Criteria!$I$36) -> 0 | I51: =SUMIFS(Data!$L:$L,Data!$J:$J,Criteria!$D21,Data!$O:$O,Criteria!$G$34,Data!$P:$P,Criteria!$I$37) -> 0 | J51: =SUMIFS(Data!$M:$M,Data!$J:$J,Criteria!$D21,Data!$O:$O,Criteria!$G$34,Data!$P:$P,Criteria!$I$37) -> 0 | K51: 610 | L51: 11588500
B52: April | C52: =SUMIFS(Data!$L:$L,Data!$J:$J,Criteria!$D22,Data!$O:$O,Criteria!$G$34,Data!$P:$P,Criteria!$I$34) -> 1122 | D52: =SUMIFS(Data!$M:$M,Data!$J:$J,Criteria!$D22,Data!$O:$O,Criteria!$G$34,Data!$P:$P,Criteria!$I$34) -> 31668400 | E52: =SUMIFS(Data!$L:$L,Data!$J:$J,Criteria!$D22,Data!$O:$O,Criteria!$G$34,Data!$P:$P,Criteria!$I$35) -> 0 | F52: =SUMIFS(Data!$M:$M,Data!$J:$J,Criteria!$D22,Data!$O:$O,Criteria!$G$34,Data!$P:$P,Criteria!$I$35) -> 0 | G52: =SUMIFS(Data!$L:$L,Data!$J:$J,Criteria!$D22,Data!$O:$O,Criteria!$G$34,Data!$P:$P,Criteria!$I$36) -> 0 | H52: =SUMIFS(Data!$M:$M,Data!$J:$J,Criteria!$D22,Data!$O:$O,Criteria!$G$34,Data!$P:$P,Criteria!$I$36) -> 0 | I52: =SUMIFS(Data!$L:$L,Data!$J:$J,Criteria!$D22,Data!$O:$O,Criteria!$G$34,Data!$P:$P,Criteria!$I$37) -> 0 | J52: =SUMIFS(Data!$M:$M,Data!$J:$J,Criteria!$D22,Data!$O:$O,Criteria!$G$34,Data!$P:$P,Criteria!$I$37) -> 0 | K52: 1122 | L52: 31668400
B53: May | C53: =SUMIFS(Data!$L:$L,Data!$J:$J,Criteria!$D23,Data!$O:$O,Criteria!$G$34,Data!$P:$P,Criteria!$I$34) -> 0 | D53: =SUMIFS(Data!$M:$M,Data!$J:$J,Criteria!$D23,Data!$O:$O,Criteria!$G$34,Data!$P:$P,Criteria!$I$34) -> 0 | E53: =SUMIFS(Data!$L:$L,Data!$J:$J,Criteria!$D23,Data!$O:$O,Criteria!$G$34,Data!$P:$P,Criteria!$I$35) -> 404 | F53: =SUMIFS(Data!$M:$M,Data!$J:$J,Criteria!$D23,Data!$O:$O,Criteria!$G$34,Data!$P:$P,Criteria!$I$35) -> 8044200 | G53: =SUMIFS(Data!$L:$L,Data!$J:$J,Criteria!$D23,Data!$O:$O,Criteria!$G$34,Data!$P:$P,Criteria!$I$36) -> 0 | H53: =SUMIFS(Data!$M:$M,Data!$J:$J,Criteria!$D23,Data!$O:$O,Criteria!$G$34,Data!$P:$P,Criteria!$I$36) -> 0 | I53: =SUMIFS(Data!$L:$L,Data!$J:$J,Criteria!$D23,Data!$O:$O,Criteria!$G$34,Data!$P:$P,Criteria!$I$37) -> 0 | J53: =SUMIFS(Data!$M:$M,Data!$J:$J,Criteria!$D23,Data!$O:$O,Criteria!$G$34,Data!$P:$P,Criteria!$I$37) -> 0 | K53: 404 | L53: 8044200
B54: June | C54: =SUMIFS(Data!$L:$L,Data!$J:$J,Criteria!$D24,Data!$O:$O,Criteria!$G$34,Data!$P:$P,Criteria!$I$34) -> 0 | D54: =SUMIFS(Data!$M:$M,Data!$J:$J,Criteria!$D24,Data!$O:$O,Criteria!$G$34,Data!$P:$P,Criteria!$I$34) -> 0 | E54: =SUMIFS(Data!$L:$L,Data!$J:$J,Criteria!$D24,Data!$O:$O,Criteria!$G$34,Data!$P:$P,Criteria!$I$35) -> 0 | F54: =SUMIFS(Data!$M:$M,Data!$J:$J,Criteria!$D24,Data!$O:$O,Criteria!$G$34,Data!$P:$P,Criteria!$I$35) -> 0 | G54: =SUMIFS(Data!$L:$L,Data!$J:$J,Criteria!$D24,Data!$O:$O,Criteria!$G$34,Data!$P:$P,Criteria!$I$36) -> 0 | H54: =SUMIFS(Data!$M:$M,Data!$J:$J,Criteria!$D24,Data!$O:$O,Criteria!$G$34,Data!$P:$P,Criteria!$I$36) -> 0 | I54: =SUMIFS(Data!$L:$L,Data!$J:$J,Criteria!$D24,Data!$O:$O,Criteria!$G$34,Data!$P:$P,Criteria!$I$37) -> 149 | J54: =SUMIFS(Data!$M:$M,Data!$J:$J,Criteria!$D24,Data!$O:$O,Criteria!$G$34,Data!$P:$P,Criteria!$I$37) -> 2921800 | K54: 149 | L54: 2921800
B55: July | C55: =SUMIFS(Data!$L:$L,Data!$J:$J,Criteria!$D25,Data!$O:$O,Criteria!$G$34,Data!$P:$P,Criteria!$I$34) -> 0 | D55: =SUMIFS(Data!$M:$M,Data!$J:$J,Criteria!$D25,Data!$O:$O,Criteria!$G$34,Data!$P:$P,Criteria!$I$34) -> 0 | E55: =SUMIFS(Data!$L:$L,Data!$J:$J,Criteria!$D25,Data!$O:$O,Criteria!$G$34,Data!$P:$P,Criteria!$I$35) -> 610 | F55: =SUMIFS(Data!$M:$M,Data!$J:$J,Criteria!$D25,Data!$O:$O,Criteria!$G$34,Data!$P:$P,Criteria!$I$35) -> 17451100 | G55: =SUMIFS(Data!$L:$L,Data!$J:$J,Criteria!$D25,Data!$O:$O,Criteria!$G$34,Data!$P:$P,Criteria!$I$36) -> 0 | H55: =SUMIFS(Data!$M:$M,Data!$J:$J,Criteria!$D25,Data!$O:$O,Criteria!$G$34,Data!$P:$P,Criteria!$I$36) -> 0 | I55: =SUMIFS(Data!$L:$L,Data!$J:$J,Criteria!$D25,Data!$O:$O,Criteria!$G$34,Data!$P:$P,Criteria!$I$37) -> 0 | J55: =SUMIFS(Data!$M:$M,Data!$J:$J,Criteria!$D25,Data!$O:$O,Criteria!$G$34,Data!$P:$P,Criteria!$I$37) -> 0 | K55: 610 | L55: 17451100
B56: August | C56: =SUMIFS(Data!$L:$L,Data!$J:$J,Criteria!$D26,Data!$O:$O,Criteria!$G$34,Data!$P:$P,Criteria!$I$34) -> 549 | D56: =SUMIFS(Data!$M:$M,Data!$J:$J,Criteria!$D26,Data!$O:$O,Criteria!$G$34,Data!$P:$P,Criteria!$I$34) -> 25001200 | E56: =SUMIFS(Data!$L:$L,Data!$J:$J,Criteria!$D26,Data!$O:$O,Criteria!$G$34,Data!$P:$P,Criteria!$I$35) -> 0 | F56: =SUMIFS(Data!$M:$M,Data!$J:$J,Criteria!$D26,Data!$O:$O,Criteria!$G$34,Data!$P:$P,Criteria!$I$35) -> 0 | G56: =SUMIFS(Data!$L:$L,Data!$J:$J,Criteria!$D26,Data!$O:$O,Criteria!$G$34,Data!$P:$P,Criteria!$I$36) -> 0 | H56: =SUMIFS(Data!$M:$M,Data!$J:$J,Criteria!$D26,Data!$O:$O,Criteria!$G$34,Data!$P:$P,Criteria!$I$36) -> 0 | I56: =SUMIFS(Data!$L:$L,Data!$J:$J,Criteria!$D26,Data!$O:$O,Criteria!$G$34,Data!$P:$P,Criteria!$I$37) -> 0 | J56: =SUMIFS(Data!$M:$M,Data!$J:$J,Criteria!$D26,Data!$O:$O,Criteria!$G$34,Data!$P:$P,Criteria!$I$37) -> 0 | K56: 549 | L56: 25001200
B57: September | C57: =SUMIFS(Data!$L:$L,Data!$J:$J,Criteria!$D27,Data!$O:$O,Criteria!$G$34,Data!$P:$P,Criteria!$I$34) -> 0 | D57: =SUMIFS(Data!$M:$M,Data!$J:$J,Criteria!$D27,Data!$O:$O,Criteria!$G$34,Data!$P:$P,Criteria!$I$34) -> 0 | E57: =SUMIFS(Data!$L:$L,Data!$J:$J,Criteria!$D27,Data!$O:$O,Criteria!$G$34,Data!$P:$P,Criteria!$I$35) -> 0 | F57: =SUMIFS(Data!$M:$M,Data!$J:$J,Criteria!$D27,Data!$O:$O,Criteria!$G$34,Data!$P:$P,Criteria!$I$35) -> 0 | G57: =SUMIFS(Data!$L:$L,Data!$J:$J,Criteria!$D27,Data!$O:$O,Criteria!$G$34,Data!$P:$P,Criteria!$I$36) -> 0 | H57: =SUMIFS(Data!$M:$M,Data!$J:$J,Criteria!$D27,Data!$O:$O,Criteria!$G$34,Data!$P:$P,Criteria!$I$36) -> 0 | I57: =SUMIFS(Data!$L:$L,Data!$J:$J,Criteria!$D27,Data!$O:$O,Criteria!$G$34,Data!$P:$P,Criteria!$I$37) -> 0 | J57: =SUMIFS(Data!$M:$M,Data!$J:$J,Criteria!$D27,Data!$O:$O,Criteria!$G$34,Data!$P:$P,Criteria!$I$37) -> 0 | K57: 0 | L57: 0
C58: =SUM(C46:C57) -> 2349 | D58: 71279000 | E58: 2898 | F58: 58537200 | G58: 0 | H58: 0 | I58: 620 | J58: 8048700 | K58: 5867 | L58: 137864900
B60: Bonds
C62: 30 year | E62: Returns | F62: Net Total
C63: Securities | D63: Dollars | E63: Securities | F63: Dollars
B64: October | C64: =SUMIFS(Data!$L:$L,Data!$J:$J,Criteria!$D16,Data!$O:$O,Criteria!$G$38,Data!$P:$P,Criteria!$I$38) -> 160 | D64: =SUMIFS(Data!$M:$M,Data!$J:$J,Criteria!$D16,Data!$O:$O,Criteria!$G$38,Data!$P:$P,Criteria!$I$38) -> 2112800 | E64: =SUMIFS(Data!$E:$E,Data!$A:$A,Criteria!$D16,Data!$H:$H,Criteria!$G$38) -> 85100 | F64: =D64-E64 -> 2027700
B65: November | C65: =SUMIFS(Data!$L:$L,Data!$J:$J,Criteria!$D17,Data!$O:$O,Criteria!$G$38,Data!$P:$P,Criteria!$I$38) -> 217 | D65: =SUMIFS(Data!$M:$M,Data!$J:$J,Criteria!$D17,Data!$O:$O,Criteria!$G$38,Data!$P:$P,Criteria!$I$38) -> 3420900 | E65: =SUMIFS(Data!$E:$E,Data!$A:$A,Criteria!$D17,Data!$H:$H,Criteria!$G$38) -> 994000 | F65: =D65-E65 -> 2426900
B66: December | C66: =SUMIFS(Data!$L:$L,Data!$J:$J,Criteria!$D18,Data!$O:$O,Criteria!$G$38,Data!$P:$P,Criteria!$I$38) -> 177 | D66: =SUMIFS(Data!$M:$M,Data!$J:$J,Criteria!$D18,Data!$O:$O,Criteria!$G$38,Data!$P:$P,Criteria!$I$38) -> 2178000 | E66: =SUMIFS(Data!$E:$E,Data!$A:$A,Criteria!$D18,Data!$H:$H,Criteria!$G$38) -> 0 | F66: 2178000
B67: January | C67: =SUMIFS(Data!$L:$L,Data!$J:$J,Criteria!$D19,Data!$O:$O,Criteria!$G$38,Data!$P:$P,Criteria!$I$38) -> 154 | D67: =SUMIFS(Data!$M:$M,Data!$J:$J,Criteria!$D19,Data!$O:$O,Criteria!$G$38,Data!$P:$P,Criteria!$I$38) -> 2283900 | E67: =SUMIFS(Data!$E:$E,Data!$A:$A,Criteria!$D19,Data!$H:$H,Criteria!$G$38) -> 245500 | F67: 2038400
B68: February | C68: =SUMIFS(Data!$L:$L,Data!$J:$J,Criteria!$D20,Data!$O:$O,Criteria!$G$38,Data!$P:$P,Criteria!$I$38) -> 315 | D68: =SUMIFS(Data!$M:$M,Data!$J:$J,Criteria!$D20,Data!$O:$O,Criteria!$G$38,Data!$P:$P,Criteria!$I$38) -> 9786500 | E68: =SUMIFS(Data!$E:$E,Data!$A:$A,Criteria!$D20,Data!$H:$H,Criteria!$G$38) -> 90000 | F68: 9696500
B69: March | C69: =SUMIFS(Data!$L:$L,Data!$J:$J,Criteria!$D21,Data!$O:$O,Criteria!$G$38,Data!$P:$P,Criteria!$I$38) -> 256 | D69: =SUMIFS(Data!$M:$M,Data!$J:$J,Criteria!$D21,Data!$O:$O,Criteria!$G$38,Data!$P:$P,Criteria!$I$38) -> 4314300 | E69: =SUMIFS(Data!$E:$E,Data!$A:$A,Criteria!$D21,Data!$H:$H,Criteria!$G$38) -> 149700 | F69: 4164600
B70: April | C70: =SUMIFS(Data!$L:$L,Data!$J:$J,Criteria!$D22,Data!$O:$O,Criteria!$G$38,Data!$P:$P,Criteria!$I$38) -> 207 | D70: =SUMIFS(Data!$M:$M,Data!$J:$J,Criteria!$D22,Data!$O:$O,Criteria!$G$38,Data!$P:$P,Criteria!$I$38) -> 3651900 | E70: =SUMIFS(Data!$E:$E,Data!$A:$A,Criteria!$D22,Data!$H:$H,Criteria!$G$38) -> 1200 | F70: 3650700
B71: May | C71: =SUMIFS(Data!$L:$L,Data!$J:$J,Criteria!$D23,Data!$O:$O,Criteria!$G$38,Data!$P:$P,Criteria!$I$38) -> 314 | D71: =SUMIFS(Data!$M:$M,Data!$J:$J,Criteria!$D23,Data!$O:$O,Criteria!$G$38,Data!$P:$P,Criteria!$I$38) -> 6605100 | E71: =SUMIFS(Data!$E:$E,Data!$A:$A,Criteria!$D23,Data!$H:$H,Criteria!$G$38) -> 400 | F71: 6604700
B72: June | C72: =SUMIFS(Data!$L:$L,Data!$J:$J,Criteria!$D24,Data!$O:$O,Criteria!$G$38,Data!$P:$P,Criteria!$I$38) -> 174 | D72: =SUMIFS(Data!$M:$M,Data!$J:$J,Criteria!$D24,Data!$O:$O,Criteria!$G$38,Data!$P:$P,Criteria!$I$38) -> 1965300 | E72: =SUMIFS(Data!$E:$E,Data!$A:$A,Criteria!$D24,Data!$H:$H,Criteria!$G$38) -> 100200 | F72: 1865100
B73: July | C73: =SUMIFS(Data!$L:$L,Data!$J:$J,Criteria!$D25,Data!$O:$O,Criteria!$G$38,Data!$P:$P,Criteria!$I$38) -> 135 | D73: =SUMIFS(Data!$M:$M,Data!$J:$J,Criteria!$D25,Data!$O:$O,Criteria!$G$38,Data!$P:$P,Criteria!$I$38) -> 2194400 | E73: =SUMIFS(Data!$E:$E,Data!$A:$A,Criteria!$D25,Data!$H:$H,Criteria!$G$38) -> 130100 | F73: 2064300
B74: August | C74: =SUMIFS(Data!$L:$L,Data!$J:$J,Criteria!$D26,Data!$O:$O,Criteria!$G$38,Data!$P:$P,Criteria!$I$38) -> 256 | D74: =SUMIFS(Data!$M:$M,Data!$J:$J,Criteria!$D26,Data!$O:$O,Criteria!$G$38,Data!$P:$P,Criteria!$I$38) -> 5638500 | E74: =SUMIFS(Data!$E:$E,Data!$A:$A,Criteria!$D26,Data!$H:$H,Criteria!$G$38) -> 400 | F74: 5638100
B75: September | C75: =SUMIFS(Data!$L:$L,Data!$J:$J,Criteria!$D27,Data!$O:$O,Criteria!$G$38,Data!$P:$P,Criteria!$I$38) -> 0 | D75: =SUMIFS(Data!$M:$M,Data!$J:$J,Criteria!$D27,Data!$O:$O,Criteria!$G$38,Data!$P:$P,Criteria!$I$38) -> 0 | E75: =SUMIFS(Data!$E:$E,Data!$A:$A,Criteria!$D27,Data!$H:$H,Criteria!$G$38) -> 0 | F75: 0
C76: =SUM(C64:C75) -> 2365 | D76: =SUM(D64:D75) -> 44151600 | E76: =SUM(E64:E75) -> 1796600 | F76: =SUM(F64:F75) -> 42355000
B78: Savings Bonds
C80: EE Bonds | E80: I Bonds | G80: Total
C81: Securities | D81: Dollars | E81: Securities | F81: Dollars | G81: Securities | H81: Dollars
B82: October | C82: =SUMIFS(Data!$C:$C,Data!$A:$A,Criteria!$D16,Data!$B:$B,"EE") -> 21737 | D82: =SUMIFS(Data!$F:$F,Data!$A:$A,Criteria!$D16,Data!$B:$B,"EE") -> 2819979.35 | E82: =SUMIFS(Data!$C:$C,Data!$A:$A,Criteria!$D16,Data!$B:$B,"I") -> 44840 | F82: =SUMIFS(Data!$F:$F,Data!$A:$A,Criteria!$D16,Data!$B:$B,"I") -> 32236562.65 | G82: =C82+E82 -> 66577 | H82: =D82+F82 -> 35056542
B83: November | C83: =SUMIFS(Data!$C:$C,Data!$A:$A,Criteria!$D17,Data!$B:$B,"EE") -> 24360 | D83: =SUMIFS(Data!$F:$F,Data!$A:$A,Criteria!$D17,Data!$B:$B,"EE") -> 3024867.65 | E83: =SUMIFS(Data!$C:$C,Data!$A:$A,Criteria!$D17,Data!$B:$B,"I") -> 44386 | F83: =SUMIFS(Data!$F:$F,Data!$A:$A,Criteria!$D17,Data!$B:$B,"I") -> 29833201.03 | G83: 68746 | H83: 32858068.68
B84: December | C84: =SUMIFS(Data!$C:$C,Data!$A:$A,Criteria!$D18,Data!$B:$B,"EE") -> 42135 | D84: =SUMIFS(Data!$F:$F,Data!$A:$A,Criteria!$D18,Data!$B:$B,"EE") -> 4953445.04 | E84: =SUMIFS(Data!$C:$C,Data!$A:$A,Criteria!$D18,Data!$B:$B,"I") -> 58202 | F84: =SUMIFS(Data!$F:$F,Data!$A:$A,Criteria!$D18,Data!$B:$B,"I") -> 43446777.42 | G84: 100337 | H84: 48400222.46
B85: January | C85: =SUMIFS(Data!$C:$C,Data!$A:$A,Criteria!$D19,Data!$B:$B,"EE") -> 43171 | D85: =SUMIFS(Data!$F:$F,Data!$A:$A,Criteria!$D19,Data!$B:$B,"EE") -> 7845850.05 | E85: =SUMIFS(Data!$C:$C,Data!$A:$A,Criteria!$D19,Data!$B:$B,"I") -> 67471 | F85: =SUMIFS(Data!$F:$F,Data!$A:$A,Criteria!$D19,Data!$B:$B,"I") -> 107051340.8 | G85: 110642 | H85: 114897190.8
B86: February | C86: =SUMIFS(Data!$C:$C,Data!$A:$A,Criteria!$D20,Data!$B:$B,"EE") -> 43236 | D86: =SUMIFS(Data!$F:$F,Data!$A:$A,Criteria!$D20,Data!$B:$B,"EE") -> 5940226.2 | E86: =SUMIFS(Data!$C:$C,Data!$A:$A,Criteria!$D20,Data!$B:$B,"I") -> 57601 | F86: =SUMIFS(Data!$F:$F,Data!$A:$A,Criteria!$D20,Data!$B:$B,"I") -> 55072760.67 | G86: 100837 | H86: 61012986.87
B87: March | C87: =SUMIFS(Data!$C:$C,Data!$A:$A,Criteria!$D21,Data!$B:$B,"EE") -> 41856 | D87: =SUMIFS(Data!$F:$F,Data!$A:$A,Criteria!$D21,Data!$B:$B,"EE") -> 5399316.31 | E87: =SUMIFS(Data!$C:$C,Data!$A:$A,Criteria!$D21,Data!$B:$B,"I") -> 60452 | F87: =SUMIFS(Data!$F:$F,Data!$A:$A,Criteria!$D21,Data!$B:$B,"I") -> 56567998.25 | G87: 102308 | H87: 61967314.56
B88: April | C88: =SUMIFS(Data!$C:$C,Data!$A:$A,Criteria!$D22,Data!$B:$B,"EE") -> 41688 | D88: =SUMIFS(Data!$F:$F,Data!$A:$A,Criteria!$D22,Data!$B:$B,"EE") -> 5332834.22 | E88: =SUMIFS(Data!$C:$C,Data!$A:$A,Criteria!$D22,Data!$B:$B,"I") -> 60607 | F88: =SUMIFS(Data!$F:$F,Data!$A:$A,Criteria!$D22,Data!$B:$B,"I") -> 54885312.61 | G88: 102295 | H88: 60218146.83
B89: May | C89: =SUMIFS(Data!$C:$C,Data!$A:$A,Criteria!$D23,Data!$B:$B,"EE") -> 40103 | D89: =SUMIFS(Data!$F:$F,Data!$A:$A,Criteria!$D23,Data!$B:$B,"EE") -> 5393294.64 | E89: =SUMIFS(Data!$C:$C,Data!$A:$A,Criteria!$D23,Data!$B:$B,"I") -> 56101 | F89: =SUMIFS(Data!$F:$F,Data!$A:$A,Criteria!$D23,Data!$B:$B,"I") -> 40658674.13 | G89: 96204 | H89: 46051968.77
B90: June | C90: =SUMIFS(Data!$C:$C,Data!$A:$A,Criteria!$D24,Data!$B:$B,"EE") -> 37089 | D90: =SUMIFS(Data!$F:$F,Data!$A:$A,Criteria!$D24,Data!$B:$B,"EE") -> 4926495.69 | E90: =SUMIFS(Data!$C:$C,Data!$A:$A,Criteria!$D24,Data!$B:$B,"I") -> 51996 | F90: =SUMIFS(Data!$F:$F,Data!$A:$A,Criteria!$D24,Data!$B:$B,"I") -> 28288714.22 | G90: 89085 | H90: 33215209.91
B91: July | C91: =SUMIFS(Data!$C:$C,Data!$A:$A,Criteria!$D25,Data!$B:$B,"EE") -> 37293 | D91: =SUMIFS(Data!$F:$F,Data!$A:$A,Criteria!$D25,Data!$B:$B,"EE") -> 4930979.09 | E91: =SUMIFS(Data!$C:$C,Data!$A:$A,Criteria!$D25,Data!$B:$B,"I") -> 52806 | F91: =SUMIFS(Data!$F:$F,Data!$A:$A,Criteria!$D25,Data!$B:$B,"I") -> 27919269.75 | G91: 90099 | H91: 32850248.84
B92: August | C92: =SUMIFS(Data!$C:$C,Data!$A:$A,Criteria!$D26,Data!$B:$B,"EE") -> 38106 | D92: =SUMIFS(Data!$F:$F,Data!$A:$A,Criteria!$D26,Data!$B:$B,"EE") -> 5107352.39 | E92: =SUMIFS(Data!$C:$C,Data!$A:$A,Criteria!$D26,Data!$B:$B,"I") -> 55101 | F92: =SUMIFS(Data!$F:$F,Data!$A:$A,Criteria!$D26,Data!$B:$B,"I") -> 29798897.82 | G92: 93207 | H92: 34906250.21
B93: September | C93: =SUMIFS(Data!$C:$C,Data!$A:$A,Criteria!$D27,Data!$B:$B,"EE") -> 0 | D93: =SUMIFS(Data!$F:$F,Data!$A:$A,Criteria!$D27,Data!$B:$B,"EE") -> 0 | E93: =SUMIFS(Data!$C:$C,Data!$A:$A,Criteria!$D27,Data!$B:$B,"I") -> 0 | F93: =SUMIFS(Data!$F:$F,Data!$A:$A,Criteria!$D27,Data!$B:$B,"I") -> 0 | G93: 0 | H93: 0
C94: =SUM(C82:C93) -> 410774 | D94: 55674640.63 | E94: 609563 | F94: 505759509.3 | G94: 1020337 | H94: 561434150
C97: Bills | P97: ='Incoming Transfers'!O149+1 -> 1
P98: =P97+1 -> 2
C99: 4 week | E99: 13 week | G99: 26 week | I99: 52 week | K99: Returns | L99: Net Total | P99: 3
C100: Securities | D100: Dollars | E100: Securities | F100: Dollars | G100: Securities | H100: Dollars | I100: Securities | J100: Dollars | K100: Dollars | L100: Securities | M100: Dollars | P100: 4
A101: =ReportFY -> 2012 | B101: =IF(A101>0,OFFSET(Criteria!$M$11,A101-Criteria!$M$11,0),"") -> 2012 (thru Dec) | C101: =SUMIFS(Data!$L:$L,Data!$J:$J,"<=" & Criteria!$G$10,Data!$Q:$Q,$A101,Data!$O:$O,Criteria!$G$25,Data!$P:$P,Criteria!$I$25) -> 13539 | D101: =SUMIFS(Data!$M:$M,Data!$J:$J,"<=" & Criteria!$G$10,Data!$Q:$Q,$A101,Data!$O:$O,Criteria!$G$25,Data!$P:$P,Criteria!$I$25) -> 2185443300 | E101: =SUMIFS(Data!$L:$L,Data!$J:$J,"<=" & Criteria!$G$10,Data!$Q:$Q,$A101,Data!$O:$O,Criteria!$G$25,Data!$P:$P,Criteria!$I$26) -> 17483 | F101: =SUMIFS(Data!$M:$M,Data!$J:$J,"<=" & Criteria!$G$10,Data!$Q:$Q,$A101,Data!$O:$O,Criteria!$G$25,Data!$P:$P,Criteria!$I$26) -> 3301803300 | G101: =SUMIFS(Data!$L:$L,Data!$J:$J,"<=" & Criteria!$G$10,Data!$Q:$Q,$A101,Data!$O:$O,Criteria!$G$25,Data!$P:$P,Criteria!$I$27) -> 20531 | H101: =SUMIFS(Data!$M:$M,Data!$J:$J,"<=" & Criteria!$G$10,Data!$Q:$Q,$A101,Data!$O:$O,Criteria!$G$25,Data!$P:$P,Criteria!$I$27) -> 2941566800 | I101: =SUMIFS(Data!$L:$L,Data!$J:$J,"<=" & Criteria!$G$10,Data!$Q:$Q,$A101,Data!$O:$O,Criteria!$G$25,Data!$P:$P,Criteria!$I$28) -> 6246 | J101: =SUMIFS(Data!$M:$M,Data!$J:$J,"<=" & Criteria!$G$10,Data!$Q:$Q,$A101,Data!$O:$O,Criteria!$G$25,Data!$P:$P,Criteria!$I$28) -> 679932600 | K101: =SUMIFS(Data!$E:$E,Data!$A:$A,"<=" & Criteria!$G$10,Data!$G:$G,$A101,Data!$H:$H,Criteria!$G$25) -> 132030400 | L101: =C101+E101+G101+I101 -> 57799 | M101: =D101+F101+H101+J101-K101 -> 8976715600 | P101: 5
A102: =IF(AND(A101<ReportMaxFY,A101<>0), A101+1,0) -> 0 | B102: =IF(A102>0,OFFSET(Criteria!$M$11,A102-Criteria!$M$11,0),"") ->  | C102: =SUMIFS(Data!$L:$L,Data!$J:$J,"<=" & Criteria!$G$10,Data!$Q:$Q,$A102,Data!$O:$O,Criteria!$G$25,Data!$P:$P,Criteria!$I$25) -> 0 | D102: =SUMIFS(Data!$M:$M,Data!$J:$J,"<=" & Criteria!$G$10,Data!$Q:$Q,$A102,Data!$O:$O,Criteria!$G$25,Data!$P:$P,Criteria!$I$25) -> 0 | E102: =SUMIFS(Data!$L:$L,Data!$J:$J,"<=" & Criteria!$G$10,Data!$Q:$Q,$A102,Data!$O:$O,Criteria!$G$25,Data!$P:$P,Criteria!$I$26) -> 0 | F102: =SUMIFS(Data!$M:$M,Data!$J:$J,"<=" & Criteria!$G$10,Data!$Q:$Q,$A102,Data!$O:$O,Criteria!$G$25,Data!$P:$P,Criteria!$I$26) -> 0 | G102: =SUMIFS(Data!$L:$L,Data!$J:$J,"<=" & Criteria!$G$10,Data!$Q:$Q,$A102,Data!$O:$O,Criteria!$G$25,Data!$P:$P,Criteria!$I$27) -> 0 | H102: =SUMIFS(Data!$M:$M,Data!$J:$J,"<=" & Criteria!$G$10,Data!$Q:$Q,$A102,Data!$O:$O,Criteria!$G$25,Data!$P:$P,Criteria!$I$27) -> 0 | I102: =SUMIFS(Data!$L:$L,Data!$J:$J,"<=" & Criteria!$G$10,Data!$Q:$Q,$A102,Data!$O:$O,Criteria!$G$25,Data!$P:$P,Criteria!$I$28) -> 0 | J102: =SUMIFS(Data!$M:$M,Data!$J:$J,"<=" & Criteria!$G$10,Data!$Q:$Q,$A102,Data!$O:$O,Criteria!$G$25,Data!$P:$P,Criteria!$I$28) -> 0 | K102: =SUMIFS(Data!$E:$E,Data!$A:$A,"<=" & Criteria!$G$10,Data!$G:$G,$A102,Data!$H:$H,Criteria!$G$25) -> 0 | L102: =C102+E102+G102+I102 -> 0 | M102: =D102+F102+H102+J102-K102 -> 0 | P102: 6
A103: 0 | B103: =IF(A103>0,OFFSET(Criteria!$M$11,A103-Criteria!$M$11,0),"") ->  | C103: =SUMIFS(Data!$L:$L,Data!$J:$J,"<=" & Criteria!$G$10,Data!$Q:$Q,$A103,Data!$O:$O,Criteria!$G$25,Data!$P:$P,Criteria!$I$25) -> 0 | D103: =SUMIFS(Data!$M:$M,Data!$J:$J,"<=" & Criteria!$G$10,Data!$Q:$Q,$A103,Data!$O:$O,Criteria!$G$25,Data!$P:$P,Criteria!$I$25) -> 0 | E103: =SUMIFS(Data!$L:$L,Data!$J:$J,"<=" & Criteria!$G$10,Data!$Q:$Q,$A103,Data!$O:$O,Criteria!$G$25,Data!$P:$P,Criteria!$I$26) -> 0 | F103: =SUMIFS(Data!$M:$M,Data!$J:$J,"<=" & Criteria!$G$10,Data!$Q:$Q,$A103,Data!$O:$O,Criteria!$G$25,Data!$P:$P,Criteria!$I$26) -> 0 | G103: =SUMIFS(Data!$L:$L,Data!$J:$J,"<=" & Criteria!$G$10,Data!$Q:$Q,$A103,Data!$O:$O,Criteria!$G$25,Data!$P:$P,Criteria!$I$27) -> 0 | H103: =SUMIFS(Data!$M:$M,Data!$J:$J,"<=" & Criteria!$G$10,Data!$Q:$Q,$A103,Data!$O:$O,Criteria!$G$25,Data!$P:$P,Criteria!$I$27) -> 0 | I103: =SUMIFS(Data!$L:$L,Data!$J:$J,"<=" & Criteria!$G$10,Data!$Q:$Q,$A103,Data!$O:$O,Criteria!$G$25,Data!$P:$P,Criteria!$I$28) -> 0 | J103: =SUMIFS(Data!$M:$M,Data!$J:$J,"<=" & Criteria!$G$10,Data!$Q:$Q,$A103,Data!$O:$O,Criteria!$G$25,Data!$P:$P,Criteria!$I$28) -> 0 | K103: =SUMIFS(Data!$E:$E,Data!$A:$A,"<=" & Criteria!$G$10,Data!$G:$G,$A103,Data!$H:$H,Criteria!$G$25) -> 0 | L103: 0 | M103: 0 | P103: 7
A104: 0 | B104: =IF(A104>0,OFFSET(Criteria!$M$11,A104-Criteria!$M$11,0),"") ->  | C104: =SUMIFS(Data!$L:$L,Data!$J:$J,"<=" & Criteria!$G$10,Data!$Q:$Q,$A104,Data!$O:$O,Criteria!$G$25,Data!$P:$P,Criteria!$I$25) -> 0 | D104: =SUMIFS(Data!$M:$M,Data!$J:$J,"<=" & Criteria!$G$10,Data!$Q:$Q,$A104,Data!$O:$O,Criteria!$G$25,Data!$P:$P,Criteria!$I$25) -> 0 | E104: =SUMIFS(Data!$L:$L,Data!$J:$J,"<=" & Criteria!$G$10,Data!$Q:$Q,$A104,Data!$O:$O,Criteria!$G$25,Data!$P:$P,Criteria!$I$26) -> 0 | F104: =SUMIFS(Data!$M:$M,Data!$J:$J,"<=" & Criteria!$G$10,Data!$Q:$Q,$A104,Data!$O:$O,Criteria!$G$25,Data!$P:$P,Criteria!$I$26) -> 0 | G104: =SUMIFS(Data!$L:$L,Data!$J:$J,"<=" & Criteria!$G$10,Data!$Q:$Q,$A104,Data!$O:$O,Criteria!$G$25,Data!$P:$P,Criteria!$I$27) -> 0 | H104: =SUMIFS(Data!$M:$M,Data!$J:$J,"<=" & Criteria!$G$10,Data!$Q:$Q,$A104,Data!$O:$O,Criteria!$G$25,Data!$P:$P,Criteria!$I$27) -> 0 | I104: =SUMIFS(Data!$L:$L,Data!$J:$J,"<=" & Criteria!$G$10,Data!$Q:$Q,$A104,Data!$O:$O,Criteria!$G$25,Data!$P:$P,Criteria!$I$28) -> 0 | J104: =SUMIFS(Data!$M:$M,Data!$J:$J,"<=" & Criteria!$G$10,Data!$Q:$Q,$A104,Data!$O:$O,Criteria!$G$25,Data!$P:$P,Criteria!$I$28) -> 0 | K104: =SUMIFS(Data!$E:$E,Data!$A:$A,"<=" & Criteria!$G$10,Data!$G:$G,$A104,Data!$H:$H,Criteria!$G$25) -> 0 | L104: 0 | M104: 0 | P104: 8
A105: 0 | B105: =IF(A105>0,OFFSET(Criteria!$M$11,A105-Criteria!$M$11,0),"") ->  | C105: =SUMIFS(Data!$L:$L,Data!$J:$J,"<=" & Criteria!$G$10,Data!$Q:$Q,$A105,Data!$O:$O,Criteria!$G$25,Data!$P:$P,Criteria!$I$25) -> 0 | D105: =SUMIFS(Data!$M:$M,Data!$J:$J,"<=" & Criteria!$G$10,Data!$Q:$Q,$A105,Data!$O:$O,Criteria!$G$25,Data!$P:$P,Criteria!$I$25) -> 0 | E105: =SUMIFS(Data!$L:$L,Data!$J:$J,"<=" & Criteria!$G$10,Data!$Q:$Q,$A105,Data!$O:$O,Criteria!$G$25,Data!$P:$P,Criteria!$I$26) -> 0 | F105: =SUMIFS(Data!$M:$M,Data!$J:$J,"<=" & Criteria!$G$10,Data!$Q:$Q,$A105,Data!$O:$O,Criteria!$G$25,Data!$P:$P,Criteria!$I$26) -> 0 | G105: =SUMIFS(Data!$L:$L,Data!$J:$J,"<=" & Criteria!$G$10,Data!$Q:$Q,$A105,Data!$O:$O,Criteria!$G$25,Data!$P:$P,Criteria!$I$27) -> 0 | H105: =SUMIFS(Data!$M:$M,Data!$J:$J,"<=" & Criteria!$G$10,Data!$Q:$Q,$A105,Data!$O:$O,Criteria!$G$25,Data!$P:$P,Criteria!$I$27) -> 0 | I105: =SUMIFS(Data!$L:$L,Data!$J:$J,"<=" & Criteria!$G$10,Data!$Q:$Q,$A105,Data!$O:$O,Criteria!$G$25,Data!$P:$P,Criteria!$I$28) -> 0 | J105: =SUMIFS(Data!$M:$M,Data!$J:$J,"<=" & Criteria!$G$10,Data!$Q:$Q,$A105,Data!$O:$O,Criteria!$G$25,Data!$P:$P,Criteria!$I$28) -> 0 | K105: =SUMIFS(Data!$E:$E,Data!$A:$A,"<=" & Criteria!$G$10,Data!$G:$G,$A105,Data!$H:$H,Criteria!$G$25) -> 0 | L105: 0 | M105: 0 | P105: 9
A106: 0 | B106: =IF(A106>0,OFFSET(Criteria!$M$11,A106-Criteria!$M$11,0),"") ->  | C106: =SUMIFS(Data!$L:$L,Data!$J:$J,"<=" & Criteria!$G$10,Data!$Q:$Q,$A106,Data!$O:$O,Criteria!$G$25,Data!$P:$P,Criteria!$I$25) -> 0 | D106: =SUMIFS(Data!$M:$M,Data!$J:$J,"<=" & Criteria!$G$10,Data!$Q:$Q,$A106,Data!$O:$O,Criteria!$G$25,Data!$P:$P,Criteria!$I$25) -> 0 | E106: =SUMIFS(Data!$L:$L,Data!$J:$J,"<=" & Criteria!$G$10,Data!$Q:$Q,$A106,Data!$O:$O,Criteria!$G$25,Data!$P:$P,Criteria!$I$26) -> 0 | F106: =SUMIFS(Data!$M:$M,Data!$J:$J,"<=" & Criteria!$G$10,Data!$Q:$Q,$A106,Data!$O:$O,Criteria!$G$25,Data!$P:$P,Criteria!$I$26) -> 0 | G106: =SUMIFS(Data!$L:$L,Data!$J:$J,"<=" & Criteria!$G$10,Data!$Q:$Q,$A106,Data!$O:$O,Criteria!$G$25,Data!$P:$P,Criteria!$I$27) -> 0 | H106: =SUMIFS(Data!$M:$M,Data!$J:$J,"<=" & Criteria!$G$10,Data!$Q:$Q,$A106,Data!$O:$O,Criteria!$G$25,Data!$P:$P,Criteria!$I$27) -> 0 | I106: =SUMIFS(Data!$L:$L,Data!$J:$J,"<=" & Criteria!$G$10,Data!$Q:$Q,$A106,Data!$O:$O,Criteria!$G$25,Data!$P:$P,Criteria!$I$28) -> 0 | J106: =SUMIFS(Data!$M:$M,Data!$J:$J,"<=" & Criteria!$G$10,Data!$Q:$Q,$A106,Data!$O:$O,Criteria!$G$25,Data!$P:$P,Criteria!$I$28) -> 0 | K106: =SUMIFS(Data!$E:$E,Data!$A:$A,"<=" & Criteria!$G$10,Data!$G:$G,$A106,Data!$H:$H,Criteria!$G$25) -> 0 | L106: 0 | M106: 0 | P106: 10
A107: 0 | B107: =IF(A107>0,OFFSET(Criteria!$M$11,A107-Criteria!$M$11,0),"") ->  | C107: =SUMIFS(Data!$L:$L,Data!$J:$J,"<=" & Criteria!$G$10,Data!$Q:$Q,$A107,Data!$O:$O,Criteria!$G$25,Data!$P:$P,Criteria!$I$25) -> 0 | D107: =SUMIFS(Data!$M:$M,Data!$J:$J,"<=" & Criteria!$G$10,Data!$Q:$Q,$A107,Data!$O:$O,Criteria!$G$25,Data!$P:$P,Criteria!$I$25) -> 0 | E107: =SUMIFS(Data!$L:$L,Data!$J:$J,"<=" & Criteria!$G$10,Data!$Q:$Q,$A107,Data!$O:$O,Criteria!$G$25,Data!$P:$P,Criteria!$I$26) -> 0 | F107: =SUMIFS(Data!$M:$M,Data!$J:$J,"<=" & Criteria!$G$10,Data!$Q:$Q,$A107,Data!$O:$O,Criteria!$G$25,Data!$P:$P,Criteria!$I$26) -> 0 | G107: =SUMIFS(Data!$L:$L,Data!$J:$J,"<=" & Criteria!$G$10,Data!$Q:$Q,$A107,Data!$O:$O,Criteria!$G$25,Data!$P:$P,Criteria!$I$27) -> 0 | H107: =SUMIFS(Data!$M:$M,Data!$J:$J,"<=" & Criteria!$G$10,Data!$Q:$Q,$A107,Data!$O:$O,Criteria!$G$25,Data!$P:$P,Criteria!$I$27) -> 0 | I107: =SUMIFS(Data!$L:$L,Data!$J:$J,"<=" & Criteria!$G$10,Data!$Q:$Q,$A107,Data!$O:$O,Criteria!$G$25,Data!$P:$P,Criteria!$I$28) -> 0 | J107: =SUMIFS(Data!$M:$M,Data!$J:$J,"<=" & Criteria!$G$10,Data!$Q:$Q,$A107,Data!$O:$O,Criteria!$G$25,Data!$P:$P,Criteria!$I$28) -> 0 | K107: =SUMIFS(Data!$E:$E,Data!$A:$A,"<=" & Criteria!$G$10,Data!$G:$G,$A107,Data!$H:$H,Criteria!$G$25) -> 0 | L107: 0 | M107: 0 | P107: 11
A108: 0 | B108: =IF(A108>0,OFFSET(Criteria!$M$11,A108-Criteria!$M$11,0),"") ->  | C108: =SUMIFS(Data!$L:$L,Data!$J:$J,"<=" & Criteria!$G$10,Data!$Q:$Q,$A108,Data!$O:$O,Criteria!$G$25,Data!$P:$P,Criteria!$I$25) -> 0 | D108: =SUMIFS(Data!$M:$M,Data!$J:$J,"<=" & Criteria!$G$10,Data!$Q:$Q,$A108,Data!$O:$O,Criteria!$G$25,Data!$P:$P,Criteria!$I$25) -> 0 | E108: =SUMIFS(Data!$L:$L,Data!$J:$J,"<=" & Criteria!$G$10,Data!$Q:$Q,$A108,Data!$O:$O,Criteria!$G$25,Data!$P:$P,Criteria!$I$26) -> 0 | F108: =SUMIFS(Data!$M:$M,Data!$J:$J,"<=" & Criteria!$G$10,Data!$Q:$Q,$A108,Data!$O:$O,Criteria!$G$25,Data!$P:$P,Criteria!$I$26) -> 0 | G108: =SUMIFS(Data!$L:$L,Data!$J:$J,"<=" & Criteria!$G$10,Data!$Q:$Q,$A108,Data!$O:$O,Criteria!$G$25,Data!$P:$P,Criteria!$I$27) -> 0 | H108: =SUMIFS(Data!$M:$M,Data!$J:$J,"<=" & Criteria!$G$10,Data!$Q:$Q,$A108,Data!$O:$O,Criteria!$G$25,Data!$P:$P,Criteria!$I$27) -> 0 | I108: =SUMIFS(Data!$L:$L,Data!$J:$J,"<=" & Criteria!$G$10,Data!$Q:$Q,$A108,Data!$O:$O,Criteria!$G$25,Data!$P:$P,Criteria!$I$28) -> 0 | J108: =SUMIFS(Data!$M:$M,Data!$J:$J,"<=" & Criteria!$G$10,Data!$Q:$Q,$A108,Data!$O:$O,Criteria!$G$25,Data!$P:$P,Criteria!$I$28) -> 0 | K108: =SUMIFS(Data!$E:$E,Data!$A:$A,"<=" & Criteria!$G$10,Data!$G:$G,$A108,Data!$H:$H,Criteria!$G$25) -> 0 | L108: 0 | M108: 0 | P108: 12
A109: 0 | B109: =IF(A109>0,OFFSET(Criteria!$M$11,A109-Criteria!$M$11,0),"") ->  | C109: =SUMIFS(Data!$L:$L,Data!$J:$J,"<=" & Criteria!$G$10,Data!$Q:$Q,$A109,Data!$O:$O,Criteria!$G$25,Data!$P:$P,Criteria!$I$25) -> 0 | D109: =SUMIFS(Data!$M:$M,Data!$J:$J,"<=" & Criteria!$G$10,Data!$Q:$Q,$A109,Data!$O:$O,Criteria!$G$25,Data!$P:$P,Criteria!$I$25) -> 0 | E109: =SUMIFS(Data!$L:$L,Data!$J:$J,"<=" & Criteria!$G$10,Data!$Q:$Q,$A109,Data!$O:$O,Criteria!$G$25,Data!$P:$P,Criteria!$I$26) -> 0 | F109: =SUMIFS(Data!$M:$M,Data!$J:$J,"<=" & Criteria!$G$10,Data!$Q:$Q,$A109,Data!$O:$O,Criteria!$G$25,Data!$P:$P,Criteria!$I$26) -> 0 | G109: =SUMIFS(Data!$L:$L,Data!$J:$J,"<=" & Criteria!$G$10,Data!$Q:$Q,$A109,Data!$O:$O,Criteria!$G$25,Data!$P:$P,Criteria!$I$27) -> 0 | H109: =SUMIFS(Data!$M:$M,Data!$J:$J,"<=" & Criteria!$G$10,Data!$Q:$Q,$A109,Data!$O:$O,Criteria!$G$25,Data!$P:$P,Criteria!$I$27) -> 0 | I109: =SUMIFS(Data!$L:$L,Data!$J:$J,"<=" & Criteria!$G$10,Data!$Q:$Q,$A109,Data!$O:$O,Criteria!$G$25,Data!$P:$P,Criteria!$I$28) -> 0 | J109: =SUMIFS(Data!$M:$M,Data!$J:$J,"<=" & Criteria!$G$10,Data!$Q:$Q,$A109,Data!$O:$O,Criteria!$G$25,Data!$P:$P,Criteria!$I$28) -> 0 | K109: =SUMIFS(Data!$E:$E,Data!$A:$A,"<=" & Criteria!$G$10,Data!$G:$G,$A109,Data!$H:$H,Criteria!$G$25) -> 0 | L109: 0 | M109: 0 | P109: 13
A110: 0 | B110: =IF(A110>0,OFFSET(Criteria!$M$11,A110-Criteria!$M$11,0),"") ->  | C110: =SUMIFS(Data!$L:$L,Data!$J:$J,"<=" & Criteria!$G$10,Data!$Q:$Q,$A110,Data!$O:$O,Criteria!$G$25,Data!$P:$P,Criteria!$I$25) -> 0 | D110: =SUMIFS(Data!$M:$M,Data!$J:$J,"<=" & Criteria!$G$10,Data!$Q:$Q,$A110,Data!$O:$O,Criteria!$G$25,Data!$P:$P,Criteria!$I$25) -> 0 | E110: =SUMIFS(Data!$L:$L,Data!$J:$J,"<=" & Criteria!$G$10,Data!$Q:$Q,$A110,Data!$O:$O,Criteria!$G$25,Data!$P:$P,Criteria!$I$26) -> 0 | F110: =SUMIFS(Data!$M:$M,Data!$J:$J,"<=" & Criteria!$G$10,Data!$Q:$Q,$A110,Data!$O:$O,Criteria!$G$25,Data!$P:$P,Criteria!$I$26) -> 0 | G110: =SUMIFS(Data!$L:$L,Data!$J:$J,"<=" & Criteria!$G$10,Data!$Q:$Q,$A110,Data!$O:$O,Criteria!$G$25,Data!$P:$P,Criteria!$I$27) -> 0 | H110: =SUMIFS(Data!$M:$M,Data!$J:$J,"<=" & Criteria!$G$10,Data!$Q:$Q,$A110,Data!$O:$O,Criteria!$G$25,Data!$P:$P,Criteria!$I$27) -> 0 | I110: =SUMIFS(Data!$L:$L,Data!$J:$J,"<=" & Criteria!$G$10,Data!$Q:$Q,$A110,Data!$O:$O,Criteria!$G$25,Data!$P:$P,Criteria!$I$28) -> 0 | J110: =SUMIFS(Data!$M:$M,Data!$J:$J,"<=" & Criteria!$G$10,Data!$Q:$Q,$A110,Data!$O:$O,Criteria!$G$25,Data!$P:$P,Criteria!$I$28) -> 0 | K110: =SUMIFS(Data!$E:$E,Data!$A:$A,"<=" & Criteria!$G$10,Data!$G:$G,$A110,Data!$H:$H,Criteria!$G$25) -> 0 | L110: =C110+E110+G110+I110 -> 0 | M110: =D110+F110+H110+J110-K110 -> 0 | P110: 14
A111: 0 | B111: =IF(A111>0,OFFSET(Criteria!$M$11,A111-Criteria!$M$11,0),"") ->  | C111: =SUMIFS(Data!$L:$L,Data!$J:$J,"<=" & Criteria!$G$10,Data!$Q:$Q,$A111,Data!$O:$O,Criteria!$G$25,Data!$P:$P,Criteria!$I$25) -> 0 | D111: =SUMIFS(Data!$M:$M,Data!$J:$J,"<=" & Criteria!$G$10,Data!$Q:$Q,$A111,Data!$O:$O,Criteria!$G$25,Data!$P:$P,Criteria!$I$25) -> 0 | E111: =SUMIFS(Data!$L:$L,Data!$J:$J,"<=" & Criteria!$G$10,Data!$Q:$Q,$A111,Data!$O:$O,Criteria!$G$25,Data!$P:$P,Criteria!$I$26) -> 0 | F111: =SUMIFS(Data!$M:$M,Data!$J:$J,"<=" & Criteria!$G$10,Data!$Q:$Q,$A111,Data!$O:$O,Criteria!$G$25,Data!$P:$P,Criteria!$I$26) -> 0 | G111: =SUMIFS(Data!$L:$L,Data!$J:$J,"<=" & Criteria!$G$10,Data!$Q:$Q,$A111,Data!$O:$O,Criteria!$G$25,Data!$P:$P,Criteria!$I$27) -> 0 | H111: =SUMIFS(Data!$M:$M,Data!$J:$J,"<=" & Criteria!$G$10,Data!$Q:$Q,$A111,Data!$O:$O,Criteria!$G$25,Data!$P:$P,Criteria!$I$27) -> 0 | I111: =SUMIFS(Data!$L:$L,Data!$J:$J,"<=" & Criteria!$G$10,Data!$Q:$Q,$A111,Data!$O:$O,Criteria!$G$25,Data!$P:$P,Criteria!$I$28) -> 0 | J111: =SUMIFS(Data!$M:$M,Data!$J:$J,"<=" & Criteria!$G$10,Data!$Q:$Q,$A111,Data!$O:$O,Criteria!$G$25,Data!$P:$P,Criteria!$I$28) -> 0 | K111: =SUMIFS(Data!$E:$E,Data!$A:$A,"<=" & Criteria!$G$10,Data!$G:$G,$A111,Data!$H:$H,Criteria!$G$25) -> 0 | L111: 0 | M111: 0 | P111: 15
A112: 0 | B112: =IF(A112>0,OFFSET(Criteria!$M$11,A112-Criteria!$M$11,0),"") ->  | C112: =SUMIFS(Data!$L:$L,Data!$J:$J,"<=" & Criteria!$G$10,Data!$Q:$Q,$A112,Data!$O:$O,Criteria!$G$25,Data!$P:$P,Criteria!$I$25) -> 0 | D112: =SUMIFS(Data!$M:$M,Data!$J:$J,"<=" & Criteria!$G$10,Data!$Q:$Q,$A112,Data!$O:$O,Criteria!$G$25,Data!$P:$P,Criteria!$I$25) -> 0 | E112: =SUMIFS(Data!$L:$L,Data!$J:$J,"<=" & Criteria!$G$10,Data!$Q:$Q,$A112,Data!$O:$O,Criteria!$G$25,Data!$P:$P,Criteria!$I$26) -> 0 | F112: =SUMIFS(Data!$M:$M,Data!$J:$J,"<=" & Criteria!$G$10,Data!$Q:$Q,$A112,Data!$O:$O,Criteria!$G$25,Data!$P:$P,Criteria!$I$26) -> 0 | G112: =SUMIFS(Data!$L:$L,Data!$J:$J,"<=" & Criteria!$G$10,Data!$Q:$Q,$A112,Data!$O:$O,Criteria!$G$25,Data!$P:$P,Criteria!$I$27) -> 0 | H112: =SUMIFS(Data!$M:$M,Data!$J:$J,"<=" & Criteria!$G$10,Data!$Q:$Q,$A112,Data!$O:$O,Criteria!$G$25,Data!$P:$P,Criteria!$I$27) -> 0 | I112: =SUMIFS(Data!$L:$L,Data!$J:$J,"<=" & Criteria!$G$10,Data!$Q:$Q,$A112,Data!$O:$O,Criteria!$G$25,Data!$P:$P,Criteria!$I$28) -> 0 | J112: =SUMIFS(Data!$M:$M,Data!$J:$J,"<=" & Criteria!$G$10,Data!$Q:$Q,$A112,Data!$O:$O,Criteria!$G$25,Data!$P:$P,Criteria!$I$28) -> 0 | K112: =SUMIFS(Data!$E:$E,Data!$A:$A,"<=" & Criteria!$G$10,Data!$G:$G,$A112,Data!$H:$H,Criteria!$G$25) -> 0 | L112: 0 | M112: 0 | P112: 16
A113: 0 | B113: =IF(A113>0,OFFSET(Criteria!$M$11,A113-Criteria!$M$11,0),"") ->  | C113: =SUMIFS(Data!$L:$L,Data!$J:$J,"<=" & Criteria!$G$10,Data!$Q:$Q,$A113,Data!$O:$O,Criteria!$G$25,Data!$P:$P,Criteria!$I$25) -> 0 | D113: =SUMIFS(Data!$M:$M,Data!$J:$J,"<=" & Criteria!$G$10,Data!$Q:$Q,$A113,Data!$O:$O,Criteria!$G$25,Data!$P:$P,Criteria!$I$25) -> 0 | E113: =SUMIFS(Data!$L:$L,Data!$J:$J,"<=" & Criteria!$G$10,Data!$Q:$Q,$A113,Data!$O:$O,Criteria!$G$25,Data!$P:$P,Criteria!$I$26) -> 0 | F113: =SUMIFS(Data!$M:$M,Data!$J:$J,"<=" & Criteria!$G$10,Data!$Q:$Q,$A113,Data!$O:$O,Criteria!$G$25,Data!$P:$P,Criteria!$I$26) -> 0 | G113: =SUMIFS(Data!$L:$L,Data!$J:$J,"<=" & Criteria!$G$10,Data!$Q:$Q,$A113,Data!$O:$O,Criteria!$G$25,Data!$P:$P,Criteria!$I$27) -> 0 | H113: =SUMIFS(Data!$M:$M,Data!$J:$J,"<=" & Criteria!$G$10,Data!$Q:$Q,$A113,Data!$O:$O,Criteria!$G$25,Data!$P:$P,Criteria!$I$27) -> 0 | I113: =SUMIFS(Data!$L:$L,Data!$J:$J,"<=" & Criteria!$G$10,Data!$Q:$Q,$A113,Data!$O:$O,Criteria!$G$25,Data!$P:$P,Criteria!$I$28) -> 0 | J113: =SUMIFS(Data!$M:$M,Data!$J:$J,"<=" & Criteria!$G$10,Data!$Q:$Q,$A113,Data!$O:$O,Criteria!$G$25,Data!$P:$P,Criteria!$I$28) -> 0 | K113: =SUMIFS(Data!$E:$E,Data!$A:$A,"<=" & Criteria!$G$10,Data!$G:$G,$A113,Data!$H:$H,Criteria!$G$25) -> 0 | L113: 0 | M113: 0 | P113: 17
A114: 0 | B114: =IF(A114>0,OFFSET(Criteria!$M$11,A114-Criteria!$M$11,0),"") ->  | C114: =SUMIFS(Data!$L:$L,Data!$J:$J,"<=" & Criteria!$G$10,Data!$Q:$Q,$A114,Data!$O:$O,Criteria!$G$25,Data!$P:$P,Criteria!$I$25) -> 0 | D114: =SUMIFS(Data!$M:$M,Data!$J:$J,"<=" & Criteria!$G$10,Data!$Q:$Q,$A114,Data!$O:$O,Criteria!$G$25,Data!$P:$P,Criteria!$I$25) -> 0 | E114: =SUMIFS(Data!$L:$L,Data!$J:$J,"<=" & Criteria!$G$10,Data!$Q:$Q,$A114,Data!$O:$O,Criteria!$G$25,Data!$P:$P,Criteria!$I$26) -> 0 | F114: =SUMIFS(Data!$M:$M,Data!$J:$J,"<=" & Criteria!$G$10,Data!$Q:$Q,$A114,Data!$O:$O,Criteria!$G$25,Data!$P:$P,Criteria!$I$26) -> 0 | G114: =SUMIFS(Data!$L:$L,Data!$J:$J,"<=" & Criteria!$G$10,Data!$Q:$Q,$A114,Data!$O:$O,Criteria!$G$25,Data!$P:$P,Criteria!$I$27) -> 0 | H114: =SUMIFS(Data!$M:$M,Data!$J:$J,"<=" & Criteria!$G$10,Data!$Q:$Q,$A114,Data!$O:$O,Criteria!$G$25,Data!$P:$P,Criteria!$I$27) -> 0 | I114: =SUMIFS(Data!$L:$L,Data!$J:$J,"<=" & Criteria!$G$10,Data!$Q:$Q,$A114,Data!$O:$O,Criteria!$G$25,Data!$P:$P,Criteria!$I$28) -> 0 | J114: =SUMIFS(Data!$M:$M,Data!$J:$J,"<=" & Criteria!$G$10,Data!$Q:$Q,$A114,Data!$O:$O,Criteria!$G$25,Data!$P:$P,Criteria!$I$28) -> 0 | K114: =SUMIFS(Data!$E:$E,Data!$A:$A,"<=" & Criteria!$G$10,Data!$G:$G,$A114,Data!$H:$H,Criteria!$G$25) -> 0 | L114: 0 | M114: 0 | P114: 18
A115: 0 | B115: =IF(A115>0,OFFSET(Criteria!$M$11,A115-Criteria!$M$11,0),"") ->  | C115: =SUMIFS(Data!$L:$L,Data!$J:$J,"<=" & Criteria!$G$10,Data!$Q:$Q,$A115,Data!$O:$O,Criteria!$G$25,Data!$P:$P,Criteria!$I$25) -> 0 | D115: =SUMIFS(Data!$M:$M,Data!$J:$J,"<=" & Criteria!$G$10,Data!$Q:$Q,$A115,Data!$O:$O,Criteria!$G$25,Data!$P:$P,Criteria!$I$25) -> 0 | E115: =SUMIFS(Data!$L:$L,Data!$J:$J,"<=" & Criteria!$G$10,Data!$Q:$Q,$A115,Data!$O:$O,Criteria!$G$25,Data!$P:$P,Criteria!$I$26) -> 0 | F115: =SUMIFS(Data!$M:$M,Data!$J:$J,"<=" & Criteria!$G$10,Data!$Q:$Q,$A115,Data!$O:$O,Criteria!$G$25,Data!$P:$P,Criteria!$I$26) -> 0 | G115: =SUMIFS(Data!$L:$L,Data!$J:$J,"<=" & Criteria!$G$10,Data!$Q:$Q,$A115,Data!$O:$O,Criteria!$G$25,Data!$P:$P,Criteria!$I$27) -> 0 | H115: =SUMIFS(Data!$M:$M,Data!$J:$J,"<=" & Criteria!$G$10,Data!$Q:$Q,$A115,Data!$O:$O,Criteria!$G$25,Data!$P:$P,Criteria!$I$27) -> 0 | I115: =SUMIFS(Data!$L:$L,Data!$J:$J,"<=" & Criteria!$G$10,Data!$Q:$Q,$A115,Data!$O:$O,Criteria!$G$25,Data!$P:$P,Criteria!$I$28) -> 0 | J115: =SUMIFS(Data!$M:$M,Data!$J:$J,"<=" & Criteria!$G$10,Data!$Q:$Q,$A115,Data!$O:$O,Criteria!$G$25,Data!$P:$P,Criteria!$I$28) -> 0 | K115: =SUMIFS(Data!$E:$E,Data!$A:$A,"<=" & Criteria!$G$10,Data!$G:$G,$A115,Data!$H:$H,Criteria!$G$25) -> 0 | L115: 0 | M115: 0 | P115: 19
A116: 0 | B116: =IF(A116>0,OFFSET(Criteria!$M$11,A116-Criteria!$M$11,0),"") ->  | C116: =SUMIFS(Data!$L:$L,Data!$J:$J,"<=" & Criteria!$G$10,Data!$Q:$Q,$A116,Data!$O:$O,Criteria!$G$25,Data!$P:$P,Criteria!$I$25) -> 0 | D116: =SUMIFS(Data!$M:$M,Data!$J:$J,"<=" & Criteria!$G$10,Data!$Q:$Q,$A116,Data!$O:$O,Criteria!$G$25,Data!$P:$P,Criteria!$I$25) -> 0 | E116: =SUMIFS(Data!$L:$L,Data!$J:$J,"<=" & Criteria!$G$10,Data!$Q:$Q,$A116,Data!$O:$O,Criteria!$G$25,Data!$P:$P,Criteria!$I$26) -> 0 | F116: =SUMIFS(Data!$M:$M,Data!$J:$J,"<=" & Criteria!$G$10,Data!$Q:$Q,$A116,Data!$O:$O,Criteria!$G$25,Data!$P:$P,Criteria!$I$26) -> 0 | G116: =SUMIFS(Data!$L:$L,Data!$J:$J,"<=" & Criteria!$G$10,Data!$Q:$Q,$A116,Data!$O:$O,Criteria!$G$25,Data!$P:$P,Criteria!$I$27) -> 0 | H116: =SUMIFS(Data!$M:$M,Data!$J:$J,"<=" & Criteria!$G$10,Data!$Q:$Q,$A116,Data!$O:$O,Criteria!$G$25,Data!$P:$P,Criteria!$I$27) -> 0 | I116: =SUMIFS(Data!$L:$L,Data!$J:$J,"<=" & Criteria!$G$10,Data!$Q:$Q,$A116,Data!$O:$O,Criteria!$G$25,Data!$P:$P,Criteria!$I$28) -> 0 | J116: =SUMIFS(Data!$M:$M,Data!$J:$J,"<=" & Criteria!$G$10,Data!$Q:$Q,$A116,Data!$O:$O,Criteria!$G$25,Data!$P:$P,Criteria!$I$28) -> 0 | K116: =SUMIFS(Data!$E:$E,Data!$A:$A,"<=" & Criteria!$G$10,Data!$G:$G,$A116,Data!$H:$H,Criteria!$G$25) -> 0 | L116: 0 | M116: 0 | P116: 20
A117: 0 | B117: =IF(A117>0,OFFSET(Criteria!$M$11,A117-Criteria!$M$11,0),"") ->  | C117: =SUMIFS(Data!$L:$L,Data!$J:$J,"<=" & Criteria!$G$10,Data!$Q:$Q,$A117,Data!$O:$O,Criteria!$G$25,Data!$P:$P,Criteria!$I$25) -> 0 | D117: =SUMIFS(Data!$M:$M,Data!$J:$J,"<=" & Criteria!$G$10,Data!$Q:$Q,$A117,Data!$O:$O,Criteria!$G$25,Data!$P:$P,Criteria!$I$25) -> 0 | E117: =SUMIFS(Data!$L:$L,Data!$J:$J,"<=" & Criteria!$G$10,Data!$Q:$Q,$A117,Data!$O:$O,Criteria!$G$25,Data!$P:$P,Criteria!$I$26) -> 0 | F117: =SUMIFS(Data!$M:$M,Data!$J:$J,"<=" & Criteria!$G$10,Data!$Q:$Q,$A117,Data!$O:$O,Criteria!$G$25,Data!$P:$P,Criteria!$I$26) -> 0 | G117: =SUMIFS(Data!$L:$L,Data!$J:$J,"<=" & Criteria!$G$10,Data!$Q:$Q,$A117,Data!$O:$O,Criteria!$G$25,Data!$P:$P,Criteria!$I$27) -> 0 | H117: =SUMIFS(Data!$M:$M,Data!$J:$J,"<=" & Criteria!$G$10,Data!$Q:$Q,$A117,Data!$O:$O,Criteria!$G$25,Data!$P:$P,Criteria!$I$27) -> 0 | I117: =SUMIFS(Data!$L:$L,Data!$J:$J,"<=" & Criteria!$G$10,Data!$Q:$Q,$A117,Data!$O:$O,Criteria!$G$25,Data!$P:$P,Criteria!$I$28) -> 0 | J117: =SUMIFS(Data!$M:$M,Data!$J:$J,"<=" & Criteria!$G$10,Data!$Q:$Q,$A117,Data!$O:$O,Criteria!$G$25,Data!$P:$P,Criteria!$I$28) -> 0 | K117: =SUMIFS(Data!$E:$E,Data!$A:$A,"<=" & Criteria!$G$10,Data!$G:$G,$A117,Data!$H:$H,Criteria!$G$25) -> 0 | L117: 0 | M117: 0 | P117: =P109+1 -> 14
A118: 0 | B118: =IF(A118>0,OFFSET(Criteria!$M$11,A118-Criteria!$M$11,0),"") ->  | C118: =SUMIFS(Data!$L:$L,Data!$J:$J,"<=" & Criteria!$G$10,Data!$Q:$Q,$A118,Data!$O:$O,Criteria!$G$25,Data!$P:$P,Criteria!$I$25) -> 0 | D118: =SUMIFS(Data!$M:$M,Data!$J:$J,"<=" & Criteria!$G$10,Data!$Q:$Q,$A118,Data!$O:$O,Criteria!$G$25,Data!$P:$P,Criteria!$I$25) -> 0 | E118: =SUMIFS(Data!$L:$L,Data!$J:$J,"<=" & Criteria!$G$10,Data!$Q:$Q,$A118,Data!$O:$O,Criteria!$G$25,Data!$P:$P,Criteria!$I$26) -> 0 | F118: =SUMIFS(Data!$M:$M,Data!$J:$J,"<=" & Criteria!$G$10,Data!$Q:$Q,$A118,Data!$O:$O,Criteria!$G$25,Data!$P:$P,Criteria!$I$26) -> 0 | G118: =SUMIFS(Data!$L:$L,Data!$J:$J,"<=" & Criteria!$G$10,Data!$Q:$Q,$A118,Data!$O:$O,Criteria!$G$25,Data!$P:$P,Criteria!$I$27) -> 0 | H118: =SUMIFS(Data!$M:$M,Data!$J:$J,"<=" & Criteria!$G$10,Data!$Q:$Q,$A118,Data!$O:$O,Criteria!$G$25,Data!$P:$P,Criteria!$I$27) -> 0 | I118: =SUMIFS(Data!$L:$L,Data!$J:$J,"<=" & Criteria!$G$10,Data!$Q:$Q,$A118,Data!$O:$O,Criteria!$G$25,Data!$P:$P,Criteria!$I$28) -> 0 | J118: =SUMIFS(Data!$M:$M,Data!$J:$J,"<=" & Criteria!$G$10,Data!$Q:$Q,$A118,Data!$O:$O,Criteria!$G$25,Data!$P:$P,Criteria!$I$28) -> 0 | K118: =SUMIFS(Data!$E:$E,Data!$A:$A,"<=" & Criteria!$G$10,Data!$G:$G,$A118,Data!$H:$H,Criteria!$G$25) -> 0 | L118: 0 | M118: 0 | P118: 15
A119: 0 | B119: =IF(A119>0,OFFSET(Criteria!$M$11,A119-Criteria!$M$11,0),"") ->  | C119: =SUMIFS(Data!$L:$L,Data!$J:$J,"<=" & Criteria!$G$10,Data!$Q:$Q,$A119,Data!$O:$O,Criteria!$G$25,Data!$P:$P,Criteria!$I$25) -> 0 | D119: =SUMIFS(Data!$M:$M,Data!$J:$J,"<=" & Criteria!$G$10,Data!$Q:$Q,$A119,Data!$O:$O,Criteria!$G$25,Data!$P:$P,Criteria!$I$25) -> 0 | E119: =SUMIFS(Data!$L:$L,Data!$J:$J,"<=" & Criteria!$G$10,Data!$Q:$Q,$A119,Data!$O:$O,Criteria!$G$25,Data!$P:$P,Criteria!$I$26) -> 0 | F119: =SUMIFS(Data!$M:$M,Data!$J:$J,"<=" & Criteria!$G$10,Data!$Q:$Q,$A119,Data!$O:$O,Criteria!$G$25,Data!$P:$P,Criteria!$I$26) -> 0 | G119: =SUMIFS(Data!$L:$L,Data!$J:$J,"<=" & Criteria!$G$10,Data!$Q:$Q,$A119,Data!$O:$O,Criteria!$G$25,Data!$P:$P,Criteria!$I$27) -> 0 | H119: =SUMIFS(Data!$M:$M,Data!$J:$J,"<=" & Criteria!$G$10,Data!$Q:$Q,$A119,Data!$O:$O,Criteria!$G$25,Data!$P:$P,Criteria!$I$27) -> 0 | I119: =SUMIFS(Data!$L:$L,Data!$J:$J,"<=" & Criteria!$G$10,Data!$Q:$Q,$A119,Data!$O:$O,Criteria!$G$25,Data!$P:$P,Criteria!$I$28) -> 0 | J119: =SUMIFS(Data!$M:$M,Data!$J:$J,"<=" & Criteria!$G$10,Data!$Q:$Q,$A119,Data!$O:$O,Criteria!$G$25,Data!$P:$P,Criteria!$I$28) -> 0 | K119: =SUMIFS(Data!$E:$E,Data!$A:$A,"<=" & Criteria!$G$10,Data!$G:$G,$A119,Data!$H:$H,Criteria!$G$25) -> 0 | L119: 0 | M119: 0 | P119: 16
C120: =SUM(C101:C119) -> 13539 | D120: 2185443300 | E120: 17483 | F120: 3301803300 | G120: 20531 | H120: 2941566800 | I120: 6246 | J120: 679932600 | K120: 132030400 | L120: 57799 | M120: 8976715600 | P120: 17
P121: =P120+1 -> 18
C122: Notes | P122: =P121+1 -> 19
P123: =P122+1 -> 20
C124: 2 year | E124: 3 year | G124: 5 year | I124: 7 year | K124: 10 year | M124: Returns | N124: Net Total | P124: =P123+1 -> 21
C125: Securities | D125: Dollars | E125: Securities | F125: Dollars | G125: Securities | H125: Dollars | I125: Securities | J125: Dollars | K125: Securities | L125: Dollars | M125: Dollars | N125: Securities | O125: Dollars
A126: =ReportFY -> 2012 | B126: =IF(A126>0,OFFSET(Criteria!$M$11,A126-Criteria!$M$11,0),"") -> 2012 (thru Dec) | C126: =SUMIFS(Data!$L:$L,Data!$J:$J,"<=" & Criteria!$G$10,Data!$Q:$Q,$A126,Data!$O:$O,Criteria!$G$29,Data!$P:$P,Criteria!$I$29) -> 9921 | D126: =SUMIFS(Data!$M:$M,Data!$J:$J,"<=" & Criteria!$G$10,Data!$Q:$Q,$A126,Data!$O:$O,Criteria!$G$29,Data!$P:$P,Criteria!$I$29) -> 616655700 | E126: =SUMIFS(Data!$L:$L,Data!$J:$J,"<=" & Criteria!$G$10,Data!$Q:$Q,$A126,Data!$O:$O,Criteria!$G$29,Data!$P:$P,Criteria!$I$30) -> 2682 | F126: =SUMIFS(Data!$M:$M,Data!$J:$J,"<=" & Criteria!$G$10,Data!$Q:$Q,$A126,Data!$O:$O,Criteria!$G$29,Data!$P:$P,Criteria!$I$30) -> 161990000 | G126: =SUMIFS(Data!$L:$L,Data!$J:$J,"<=" & Criteria!$G$10,Data!$Q:$Q,$A126,Data!$O:$O,Criteria!$G$29,Data!$P:$P,Criteria!$I$31) -> 3275 | H126: =SUMIFS(Data!$M:$M,Data!$J:$J,"<=" & Criteria!$G$10,Data!$Q:$Q,$A126,Data!$O:$O,Criteria!$G$29,Data!$P:$P,Criteria!$I$31) -> 109366000 | I126: =SUMIFS(Data!$L:$L,Data!$J:$J,"<=" & Criteria!$G$10,Data!$Q:$Q,$A126,Data!$O:$O,Criteria!$G$29,Data!$P:$P,Criteria!$I$32) -> 1443 | J126: =SUMIFS(Data!$M:$M,Data!$J:$J,"<=" & Criteria!$G$10,Data!$Q:$Q,$A126,Data!$O:$O,Criteria!$G$29,Data!$P:$P,Criteria!$I$32) -> 42820300 | K126: =SUMIFS(Data!$L:$L,Data!$J:$J,"<=" & Criteria!$G$10,Data!$Q:$Q,$A126,Data!$O:$O,Criteria!$G$29,Data!$P:$P,Criteria!$I$33) -> 2869 | L126: =SUMIFS(Data!$M:$M,Data!$J:$J,"<=" & Criteria!$G$10,Data!$Q:$Q,$A126,Data!$O:$O,Criteria!$G$29,Data!$P:$P,Criteria!$I$33) -> 96915100 | M126: =SUMIFS(Data!$E:$E,Data!$A:$A,"<=" & Criteria!$G$10,Data!$G:$G,$A126,Data!$H:$H,Criteria!$G$29) -> 21534100 | N126: =C126+E126+G126+I126+K126 -> 20190 | O126: =D126+F126+H126+J126+L126-M126 -> 1006213000
A127: =IF(AND(A126<ReportMaxFY,A126<>0), A126+1,0) -> 0 | B127: =IF(A127>0,OFFSET(Criteria!$M$11,A127-Criteria!$M$11,0),"") ->  | C127: =SUMIFS(Data!$L:$L,Data!$J:$J,"<=" & Criteria!$G$10,Data!$Q:$Q,$A127,Data!$O:$O,Criteria!$G$29,Data!$P:$P,Criteria!$I$29) -> 0 | D127: =SUMIFS(Data!$M:$M,Data!$J:$J,"<=" & Criteria!$G$10,Data!$Q:$Q,$A127,Data!$O:$O,Criteria!$G$29,Data!$P:$P,Criteria!$I$29) -> 0 | E127: =SUMIFS(Data!$L:$L,Data!$J:$J,"<=" & Criteria!$G$10,Data!$Q:$Q,$A127,Data!$O:$O,Criteria!$G$29,Data!$P:$P,Criteria!$I$30) -> 0 | F127: =SUMIFS(Data!$M:$M,Data!$J:$J,"<=" & Criteria!$G$10,Data!$Q:$Q,$A127,Data!$O:$O,Criteria!$G$29,Data!$P:$P,Criteria!$I$30) -> 0 | G127: =SUMIFS(Data!$L:$L,Data!$J:$J,"<=" & Criteria!$G$10,Data!$Q:$Q,$A127,Data!$O:$O,Criteria!$G$29,Data!$P:$P,Criteria!$I$31) -> 0 | H127: =SUMIFS(Data!$M:$M,Data!$J:$J,"<=" & Criteria!$G$10,Data!$Q:$Q,$A127,Data!$O:$O,Criteria!$G$29,Data!$P:$P,Criteria!$I$31) -> 0 | I127: =SUMIFS(Data!$L:$L,Data!$J:$J,"<=" & Criteria!$G$10,Data!$Q:$Q,$A127,Data!$O:$O,Criteria!$G$29,Data!$P:$P,Criteria!$I$32) -> 0 | J127: =SUMIFS(Data!$M:$M,Data!$J:$J,"<=" & Criteria!$G$10,Data!$Q:$Q,$A127,Data!$O:$O,Criteria!$G$29,Data!$P:$P,Criteria!$I$32) -> 0 | K127: =SUMIFS(Data!$L:$L,Data!$J:$J,"<=" & Criteria!$G$10,Data!$Q:$Q,$A127,Data!$O:$O,Criteria!$G$29,Data!$P:$P,Criteria!$I$33) -> 0 | L127: =SUMIFS(Data!$M:$M,Data!$J:$J,"<=" & Criteria!$G$10,Data!$Q:$Q,$A127,Data!$O:$O,Criteria!$G$29,Data!$P:$P,Criteria!$I$33) -> 0 | M127: =SUMIFS(Data!$E:$E,Data!$A:$A,"<=" & Criteria!$G$10,Data!$G:$G,$A127,Data!$H:$H,Criteria!$G$29) -> 0 | N127: 0 | O127: 0
A128: 0 | B128: =IF(A128>0,OFFSET(Criteria!$M$11,A128-Criteria!$M$11,0),"") ->  | C128: =SUMIFS(Data!$L:$L,Data!$J:$J,"<=" & Criteria!$G$10,Data!$Q:$Q,$A128,Data!$O:$O,Criteria!$G$29,Data!$P:$P,Criteria!$I$29) -> 0 | D128: =SUMIFS(Data!$M:$M,Data!$J:$J,"<=" & Criteria!$G$10,Data!$Q:$Q,$A128,Data!$O:$O,Criteria!$G$29,Data!$P:$P,Criteria!$I$29) -> 0 | E128: =SUMIFS(Data!$L:$L,Data!$J:$J,"<=" & Criteria!$G$10,Data!$Q:$Q,$A128,Data!$O:$O,Criteria!$G$29,Data!$P:$P,Criteria!$I$30) -> 0 | F128: =SUMIFS(Data!$M:$M,Data!$J:$J,"<=" & Criteria!$G$10,Data!$Q:$Q,$A128,Data!$O:$O,Criteria!$G$29,Data!$P:$P,Criteria!$I$30) -> 0 | G128: =SUMIFS(Data!$L:$L,Data!$J:$J,"<=" & Criteria!$G$10,Data!$Q:$Q,$A128,Data!$O:$O,Criteria!$G$29,Data!$P:$P,Criteria!$I$31) -> 0 | H128: =SUMIFS(Data!$M:$M,Data!$J:$J,"<=" & Criteria!$G$10,Data!$Q:$Q,$A128,Data!$O:$O,Criteria!$G$29,Data!$P:$P,Criteria!$I$31) -> 0 | I128: =SUMIFS(Data!$L:$L,Data!$J:$J,"<=" & Criteria!$G$10,Data!$Q:$Q,$A128,Data!$O:$O,Criteria!$G$29,Data!$P:$P,Criteria!$I$32) -> 0 | J128: =SUMIFS(Data!$M:$M,Data!$J:$J,"<=" & Criteria!$G$10,Data!$Q:$Q,$A128,Data!$O:$O,Criteria!$G$29,Data!$P:$P,Criteria!$I$32) -> 0 | K128: =SUMIFS(Data!$L:$L,Data!$J:$J,"<=" & Criteria!$G$10,Data!$Q:$Q,$A128,Data!$O:$O,Criteria!$G$29,Data!$P:$P,Criteria!$I$33) -> 0 | L128: =SUMIFS(Data!$M:$M,Data!$J:$J,"<=" & Criteria!$G$10,Data!$Q:$Q,$A128,Data!$O:$O,Criteria!$G$29,Data!$P:$P,Criteria!$I$33) -> 0 | M128: =SUMIFS(Data!$E:$E,Data!$A:$A,"<=" & Criteria!$G$10,Data!$G:$G,$A128,Data!$H:$H,Criteria!$G$29) -> 0 | N128: 0 | O128: 0
A129: 0 | B129: =IF(A129>0,OFFSET(Criteria!$M$11,A129-Criteria!$M$11,0),"") ->  | C129: =SUMIFS(Data!$L:$L,Data!$J:$J,"<=" & Criteria!$G$10,Data!$Q:$Q,$A129,Data!$O:$O,Criteria!$G$29,Data!$P:$P,Criteria!$I$29) -> 0 | D129: =SUMIFS(Data!$M:$M,Data!$J:$J,"<=" & Criteria!$G$10,Data!$Q:$Q,$A129,Data!$O:$O,Criteria!$G$29,Data!$P:$P,Criteria!$I$29) -> 0 | E129: =SUMIFS(Data!$L:$L,Data!$J:$J,"<=" & Criteria!$G$10,Data!$Q:$Q,$A129,Data!$O:$O,Criteria!$G$29,Data!$P:$P,Criteria!$I$30) -> 0 | F129: =SUMIFS(Data!$M:$M,Data!$J:$J,"<=" & Criteria!$G$10,Data!$Q:$Q,$A129,Data!$O:$O,Criteria!$G$29,Data!$P:$P,Criteria!$I$30) -> 0 | G129: =SUMIFS(Data!$L:$L,Data!$J:$J,"<=" & Criteria!$G$10,Data!$Q:$Q,$A129,Data!$O:$O,Criteria!$G$29,Data!$P:$P,Criteria!$I$31) -> 0 | H129: =SUMIFS(Data!$M:$M,Data!$J:$J,"<=" & Criteria!$G$10,Data!$Q:$Q,$A129,Data!$O:$O,Criteria!$G$29,Data!$P:$P,Criteria!$I$31) -> 0 | I129: =SUMIFS(Data!$L:$L,Data!$J:$J,"<=" & Criteria!$G$10,Data!$Q:$Q,$A129,Data!$O:$O,Criteria!$G$29,Data!$P:$P,Criteria!$I$32) -> 0 | J129: =SUMIFS(Data!$M:$M,Data!$J:$J,"<=" & Criteria!$G$10,Data!$Q:$Q,$A129,Data!$O:$O,Criteria!$G$29,Data!$P:$P,Criteria!$I$32) -> 0 | K129: =SUMIFS(Data!$L:$L,Data!$J:$J,"<=" & Criteria!$G$10,Data!$Q:$Q,$A129,Data!$O:$O,Criteria!$G$29,Data!$P:$P,Criteria!$I$33) -> 0 | L129: =SUMIFS(Data!$M:$M,Data!$J:$J,"<=" & Criteria!$G$10,Data!$Q:$Q,$A129,Data!$O:$O,Criteria!$G$29,Data!$P:$P,Criteria!$I$33) -> 0 | M129: =SUMIFS(Data!$E:$E,Data!$A:$A,"<=" & Criteria!$G$10,Data!$G:$G,$A129,Data!$H:$H,Criteria!$G$29) -> 0 | N129: 0 | O129: 0
A130: 0 | B130: =IF(A130>0,OFFSET(Criteria!$M$11,A130-Criteria!$M$11,0),"") ->  | C130: =SUMIFS(Data!$L:$L,Data!$J:$J,"<=" & Criteria!$G$10,Data!$Q:$Q,$A130,Data!$O:$O,Criteria!$G$29,Data!$P:$P,Criteria!$I$29) -> 0 | D130: =SUMIFS(Data!$M:$M,Data!$J:$J,"<=" & Criteria!$G$10,Data!$Q:$Q,$A130,Data!$O:$O,Criteria!$G$29,Data!$P:$P,Criteria!$I$29) -> 0 | E130: =SUMIFS(Data!$L:$L,Data!$J:$J,"<=" & Criteria!$G$10,Data!$Q:$Q,$A130,Data!$O:$O,Criteria!$G$29,Data!$P:$P,Criteria!$I$30) -> 0 | F130: =SUMIFS(Data!$M:$M,Data!$J:$J,"<=" & Criteria!$G$10,Data!$Q:$Q,$A130,Data!$O:$O,Criteria!$G$29,Data!$P:$P,Criteria!$I$30) -> 0 | G130: =SUMIFS(Data!$L:$L,Data!$J:$J,"<=" & Criteria!$G$10,Data!$Q:$Q,$A130,Data!$O:$O,Criteria!$G$29,Data!$P:$P,Criteria!$I$31) -> 0 | H130: =SUMIFS(Data!$M:$M,Data!$J:$J,"<=" & Criteria!$G$10,Data!$Q:$Q,$A130,Data!$O:$O,Criteria!$G$29,Data!$P:$P,Criteria!$I$31) -> 0 | I130: =SUMIFS(Data!$L:$L,Data!$J:$J,"<=" & Criteria!$G$10,Data!$Q:$Q,$A130,Data!$O:$O,Criteria!$G$29,Data!$P:$P,Criteria!$I$32) -> 0 | J130: =SUMIFS(Data!$M:$M,Data!$J:$J,"<=" & Criteria!$G$10,Data!$Q:$Q,$A130,Data!$O:$O,Criteria!$G$29,Data!$P:$P,Criteria!$I$32) -> 0 | K130: =SUMIFS(Data!$L:$L,Data!$J:$J,"<=" & Criteria!$G$10,Data!$Q:$Q,$A130,Data!$O:$O,Criteria!$G$29,Data!$P:$P,Criteria!$I$33) -> 0 | L130: =SUMIFS(Data!$M:$M,Data!$J:$J,"<=" & Criteria!$G$10,Data!$Q:$Q,$A130,Data!$O:$O,Criteria!$G$29,Data!$P:$P,Criteria!$I$33) -> 0 | M130: =SUMIFS(Data!$E:$E,Data!$A:$A,"<=" & Criteria!$G$10,Data!$G:$G,$A130,Data!$H:$H,Criteria!$G$29) -> 0 | N130: 0 | O130: 0
A131: 0 | B131: =IF(A131>0,OFFSET(Criteria!$M$11,A131-Criteria!$M$11,0),"") ->  | C131: =SUMIFS(Data!$L:$L,Data!$J:$J,"<=" & Criteria!$G$10,Data!$Q:$Q,$A131,Data!$O:$O,Criteria!$G$29,Data!$P:$P,Criteria!$I$29) -> 0 | D131: =SUMIFS(Data!$M:$M,Data!$J:$J,"<=" & Criteria!$G$10,Data!$Q:$Q,$A131,Data!$O:$O,Criteria!$G$29,Data!$P:$P,Criteria!$I$29) -> 0 | E131: =SUMIFS(Data!$L:$L,Data!$J:$J,"<=" & Criteria!$G$10,Data!$Q:$Q,$A131,Data!$O:$O,Criteria!$G$29,Data!$P:$P,Criteria!$I$30) -> 0 | F131: =SUMIFS(Data!$M:$M,Data!$J:$J,"<=" & Criteria!$G$10,Data!$Q:$Q,$A131,Data!$O:$O,Criteria!$G$29,Data!$P:$P,Criteria!$I$30) -> 0 | G131: =SUMIFS(Data!$L:$L,Data!$J:$J,"<=" & Criteria!$G$10,Data!$Q:$Q,$A131,Data!$O:$O,Criteria!$G$29,Data!$P:$P,Criteria!$I$31) -> 0 | H131: =SUMIFS(Data!$M:$M,Data!$J:$J,"<=" & Criteria!$G$10,Data!$Q:$Q,$A131,Data!$O:$O,Criteria!$G$29,Data!$P:$P,Criteria!$I$31) -> 0 | I131: =SUMIFS(Data!$L:$L,Data!$J:$J,"<=" & Criteria!$G$10,Data!$Q:$Q,$A131,Data!$O:$O,Criteria!$G$29,Data!$P:$P,Criteria!$I$32) -> 0 | J131: =SUMIFS(Data!$M:$M,Data!$J:$J,"<=" & Criteria!$G$10,Data!$Q:$Q,$A131,Data!$O:$O,Criteria!$G$29,Data!$P:$P,Criteria!$I$32) -> 0 | K131: =SUMIFS(Data!$L:$L,Data!$J:$J,"<=" & Criteria!$G$10,Data!$Q:$Q,$A131,Data!$O:$O,Criteria!$G$29,Data!$P:$P,Criteria!$I$33) -> 0 | L131: =SUMIFS(Data!$M:$M,Data!$J:$J,"<=" & Criteria!$G$10,Data!$Q:$Q,$A131,Data!$O:$O,Criteria!$G$29,Data!$P:$P,Criteria!$I$33) -> 0 | M131: =SUMIFS(Data!$E:$E,Data!$A:$A,"<=" & Criteria!$G$10,Data!$G:$G,$A131,Data!$H:$H,Criteria!$G$29) -> 0 | N131: 0 | O131: 0
A132: 0 | B132: =IF(A132>0,OFFSET(Criteria!$M$11,A132-Criteria!$M$11,0),"") ->  | C132: =SUMIFS(Data!$L:$L,Data!$J:$J,"<=" & Criteria!$G$10,Data!$Q:$Q,$A132,Data!$O:$O,Criteria!$G$29,Data!$P:$P,Criteria!$I$29) -> 0 | D132: =SUMIFS(Data!$M:$M,Data!$J:$J,"<=" & Criteria!$G$10,Data!$Q:$Q,$A132,Data!$O:$O,Criteria!$G$29,Data!$P:$P,Criteria!$I$29) -> 0 | E132: =SUMIFS(Data!$L:$L,Data!$J:$J,"<=" & Criteria!$G$10,Data!$Q:$Q,$A132,Data!$O:$O,Criteria!$G$29,Data!$P:$P,Criteria!$I$30) -> 0 | F132: =SUMIFS(Data!$M:$M,Data!$J:$J,"<=" & Criteria!$G$10,Data!$Q:$Q,$A132,Data!$O:$O,Criteria!$G$29,Data!$P:$P,Criteria!$I$30) -> 0 | G132: =SUMIFS(Data!$L:$L,Data!$J:$J,"<=" & Criteria!$G$10,Data!$Q:$Q,$A132,Data!$O:$O,Criteria!$G$29,Data!$P:$P,Criteria!$I$31) -> 0 | H132: =SUMIFS(Data!$M:$M,Data!$J:$J,"<=" & Criteria!$G$10,Data!$Q:$Q,$A132,Data!$O:$O,Criteria!$G$29,Data!$P:$P,Criteria!$I$31) -> 0 | I132: =SUMIFS(Data!$L:$L,Data!$J:$J,"<=" & Criteria!$G$10,Data!$Q:$Q,$A132,Data!$O:$O,Criteria!$G$29,Data!$P:$P,Criteria!$I$32) -> 0 | J132: =SUMIFS(Data!$M:$M,Data!$J:$J,"<=" & Criteria!$G$10,Data!$Q:$Q,$A132,Data!$O:$O,Criteria!$G$29,Data!$P:$P,Criteria!$I$32) -> 0 | K132: =SUMIFS(Data!$L:$L,Data!$J:$J,"<=" & Criteria!$G$10,Data!$Q:$Q,$A132,Data!$O:$O,Criteria!$G$29,Data!$P:$P,Criteria!$I$33) -> 0 | L132: =SUMIFS(Data!$M:$M,Data!$J:$J,"<=" & Criteria!$G$10,Data!$Q:$Q,$A132,Data!$O:$O,Criteria!$G$29,Data!$P:$P,Criteria!$I$33) -> 0 | M132: =SUMIFS(Data!$E:$E,Data!$A:$A,"<=" & Criteria!$G$10,Data!$G:$G,$A132,Data!$H:$H,Criteria!$G$29) -> 0 | N132: 0 | O132: 0
A133: 0 | B133: =IF(A133>0,OFFSET(Criteria!$M$11,A133-Criteria!$M$11,0),"") ->  | C133: =SUMIFS(Data!$L:$L,Data!$J:$J,"<=" & Criteria!$G$10,Data!$Q:$Q,$A133,Data!$O:$O,Criteria!$G$29,Data!$P:$P,Criteria!$I$29) -> 0 | D133: =SUMIFS(Data!$M:$M,Data!$J:$J,"<=" & Criteria!$G$10,Data!$Q:$Q,$A133,Data!$O:$O,Criteria!$G$29,Data!$P:$P,Criteria!$I$29) -> 0 | E133: =SUMIFS(Data!$L:$L,Data!$J:$J,"<=" & Criteria!$G$10,Data!$Q:$Q,$A133,Data!$O:$O,Criteria!$G$29,Data!$P:$P,Criteria!$I$30) -> 0 | F133: =SUMIFS(Data!$M:$M,Data!$J:$J,"<=" & Criteria!$G$10,Data!$Q:$Q,$A133,Data!$O:$O,Criteria!$G$29,Data!$P:$P,Criteria!$I$30) -> 0 | G133: =SUMIFS(Data!$L:$L,Data!$J:$J,"<=" & Criteria!$G$10,Data!$Q:$Q,$A133,Data!$O:$O,Criteria!$G$29,Data!$P:$P,Criteria!$I$31) -> 0 | H133: =SUMIFS(Data!$M:$M,Data!$J:$J,"<=" & Criteria!$G$10,Data!$Q:$Q,$A133,Data!$O:$O,Criteria!$G$29,Data!$P:$P,Criteria!$I$31) -> 0 | I133: =SUMIFS(Data!$L:$L,Data!$J:$J,"<=" & Criteria!$G$10,Data!$Q:$Q,$A133,Data!$O:$O,Criteria!$G$29,Data!$P:$P,Criteria!$I$32) -> 0 | J133: =SUMIFS(Data!$M:$M,Data!$J:$J,"<=" & Criteria!$G$10,Data!$Q:$Q,$A133,Data!$O:$O,Criteria!$G$29,Data!$P:$P,Criteria!$I$32) -> 0 | K133: =SUMIFS(Data!$L:$L,Data!$J:$J,"<=" & Criteria!$G$10,Data!$Q:$Q,$A133,Data!$O:$O,Criteria!$G$29,Data!$P:$P,Criteria!$I$33) -> 0 | L133: =SUMIFS(Data!$M:$M,Data!$J:$J,"<=" & Criteria!$G$10,Data!$Q:$Q,$A133,Data!$O:$O,Criteria!$G$29,Data!$P:$P,Criteria!$I$33) -> 0 | M133: =SUMIFS(Data!$E:$E,Data!$A:$A,"<=" & Criteria!$G$10,Data!$G:$G,$A133,Data!$H:$H,Criteria!$G$29) -> 0 | N133: 0 | O133: 0
A134: 0 | B134: =IF(A134>0,OFFSET(Criteria!$M$11,A134-Criteria!$M$11,0),"") ->  | C134: =SUMIFS(Data!$L:$L,Data!$J:$J,"<=" & Criteria!$G$10,Data!$Q:$Q,$A134,Data!$O:$O,Criteria!$G$29,Data!$P:$P,Criteria!$I$29) -> 0 | D134: =SUMIFS(Data!$M:$M,Data!$J:$J,"<=" & Criteria!$G$10,Data!$Q:$Q,$A134,Data!$O:$O,Criteria!$G$29,Data!$P:$P,Criteria!$I$29) -> 0 | E134: =SUMIFS(Data!$L:$L,Data!$J:$J,"<=" & Criteria!$G$10,Data!$Q:$Q,$A134,Data!$O:$O,Criteria!$G$29,Data!$P:$P,Criteria!$I$30) -> 0 | F134: =SUMIFS(Data!$M:$M,Data!$J:$J,"<=" & Criteria!$G$10,Data!$Q:$Q,$A134,Data!$O:$O,Criteria!$G$29,Data!$P:$P,Criteria!$I$30) -> 0 | G134: =SUMIFS(Data!$L:$L,Data!$J:$J,"<=" & Criteria!$G$10,Data!$Q:$Q,$A134,Data!$O:$O,Criteria!$G$29,Data!$P:$P,Criteria!$I$31) -> 0 | H134: =SUMIFS(Data!$M:$M,Data!$J:$J,"<=" & Criteria!$G$10,Data!$Q:$Q,$A134,Data!$O:$O,Criteria!$G$29,Data!$P:$P,Criteria!$I$31) -> 0 | I134: =SUMIFS(Data!$L:$L,Data!$J:$J,"<=" & Criteria!$G$10,Data!$Q:$Q,$A134,Data!$O:$O,Criteria!$G$29,Data!$P:$P,Criteria!$I$32) -> 0 | J134: =SUMIFS(Data!$M:$M,Data!$J:$J,"<=" & Criteria!$G$10,Data!$Q:$Q,$A134,Data!$O:$O,Criteria!$G$29,Data!$P:$P,Criteria!$I$32) -> 0 | K134: =SUMIFS(Data!$L:$L,Data!$J:$J,"<=" & Criteria!$G$10,Data!$Q:$Q,$A134,Data!$O:$O,Criteria!$G$29,Data!$P:$P,Criteria!$I$33) -> 0 | L134: =SUMIFS(Data!$M:$M,Data!$J:$J,"<=" & Criteria!$G$10,Data!$Q:$Q,$A134,Data!$O:$O,Criteria!$G$29,Data!$P:$P,Criteria!$I$33) -> 0 | M134: =SUMIFS(Data!$E:$E,Data!$A:$A,"<=" & Criteria!$G$10,Data!$G:$G,$A134,Data!$H:$H,Criteria!$G$29) -> 0 | N134: 0 | O134: 0
A135: 0 | B135: =IF(A135>0,OFFSET(Criteria!$M$11,A135-Criteria!$M$11,0),"") ->  | C135: =SUMIFS(Data!$L:$L,Data!$J:$J,"<=" & Criteria!$G$10,Data!$Q:$Q,$A135,Data!$O:$O,Criteria!$G$29,Data!$P:$P,Criteria!$I$29) -> 0 | D135: =SUMIFS(Data!$M:$M,Data!$J:$J,"<=" & Criteria!$G$10,Data!$Q:$Q,$A135,Data!$O:$O,Criteria!$G$29,Data!$P:$P,Criteria!$I$29) -> 0 | E135: =SUMIFS(Data!$L:$L,Data!$J:$J,"<=" & Criteria!$G$10,Data!$Q:$Q,$A135,Data!$O:$O,Criteria!$G$29,Data!$P:$P,Criteria!$I$30) -> 0 | F135: =SUMIFS(Data!$M:$M,Data!$J:$J,"<=" & Criteria!$G$10,Data!$Q:$Q,$A135,Data!$O:$O,Criteria!$G$29,Data!$P:$P,Criteria!$I$30) -> 0 | G135: =SUMIFS(Data!$L:$L,Data!$J:$J,"<=" & Criteria!$G$10,Data!$Q:$Q,$A135,Data!$O:$O,Criteria!$G$29,Data!$P:$P,Criteria!$I$31) -> 0 | H135: =SUMIFS(Data!$M:$M,Data!$J:$J,"<=" & Criteria!$G$10,Data!$Q:$Q,$A135,Data!$O:$O,Criteria!$G$29,Data!$P:$P,Criteria!$I$31) -> 0 | I135: =SUMIFS(Data!$L:$L,Data!$J:$J,"<=" & Criteria!$G$10,Data!$Q:$Q,$A135,Data!$O:$O,Criteria!$G$29,Data!$P:$P,Criteria!$I$32) -> 0 | J135: =SUMIFS(Data!$M:$M,Data!$J:$J,"<=" & Criteria!$G$10,Data!$Q:$Q,$A135,Data!$O:$O,Criteria!$G$29,Data!$P:$P,Criteria!$I$32) -> 0 | K135: =SUMIFS(Data!$L:$L,Data!$J:$J,"<=" & Criteria!$G$10,Data!$Q:$Q,$A135,Data!$O:$O,Criteria!$G$29,Data!$P:$P,Criteria!$I$33) -> 0 | L135: =SUMIFS(Data!$M:$M,Data!$J:$J,"<=" & Criteria!$G$10,Data!$Q:$Q,$A135,Data!$O:$O,Criteria!$G$29,Data!$P:$P,Criteria!$I$33) -> 0 | M135: =SUMIFS(Data!$E:$E,Data!$A:$A,"<=" & Criteria!$G$10,Data!$G:$G,$A135,Data!$H:$H,Criteria!$G$29) -> 0 | N135: 0 | O135: 0
A136: 0 | B136: =IF(A136>0,OFFSET(Criteria!$M$11,A136-Criteria!$M$11,0),"") ->  | C136: =SUMIFS(Data!$L:$L,Data!$J:$J,"<=" & Criteria!$G$10,Data!$Q:$Q,$A136,Data!$O:$O,Criteria!$G$29,Data!$P:$P,Criteria!$I$29) -> 0 | D136: =SUMIFS(Data!$M:$M,Data!$J:$J,"<=" & Criteria!$G$10,Data!$Q:$Q,$A136,Data!$O:$O,Criteria!$G$29,Data!$P:$P,Criteria!$I$29) -> 0 | E136: =SUMIFS(Data!$L:$L,Data!$J:$J,"<=" & Criteria!$G$10,Data!$Q:$Q,$A136,Data!$O:$O,Criteria!$G$29,Data!$P:$P,Criteria!$I$30) -> 0 | F136: =SUMIFS(Data!$M:$M,Data!$J:$J,"<=" & Criteria!$G$10,Data!$Q:$Q,$A136,Data!$O:$O,Criteria!$G$29,Data!$P:$P,Criteria!$I$30) -> 0 | G136: =SUMIFS(Data!$L:$L,Data!$J:$J,"<=" & Criteria!$G$10,Data!$Q:$Q,$A136,Data!$O:$O,Criteria!$G$29,Data!$P:$P,Criteria!$I$31) -> 0 | H136: =SUMIFS(Data!$M:$M,Data!$J:$J,"<=" & Criteria!$G$10,Data!$Q:$Q,$A136,Data!$O:$O,Criteria!$G$29,Data!$P:$P,Criteria!$I$31) -> 0 | I136: =SUMIFS(Data!$L:$L,Data!$J:$J,"<=" & Criteria!$G$10,Data!$Q:$Q,$A136,Data!$O:$O,Criteria!$G$29,Data!$P:$P,Criteria!$I$32) -> 0 | J136: =SUMIFS(Data!$M:$M,Data!$J:$J,"<=" & Criteria!$G$10,Data!$Q:$Q,$A136,Data!$O:$O,Criteria!$G$29,Data!$P:$P,Criteria!$I$32) -> 0 | K136: =SUMIFS(Data!$L:$L,Data!$J:$J,"<=" & Criteria!$G$10,Data!$Q:$Q,$A136,Data!$O:$O,Criteria!$G$29,Data!$P:$P,Criteria!$I$33) -> 0 | L136: =SUMIFS(Data!$M:$M,Data!$J:$J,"<=" & Criteria!$G$10,Data!$Q:$Q,$A136,Data!$O:$O,Criteria!$G$29,Data!$P:$P,Criteria!$I$33) -> 0 | M136: =SUMIFS(Data!$E:$E,Data!$A:$A,"<=" & Criteria!$G$10,Data!$G:$G,$A136,Data!$H:$H,Criteria!$G$29) -> 0 | N136: 0 | O136: 0
A137: 0 | B137: =IF(A137>0,OFFSET(Criteria!$M$11,A137-Criteria!$M$11,0),"") ->  | C137: =SUMIFS(Data!$L:$L,Data!$J:$J,"<=" & Criteria!$G$10,Data!$Q:$Q,$A137,Data!$O:$O,Criteria!$G$29,Data!$P:$P,Criteria!$I$29) -> 0 | D137: =SUMIFS(Data!$M:$M,Data!$J:$J,"<=" & Criteria!$G$10,Data!$Q:$Q,$A137,Data!$O:$O,Criteria!$G$29,Data!$P:$P,Criteria!$I$29) -> 0 | E137: =SUMIFS(Data!$L:$L,Data!$J:$J,"<=" & Criteria!$G$10,Data!$Q:$Q,$A137,Data!$O:$O,Criteria!$G$29,Data!$P:$P,Criteria!$I$30) -> 0 | F137: =SUMIFS(Data!$M:$M,Data!$J:$J,"<=" & Criteria!$G$10,Data!$Q:$Q,$A137,Data!$O:$O,Criteria!$G$29,Data!$P:$P,Criteria!$I$30) -> 0 | G137: =SUMIFS(Data!$L:$L,Data!$J:$J,"<=" & Criteria!$G$10,Data!$Q:$Q,$A137,Data!$O:$O,Criteria!$G$29,Data!$P:$P,Criteria!$I$31) -> 0 | H137: =SUMIFS(Data!$M:$M,Data!$J:$J,"<=" & Criteria!$G$10,Data!$Q:$Q,$A137,Data!$O:$O,Criteria!$G$29,Data!$P:$P,Criteria!$I$31) -> 0 | I137: =SUMIFS(Data!$L:$L,Data!$J:$J,"<=" & Criteria!$G$10,Data!$Q:$Q,$A137,Data!$O:$O,Criteria!$G$29,Data!$P:$P,Criteria!$I$32) -> 0 | J137: =SUMIFS(Data!$M:$M,Data!$J:$J,"<=" & Criteria!$G$10,Data!$Q:$Q,$A137,Data!$O:$O,Criteria!$G$29,Data!$P:$P,Criteria!$I$32) -> 0 | K137: =SUMIFS(Data!$L:$L,Data!$J:$J,"<=" & Criteria!$G$10,Data!$Q:$Q,$A137,Data!$O:$O,Criteria!$G$29,Data!$P:$P,Criteria!$I$33) -> 0 | L137: =SUMIFS(Data!$M:$M,Data!$J:$J,"<=" & Criteria!$G$10,Data!$Q:$Q,$A137,Data!$O:$O,Criteria!$G$29,Data!$P:$P,Criteria!$I$33) -> 0 | M137: =SUMIFS(Data!$E:$E,Data!$A:$A,"<=" & Criteria!$G$10,Data!$G:$G,$A137,Data!$H:$H,Criteria!$G$29) -> 0 | N137: 0 | O137: 0
A138: 0 | B138: =IF(A138>0,OFFSET(Criteria!$M$11,A138-Criteria!$M$11,0),"") ->  | C138: =SUMIFS(Data!$L:$L,Data!$J:$J,"<=" & Criteria!$G$10,Data!$Q:$Q,$A138,Data!$O:$O,Criteria!$G$29,Data!$P:$P,Criteria!$I$29) -> 0 | D138: =SUMIFS(Data!$M:$M,Data!$J:$J,"<=" & Criteria!$G$10,Data!$Q:$Q,$A138,Data!$O:$O,Criteria!$G$29,Data!$P:$P,Criteria!$I$29) -> 0 | E138: =SUMIFS(Data!$L:$L,Data!$J:$J,"<=" & Criteria!$G$10,Data!$Q:$Q,$A138,Data!$O:$O,Criteria!$G$29,Data!$P:$P,Criteria!$I$30) -> 0 | F138: =SUMIFS(Data!$M:$M,Data!$J:$J,"<=" & Criteria!$G$10,Data!$Q:$Q,$A138,Data!$O:$O,Criteria!$G$29,Data!$P:$P,Criteria!$I$30) -> 0 | G138: =SUMIFS(Data!$L:$L,Data!$J:$J,"<=" & Criteria!$G$10,Data!$Q:$Q,$A138,Data!$O:$O,Criteria!$G$29,Data!$P:$P,Criteria!$I$31) -> 0 | H138: =SUMIFS(Data!$M:$M,Data!$J:$J,"<=" & Criteria!$G$10,Data!$Q:$Q,$A138,Data!$O:$O,Criteria!$G$29,Data!$P:$P,Criteria!$I$31) -> 0 | I138: =SUMIFS(Data!$L:$L,Data!$J:$J,"<=" & Criteria!$G$10,Data!$Q:$Q,$A138,Data!$O:$O,Criteria!$G$29,Data!$P:$P,Criteria!$I$32) -> 0 | J138: =SUMIFS(Data!$M:$M,Data!$J:$J,"<=" & Criteria!$G$10,Data!$Q:$Q,$A138,Data!$O:$O,Criteria!$G$29,Data!$P:$P,Criteria!$I$32) -> 0 | K138: =SUMIFS(Data!$L:$L,Data!$J:$J,"<=" & Criteria!$G$10,Data!$Q:$Q,$A138,Data!$O:$O,Criteria!$G$29,Data!$P:$P,Criteria!$I$33) -> 0 | L138: =SUMIFS(Data!$M:$M,Data!$J:$J,"<=" & Criteria!$G$10,Data!$Q:$Q,$A138,Data!$O:$O,Criteria!$G$29,Data!$P:$P,Criteria!$I$33) -> 0 | M138: =SUMIFS(Data!$E:$E,Data!$A:$A,"<=" & Criteria!$G$10,Data!$G:$G,$A138,Data!$H:$H,Criteria!$G$29) -> 0 | N138: 0 | O138: 0
A139: 0 | B139: =IF(A139>0,OFFSET(Criteria!$M$11,A139-Criteria!$M$11,0),"") ->  | C139: =SUMIFS(Data!$L:$L,Data!$J:$J,"<=" & Criteria!$G$10,Data!$Q:$Q,$A139,Data!$O:$O,Criteria!$G$29,Data!$P:$P,Criteria!$I$29) -> 0 | D139: =SUMIFS(Data!$M:$M,Data!$J:$J,"<=" & Criteria!$G$10,Data!$Q:$Q,$A139,Data!$O:$O,Criteria!$G$29,Data!$P:$P,Criteria!$I$29) -> 0 | E139: =SUMIFS(Data!$L:$L,Data!$J:$J,"<=" & Criteria!$G$10,Data!$Q:$Q,$A139,Data!$O:$O,Criteria!$G$29,Data!$P:$P,Criteria!$I$30) -> 0 | F139: =SUMIFS(Data!$M:$M,Data!$J:$J,"<=" & Criteria!$G$10,Data!$Q:$Q,$A139,Data!$O:$O,Criteria!$G$29,Data!$P:$P,Criteria!$I$30) -> 0 | G139: =SUMIFS(Data!$L:$L,Data!$J:$J,"<=" & Criteria!$G$10,Data!$Q:$Q,$A139,Data!$O:$O,Criteria!$G$29,Data!$P:$P,Criteria!$I$31) -> 0 | H139: =SUMIFS(Data!$M:$M,Data!$J:$J,"<=" & Criteria!$G$10,Data!$Q:$Q,$A139,Data!$O:$O,Criteria!$G$29,Data!$P:$P,Criteria!$I$31) -> 0 | I139: =SUMIFS(Data!$L:$L,Data!$J:$J,"<=" & Criteria!$G$10,Data!$Q:$Q,$A139,Data!$O:$O,Criteria!$G$29,Data!$P:$P,Criteria!$I$32) -> 0 | J139: =SUMIFS(Data!$M:$M,Data!$J:$J,"<=" & Criteria!$G$10,Data!$Q:$Q,$A139,Data!$O:$O,Criteria!$G$29,Data!$P:$P,Criteria!$I$32) -> 0 | K139: =SUMIFS(Data!$L:$L,Data!$J:$J,"<=" & Criteria!$G$10,Data!$Q:$Q,$A139,Data!$O:$O,Criteria!$G$29,Data!$P:$P,Criteria!$I$33) -> 0 | L139: =SUMIFS(Data!$M:$M,Data!$J:$J,"<=" & Criteria!$G$10,Data!$Q:$Q,$A139,Data!$O:$O,Criteria!$G$29,Data!$P:$P,Criteria!$I$33) -> 0 | M139: =SUMIFS(Data!$E:$E,Data!$A:$A,"<=" & Criteria!$G$10,Data!$G:$G,$A139,Data!$H:$H,Criteria!$G$29) -> 0 | N139: 0 | O139: 0
A140: 0 | B140: =IF(A140>0,OFFSET(Criteria!$M$11,A140-Criteria!$M$11,0),"") ->  | C140: =SUMIFS(Data!$L:$L,Data!$J:$J,"<=" & Criteria!$G$10,Data!$Q:$Q,$A140,Data!$O:$O,Criteria!$G$29,Data!$P:$P,Criteria!$I$29) -> 0 | D140: =SUMIFS(Data!$M:$M,Data!$J:$J,"<=" & Criteria!$G$10,Data!$Q:$Q,$A140,Data!$O:$O,Criteria!$G$29,Data!$P:$P,Criteria!$I$29) -> 0 | E140: =SUMIFS(Data!$L:$L,Data!$J:$J,"<=" & Criteria!$G$10,Data!$Q:$Q,$A140,Data!$O:$O,Criteria!$G$29,Data!$P:$P,Criteria!$I$30) -> 0 | F140: =SUMIFS(Data!$M:$M,Data!$J:$J,"<=" & Criteria!$G$10,Data!$Q:$Q,$A140,Data!$O:$O,Criteria!$G$29,Data!$P:$P,Criteria!$I$30) -> 0 | G140: =SUMIFS(Data!$L:$L,Data!$J:$J,"<=" & Criteria!$G$10,Data!$Q:$Q,$A140,Data!$O:$O,Criteria!$G$29,Data!$P:$P,Criteria!$I$31) -> 0 | H140: =SUMIFS(Data!$M:$M,Data!$J:$J,"<=" & Criteria!$G$10,Data!$Q:$Q,$A140,Data!$O:$O,Criteria!$G$29,Data!$P:$P,Criteria!$I$31) -> 0 | I140: =SUMIFS(Data!$L:$L,Data!$J:$J,"<=" & Criteria!$G$10,Data!$Q:$Q,$A140,Data!$O:$O,Criteria!$G$29,Data!$P:$P,Criteria!$I$32) -> 0 | J140: =SUMIFS(Data!$M:$M,Data!$J:$J,"<=" & Criteria!$G$10,Data!$Q:$Q,$A140,Data!$O:$O,Criteria!$G$29,Data!$P:$P,Criteria!$I$32) -> 0 | K140: =SUMIFS(Data!$L:$L,Data!$J:$J,"<=" & Criteria!$G$10,Data!$Q:$Q,$A140,Data!$O:$O,Criteria!$G$29,Data!$P:$P,Criteria!$I$33) -> 0 | L140: =SUMIFS(Data!$M:$M,Data!$J:$J,"<=" & Criteria!$G$10,Data!$Q:$Q,$A140,Data!$O:$O,Criteria!$G$29,Data!$P:$P,Criteria!$I$33) -> 0 | M140: =SUMIFS(Data!$E:$E,Data!$A:$A,"<=" & Criteria!$G$10,Data!$G:$G,$A140,Data!$H:$H,Criteria!$G$29) -> 0 | N140: 0 | O140: 0
A141: 0 | B141: =IF(A141>0,OFFSET(Criteria!$M$11,A141-Criteria!$M$11,0),"") ->  | C141: =SUMIFS(Data!$L:$L,Data!$J:$J,"<=" & Criteria!$G$10,Data!$Q:$Q,$A141,Data!$O:$O,Criteria!$G$29,Data!$P:$P,Criteria!$I$29) -> 0 | D141: =SUMIFS(Data!$M:$M,Data!$J:$J,"<=" & Criteria!$G$10,Data!$Q:$Q,$A141,Data!$O:$O,Criteria!$G$29,Data!$P:$P,Criteria!$I$29) -> 0 | E141: =SUMIFS(Data!$L:$L,Data!$J:$J,"<=" & Criteria!$G$10,Data!$Q:$Q,$A141,Data!$O:$O,Criteria!$G$29,Data!$P:$P,Criteria!$I$30) -> 0 | F141: =SUMIFS(Data!$M:$M,Data!$J:$J,"<=" & Criteria!$G$10,Data!$Q:$Q,$A141,Data!$O:$O,Criteria!$G$29,Data!$P:$P,Criteria!$I$30) -> 0 | G141: =SUMIFS(Data!$L:$L,Data!$J:$J,"<=" & Criteria!$G$10,Data!$Q:$Q,$A141,Data!$O:$O,Criteria!$G$29,Data!$P:$P,Criteria!$I$31) -> 0 | H141: =SUMIFS(Data!$M:$M,Data!$J:$J,"<=" & Criteria!$G$10,Data!$Q:$Q,$A141,Data!$O:$O,Criteria!$G$29,Data!$P:$P,Criteria!$I$31) -> 0 | I141: =SUMIFS(Data!$L:$L,Data!$J:$J,"<=" & Criteria!$G$10,Data!$Q:$Q,$A141,Data!$O:$O,Criteria!$G$29,Data!$P:$P,Criteria!$I$32) -> 0 | J141: =SUMIFS(Data!$M:$M,Data!$J:$J,"<=" & Criteria!$G$10,Data!$Q:$Q,$A141,Data!$O:$O,Criteria!$G$29,Data!$P:$P,Criteria!$I$32) -> 0 | K141: =SUMIFS(Data!$L:$L,Data!$J:$J,"<=" & Criteria!$G$10,Data!$Q:$Q,$A141,Data!$O:$O,Criteria!$G$29,Data!$P:$P,Criteria!$I$33) -> 0 | L141: =SUMIFS(Data!$M:$M,Data!$J:$J,"<=" & Criteria!$G$10,Data!$Q:$Q,$A141,Data!$O:$O,Criteria!$G$29,Data!$P:$P,Criteria!$I$33) -> 0 | M141: =SUMIFS(Data!$E:$E,Data!$A:$A,"<=" & Criteria!$G$10,Data!$G:$G,$A141,Data!$H:$H,Criteria!$G$29) -> 0 | N141: 0 | O141: 0
A142: 0 | B142: =IF(A142>0,OFFSET(Criteria!$M$11,A142-Criteria!$M$11,0),"") ->  | C142: =SUMIFS(Data!$L:$L,Data!$J:$J,"<=" & Criteria!$G$10,Data!$Q:$Q,$A142,Data!$O:$O,Criteria!$G$29,Data!$P:$P,Criteria!$I$29) -> 0 | D142: =SUMIFS(Data!$M:$M,Data!$J:$J,"<=" & Criteria!$G$10,Data!$Q:$Q,$A142,Data!$O:$O,Criteria!$G$29,Data!$P:$P,Criteria!$I$29) -> 0 | E142: =SUMIFS(Data!$L:$L,Data!$J:$J,"<=" & Criteria!$G$10,Data!$Q:$Q,$A142,Data!$O:$O,Criteria!$G$29,Data!$P:$P,Criteria!$I$30) -> 0 | F142: =SUMIFS(Data!$M:$M,Data!$J:$J,"<=" & Criteria!$G$10,Data!$Q:$Q,$A142,Data!$O:$O,Criteria!$G$29,Data!$P:$P,Criteria!$I$30) -> 0 | G142: =SUMIFS(Data!$L:$L,Data!$J:$J,"<=" & Criteria!$G$10,Data!$Q:$Q,$A142,Data!$O:$O,Criteria!$G$29,Data!$P:$P,Criteria!$I$31) -> 0 | H142: =SUMIFS(Data!$M:$M,Data!$J:$J,"<=" & Criteria!$G$10,Data!$Q:$Q,$A142,Data!$O:$O,Criteria!$G$29,Data!$P:$P,Criteria!$I$31) -> 0 | I142: =SUMIFS(Data!$L:$L,Data!$J:$J,"<=" & Criteria!$G$10,Data!$Q:$Q,$A142,Data!$O:$O,Criteria!$G$29,Data!$P:$P,Criteria!$I$32) -> 0 | J142: =SUMIFS(Data!$M:$M,Data!$J:$J,"<=" & Criteria!$G$10,Data!$Q:$Q,$A142,Data!$O:$O,Criteria!$G$29,Data!$P:$P,Criteria!$I$32) -> 0 | K142: =SUMIFS(Data!$L:$L,Data!$J:$J,"<=" & Criteria!$G$10,Data!$Q:$Q,$A142,Data!$O:$O,Criteria!$G$29,Data!$P:$P,Criteria!$I$33) -> 0 | L142: =SUMIFS(Data!$M:$M,Data!$J:$J,"<=" & Criteria!$G$10,Data!$Q:$Q,$A142,Data!$O:$O,Criteria!$G$29,Data!$P:$P,Criteria!$I$33) -> 0 | M142: =SUMIFS(Data!$E:$E,Data!$A:$A,"<=" & Criteria!$G$10,Data!$G:$G,$A142,Data!$H:$H,Criteria!$G$29) -> 0 | N142: 0 | O142: 0
A143: 0 | B143: =IF(A143>0,OFFSET(Criteria!$M$11,A143-Criteria!$M$11,0),"") ->  | C143: =SUMIFS(Data!$L:$L,Data!$J:$J,"<=" & Criteria!$G$10,Data!$Q:$Q,$A143,Data!$O:$O,Criteria!$G$29,Data!$P:$P,Criteria!$I$29) -> 0 | D143: =SUMIFS(Data!$M:$M,Data!$J:$J,"<=" & Criteria!$G$10,Data!$Q:$Q,$A143,Data!$O:$O,Criteria!$G$29,Data!$P:$P,Criteria!$I$29) -> 0 | E143: =SUMIFS(Data!$L:$L,Data!$J:$J,"<=" & Criteria!$G$10,Data!$Q:$Q,$A143,Data!$O:$O,Criteria!$G$29,Data!$P:$P,Criteria!$I$30) -> 0 | F143: =SUMIFS(Data!$M:$M,Data!$J:$J,"<=" & Criteria!$G$10,Data!$Q:$Q,$A143,Data!$O:$O,Criteria!$G$29,Data!$P:$P,Criteria!$I$30) -> 0 | G143: =SUMIFS(Data!$L:$L,Data!$J:$J,"<=" & Criteria!$G$10,Data!$Q:$Q,$A143,Data!$O:$O,Criteria!$G$29,Data!$P:$P,Criteria!$I$31) -> 0 | H143: =SUMIFS(Data!$M:$M,Data!$J:$J,"<=" & Criteria!$G$10,Data!$Q:$Q,$A143,Data!$O:$O,Criteria!$G$29,Data!$P:$P,Criteria!$I$31) -> 0 | I143: =SUMIFS(Data!$L:$L,Data!$J:$J,"<=" & Criteria!$G$10,Data!$Q:$Q,$A143,Data!$O:$O,Criteria!$G$29,Data!$P:$P,Criteria!$I$32) -> 0 | J143: =SUMIFS(Data!$M:$M,Data!$J:$J,"<=" & Criteria!$G$10,Data!$Q:$Q,$A143,Data!$O:$O,Criteria!$G$29,Data!$P:$P,Criteria!$I$32) -> 0 | K143: =SUMIFS(Data!$L:$L,Data!$J:$J,"<=" & Criteria!$G$10,Data!$Q:$Q,$A143,Data!$O:$O,Criteria!$G$29,Data!$P:$P,Criteria!$I$33) -> 0 | L143: =SUMIFS(Data!$M:$M,Data!$J:$J,"<=" & Criteria!$G$10,Data!$Q:$Q,$A143,Data!$O:$O,Criteria!$G$29,Data!$P:$P,Criteria!$I$33) -> 0 | M143: =SUMIFS(Data!$E:$E,Data!$A:$A,"<=" & Criteria!$G$10,Data!$G:$G,$A143,Data!$H:$H,Criteria!$G$29) -> 0 | N143: 0 | O143: 0
A144: 0 | B144: =IF(A144>0,OFFSET(Criteria!$M$11,A144-Criteria!$M$11,0),"") ->  | C144: =SUMIFS(Data!$L:$L,Data!$J:$J,"<=" & Criteria!$G$10,Data!$Q:$Q,$A144,Data!$O:$O,Criteria!$G$29,Data!$P:$P,Criteria!$I$29) -> 0 | D144: =SUMIFS(Data!$M:$M,Data!$J:$J,"<=" & Criteria!$G$10,Data!$Q:$Q,$A144,Data!$O:$O,Criteria!$G$29,Data!$P:$P,Criteria!$I$29) -> 0 | E144: =SUMIFS(Data!$L:$L,Data!$J:$J,"<=" & Criteria!$G$10,Data!$Q:$Q,$A144,Data!$O:$O,Criteria!$G$29,Data!$P:$P,Criteria!$I$30) -> 0 | F144: =SUMIFS(Data!$M:$M,Data!$J:$J,"<=" & Criteria!$G$10,Data!$Q:$Q,$A144,Data!$O:$O,Criteria!$G$29,Data!$P:$P,Criteria!$I$30) -> 0 | G144: =SUMIFS(Data!$L:$L,Data!$J:$J,"<=" & Criteria!$G$10,Data!$Q:$Q,$A144,Data!$O:$O,Criteria!$G$29,Data!$P:$P,Criteria!$I$31) -> 0 | H144: =SUMIFS(Data!$M:$M,Data!$J:$J,"<=" & Criteria!$G$10,Data!$Q:$Q,$A144,Data!$O:$O,Criteria!$G$29,Data!$P:$P,Criteria!$I$31) -> 0 | I144: =SUMIFS(Data!$L:$L,Data!$J:$J,"<=" & Criteria!$G$10,Data!$Q:$Q,$A144,Data!$O:$O,Criteria!$G$29,Data!$P:$P,Criteria!$I$32) -> 0 | J144: =SUMIFS(Data!$M:$M,Data!$J:$J,"<=" & Criteria!$G$10,Data!$Q:$Q,$A144,Data!$O:$O,Criteria!$G$29,Data!$P:$P,Criteria!$I$32) -> 0 | K144: =SUMIFS(Data!$L:$L,Data!$J:$J,"<=" & Criteria!$G$10,Data!$Q:$Q,$A144,Data!$O:$O,Criteria!$G$29,Data!$P:$P,Criteria!$I$33) -> 0 | L144: =SUMIFS(Data!$M:$M,Data!$J:$J,"<=" & Criteria!$G$10,Data!$Q:$Q,$A144,Data!$O:$O,Criteria!$G$29,Data!$P:$P,Criteria!$I$33) -> 0 | M144: =SUMIFS(Data!$E:$E,Data!$A:$A,"<=" & Criteria!$G$10,Data!$G:$G,$A144,Data!$H:$H,Criteria!$G$29) -> 0 | N144: 0 | O144: 0
C145: =SUM(C126:C144) -> 9921 | D145: 616655700 | E145: 2682 | F145: 161990000 | G145: 3275 | H145: 109366000 | I145: 1443 | J145: 42820300 | K145: 2869 | L145: 96915100 | M145: 21534100 | N145: 20190 | O145: 1006213000
C147: TIPS
C149: 5 year | E149: 10 year | G149: 20 year | I149: 30 year | K149: Total
C150: Securities | D150: Dollars | E150: Securities | F150: Dollars | G150: Securities | H150: Dollars | I150: Securities | J150: Dollars | K150: Securities | L150: Dollars
A151: =ReportFY -> 2012 | B151: =IF(A151>0,OFFSET(Criteria!$M$11,A151-Criteria!$M$11,0),"") -> 2012 (thru Dec) | C151: =SUMIFS(Data!$L:$L,Data!$J:$J,"<=" & Criteria!$G$10,Data!$Q:$Q,$A151,Data!$O:$O,Criteria!$G$34,Data!$P:$P,Criteria!$I$34) -> 2349 | D151: =SUMIFS(Data!$M:$M,Data!$J:$J,"<=" & Criteria!$G$10,Data!$Q:$Q,$A151,Data!$O:$O,Criteria!$G$34,Data!$P:$P,Criteria!$I$34) -> 71279000 | E151: =SUMIFS(Data!$L:$L,Data!$J:$J,"<=" & Criteria!$G$10,Data!$Q:$Q,$A151,Data!$O:$O,Criteria!$G$34,Data!$P:$P,Criteria!$I$35) -> 2898 | F151: =SUMIFS(Data!$M:$M,Data!$J:$J,"<=" & Criteria!$G$10,Data!$Q:$Q,$A151,Data!$O:$O,Criteria!$G$34,Data!$P:$P,Criteria!$I$35) -> 58537200 | G151: =SUMIFS(Data!$L:$L,Data!$J:$J,"<=" & Criteria!$G$10,Data!$Q:$Q,$A151,Data!$O:$O,Criteria!$G$34,Data!$P:$P,Criteria!$I$36) -> 0 | H151: =SUMIFS(Data!$M:$M,Data!$J:$J,"<=" & Criteria!$G$10,Data!$Q:$Q,$A151,Data!$O:$O,Criteria!$G$34,Data!$P:$P,Criteria!$I$36) -> 0 | I151: =SUMIFS(Data!$L:$L,Data!$J:$J,"<=" & Criteria!$G$10,Data!$Q:$Q,$A151,Data!$O:$O,Criteria!$G$34,Data!$P:$P,Criteria!$I$37) -> 620 | J151: =SUMIFS(Data!$M:$M,Data!$J:$J,"<=" & Criteria!$G$10,Data!$Q:$Q,$A151,Data!$O:$O,Criteria!$G$34,Data!$P:$P,Criteria!$I$37) -> 8048700 | K151: =C151+E151+G151+I151 -> 5867 | L151: =D151+F151+H151+J151 -> 137864900
A152: =IF(AND(A151<ReportMaxFY,A151<>0), A151+1,0) -> 0 | B152: =IF(A152>0,OFFSET(Criteria!$M$11,A152-Criteria!$M$11,0),"") ->  | C152: =SUMIFS(Data!$L:$L,Data!$J:$J,"<=" & Criteria!$G$10,Data!$Q:$Q,$A152,Data!$O:$O,Criteria!$G$34,Data!$P:$P,Criteria!$I$34) -> 0 | D152: =SUMIFS(Data!$M:$M,Data!$J:$J,"<=" & Criteria!$G$10,Data!$Q:$Q,$A152,Data!$O:$O,Criteria!$G$34,Data!$P:$P,Criteria!$I$34) -> 0 | E152: =SUMIFS(Data!$L:$L,Data!$J:$J,"<=" & Criteria!$G$10,Data!$Q:$Q,$A152,Data!$O:$O,Criteria!$G$34,Data!$P:$P,Criteria!$I$35) -> 0 | F152: =SUMIFS(Data!$M:$M,Data!$J:$J,"<=" & Criteria!$G$10,Data!$Q:$Q,$A152,Data!$O:$O,Criteria!$G$34,Data!$P:$P,Criteria!$I$35) -> 0 | G152: =SUMIFS(Data!$L:$L,Data!$J:$J,"<=" & Criteria!$G$10,Data!$Q:$Q,$A152,Data!$O:$O,Criteria!$G$34,Data!$P:$P,Criteria!$I$36) -> 0 | H152: =SUMIFS(Data!$M:$M,Data!$J:$J,"<=" & Criteria!$G$10,Data!$Q:$Q,$A152,Data!$O:$O,Criteria!$G$34,Data!$P:$P,Criteria!$I$36) -> 0 | I152: =SUMIFS(Data!$L:$L,Data!$J:$J,"<=" & Criteria!$G$10,Data!$Q:$Q,$A152,Data!$O:$O,Criteria!$G$34,Data!$P:$P,Criteria!$I$37) -> 0 | J152: =SUMIFS(Data!$M:$M,Data!$J:$J,"<=" & Criteria!$G$10,Data!$Q:$Q,$A152,Data!$O:$O,Criteria!$G$34,Data!$P:$P,Criteria!$I$37) -> 0 | K152: =C152+E152+G152+I152 -> 0 | L152: =D152+F152+H152+J152 -> 0
A153: 0 | B153: =IF(A153>0,OFFSET(Criteria!$M$11,A153-Criteria!$M$11,0),"") ->  | C153: =SUMIFS(Data!$L:$L,Data!$J:$J,"<=" & Criteria!$G$10,Data!$Q:$Q,$A153,Data!$O:$O,Criteria!$G$34,Data!$P:$P,Criteria!$I$34) -> 0 | D153: =SUMIFS(Data!$M:$M,Data!$J:$J,"<=" & Criteria!$G$10,Data!$Q:$Q,$A153,Data!$O:$O,Criteria!$G$34,Data!$P:$P,Criteria!$I$34) -> 0 | E153: =SUMIFS(Data!$L:$L,Data!$J:$J,"<=" & Criteria!$G$10,Data!$Q:$Q,$A153,Data!$O:$O,Criteria!$G$34,Data!$P:$P,Criteria!$I$35) -> 0 | F153: =SUMIFS(Data!$M:$M,Data!$J:$J,"<=" & Criteria!$G$10,Data!$Q:$Q,$A153,Data!$O:$O,Criteria!$G$34,Data!$P:$P,Criteria!$I$35) -> 0 | G153: =SUMIFS(Data!$L:$L,Data!$J:$J,"<=" & Criteria!$G$10,Data!$Q:$Q,$A153,Data!$O:$O,Criteria!$G$34,Data!$P:$P,Criteria!$I$36) -> 0 | H153: =SUMIFS(Data!$M:$M,Data!$J:$J,"<=" & Criteria!$G$10,Data!$Q:$Q,$A153,Data!$O:$O,Criteria!$G$34,Data!$P:$P,Criteria!$I$36) -> 0 | I153: =SUMIFS(Data!$L:$L,Data!$J:$J,"<=" & Criteria!$G$10,Data!$Q:$Q,$A153,Data!$O:$O,Criteria!$G$34,Data!$P:$P,Criteria!$I$37) -> 0 | J153: =SUMIFS(Data!$M:$M,Data!$J:$J,"<=" & Criteria!$G$10,Data!$Q:$Q,$A153,Data!$O:$O,Criteria!$G$34,Data!$P:$P,Criteria!$I$37) -> 0 | K153: 0 | L153: 0
A154: 0 | B154: =IF(A154>0,OFFSET(Criteria!$M$11,A154-Criteria!$M$11,0),"") ->  | C154: =SUMIFS(Data!$L:$L,Data!$J:$J,"<=" & Criteria!$G$10,Data!$Q:$Q,$A154,Data!$O:$O,Criteria!$G$34,Data!$P:$P,Criteria!$I$34) -> 0 | D154: =SUMIFS(Data!$M:$M,Data!$J:$J,"<=" & Criteria!$G$10,Data!$Q:$Q,$A154,Data!$O:$O,Criteria!$G$34,Data!$P:$P,Criteria!$I$34) -> 0 | E154: =SUMIFS(Data!$L:$L,Data!$J:$J,"<=" & Criteria!$G$10,Data!$Q:$Q,$A154,Data!$O:$O,Criteria!$G$34,Data!$P:$P,Criteria!$I$35) -> 0 | F154: =SUMIFS(Data!$M:$M,Data!$J:$J,"<=" & Criteria!$G$10,Data!$Q:$Q,$A154,Data!$O:$O,Criteria!$G$34,Data!$P:$P,Criteria!$I$35) -> 0 | G154: =SUMIFS(Data!$L:$L,Data!$J:$J,"<=" & Criteria!$G$10,Data!$Q:$Q,$A154,Data!$O:$O,Criteria!$G$34,Data!$P:$P,Criteria!$I$36) -> 0 | H154: =SUMIFS(Data!$M:$M,Data!$J:$J,"<=" & Criteria!$G$10,Data!$Q:$Q,$A154,Data!$O:$O,Criteria!$G$34,Data!$P:$P,Criteria!$I$36) -> 0 | I154: =SUMIFS(Data!$L:$L,Data!$J:$J,"<=" & Criteria!$G$10,Data!$Q:$Q,$A154,Data!$O:$O,Criteria!$G$34,Data!$P:$P,Criteria!$I$37) -> 0 | J154: =SUMIFS(Data!$M:$M,Data!$J:$J,"<=" & Criteria!$G$10,Data!$Q:$Q,$A154,Data!$O:$O,Criteria!$G$34,Data!$P:$P,Criteria!$I$37) -> 0 | K154: 0 | L154: 0
